{"text_format":"1","workbook":"xlsx","n_sheets":2,"sheets":["ברכות","גליון בסיס"],"not_rendered":{"charts":4,"images":6,"macros":1,"external_links":0,"defined_names":0,"comments":0,"pivot_tables":0},"unopened":[],"bounds":{"document_bytes":16777216,"sheet_cells":100000,"rows_first":2000,"rows_last":500,"rows_between":2000,"halvings":0,"cell_chars":16384,"cell_head_chars":4096},"cells_cut":0,"cells_raw":0,"read":"whole","date_system":"1900"}

{"sheet":"ברכות","index":0,"n_rows":125,"n_cols":205,"rows_kept":125,"cut":false,"hidden":false,"merged":[[0,44,0,49],[0,51,0,56],[0,58,0,63],[0,2,0,7],[0,9,0,14],[0,16,0,21],[0,23,0,28],[0,30,0,35],[0,37,0,42],[1,23,4,23],[1,24,1,27],[1,28,4,28],[2,17,2,20],[2,24,2,27],[3,17,3,20],[3,24,3,27],[1,2,4,2],[1,3,1,6],[1,7,4,7],[1,9,4,9],[1,10,1,13],[1,14,4,14],[2,3,2,6],[2,10,2,13],[3,3,3,6],[3,10,3,13],[4,3,4,6],[4,10,4,13],[4,17,4,20],[4,24,4,27],[1,16,4,16],[1,17,1,20],[1,21,4,21],[1,63,4,63],[2,59,2,62],[3,59,3,62],[1,44,4,44],[1,45,1,48],[1,49,4,49],[1,51,4,51],[1,52,1,55],[1,56,4,56],[2,45,2,48],[2,52,2,55],[3,45,3,48],[3,52,3,55],[4,45,4,48],[4,52,4,55],[4,59,4,62],[5,37,5,42],[19,30,19,35],[4,31,4,34],[4,38,4,41],[1,58,4,58],[1,59,1,62],[1,30,4,30],[1,31,1,34],[1,35,4,35],[1,37,4,37],[1,38,1,41],[1,42,4,42],[2,31,2,34],[2,38,2,41],[3,31,3,34],[3,38,3,41],[15,51,15,56],[29,37,29,42],[21,44,21,49],[12,51,12,56],[29,58,29,63],[121,65,121,70],[121,72,121,77],[5,198,5,204],[7,0,8,0],[9,0,11,0],[15,0,19,0],[20,0,24,0],[31,2,31,7],[17,9,17,14],[25,16,25,21],[17,23,17,28],[16,30,16,35],[5,44,5,49],[5,51,5,56],[5,58,5,63],[5,2,5,7],[5,9,5,14],[5,16,5,21],[5,23,5,28],[5,30,5,35],[32,58,32,63],[121,121,121,126],[121,128,121,133],[121,135,121,140],[121,142,121,147],[121,79,121,84],[121,86,121,91],[121,93,121,98],[121,100,121,105],[121,107,121,112],[121,114,121,119],[124,65,124,70],[124,72,124,77],[124,79,124,84],[124,86,124,91],[124,93,124,98],[124,100,124,105],[121,163,121,168],[34,2,34,7],[20,9,20,14],[28,16,28,21],[20,23,20,28],[121,149,121,154],[121,156,121,161],[124,149,124,154],[124,156,124,161],[124,163,124,168],[124,107,124,112],[124,114,124,119],[124,121,124,126],[124,128,124,133],[124,135,124,140],[124,142,124,147],[32,37,32,42],[24,44,24,49]]}
[null,null,{"$f":"\"ב\"&C6&\" יש \"&SUBTOTAL(103,פרק_א21[עמודה1])/2 &\" דפים. מתוכם למדת \"&SUBTOTAL(103,פרק_א21[עמודה2])/2 &\" דפים. בעוד \"& SUBTOTAL(103,פרק_א21[עמודה1])/2-SUBTOTAL(103,פרק_א21[עמודה2])/2  &\" תגמור את \"& C6 &\" בפעם הראשונה.\"","v":"בפרק ראשון - מאימתי יש 11.5 דפים. מתוכם למדת 9.5 דפים. בעוד 2 תגמור את פרק ראשון - מאימתי בפעם הראשונה."},null,null,null,null,null,null,{"$f":"\"ב\"&J6&\" יש \"&SUBTOTAL(103,פרק_ב52[עמודה1])/2 &\" דפים. מתוכם למדת \"&SUBTOTAL(103,פרק_ב52[עמודה2])/2 &\" דפים. בעוד \"& SUBTOTAL(103,פרק_ב52[עמודה1])/2-SUBTOTAL(103,פרק_ב52[עמודה2])/2  &\" תגמור את \"& J6 &\" בפעם הראשונה.\"","v":"בפרק שני - היה קורא יש 4.5 דפים. מתוכם למדת 0 דפים. בעוד 4.5 תגמור את פרק שני - היה קורא בפעם הראשונה."},null,null,null,null,null,null,{"$f":"\"ב\"&Q6&\" יש \"&SUBTOTAL(103,פרק_ג22[עמודה1])/2 &\" דפים. מתוכם למדת \"&SUBTOTAL(103,פרק_ג22[עמודה2])/2 &\" דפים. בעוד \"& SUBTOTAL(103,פרק_ג22[עמודה1])/2-SUBTOTAL(103,פרק_ג22[עמודה2])/2  &\" תגמור את \"& Q6 &\" בפעם הראשונה.\"","v":"בפרק שלישי - מי שמתו יש 8.5 דפים. מתוכם למדת 1 דפים. בעוד 7.5 תגמור את פרק שלישי - מי שמתו בפעם הראשונה."},null,null,null,null,null,null,{"$f":"\"ב\"&X6&\" יש \"&SUBTOTAL(103,פרק_ד51[עמודה1])/2 &\" דפים. מתוכם למדת \"&SUBTOTAL(103,פרק_ד51[עמודה2])/2 &\" דפים. בעוד \"& SUBTOTAL(103,פרק_ד51[עמודה1])/2-SUBTOTAL(103,פרק_ד51[עמודה2])/2  &\" תגמור את \"& X6 &\" בפעם הראשונה.\"","v":"בפרק רביעי - תפלת השחר יש 4.5 דפים. מתוכם למדת 0 דפים. בעוד 4.5 תגמור את פרק רביעי - תפלת השחר בפעם הראשונה."},null,null,null,null,null,null,{"$f":"\"ב\"&AE6&\" יש \"&SUBTOTAL(103,פרק_ה50[עמודה1])/2 &\" דפים. מתוכם למדת \"&SUBTOTAL(103,פרק_ה50[עמודה2])/2 &\" דפים. בעוד \"& SUBTOTAL(103,פרק_ה50[עמודה1])/2-SUBTOTAL(103,פרק_ה50[עמודה2])/2  &\" תגמור את \"& AE6 &\" בפעם הראשונה.\"","v":"בפרק חמישי - אין עומדין יש 4 דפים. מתוכם למדת 0 דפים. בעוד 4 תגמור את פרק חמישי - אין עומדין בפעם הראשונה."},null,null,null,null,null,null,{"$f":"\"ב\"&AL6&\" יש \"&SUBTOTAL(103,פרק_ו49[עמודה1])/2 &\" דפים. מתוכם למדת \"&SUBTOTAL(103,פרק_ו49[עמודה2])/2 &\" דפים. בעוד \"& SUBTOTAL(103,פרק_ו49[עמודה1])/2-SUBTOTAL(103,פרק_ו49[עמודה2])/2  &\" תגמור את \"& AL6 &\" בפעם הראשונה.\"","v":"בפרק שישי - כיצד מברכין יש 10.5 דפים. מתוכם למדת 0 דפים. בעוד 10.5 תגמור את פרק שישי - כיצד מברכין בפעם הראשונה."},null,null,null,null,null,null,{"$f":"\"ב\"&AS6&\" יש \"&SUBTOTAL(103,פרק_ז48[עמודה1])/2 &\" דפים. מתוכם למדת \"&SUBTOTAL(103,פרק_ז48[עמודה2])/2 &\" דפים. בעוד \"& SUBTOTAL(103,פרק_ז48[עמודה1])/2-SUBTOTAL(103,פרק_ז48[עמודה2])/2  &\" תגמור את \"& AS6 &\" בפעם הראשונה.\"","v":"בפרק שביעי - שלושה שאכלו יש 6.5 דפים. מתוכם למדת 0 דפים. בעוד 6.5 תגמור את פרק שביעי - שלושה שאכלו בפעם הראשונה."},null,null,null,null,null,null,{"$f":"\"ב\"&AZ6&\" יש \"&SUBTOTAL(103,פרק_ח47[עמודה1])/2 &\" דפים. מתוכם למדת \"&SUBTOTAL(103,פרק_ח47[עמודה2])/2 &\" דפים. בעוד \"& SUBTOTAL(103,פרק_ח47[עמודה1])/2-SUBTOTAL(103,פרק_ח47[עמודה2])/2  &\" תגמור את \"& AZ6 &\" בפעם הראשונה.\"","v":"בפרק שמיני - אלו דברים יש 2 דפים. מתוכם למדת 0 דפים. בעוד 2 תגמור את פרק שמיני - אלו דברים בפעם הראשונה."},null,null,null,null,null,null,{"$f":"\"ב\"&BG6&\" יש \"&SUBTOTAL(103,פרק_ט46[עמודה1])/2 &\" דפים. מתוכם למדת \"&SUBTOTAL(103,פרק_ט46[עמודה2])/2 &\" דפים. בעוד \"& SUBTOTAL(103,פרק_ט46[עמודה1])/2-SUBTOTAL(103,פרק_ט46[עמודה2])/2  &\" תגמור את \"& BG6 &\" בפעם הראשונה.\"","v":"בפרק תשיעי - הרואה יש 10.5 דפים. מתוכם למדת 0 דפים. בעוד 10.5 תגמור את פרק תשיעי - הרואה בפעם הראשונה."}]
[null,null,null,{"$f":" G33/C33","v":0},null,null,null,null,null,null,{"$f":" N19/J19","v":0},null,null,null,null,null,null,{"$f":" U27/Q27","v":0},null,null,null,null,null,null,{"$f":" AB19/X19","v":0},null,null,null,null,null,null,{"$f":" AI18/AE18","v":0},null,null,null,null,null,null,{"$f":" AP31/AL31","v":0},null,null,null,null,null,null,{"$f":" AW23/AS23","v":0},null,null,null,null,null,null,{"$f":" BD14/AZ14","v":0},null,null,null,null,null,null,{"$f":" BK31/BG31","v":0}]
[null,null,null,{"$f":" F33/C33","v":0.95652173913043481},null,null,null,null,null,null,{"$f":" M19/J19","v":0},null,null,null,null,null,null,{"$f":" T27/Q27","v":0},null,null,null,null,null,null,{"$f":" AA19/X19","v":0},null,null,null,null,null,null,{"$f":" AH18/AE18","v":0},null,null,null,null,null,null,{"$f":" AO31/AL31","v":0},null,null,null,null,null,null,{"$f":" AV23/AS23","v":0},null,null,null,null,null,null,{"$f":" BC14/AZ14","v":0},null,null,null,null,null,null,{"$f":" BJ31/BG31","v":0}]
["  ",null,null,{"$f":" E33/C33","v":0.43478260869565216},null,null,null,null,null,null,{"$f":" L19/J19","v":0},null,null,null,null,null,null,{"$f":" S27/Q27","v":0},null,null,null,null,null,null,{"$f":" Z19/X19","v":0},null,null,null,null,null,null,{"$f":" AG18/AE18","v":0},null,null,null,null,null,null,{"$f":" AN31/AL31","v":0},null,null,null,null,null,null,{"$f":" AU23/AS23","v":0},null,null,null,null,null,null,{"$f":" BB14/AZ14","v":0},null,null,null,null,null,null,{"$f":" BI31/BG31","v":0}]
[null,null,null,{"$f":"D33/C33","v":0.82608695652173914},null,null,null,null,null,null,{"$f":"K19/J19","v":0},null,null,null,null,null,null,{"$f":"R27/Q27","v":0.11764705882352941},null,null,null,null,null,null,{"$f":"Y19/X19","v":0},null,null,null,null,null,null,{"$f":"AF18/AE18","v":0},null,null,null,null,null,null,{"$f":"AM31/AL31","v":0},null,null,null,null,null,null,{"$f":"AT23/AS23","v":0},null,null,null,null,null,null,{"$f":"BA14/AZ14","v":0},null,null,null,null,null,null,{"$f":"BH31/BG31","v":0}]
["🔍חיפוש ",null,"פרק ראשון - מאימתי",null,null,null,null,null,null,"פרק שני - היה קורא",null,null,null,null,null,null,"פרק שלישי - מי שמתו",null,null,null,null,null,null,"פרק רביעי - תפלת השחר",null,null,null,null,null,null,"פרק חמישי - אין עומדין",null,null,null,null,null,null,"פרק שישי - כיצד מברכין",null,null,null,null,null,null,"פרק שביעי - שלושה שאכלו",null,null,null,null,null,null,"פרק שמיני - אלו דברים",null,null,null,null,null,null,"פרק תשיעי - הרואה",null,null,null,null,null,null,null,null,null,null,null,null,null,null,null,null,null,null,null,null,null,null,null,null,null,null,null,null,null,null,null,null,null,null,null,null,null,null,null,null,null,null,null,null,null,null,null,null,null,null,null,null,null,null,null,null,null,null,null,null,null,null,null,null,null,null,null,null,null,null,null,null,null,null,null,null,null,null,null,null,null,null,null,null,null,null,null,null,null,null,null,null,null,null,null,null,null,null,null,null,null,null,null,null,null,null,null,null,null,null,null,null,null,null,null,null,null,null,null,null,null,null,null,null,null,null,null,null,null,null,null,null,null,null,null,null,null,null,null,"טבלת סיכום"]
[null,null,null,null,null,null,null,null,null,null,null,null,null,null,null,null,null,null,null,null,null,null,null,null,null,null,null,null,null,null,null,null,null,null,null,null,null,null,null,null,null,null,null,null,null,null,null,null,null,null,null,null,null,null,null,null,null,null,null,null,null,null,null,null,null,null,null,null,null,null,null,null,null,null,null,null,null,null,null,null,null,null,null,null,null,null,null,null,null,null,null,null,null,null,null,null,null,null,null,null,null,null,null,null,null,null,null,null,null,null,null,null,null,null,null,null,null,null,null,null,null,null,null,null,null,null,null,null,null,null,null,null,null,null,null,null,null,null,null,null,null,null,null,null,null,null,null,null,null,null,null,null,null,null,null,null,null,null,null,null,null,null,null,null,null,null,null,null,null,null,null,null,null,null,null,null,null,null,null,null,null,null,null,null,null,null,null,null,null,null,null,null,null,null,null,null,null,null,"סיכום","סך עמודים","לימוד1","לימוד2","לימוד3","לימוד4","סך כל הלימוד"]
["מסכת ברכות",null,"ב.","2021-10-05","2021-10-05","2021-10-05",null,{"$f":"COUNTA(פרק_א21[[#This Row],[עמודה2]:[עמודה5]])","v":3},null,"יג:",null,null,null,null,{"$f":"COUNTA(פרק_ב52[[#This Row],[עמודה2]:[עמודה5]])","v":0},null,"יח.",null,null,null,null,{"$f":"COUNTA(פרק_ג22[[#This Row],[עמודה2]:[עמודה5]])","v":0},null,"כו:",null,null,null,null,{"$f":"COUNTA(פרק_ד51[[#This Row],[עמודה2]:[עמודה5]])","v":0},null,"לא.",null,null,null,null,{"$f":"COUNTA(פרק_ה50[[#This Row],[עמודה2]:[עמודה5]])","v":0},null,"לה.",null,null,null,null,{"$f":"COUNTA(פרק_ו49[[#This Row],[עמודה2]:[עמודה5]])","v":0},null,"מה:",null,null,null,null,{"$f":"COUNTA(פרק_ז48[[#This Row],[עמודה2]:[עמודה5]])","v":0},null,"נב.",null,null,null,null,{"$f":"COUNTA(פרק_ח47[[#This Row],[עמודה2]:[עמודה5]])","v":0},null,"נד.",null,null,null,null,{"$f":"COUNTA(פרק_ט46[[#This Row],[עמודה2]:[עמודה5]])","v":0},null,null,null,null,null,null,null,null,null,null,null,null,null,null,null,null,null,null,null,null,null,null,null,null,null,null,null,null,null,null,null,null,null,null,null,null,null,null,null,null,null,null,null,null,null,null,null,null,null,null,null,null,null,null,null,null,null,null,null,null,null,null,null,null,null,null,null,null,null,null,null,null,null,null,null,null,null,null,null,null,null,null,null,null,null,null,null,null,null,null,null,null,null,null,null,null,null,null,null,null,null,null,null,null,null,null,null,null,null,null,null,null,null,null,null,null,null,null,null,null,null,null,null,null,null,null,null,null,null,null,null,null,null,null,{"$f":"HYPERLINK(\"#C6\",C6)","v":"פרק ראשון - מאימתי"},{"$f":"SUBTOTAL(103,פרק_א21[עמודה1])","v":23},{"$f":"SUBTOTAL(103,פרק_א21[עמודה2])","v":19},{"$f":"SUBTOTAL(103,פרק_א21[עמודה3])","v":10},{"$f":"SUBTOTAL(103,פרק_א21[עמודה4])","v":22},{"$f":"SUBTOTAL(103,פרק_א21[עמודה5])","v":0},{"$f":"SUBTOTAL(109,פרק_א21[עמודה6])","v":51}]
[null,null,"ב:","2021-10-05","2021-10-05","2021-10-05",null,{"$f":"COUNTA(פרק_א21[[#This Row],[עמודה2]:[עמודה5]])","v":3},null,"יד.",null,null,null,null,{"$f":"COUNTA(פרק_ב52[[#This Row],[עמודה2]:[עמודה5]])","v":0},null,"יח:",null,null,null,null,{"$f":"COUNTA(פרק_ג22[[#This Row],[עמודה2]:[עמודה5]])","v":0},null,"כז.",null,null,null,null,{"$f":"COUNTA(פרק_ד51[[#This Row],[עמודה2]:[עמודה5]])","v":0},null,"לא:",null,null,null,null,{"$f":"COUNTA(פרק_ה50[[#This Row],[עמודה2]:[עמודה5]])","v":0},null,"לה:",null,null,null,null,{"$f":"COUNTA(פרק_ו49[[#This Row],[עמודה2]:[עמודה5]])","v":0},null,"מו.",null,null,null,null,{"$f":"COUNTA(פרק_ז48[[#This Row],[עמודה2]:[עמודה5]])","v":0},null,"נב:",null,null,null,null,{"$f":"COUNTA(פרק_ח47[[#This Row],[עמודה2]:[עמודה5]])","v":0},null,"נד:",null,null,null,null,{"$f":"COUNTA(פרק_ט46[[#This Row],[עמודה2]:[עמודה5]])","v":0},null,null,null,null,null,null,null,null,null,null,null,null,null,null,null,null,null,null,null,null,null,null,null,null,null,null,null,null,null,null,null,null,null,null,null,null,null,null,null,null,null,null,null,null,null,null,null,null,null,null,null,null,null,null,null,null,null,null,null,null,null,null,null,null,null,null,null,null,null,null,null,null,null,null,null,null,null,null,null,null,null,null,null,null,null,null,null,null,null,null,null,null,null,null,null,null,null,null,null,null,null,null,null,null,null,null,null,null,null,null,null,null,null,null,null,null,null,null,null,null,null,null,null,null,null,null,null,null,null,null,null,null,null,null,{"$f":"HYPERLINK(\"#j6\",J6)","v":"פרק שני - היה קורא"},{"$f":"SUBTOTAL(103,פרק_ב52[עמודה1])","v":9},{"$f":"SUBTOTAL(103,פרק_ב52[עמודה2])","v":0},{"$f":"SUBTOTAL(103,פרק_ב52[עמודה3])","v":0},{"$f":"SUBTOTAL(103,פרק_ב52[עמודה4])","v":0},{"$f":"SUBTOTAL(103,פרק_ב52[עמודה5])","v":0},{"$f":"SUBTOTAL(109,פרק_ב52[עמודה6])","v":0}]
[{"$f":"\"ב\" & A8 &\" ישנם \" &SUBTOTAL(103,C6,J6,Q6,X6,AE6,AL6,AS6,AZ6,BG6,BN6,BU6,CB6,CI6,CP6,CW6,DD6,DK6,DR6,DY6,EF6,EM6,ET6,FA6,FH6)&\" פרקים \"& SUBTOTAL(103,C8:C30,J8:J16,Q8:Q24,X8:X16,AE8:AE15,AL8:AL28,AS8:AS20,AZ8:AZ11,BG8:BG28,BN8:BN120,BU8:BU120,CB8:CB120,CI8:CI120,CP8:CP120,CW8:CW120,DD8:DD120,DK8:DK120,DR8:DR120,DY8:DY120,EF8:EF120,EM8:EM120,ET8:ET120,FA8:FA120,FH8:FH120)/2 & \" דפים.\"","v":"במסכת ברכות ישנם 9 פרקים 62.5 דפים."},null,"ג.","2021-10-05","2021-10-05","2021-10-05",null,{"$f":"COUNTA(פרק_א21[[#This Row],[עמודה2]:[עמודה5]])","v":3},null,"יד:",null,null,null,null,{"$f":"COUNTA(פרק_ב52[[#This Row],[עמודה2]:[עמודה5]])","v":0},null,"יט.",null,null,null,null,{"$f":"COUNTA(פרק_ג22[[#This Row],[עמודה2]:[עמודה5]])","v":0},null,"כז:",null,null,null,null,{"$f":"COUNTA(פרק_ד51[[#This Row],[עמודה2]:[עמודה5]])","v":0},null,"לב.",null,null,null,null,{"$f":"COUNTA(פרק_ה50[[#This Row],[עמודה2]:[עמודה5]])","v":0},null,"לו.",null,null,null,null,{"$f":"COUNTA(פרק_ו49[[#This Row],[עמודה2]:[עמודה5]])","v":0},null,"מו:",null,null,null,null,{"$f":"COUNTA(פרק_ז48[[#This Row],[עמודה2]:[עמודה5]])","v":0},null,"נג.",null,null,null,null,{"$f":"COUNTA(פרק_ח47[[#This Row],[עמודה2]:[עמודה5]])","v":0},null,"נה.",null,null,null,null,{"$f":"COUNTA(פרק_ט46[[#This Row],[עמודה2]:[עמודה5]])","v":0},null,null,null,null,null,null,null,null,null,null,null,null,null,null,null,null,null,null,null,null,null,null,null,null,null,null,null,null,null,null,null,null,null,null,null,null,null,null,null,null,null,null,null,null,null,null,null,null,null,null,null,null,null,null,null,null,null,null,null,null,null,null,null,null,null,null,null,null,null,null,null,null,null,null,null,null,null,null,null,null,null,null,null,null,null,null,null,null,null,null,null,null,null,null,null,null,null,null,null,null,null,null,null,null,null,null,null,null,null,null,null,null,null,null,null,null,null,null,null,null,null,null,null,null,null,null,null,null,null,null,null,null,null,null,{"$f":"HYPERLINK(\"#q6\",Q6)","v":"פרק שלישי - מי שמתו"},{"$f":"SUBTOTAL(103,פרק_ג22[עמודה1])","v":17},{"$f":"SUBTOTAL(103,פרק_ג22[עמודה2])","v":2},{"$f":"SUBTOTAL(103,פרק_ג22[עמודה3])","v":0},{"$f":"SUBTOTAL(103,פרק_ג22[עמודה4])","v":0},{"$f":"SUBTOTAL(103,פרק_ג22[עמודה5])","v":0},{"$f":"SUBTOTAL(109,פרק_ג22[עמודה6])","v":2}]
[null,null,"ג:","2021-10-05","2021-10-05","2021-10-05",null,{"$f":"COUNTA(פרק_א21[[#This Row],[עמודה2]:[עמודה5]])","v":3},null,"טו.",null,null,null,null,{"$f":"COUNTA(פרק_ב52[[#This Row],[עמודה2]:[עמודה5]])","v":0},null,"יט:","2021-10-05",null,null,null,{"$f":"COUNTA(פרק_ג22[[#This Row],[עמודה2]:[עמודה5]])","v":1},null,"כח.",null,null,null,null,{"$f":"COUNTA(פרק_ד51[[#This Row],[עמודה2]:[עמודה5]])","v":0},null,"לב:",null,null,null,null,{"$f":"COUNTA(פרק_ה50[[#This Row],[עמודה2]:[עמודה5]])","v":0},null,"לו:",null,null,null,null,{"$f":"COUNTA(פרק_ו49[[#This Row],[עמודה2]:[עמודה5]])","v":0},null,"מז.",null,null,null,null,{"$f":"COUNTA(פרק_ז48[[#This Row],[עמודה2]:[עמודה5]])","v":0},null,"נג:",null,null,null,null,{"$f":"COUNTA(פרק_ח47[[#This Row],[עמודה2]:[עמודה5]])","v":0},null,"נה:",null,null,null,null,{"$f":"COUNTA(פרק_ט46[[#This Row],[עמודה2]:[עמודה5]])","v":0},null,null,null,null,null,null,null,null,null,null,null,null,null,null,null,null,null,null,null,null,null,null,null,null,null,null,null,null,null,null,null,null,null,null,null,null,null,null,null,null,null,null,null,null,null,null,null,null,null,null,null,null,null,null,null,null,null,null,null,null,null,null,null,null,null,null,null,null,null,null,null,null,null,null,null,null,null,null,null,null,null,null,null,null,null,null,null,null,null,null,null,null,null,null,null,null,null,null,null,null,null,null,null,null,null,null,null,null,null,null,null,null,null,null,null,null,null,null,null,null,null,null,null,null,null,null,null,null,null,null,null,null,null,null,{"$f":"HYPERLINK(\"#x6\",X6)","v":"פרק רביעי - תפלת השחר"},{"$f":"SUBTOTAL(103,פרק_ד51[עמודה1])","v":9},{"$f":"SUBTOTAL(103,פרק_ד51[עמודה2])","v":0},{"$f":"SUBTOTAL(103,פרק_ד51[עמודה3])","v":0},{"$f":"SUBTOTAL(103,פרק_ד51[עמודה4])","v":0},{"$f":"SUBTOTAL(103,פרק_ד51[עמודה5])","v":0},{"$f":"SUBTOTAL(109,פרק_ד51[עמודה6])","v":0}]
[null,null,"ד.","2021-10-05","2021-10-05","2021-10-05",null,{"$f":"COUNTA(פרק_א21[[#This Row],[עמודה2]:[עמודה5]])","v":3},null,"טו:",null,null,null,null,{"$f":"COUNTA(פרק_ב52[[#This Row],[עמודה2]:[עמודה5]])","v":0},null,"כ.","2021-11-05",null,null,null,{"$f":"COUNTA(פרק_ג22[[#This Row],[עמודה2]:[עמודה5]])","v":1},null,"כח:",null,null,null,null,{"$f":"COUNTA(פרק_ד51[[#This Row],[עמודה2]:[עמודה5]])","v":0},null,"לג.",null,null,null,null,{"$f":"COUNTA(פרק_ה50[[#This Row],[עמודה2]:[עמודה5]])","v":0},null,"לז.",null,null,null,null,{"$f":"COUNTA(פרק_ו49[[#This Row],[עמודה2]:[עמודה5]])","v":0},null,"מז:",null,null,null,null,{"$f":"COUNTA(פרק_ז48[[#This Row],[עמודה2]:[עמודה5]])","v":0},null,null,null,null,null,null,null,null,"נו.",null,null,null,null,{"$f":"COUNTA(פרק_ט46[[#This Row],[עמודה2]:[עמודה5]])","v":0},null,null,null,null,null,null,null,null,null,null,null,null,null,null,null,null,null,null,null,null,null,null,null,null,null,null,null,null,null,null,null,null,null,null,null,null,null,null,null,null,null,null,null,null,null,null,null,null,null,null,null,null,null,null,null,null,null,null,null,null,null,null,null,null,null,null,null,null,null,null,null,null,null,null,null,null,null,null,null,null,null,null,null,null,null,null,null,null,null,null,null,null,null,null,null,null,null,null,null,null,null,null,null,null,null,null,null,null,null,null,null,null,null,null,null,null,null,null,null,null,null,null,null,null,null,null,null,null,null,null,null,null,null,null,{"$f":"HYPERLINK(\"#ae6\",AE6)","v":"פרק חמישי - אין עומדין"},{"$f":"SUBTOTAL(103,פרק_ה50[עמודה1])","v":8},{"$f":"SUBTOTAL(103,פרק_ה50[עמודה2])","v":0},{"$f":"SUBTOTAL(103,פרק_ה50[עמודה3])","v":0},{"$f":"SUBTOTAL(103,פרק_ה50[עמודה4])","v":0},{"$f":"SUBTOTAL(103,פרק_ה50[עמודה5])","v":0},{"$f":"SUBTOTAL(109,פרק_ה50[עמודה6])","v":0}]
[null,null,"ד:","2021-10-05","2021-10-05","2021-10-05",null,{"$f":"COUNTA(פרק_א21[[#This Row],[עמודה2]:[עמודה5]])","v":3},null,"טז.",null,null,null,null,{"$f":"COUNTA(פרק_ב52[[#This Row],[עמודה2]:[עמודה5]])","v":0},null,"כ:",null,null,null,null,{"$f":"COUNTA(פרק_ג22[[#This Row],[עמודה2]:[עמודה5]])","v":0},null,"כט.",null,null,null,null,{"$f":"COUNTA(פרק_ד51[[#This Row],[עמודה2]:[עמודה5]])","v":0},null,"לג:",null,null,null,null,{"$f":"COUNTA(פרק_ה50[[#This Row],[עמודה2]:[עמודה5]])","v":0},null,"לז:",null,null,null,null,{"$f":"COUNTA(פרק_ו49[[#This Row],[עמודה2]:[עמודה5]])","v":0},null,"מח.",null,null,null,null,{"$f":"COUNTA(פרק_ז48[[#This Row],[עמודה2]:[עמודה5]])","v":0},null,"שורת סיכום",null,null,null,null,null,null,"נו:",null,null,null,null,{"$f":"COUNTA(פרק_ט46[[#This Row],[עמודה2]:[עמודה5]])","v":0},null,null,null,null,null,null,null,null,null,null,null,null,null,null,null,null,null,null,null,null,null,null,null,null,null,null,null,null,null,null,null,null,null,null,null,null,null,null,null,null,null,null,null,null,null,null,null,null,null,null,null,null,null,null,null,null,null,null,null,null,null,null,null,null,null,null,null,null,null,null,null,null,null,null,null,null,null,null,null,null,null,null,null,null,null,null,null,null,null,null,null,null,null,null,null,null,null,null,null,null,null,null,null,null,null,null,null,null,null,null,null,null,null,null,null,null,null,null,null,null,null,null,null,null,null,null,null,null,null,null,null,null,null,null,{"$f":"HYPERLINK(\"#al6\",AL6)","v":"פרק שישי - כיצד מברכין"},{"$f":"SUBTOTAL(103,פרק_ו49[עמודה1])","v":21},{"$f":"SUBTOTAL(103,פרק_ו49[עמודה2])","v":0},{"$f":"SUBTOTAL(103,פרק_ו49[עמודה3])","v":0},{"$f":"SUBTOTAL(103,פרק_ו49[עמודה4])","v":0},{"$f":"SUBTOTAL(103,פרק_ו49[עמודה5])","v":0},{"$f":"SUBTOTAL(109,פרק_ו49[עמודה6])","v":0}]
[null,null,"ה.","2021-10-05","2021-10-05","2021-10-05",null,{"$f":"COUNTA(פרק_א21[[#This Row],[עמודה2]:[עמודה5]])","v":3},null,"טז:",null,null,null,null,{"$f":"COUNTA(פרק_ב52[[#This Row],[עמודה2]:[עמודה5]])","v":0},null,"כא.",null,null,null,null,{"$f":"COUNTA(פרק_ג22[[#This Row],[עמודה2]:[עמודה5]])","v":0},null,"כט:",null,null,null,null,{"$f":"COUNTA(פרק_ד51[[#This Row],[עמודה2]:[עמודה5]])","v":0},null,"לד.",null,null,null,null,{"$f":"COUNTA(פרק_ה50[[#This Row],[עמודה2]:[עמודה5]])","v":0},null,"לח.",null,null,null,null,{"$f":"COUNTA(פרק_ו49[[#This Row],[עמודה2]:[עמודה5]])","v":0},null,"מח:",null,null,null,null,{"$f":"COUNTA(פרק_ז48[[#This Row],[עמודה2]:[עמודה5]])","v":0},null,{"$f":"SUBTOTAL(103,פרק_ח47[עמודה1])","v":4},{"$f":"SUBTOTAL(103,פרק_ח47[עמודה2])","v":0},{"$f":"SUBTOTAL(103,פרק_ח47[עמודה3])","v":0},{"$f":"SUBTOTAL(103,פרק_ח47[עמודה4])","v":0},{"$f":"SUBTOTAL(103,פרק_ח47[עמודה5])","v":0},{"$f":"SUBTOTAL(109,פרק_ח47[עמודה6])","v":0},null,"נז.",null,null,null,null,{"$f":"COUNTA(פרק_ט46[[#This Row],[עמודה2]:[עמודה5]])","v":0},null,null,null,null,null,null,null,null,null,null,null,null,null,null,null,null,null,null,null,null,null,null,null,null,null,null,null,null,null,null,null,null,null,null,null,null,null,null,null,null,null,null,null,null,null,null,null,null,null,null,null,null,null,null,null,null,null,null,null,null,null,null,null,null,null,null,null,null,null,null,null,null,null,null,null,null,null,null,null,null,null,null,null,null,null,null,null,null,null,null,null,null,null,null,null,null,null,null,null,null,null,null,null,null,null,null,null,null,null,null,null,null,null,null,null,null,null,null,null,null,null,null,null,null,null,null,null,null,null,null,null,null,null,null,{"$f":"HYPERLINK(\"#as6\",AS6)","v":"פרק שביעי - שלושה שאכלו"},{"$f":"SUBTOTAL(103,פרק_ז48[עמודה1])","v":13},{"$f":"SUBTOTAL(103,פרק_ז48[עמודה2])","v":0},{"$f":"SUBTOTAL(103,פרק_ז48[עמודה3])","v":0},{"$f":"SUBTOTAL(103,פרק_ז48[עמודה4])","v":0},{"$f":"SUBTOTAL(103,פרק_ז48[עמודה5])","v":0},{"$f":"SUBTOTAL(109,פרק_ז48[עמודה6])","v":0}]
[null,null,"ה:","2021-10-05","2021-10-05","2021-10-05",null,{"$f":"COUNTA(פרק_א21[[#This Row],[עמודה2]:[עמודה5]])","v":3},null,"יז.",null,null,null,null,{"$f":"COUNTA(פרק_ב52[[#This Row],[עמודה2]:[עמודה5]])","v":0},null,"כא:",null,null,null,null,{"$f":"COUNTA(פרק_ג22[[#This Row],[עמודה2]:[עמודה5]])","v":0},null,"ל.",null,null,null,null,{"$f":"COUNTA(פרק_ד51[[#This Row],[עמודה2]:[עמודה5]])","v":0},null,"לד:",null,null,null,null,{"$f":"COUNTA(פרק_ה50[[#This Row],[עמודה2]:[עמודה5]])","v":0},null,"לח:",null,null,null,null,{"$f":"COUNTA(פרק_ו49[[#This Row],[עמודה2]:[עמודה5]])","v":0},null,"מט.",null,null,null,null,{"$f":"COUNTA(פרק_ז48[[#This Row],[עמודה2]:[עמודה5]])","v":0},null,null,null,null,null,null,null,null,"נז:",null,null,null,null,{"$f":"COUNTA(פרק_ט46[[#This Row],[עמודה2]:[עמודה5]])","v":0},null,null,null,null,null,null,null,null,null,null,null,null,null,null,null,null,null,null,null,null,null,null,null,null,null,null,null,null,null,null,null,null,null,null,null,null,null,null,null,null,null,null,null,null,null,null,null,null,null,null,null,null,null,null,null,null,null,null,null,null,null,null,null,null,null,null,null,null,null,null,null,null,null,null,null,null,null,null,null,null,null,null,null,null,null,null,null,null,null,null,null,null,null,null,null,null,null,null,null,null,null,null,null,null,null,null,null,null,null,null,null,null,null,null,null,null,null,null,null,null,null,null,null,null,null,null,null,null,null,null,null,null,null,null,{"$f":"HYPERLINK(\"#az6\",AZ6)","v":"פרק שמיני - אלו דברים"},{"$f":"SUBTOTAL(103,פרק_ח47[עמודה1])","v":4},{"$f":"SUBTOTAL(103,פרק_ח47[עמודה2])","v":0},{"$f":"SUBTOTAL(103,פרק_ח47[עמודה3])","v":0},{"$f":"SUBTOTAL(103,פרק_ח47[עמודה4])","v":0},{"$f":"SUBTOTAL(103,פרק_ח47[עמודה5])","v":0},{"$f":"SUBTOTAL(109,פרק_ח47[עמודה6])","v":0}]
[{"$f":"\"מתוכם למדת  \"  & SUBTOTAL(103,D8:D30,K8:K16,R8:R24,Y8:Y16,AF8:AF15,AM8:AM28,AT8:AT20,BA8:BA11,BH8:BH28,BO8:BO120,BV8:BV120,CC8:CC120,CJ8:CJ120,CQ8:CQ120,CX8:CX120,DE8:DE120,DL8:DL120,DS8:DS120,DZ8:DZ120,EG8:EG120,EN8:EN120,EU8:EU120,FB8:FB120,FI8:FI120)/2 &\" דפים, נותרו לך עוד \" & SUBTOTAL(103,C8:C30,J8:J16,Q8:Q24,X8:X16,AE8:AE15,AL8:AL28,AS8:AS20,AZ8:AZ11,BG8:BG28,BN8:BN120,BU8:BU120,CB8:CB120,CI8:CI120,CP8:CP120,CW8:CW120,DD8:DD120,DK8:DK120,DR8:DR120,DY8:DY120,EF8:EF120,EM8:EM120,ET8:ET120,FA8:FA120,FH8:FH120) /2- SUBTOTAL(103,D8:D30,K8:K16,R8:R24,Y8:Y16,AF8:AF15,AM8:AM28,AT8:AT20,BA8:BA11,BH8:BH28,BO8:BO120,BV8:BV120,CC8:CC120,CJ8:CJ120,CQ8:CQ120,CX8:CX120,DE8:DE120,DL8:DL120,DS8:DS120,DZ8:DZ120,EG8:EG120,EN8:EN120,EU8:EU120,FB8:FB120,FI8:FI120)/2 &\" להשלמת \"&A8&\" בפעם הראשונה\"","v":"מתוכם למדת  10.5 דפים, נותרו לך עוד 52 להשלמת מסכת ברכות בפעם הראשונה"},null,"ו.","2021-10-05","2021-10-05","2021-10-05",null,{"$f":"COUNTA(פרק_א21[[#This Row],[עמודה2]:[עמודה5]])","v":3},null,"יז:",null,null,null,null,{"$f":"COUNTA(פרק_ב52[[#This Row],[עמודה2]:[עמודה5]])","v":0},null,"כב.",null,null,null,null,{"$f":"COUNTA(פרק_ג22[[#This Row],[עמודה2]:[עמודה5]])","v":0},null,"ל:",null,null,null,null,{"$f":"COUNTA(פרק_ד51[[#This Row],[עמודה2]:[עמודה5]])","v":0},null,null,null,null,null,null,null,null,"לט.",null,null,null,null,{"$f":"COUNTA(פרק_ו49[[#This Row],[עמודה2]:[עמודה5]])","v":0},null,"מט:",null,null,null,null,{"$f":"COUNTA(פרק_ז48[[#This Row],[עמודה2]:[עמודה5]])","v":0},null,{"$f":"\"למדת סך הכל בפרק \" &AZ6&\": \"& BE14/2&\" דפים.\"","v":"למדת סך הכל בפרק פרק שמיני - אלו דברים: 0 דפים."},null,null,null,null,null,null,"נח.",null,null,null,null,{"$f":"COUNTA(פרק_ט46[[#This Row],[עמודה2]:[עמודה5]])","v":0},null,null,null,null,null,null,null,null,null,null,null,null,null,null,null,null,null,null,null,null,null,null,null,null,null,null,null,null,null,null,null,null,null,null,null,null,null,null,null,null,null,null,null,null,null,null,null,null,null,null,null,null,null,null,null,null,null,null,null,null,null,null,null,null,null,null,null,null,null,null,null,null,null,null,null,null,null,null,null,null,null,null,null,null,null,null,null,null,null,null,null,null,null,null,null,null,null,null,null,null,null,null,null,null,null,null,null,null,null,null,null,null,null,null,null,null,null,null,null,null,null,null,null,null,null,null,null,null,null,null,null,null,null,null,{"$f":"HYPERLINK(\"#bg6\",BG6)","v":"פרק תשיעי - הרואה"},{"$f":"SUBTOTAL(103,פרק_ט46[עמודה1])","v":21},{"$f":"SUBTOTAL(103,פרק_ט46[עמודה2])","v":0},{"$f":"SUBTOTAL(103,פרק_ט46[עמודה3])","v":0},{"$f":"SUBTOTAL(103,פרק_ט46[עמודה4])","v":0},{"$f":"SUBTOTAL(103,פרק_ט46[עמודה5])","v":0},{"$f":"SUBTOTAL(109,פרק_ט46[עמודה6])","v":0}]
[null,null,"ו:","2021-10-05","2021-10-05","2021-10-05",null,{"$f":"COUNTA(פרק_א21[[#This Row],[עמודה2]:[עמודה5]])","v":3},null,null,null,null,null,null,null,null,"כב:",null,null,null,null,{"$f":"COUNTA(פרק_ג22[[#This Row],[עמודה2]:[עמודה5]])","v":0},null,null,null,null,null,null,null,null,"שורת סיכום",null,null,null,null,null,null,"לט:",null,null,null,null,{"$f":"COUNTA(פרק_ו49[[#This Row],[עמודה2]:[עמודה5]])","v":0},null,"נ.",null,null,null,null,{"$f":"COUNTA(פרק_ז48[[#This Row],[עמודה2]:[עמודה5]])","v":0},null,null,null,null,null,null,null,null,"נח:",null,null,null,null,{"$f":"COUNTA(פרק_ט46[[#This Row],[עמודה2]:[עמודה5]])","v":0},null,null,null,null,null,null,null,null,null,null,null,null,null,null,null,null,null,null,null,null,null,null,null,null,null,null,null,null,null,null,null,null,null,null,null,null,null,null,null,null,null,null,null,null,null,null,null,null,null,null,null,null,null,null,null,null,null,null,null,null,null,null,null,null,null,null,null,null,null,null,null,null,null,null,null,null,null,null,null,null,null,null,null,null,null,null,null,null,null,null,null,null,null,null,null,null,null,null,null,null,null,null,null,null,null,null,null,null,null,null,null,null,null,null,null,null,null,null,null,null,null,null,null,null,null,null,null,null,null,null,null,null,null,null,{"$f":"SUBTOTAL(103,$GQ$8:$GQ$16)","v":9},{"$f":"SUM(,$GR$8:$GR$16)","v":125},{"$f":"SUM(,$GS$8:$GS$16)","v":21},{"$f":"SUM(,$GT$8:$GT$16)","v":10},{"$f":"SUM($GU$8:$GU$16)","v":22},{"$f":"SUM($GV$8:$GV$16)","v":0},{"$f":"SUM($GW$8:$GW$16)","v":53}]
[null,null,"ז.","2021-10-05",null,"2021-10-05",null,{"$f":"COUNTA(פרק_א21[[#This Row],[עמודה2]:[עמודה5]])","v":2},null,"שורת סיכום",null,null,null,null,null,null,"כג.",null,null,null,null,{"$f":"COUNTA(פרק_ג22[[#This Row],[עמודה2]:[עמודה5]])","v":0},null,"שורת סיכום",null,null,null,null,null,null,{"$f":"SUBTOTAL(103,פרק_ה50[עמודה1])","v":8},{"$f":"SUBTOTAL(103,פרק_ה50[עמודה2])","v":0},{"$f":"SUBTOTAL(103,פרק_ה50[עמודה3])","v":0},{"$f":"SUBTOTAL(103,פרק_ה50[עמודה4])","v":0},{"$f":"SUBTOTAL(103,פרק_ה50[עמודה5])","v":0},{"$f":"SUBTOTAL(109,פרק_ה50[עמודה6])","v":0},null,"מ.",null,null,null,null,{"$f":"COUNTA(פרק_ו49[[#This Row],[עמודה2]:[עמודה5]])","v":0},null,"נ:",null,null,null,null,{"$f":"COUNTA(פרק_ז48[[#This Row],[עמודה2]:[עמודה5]])","v":0},null,null,null,null,null,null,null,null,"נט.",null,null,null,null,{"$f":"COUNTA(פרק_ט46[[#This Row],[עמודה2]:[עמודה5]])","v":0}]
[null,null,"ז:","2021-10-05",null,"2021-10-05",null,{"$f":"COUNTA(פרק_א21[[#This Row],[עמודה2]:[עמודה5]])","v":2},null,{"$f":"SUBTOTAL(103,פרק_ב52[עמודה1])","v":9},{"$f":"SUBTOTAL(103,פרק_ב52[עמודה2])","v":0},{"$f":"SUBTOTAL(103,פרק_ב52[עמודה3])","v":0},{"$f":"SUBTOTAL(103,פרק_ב52[עמודה4])","v":0},{"$f":"SUBTOTAL(103,פרק_ב52[עמודה5])","v":0},{"$f":"SUBTOTAL(109,פרק_ב52[עמודה6])","v":0},null,"כג:",null,null,null,null,{"$f":"COUNTA(פרק_ג22[[#This Row],[עמודה2]:[עמודה5]])","v":0},null,{"$f":"SUBTOTAL(103,פרק_ד51[עמודה1])","v":9},{"$f":"SUBTOTAL(103,פרק_ד51[עמודה2])","v":0},{"$f":"SUBTOTAL(103,פרק_ד51[עמודה3])","v":0},{"$f":"SUBTOTAL(103,פרק_ד51[עמודה4])","v":0},{"$f":"SUBTOTAL(103,פרק_ד51[עמודה5])","v":0},{"$f":"SUBTOTAL(109,פרק_ד51[עמודה6])","v":0},null,null,null,null,null,null,null,null,"מ:",null,null,null,null,{"$f":"COUNTA(פרק_ו49[[#This Row],[עמודה2]:[עמודה5]])","v":0},null,"נא.",null,null,null,null,{"$f":"COUNTA(פרק_ז48[[#This Row],[עמודה2]:[עמודה5]])","v":0},null,null,null,null,null,null,null,null,"נט:",null,null,null,null,{"$f":"COUNTA(פרק_ט46[[#This Row],[עמודה2]:[עמודה5]])","v":0}]
[null,null,"ח.","2021-10-05",null,"2021-10-05",null,{"$f":"COUNTA(פרק_א21[[#This Row],[עמודה2]:[עמודה5]])","v":2},null,null,null,null,null,null,null,null,"כד.",null,null,null,null,{"$f":"COUNTA(פרק_ג22[[#This Row],[עמודה2]:[עמודה5]])","v":0},null,null,null,null,null,null,null,null,{"$f":"\"למדת סך הכל בפרק \" &AE6&\": \"& AJ18/2&\" דפים.\"","v":"למדת סך הכל בפרק פרק חמישי - אין עומדין: 0 דפים."},null,null,null,null,null,null,"מא.",null,null,null,null,{"$f":"COUNTA(פרק_ו49[[#This Row],[עמודה2]:[עמודה5]])","v":0},null,"נא:",null,null,null,null,{"$f":"COUNTA(פרק_ז48[[#This Row],[עמודה2]:[עמודה5]])","v":0},null,null,null,null,null,null,null,null,"ס.",null,null,null,null,{"$f":"COUNTA(פרק_ט46[[#This Row],[עמודה2]:[עמודה5]])","v":0}]
[{"$f":"\"במהלך החזרות שלך, למדת \"& SUM(טבלה453[[#Totals],[סך כל הלימוד]]) &\" דפים ב\"& A8","v":"במהלך החזרות שלך, למדת 53 דפים במסכת ברכות"},null,"ח:","2021-10-05",null,"2021-10-05",null,{"$f":"COUNTA(פרק_א21[[#This Row],[עמודה2]:[עמודה5]])","v":2},null,{"$f":"\"למדת סך הכל בפרק \" &J6&\": \"& O19/2&\" דפים.\"","v":"למדת סך הכל בפרק פרק שני - היה קורא: 0 דפים."},null,null,null,null,null,null,"כד:",null,null,null,null,{"$f":"COUNTA(פרק_ג22[[#This Row],[עמודה2]:[עמודה5]])","v":0},null,{"$f":"\"למדת סך הכל בפרק \" &X6&\": \"& AC19/2&\" דפים.\"","v":"למדת סך הכל בפרק פרק רביעי - תפלת השחר: 0 דפים."},null,null,null,null,null,null,null,null,null,null,null,null,null,"מא:",null,null,null,null,{"$f":"COUNTA(פרק_ו49[[#This Row],[עמודה2]:[עמודה5]])","v":0},null,null,null,null,null,null,null,null,null,null,null,null,null,null,null,"ס:",null,null,null,null,{"$f":"COUNTA(פרק_ט46[[#This Row],[עמודה2]:[עמודה5]])","v":0}]
[null,null,"ט.","2021-10-05",null,"2021-10-05",null,{"$f":"COUNTA(פרק_א21[[#This Row],[עמודה2]:[עמודה5]])","v":2},null,null,null,null,null,null,null,null,"כה.",null,null,null,null,{"$f":"COUNTA(פרק_ג22[[#This Row],[עמודה2]:[עמודה5]])","v":0},null,null,null,null,null,null,null,null,null,null,null,null,null,null,null,"מב.",null,null,null,null,{"$f":"COUNTA(פרק_ו49[[#This Row],[עמודה2]:[עמודה5]])","v":0},null,"שורת סיכום",null,null,null,null,null,null,null,null,null,null,null,null,null,"סא.",null,null,null,null,{"$f":"COUNTA(פרק_ט46[[#This Row],[עמודה2]:[עמודה5]])","v":0}]
[null,null,"ט:","2021-10-05",null,"2021-10-05",null,{"$f":"COUNTA(פרק_א21[[#This Row],[עמודה2]:[עמודה5]])","v":2},null,null,null,null,null,null,null,null,"כה:",null,null,null,null,{"$f":"COUNTA(פרק_ג22[[#This Row],[עמודה2]:[עמודה5]])","v":0},null,null,null,null,null,null,null,null,null,null,null,null,null,null,null,"מב:",null,null,null,null,{"$f":"COUNTA(פרק_ו49[[#This Row],[עמודה2]:[עמודה5]])","v":0},null,{"$f":"SUBTOTAL(103,פרק_ז48[עמודה1])","v":13},{"$f":"SUBTOTAL(103,פרק_ז48[עמודה2])","v":0},{"$f":"SUBTOTAL(103,פרק_ז48[עמודה3])","v":0},{"$f":"SUBTOTAL(103,פרק_ז48[עמודה4])","v":0},{"$f":"SUBTOTAL(103,פרק_ז48[עמודה5])","v":0},{"$f":"SUBTOTAL(109,פרק_ז48[עמודה6])","v":0},null,null,null,null,null,null,null,null,"סא:",null,null,null,null,{"$f":"COUNTA(פרק_ט46[[#This Row],[עמודה2]:[עמודה5]])","v":0}]
[null,null,"י.","2021-10-05",null,"2021-10-05",null,{"$f":"COUNTA(פרק_א21[[#This Row],[עמודה2]:[עמודה5]])","v":2},null,null,null,null,null,null,null,null,"כו.",null,null,null,null,{"$f":"COUNTA(פרק_ג22[[#This Row],[עמודה2]:[עמודה5]])","v":0},null,null,null,null,null,null,null,null,null,null,null,null,null,null,null,"מג.",null,null,null,null,{"$f":"COUNTA(פרק_ו49[[#This Row],[עמודה2]:[עמודה5]])","v":0},null,null,null,null,null,null,null,null,null,null,null,null,null,null,null,"סב.",null,null,null,null,{"$f":"COUNTA(פרק_ט46[[#This Row],[עמודה2]:[עמודה5]])","v":0}]
[null,null,"י:","2021-10-05",null,"2021-10-05",null,{"$f":"COUNTA(פרק_א21[[#This Row],[עמודה2]:[עמודה5]])","v":2},null,null,null,null,null,null,null,null,null,null,null,null,null,null,null,null,null,null,null,null,null,null,null,null,null,null,null,null,null,"מג:",null,null,null,null,{"$f":"COUNTA(פרק_ו49[[#This Row],[עמודה2]:[עמודה5]])","v":0},null,{"$f":"\"למדת סך הכל בפרק \" &AS6&\": \"& AX23/2&\" דפים.\"","v":"למדת סך הכל בפרק פרק שביעי - שלושה שאכלו: 0 דפים."},null,null,null,null,null,null,null,null,null,null,null,null,null,"סב:",null,null,null,null,{"$f":"COUNTA(פרק_ט46[[#This Row],[עמודה2]:[עמודה5]])","v":0}]
[null,null,"יא.","2021-10-05",null,"2021-10-05",null,{"$f":"COUNTA(פרק_א21[[#This Row],[עמודה2]:[עמודה5]])","v":2},null,null,null,null,null,null,null,null,"שורת סיכום",null,null,null,null,null,null,null,null,null,null,null,null,null,null,null,null,null,null,null,null,"מד.",null,null,null,null,{"$f":"COUNTA(פרק_ו49[[#This Row],[עמודה2]:[עמודה5]])","v":0},null,null,null,null,null,null,null,null,null,null,null,null,null,null,null,"סג.",null,null,null,null,{"$f":"COUNTA(פרק_ט46[[#This Row],[עמודה2]:[עמודה5]])","v":0}]
[null,null,"יא:",null,null,"2021-10-05",null,{"$f":"COUNTA(פרק_א21[[#This Row],[עמודה2]:[עמודה5]])","v":1},null,null,null,null,null,null,null,null,{"$f":"SUBTOTAL(103,פרק_ג22[עמודה1])","v":17},{"$f":"SUBTOTAL(103,פרק_ג22[עמודה2])","v":2},{"$f":"SUBTOTAL(103,פרק_ג22[עמודה3])","v":0},{"$f":"SUBTOTAL(103,פרק_ג22[עמודה4])","v":0},{"$f":"SUBTOTAL(103,פרק_ג22[עמודה5])","v":0},{"$f":"SUBTOTAL(109,פרק_ג22[עמודה6])","v":2},null,null,null,null,null,null,null,null,null,null,null,null,null,null,null,"מד:",null,null,null,null,{"$f":"COUNTA(פרק_ו49[[#This Row],[עמודה2]:[עמודה5]])","v":0},null,null,null,null,null,null,null,null,null,null,null,null,null,null,null,"סג:",null,null,null,null,{"$f":"COUNTA(פרק_ט46[[#This Row],[עמודה2]:[עמודה5]])","v":0}]
[null,null,"יב.",null,null,"2021-10-05",null,{"$f":"COUNTA(פרק_א21[[#This Row],[עמודה2]:[עמודה5]])","v":1},null,null,null,null,null,null,null,null,null,null,null,null,null,null,null,null,null,null,null,null,null,null,null,null,null,null,null,null,null,"מה.",null,null,null,null,{"$f":"COUNTA(פרק_ו49[[#This Row],[עמודה2]:[עמודה5]])","v":0},null,null,null,null,null,null,null,null,null,null,null,null,null,null,null,"סד.",null,null,null,null,{"$f":"COUNTA(פרק_ט46[[#This Row],[עמודה2]:[עמודה5]])","v":0}]
[null,null,"יב:",null,null,"2021-10-05",null,{"$f":"COUNTA(פרק_א21[[#This Row],[עמודה2]:[עמודה5]])","v":1},null,null,null,null,null,null,null,null,{"$f":"\"למדת סך הכל בפרק \" &Q6&\": \"& V27/2&\" דפים.\"","v":"למדת סך הכל בפרק פרק שלישי - מי שמתו: 1 דפים."}]
[null,null,"יג.",null,null,null,null,{"$f":"COUNTA(פרק_א21[[#This Row],[עמודה2]:[עמודה5]])","v":0},null,null,null,null,null,null,null,null,null,null,null,null,null,null,null,null,null,null,null,null,null,null,null,null,null,null,null,null,null,"שורת סיכום",null,null,null,null,null,null,null,null,null,null,null,null,null,null,null,null,null,null,null,null,"שורת סיכום"]
[null,null,null,null,null,null,null,null,null,null,null,null,null,null,null,null,null,null,null,null,null,null,null,null,null,null,null,null,null,null,null,null,null,null,null,null,null,{"$f":"SUBTOTAL(103,פרק_ו49[עמודה1])","v":21},{"$f":"SUBTOTAL(103,פרק_ו49[עמודה2])","v":0},{"$f":"SUBTOTAL(103,פרק_ו49[עמודה3])","v":0},{"$f":"SUBTOTAL(103,פרק_ו49[עמודה4])","v":0},{"$f":"SUBTOTAL(103,פרק_ו49[עמודה5])","v":0},{"$f":"SUBTOTAL(109,פרק_ו49[עמודה6])","v":0},null,null,null,null,null,null,null,null,null,null,null,null,null,null,null,{"$f":"SUBTOTAL(103,פרק_ט46[עמודה1])","v":21},{"$f":"SUBTOTAL(103,פרק_ט46[עמודה2])","v":0},{"$f":"SUBTOTAL(103,פרק_ט46[עמודה3])","v":0},{"$f":"SUBTOTAL(103,פרק_ט46[עמודה4])","v":0},{"$f":"SUBTOTAL(103,פרק_ט46[עמודה5])","v":0},{"$f":"SUBTOTAL(109,פרק_ט46[עמודה6])","v":0}]
[null,null,"שורת סיכום"]
[null,null,{"$f":"SUBTOTAL(103,פרק_א21[עמודה1])","v":23},{"$f":"SUBTOTAL(103,פרק_א21[עמודה2])","v":19},{"$f":"SUBTOTAL(103,פרק_א21[עמודה3])","v":10},{"$f":"SUBTOTAL(103,פרק_א21[עמודה4])","v":22},{"$f":"SUBTOTAL(103,פרק_א21[עמודה5])","v":0},{"$f":"SUBTOTAL(109,פרק_א21[עמודה6])","v":51},null,null,null,null,null,null,null,null,null,null,null,null,null,null,null,null,null,null,null,null,null,null,null,null,null,null,null,null,null,{"$f":"\"למדת סך הכל בפרק \" &AL6&\": \"& AQ31/2&\" דפים.\"","v":"למדת סך הכל בפרק פרק שישי - כיצד מברכין: 0 דפים."},null,null,null,null,null,null,null,null,null,null,null,null,null,null,null,null,null,null,null,null,{"$f":"\"למדת סך הכל בפרק \" &BG6&\": \"& BL31/2&\" דפים.\"","v":"למדת סך הכל בפרק פרק תשיעי - הרואה: 0 דפים."}]
[]
[null,null,{"$f":"\"למדת סך הכל בפרק \" &C6&\": \"& H33/2 &\" דפים.\"","v":"למדת סך הכל בפרק פרק ראשון - מאימתי: 25.5 דפים."}]
[]
[]
[]
[]
[]
[]
[]
[]
[]
[]
[]
[]
[]
[]
[]
[]
[]
[]
[]
[]
[]
[]
[]
[]
[]
[]
[]
[]
[]
[]
[]
[]
[]
[]
[]
[]
[]
[]
[]
[]
[]
[]
[]
[]
[]
[]
[]
[]
[]
[]
[]
[]
[]
[]
[]
[]
[]
[]
[]
[]
[]
[]
[]
[]
[]
[]
[]
[]
[]
[]
[]
[]
[]
[]
[]
[]
[]
[]
[]
[]
[]
[]
[]
[]
[]
[]
[null,null,null,null,null,null,null,null,null,null,null,null,null,null,null,null,null,null,null,null,null,null,null,null,null,null,null,null,null,null,null,null,null,null,null,null,null,null,null,null,null,null,null,null,null,null,null,null,null,null,null,null,null,null,null,null,null,null,null,null,null,null,null,null,null,"שורת סיכום",null,null,null,null,null,null,"שורת סיכום",null,null,null,null,null,null,"שורת סיכום",null,null,null,null,null,null,"שורת סיכום",null,null,null,null,null,null,"שורת סיכום",null,null,null,null,null,null,"שורת סיכום",null,null,null,null,null,null,"שורת סיכום",null,null,null,null,null,null,"שורת סיכום",null,null,null,null,null,null,"שורת סיכום",null,null,null,null,null,null,"שורת סיכום",null,null,null,null,null,null,"שורת סיכום",null,null,null,null,null,null,"שורת סיכום",null,null,null,null,null,null,"שורת סיכום",null,null,null,null,null,null,"שורת סיכום",null,null,null,null,null,null,"שורת סיכום"]
[null,null,null,null,null,null,null,null,null,null,null,null,null,null,null,null,null,null,null,null,null,null,null,null,null,null,null,null,null,null,null,null,null,null,null,null,null,null,null,null,null,null,null,null,null,null,null,null,null,null,null,null,null,null,null,null,null,null,null,null,null,null,null,null,null,{"$f":"SUBTOTAL(103,#REF!)","v":{"$error":"#REF!"}},{"$f":"SUBTOTAL(103,#REF!)","v":{"$error":"#REF!"}},{"$f":"SUBTOTAL(103,#REF!)","v":{"$error":"#REF!"}},{"$f":"SUBTOTAL(103,#REF!)","v":{"$error":"#REF!"}},{"$f":"SUBTOTAL(103,#REF!)","v":{"$error":"#REF!"}},{"$f":"SUBTOTAL(109,#REF!)","v":{"$error":"#REF!"}},null,{"$f":"SUBTOTAL(103,#REF!)","v":{"$error":"#REF!"}},{"$f":"SUBTOTAL(103,#REF!)","v":{"$error":"#REF!"}},{"$f":"SUBTOTAL(103,#REF!)","v":{"$error":"#REF!"}},{"$f":"SUBTOTAL(103,#REF!)","v":{"$error":"#REF!"}},{"$f":"SUBTOTAL(103,#REF!)","v":{"$error":"#REF!"}},{"$f":"SUBTOTAL(109,#REF!)","v":{"$error":"#REF!"}},null,{"$f":"SUBTOTAL(103,#REF!)","v":{"$error":"#REF!"}},{"$f":"SUBTOTAL(103,#REF!)","v":{"$error":"#REF!"}},{"$f":"SUBTOTAL(103,#REF!)","v":{"$error":"#REF!"}},{"$f":"SUBTOTAL(103,#REF!)","v":{"$error":"#REF!"}},{"$f":"SUBTOTAL(103,#REF!)","v":{"$error":"#REF!"}},{"$f":"SUBTOTAL(109,#REF!)","v":{"$error":"#REF!"}},null,{"$f":"SUBTOTAL(103,#REF!)","v":{"$error":"#REF!"}},{"$f":"SUBTOTAL(103,#REF!)","v":{"$error":"#REF!"}},{"$f":"SUBTOTAL(103,#REF!)","v":{"$error":"#REF!"}},{"$f":"SUBTOTAL(103,#REF!)","v":{"$error":"#REF!"}},{"$f":"SUBTOTAL(103,#REF!)","v":{"$error":"#REF!"}},{"$f":"SUBTOTAL(109,#REF!)","v":{"$error":"#REF!"}},null,{"$f":"SUBTOTAL(103,#REF!)","v":{"$error":"#REF!"}},{"$f":"SUBTOTAL(103,#REF!)","v":{"$error":"#REF!"}},{"$f":"SUBTOTAL(103,#REF!)","v":{"$error":"#REF!"}},{"$f":"SUBTOTAL(103,#REF!)","v":{"$error":"#REF!"}},{"$f":"SUBTOTAL(103,#REF!)","v":{"$error":"#REF!"}},{"$f":"SUBTOTAL(109,#REF!)","v":{"$error":"#REF!"}},null,{"$f":"SUBTOTAL(103,#REF!)","v":{"$error":"#REF!"}},{"$f":"SUBTOTAL(103,#REF!)","v":{"$error":"#REF!"}},{"$f":"SUBTOTAL(103,#REF!)","v":{"$error":"#REF!"}},{"$f":"SUBTOTAL(103,#REF!)","v":{"$error":"#REF!"}},{"$f":"SUBTOTAL(103,#REF!)","v":{"$error":"#REF!"}},{"$f":"SUBTOTAL(109,#REF!)","v":{"$error":"#REF!"}},null,{"$f":"SUBTOTAL(103,#REF!)","v":{"$error":"#REF!"}},{"$f":"SUBTOTAL(103,#REF!)","v":{"$error":"#REF!"}},{"$f":"SUBTOTAL(103,#REF!)","v":{"$error":"#REF!"}},{"$f":"SUBTOTAL(103,#REF!)","v":{"$error":"#REF!"}},{"$f":"SUBTOTAL(103,#REF!)","v":{"$error":"#REF!"}},{"$f":"SUBTOTAL(109,#REF!)","v":{"$error":"#REF!"}},null,{"$f":"SUBTOTAL(103,#REF!)","v":{"$error":"#REF!"}},{"$f":"SUBTOTAL(103,#REF!)","v":{"$error":"#REF!"}},{"$f":"SUBTOTAL(103,#REF!)","v":{"$error":"#REF!"}},{"$f":"SUBTOTAL(103,#REF!)","v":{"$error":"#REF!"}},{"$f":"SUBTOTAL(103,#REF!)","v":{"$error":"#REF!"}},{"$f":"SUBTOTAL(109,#REF!)","v":{"$error":"#REF!"}},null,{"$f":"SUBTOTAL(103,#REF!)","v":{"$error":"#REF!"}},{"$f":"SUBTOTAL(103,#REF!)","v":{"$error":"#REF!"}},{"$f":"SUBTOTAL(103,#REF!)","v":{"$error":"#REF!"}},{"$f":"SUBTOTAL(103,#REF!)","v":{"$error":"#REF!"}},{"$f":"SUBTOTAL(103,#REF!)","v":{"$error":"#REF!"}},{"$f":"SUBTOTAL(109,#REF!)","v":{"$error":"#REF!"}},null,{"$f":"SUBTOTAL(103,#REF!)","v":{"$error":"#REF!"}},{"$f":"SUBTOTAL(103,#REF!)","v":{"$error":"#REF!"}},{"$f":"SUBTOTAL(103,#REF!)","v":{"$error":"#REF!"}},{"$f":"SUBTOTAL(103,#REF!)","v":{"$error":"#REF!"}},{"$f":"SUBTOTAL(103,#REF!)","v":{"$error":"#REF!"}},{"$f":"SUBTOTAL(109,#REF!)","v":{"$error":"#REF!"}},null,{"$f":"SUBTOTAL(103,#REF!)","v":{"$error":"#REF!"}},{"$f":"SUBTOTAL(103,#REF!)","v":{"$error":"#REF!"}},{"$f":"SUBTOTAL(103,#REF!)","v":{"$error":"#REF!"}},{"$f":"SUBTOTAL(103,#REF!)","v":{"$error":"#REF!"}},{"$f":"SUBTOTAL(103,#REF!)","v":{"$error":"#REF!"}},{"$f":"SUBTOTAL(109,#REF!)","v":{"$error":"#REF!"}},null,{"$f":"SUBTOTAL(103,#REF!)","v":{"$error":"#REF!"}},{"$f":"SUBTOTAL(103,#REF!)","v":{"$error":"#REF!"}},{"$f":"SUBTOTAL(103,#REF!)","v":{"$error":"#REF!"}},{"$f":"SUBTOTAL(103,#REF!)","v":{"$error":"#REF!"}},{"$f":"SUBTOTAL(103,#REF!)","v":{"$error":"#REF!"}},{"$f":"SUBTOTAL(109,#REF!)","v":{"$error":"#REF!"}},null,{"$f":"SUBTOTAL(103,#REF!)","v":{"$error":"#REF!"}},{"$f":"SUBTOTAL(103,#REF!)","v":{"$error":"#REF!"}},{"$f":"SUBTOTAL(103,#REF!)","v":{"$error":"#REF!"}},{"$f":"SUBTOTAL(103,#REF!)","v":{"$error":"#REF!"}},{"$f":"SUBTOTAL(103,#REF!)","v":{"$error":"#REF!"}},{"$f":"SUBTOTAL(109,#REF!)","v":{"$error":"#REF!"}},null,{"$f":"SUBTOTAL(103,#REF!)","v":{"$error":"#REF!"}},{"$f":"SUBTOTAL(103,#REF!)","v":{"$error":"#REF!"}},{"$f":"SUBTOTAL(103,#REF!)","v":{"$error":"#REF!"}},{"$f":"SUBTOTAL(103,#REF!)","v":{"$error":"#REF!"}},{"$f":"SUBTOTAL(103,#REF!)","v":{"$error":"#REF!"}},{"$f":"SUBTOTAL(109,#REF!)","v":{"$error":"#REF!"}},null,{"$f":"SUBTOTAL(103,#REF!)","v":{"$error":"#REF!"}},{"$f":"SUBTOTAL(103,#REF!)","v":{"$error":"#REF!"}},{"$f":"SUBTOTAL(103,#REF!)","v":{"$error":"#REF!"}},{"$f":"SUBTOTAL(103,#REF!)","v":{"$error":"#REF!"}},{"$f":"SUBTOTAL(103,#REF!)","v":{"$error":"#REF!"}},{"$f":"SUBTOTAL(109,#REF!)","v":{"$error":"#REF!"}}]
[]
[null,null,null,null,null,null,null,null,null,null,null,null,null,null,null,null,null,null,null,null,null,null,null,null,null,null,null,null,null,null,null,null,null,null,null,null,null,null,null,null,null,null,null,null,null,null,null,null,null,null,null,null,null,null,null,null,null,null,null,null,null,null,null,null,null,{"$f":"\"למדת סך הכל בפרק \" &BN6&\": \"& BS123&\" דפים.\"","v":{"$error":"#REF!"}},null,null,null,null,null,null,{"$f":"\"למדת סך הכל בפרק \" &BU6&\": \"& BZ123&\" דפים.\"","v":{"$error":"#REF!"}},null,null,null,null,null,null,{"$f":"\"למדת סך הכל בפרק \" &CB6&\": \"& CG123&\" דפים.\"","v":{"$error":"#REF!"}},null,null,null,null,null,null,{"$f":"\"למדת סך הכל בפרק \" &CI6&\": \"& CN123&\" דפים.\"","v":{"$error":"#REF!"}},null,null,null,null,null,null,{"$f":"\"למדת סך הכל בפרק \" &CP6&\": \"& CU123&\" דפים.\"","v":{"$error":"#REF!"}},null,null,null,null,null,null,{"$f":"\"למדת סך הכל בפרק \" &CW6&\": \"& DB123&\" דפים.\"","v":{"$error":"#REF!"}},null,null,null,null,null,null,{"$f":"\"למדת סך הכל בפרק \" &DD6&\": \"& DI123&\" דפים.\"","v":{"$error":"#REF!"}},null,null,null,null,null,null,{"$f":"\"למדת סך הכל בפרק \" &DK6&\": \"& DP123&\" דפים.\"","v":{"$error":"#REF!"}},null,null,null,null,null,null,{"$f":"\"למדת סך הכל בפרק \" &DR6&\": \"& DW123&\" דפים.\"","v":{"$error":"#REF!"}},null,null,null,null,null,null,{"$f":"\"למדת סך הכל בפרק \" &DY6&\": \"& ED123&\" דפים.\"","v":{"$error":"#REF!"}},null,null,null,null,null,null,{"$f":"\"למדת סך הכל בפרק \" &EF6&\": \"& EK123&\" דפים.\"","v":{"$error":"#REF!"}},null,null,null,null,null,null,{"$f":"\"למדת סך הכל בפרק \" &EM6&\": \"& ER123&\" דפים.\"","v":{"$error":"#REF!"}},null,null,null,null,null,null,{"$f":"\"למדת סך הכל בפרק \" &ET6&\": \"& EY123&\" דפים.\"","v":{"$error":"#REF!"}},null,null,null,null,null,null,{"$f":"\"למדת סך הכל בפרק \" &FA6&\": \"& FF123&\" דפים.\"","v":{"$error":"#REF!"}},null,null,null,null,null,null,{"$f":"\"למדת סך הכל בפרק \" &FH6&\": \"& FM123&\" דפים.\"","v":{"$error":"#REF!"}}]

{"sheet":"גליון בסיס","index":1,"n_rows":128,"n_cols":205,"rows_kept":128,"cut":false,"hidden":false,"merged":[[122,2,122,7],[122,9,122,14],[122,16,122,21],[122,79,122,84],[122,72,122,77],[122,65,122,70],[122,58,122,63],[122,51,122,56],[5,163,5,168],[5,149,5,154],[5,142,5,147],[122,163,122,168],[122,149,122,154],[122,142,122,147],[122,128,122,133],[5,156,5,161],[122,156,122,161],[122,44,122,49],[122,37,122,42],[127,142,127,147],[127,149,127,154],[127,156,127,161],[127,163,127,168],[122,100,122,105],[122,107,122,112],[122,114,122,119],[5,107,5,112],[20,0,24,0],[127,107,127,112],[127,114,127,119],[127,121,127,126],[127,128,127,133],[127,135,127,140],[127,72,127,77],[127,79,127,84],[127,86,127,91],[127,93,127,98],[127,100,127,105],[127,37,127,42],[127,44,127,49],[127,51,127,56],[127,58,127,63],[127,65,127,70],[127,2,127,7],[127,9,127,14],[127,16,127,21],[127,23,127,28],[127,30,127,35],[122,121,122,126],[122,86,122,91],[122,93,122,98],[0,135,0,140],[0,65,0,70],[0,72,0,77],[0,79,0,84],[0,86,0,91],[0,93,0,98],[122,30,122,35],[122,23,122,28],[5,86,5,91],[5,93,5,98],[5,100,5,105],[5,114,5,119],[5,121,5,126],[5,135,5,140],[5,128,5,133],[122,135,122,140],[0,142,0,147],[0,149,0,154],[0,156,0,161],[0,163,0,168],[0,100,0,105],[0,107,0,112],[0,114,0,119],[0,121,0,126],[0,128,0,133],[15,0,19,0],[0,9,0,14],[0,16,0,21],[0,23,0,28],[0,30,0,35],[7,0,8,0],[9,0,11,0],[0,2,0,7],[5,79,5,84],[5,23,5,28],[5,72,5,77],[5,65,5,70],[5,58,5,63],[5,51,5,56],[0,37,0,42],[0,44,0,49],[0,51,0,56],[0,58,0,63],[5,37,5,42],[5,30,5,35],[5,44,5,49],[5,2,5,7],[5,9,5,14],[5,16,5,21],[4,10,4,13],[1,2,4,2],[1,7,4,7],[1,9,4,9],[1,14,4,14],[2,17,2,20],[3,17,3,20],[4,17,4,20],[1,16,4,16],[1,17,1,20],[1,21,4,21],[4,38,4,41],[1,44,4,44],[1,45,1,48],[1,49,4,49],[4,3,4,6],[3,3,3,6],[2,3,2,6],[1,3,1,6],[1,10,1,13],[2,10,2,13],[3,10,3,13],[1,23,4,23],[1,24,1,27],[1,28,4,28],[1,30,4,30],[1,31,1,34],[1,35,4,35],[1,37,4,37],[1,38,1,41],[1,42,4,42],[2,24,2,27],[2,31,2,34],[2,38,2,41],[1,70,4,70],[1,72,4,72],[1,73,1,76],[1,77,4,77],[1,79,4,79],[3,24,3,27],[3,31,3,34],[3,38,3,41],[4,24,4,27],[4,31,4,34],[1,51,4,51],[1,52,1,55],[1,56,4,56],[1,58,4,58],[1,80,1,83],[1,84,4,84],[2,45,2,48],[2,52,2,55],[2,59,2,62],[2,66,2,69],[2,73,2,76],[2,80,2,83],[3,45,3,48],[3,52,3,55],[3,59,3,62],[3,66,3,69],[3,73,3,76],[3,80,3,83],[4,45,4,48],[4,52,4,55],[4,59,4,62],[4,66,4,69],[4,73,4,76],[4,80,4,83],[1,59,1,62],[1,63,4,63],[1,65,4,65],[1,66,1,69],[1,86,4,86],[1,87,1,90],[1,91,4,91],[1,93,4,93],[1,94,1,97],[1,98,4,98],[1,100,4,100],[1,101,1,104],[1,105,4,105],[2,87,2,90],[2,94,2,97],[2,101,2,104],[3,87,3,90],[3,94,3,97],[3,101,3,104],[4,87,4,90],[4,94,4,97],[4,101,4,104],[1,107,4,107],[1,108,1,111],[1,112,4,112],[1,114,4,114],[1,115,1,118],[1,119,4,119],[1,121,4,121],[1,122,1,125],[1,126,4,126],[2,108,2,111],[2,115,2,118],[2,122,2,125],[3,108,3,111],[3,115,3,118],[3,122,3,125],[4,108,4,111],[4,115,4,118],[4,122,4,125],[1,128,4,128],[1,129,1,132],[1,133,4,133],[1,135,4,135],[1,136,1,139],[1,140,4,140],[1,142,4,142],[1,143,1,146],[1,147,4,147],[2,129,2,132],[2,136,2,139],[2,143,2,146],[3,129,3,132],[3,136,3,139],[3,143,3,146],[4,129,4,132],[4,136,4,139],[4,143,4,146],[5,198,5,204],[1,149,4,149],[1,150,1,153],[1,154,4,154],[1,156,4,156],[1,157,1,160],[1,161,4,161],[1,163,4,163],[1,164,1,167],[1,168,4,168],[2,150,2,153],[2,157,2,160],[2,164,2,167],[3,150,3,153],[3,157,3,160],[3,164,3,167],[4,150,4,153],[4,157,4,160],[4,164,4,167]]}
[null,null,{"$f":"\"ב\"&C6&\" יש \"&SUBTOTAL(103,פרק_א[עמודה1])/2 &\" דפים. מתוכם למדת \"&SUBTOTAL(103,פרק_א[עמודה2])/2 &\" דפים. בעוד \"& SUBTOTAL(103,פרק_א[עמודה1])/2-SUBTOTAL(103,פרק_א[עמודה2])/2  &\" תגמור את \"& C6 &\" בפעם הראשונה.\"","v":"ב יש 19 דפים. מתוכם למדת 8 דפים. בעוד 11 תגמור את  בפעם הראשונה."},null,null,null,null,null,null,{"$f":"\"ב\"&J6&\" יש \"&SUBTOTAL(103,פרק_ב[עמודה1])/2 &\" דפים. מתוכם למדת \"&SUBTOTAL(103,פרק_ב[עמודה2])/2 &\" דפים. בעוד \"& SUBTOTAL(103,פרק_ב[עמודה1])/2-SUBTOTAL(103,פרק_ב[עמודה2])/2  &\" תגמור את \"& J6 &\" בפעם הראשונה.\"","v":"ב יש 0 דפים. מתוכם למדת 0 דפים. בעוד 0 תגמור את  בפעם הראשונה."},null,null,null,null,null,null,{"$f":"\"ב\"&Q6&\" יש \"&SUBTOTAL(103,פרק_ג[עמודה1])/2 &\" דפים. מתוכם למדת \"&SUBTOTAL(103,פרק_ג[עמודה2])/2 &\" דפים. בעוד \"& SUBTOTAL(103,פרק_ג[עמודה1])/2-SUBTOTAL(103,פרק_ג[עמודה2])/2  &\" תגמור את \"& Q6 &\" בפעם הראשונה.\"","v":"ב יש 0 דפים. מתוכם למדת 0 דפים. בעוד 0 תגמור את  בפעם הראשונה."},null,null,null,null,null,null,{"$f":"\"ב\"&X6&\" יש \"&SUBTOTAL(103,פרק_ד[עמודה1])/2 &\" דפים. מתוכם למדת \"&SUBTOTAL(103,פרק_ד[עמודה2])/2 &\" דפים. בעוד \"& SUBTOTAL(103,פרק_ד[עמודה1])/2-SUBTOTAL(103,פרק_ד[עמודה2])/2  &\" תגמור את \"& X6 &\" בפעם הראשונה.\"","v":"ב יש 0 דפים. מתוכם למדת 0 דפים. בעוד 0 תגמור את  בפעם הראשונה."},null,null,null,null,null,null,{"$f":"\"ב\"&AE6&\" יש \"&SUBTOTAL(103,פרק_ה[עמודה1])/2 &\" דפים. מתוכם למדת \"&SUBTOTAL(103,פרק_ה[עמודה2])/2 &\" דפים. בעוד \"& SUBTOTAL(103,פרק_ה[עמודה1])/2-SUBTOTAL(103,פרק_ה[עמודה2])/2  &\" תגמור את \"& AE6 &\" בפעם הראשונה.\"","v":"ב יש 0 דפים. מתוכם למדת 0 דפים. בעוד 0 תגמור את  בפעם הראשונה."},null,null,null,null,null,null,{"$f":"\"ב\"&AL6&\" יש \"&SUBTOTAL(103,פרק_ו[עמודה1])/2 &\" דפים. מתוכם למדת \"&SUBTOTAL(103,פרק_ו[עמודה2])/2 &\" דפים. בעוד \"& SUBTOTAL(103,פרק_ו[עמודה1])/2-SUBTOTAL(103,פרק_ו[עמודה2])/2  &\" תגמור את \"& AL6 &\" בפעם הראשונה.\"","v":"ב יש 0 דפים. מתוכם למדת 0 דפים. בעוד 0 תגמור את  בפעם הראשונה."},null,null,null,null,null,null,{"$f":"\"ב\"&AS6&\" יש \"&SUBTOTAL(103,פרק_ז[עמודה1])/2 &\" דפים. מתוכם למדת \"&SUBTOTAL(103,פרק_ז[עמודה2])/2 &\" דפים. בעוד \"& SUBTOTAL(103,פרק_ז[עמודה1])/2-SUBTOTAL(103,פרק_ז[עמודה2])/2  &\" תגמור את \"& AS6 &\" בפעם הראשונה.\"","v":"ב יש 0 דפים. מתוכם למדת 0 דפים. בעוד 0 תגמור את  בפעם הראשונה."},null,null,null,null,null,null,{"$f":"\"ב\"&AZ6&\" יש \"&SUBTOTAL(103,פרק_ח[עמודה1])/2 &\" דפים. מתוכם למדת \"&SUBTOTAL(103,פרק_ח[עמודה2])/2 &\" דפים. בעוד \"& SUBTOTAL(103,פרק_ח[עמודה1])/2-SUBTOTAL(103,פרק_ח[עמודה2])/2  &\" תגמור את \"& AZ6 &\" בפעם הראשונה.\"","v":"ב יש 0 דפים. מתוכם למדת 0 דפים. בעוד 0 תגמור את  בפעם הראשונה."},null,null,null,null,null,null,{"$f":"\"ב\"&BG6&\" יש \"&SUBTOTAL(103,פרק_ט[עמודה1])/2 &\" דפים. מתוכם למדת \"&SUBTOTAL(103,פרק_ט[עמודה2])/2 &\" דפים. בעוד \"& SUBTOTAL(103,פרק_ט[עמודה1])/2-SUBTOTAL(103,פרק_ט[עמודה2])/2  &\" תגמור את \"& BG6 &\" בפעם הראשונה.\"","v":"ב יש 0 דפים. מתוכם למדת 0 דפים. בעוד 0 תגמור את  בפעם הראשונה."},null,null,null,null,null,null,{"$f":"\"ב\"&BN6&\" יש \"&SUBTOTAL(103,פרק_י[עמודה1])/2 &\" דפים. מתוכם למדת \"&SUBTOTAL(103,פרק_י[עמודה2])/2 &\" דפים. בעוד \"& SUBTOTAL(103,פרק_י[עמודה1])/2-SUBTOTAL(103,פרק_י[עמודה2])/2  &\" תגמור את \"& BN6 &\" בפעם הראשונה.\"","v":"ב יש 0 דפים. מתוכם למדת 0 דפים. בעוד 0 תגמור את  בפעם הראשונה."},null,null,null,null,null,null,{"$f":"\"ב\"&BU6&\" יש \"&SUBTOTAL(103,פרק_יא[עמודה1])/2 &\" דפים. מתוכם למדת \"&SUBTOTAL(103,פרק_יא[עמודה2])/2 &\" דפים. בעוד \"& SUBTOTAL(103,פרק_יא[עמודה1])/2-SUBTOTAL(103,פרק_יא[עמודה2])/2  &\" תגמור את \"& BU6 &\" בפעם הראשונה.\"","v":"ב יש 0 דפים. מתוכם למדת 0 דפים. בעוד 0 תגמור את  בפעם הראשונה."},null,null,null,null,null,null,{"$f":"\"ב\"&CB6&\" יש \"&SUBTOTAL(103,פרק_יב[עמודה1])/2 &\" דפים. מתוכם למדת \"&SUBTOTAL(103,פרק_יב[עמודה2])/2 &\" דפים. בעוד \"& SUBTOTAL(103,פרק_יב[עמודה1])/2-SUBTOTAL(103,פרק_יב[עמודה2])/2  &\" תגמור את \"& CB6 &\" בפעם הראשונה.\"","v":"ב יש 0 דפים. מתוכם למדת 0 דפים. בעוד 0 תגמור את  בפעם הראשונה."},null,null,null,null,null,null,{"$f":"\"ב\"&CI6&\" יש \"&SUBTOTAL(103,פרק_יג[עמודה1])/2 &\" דפים. מתוכם למדת \"&SUBTOTAL(103,פרק_יג[עמודה2])/2 &\" דפים. בעוד \"& SUBTOTAL(103,פרק_יג[עמודה1])/2-SUBTOTAL(103,פרק_יג[עמודה2])/2  &\" תגמור את \"& CI6 &\" בפעם הראשונה.\"","v":"ב יש 0 דפים. מתוכם למדת 0 דפים. בעוד 0 תגמור את  בפעם הראשונה."},null,null,null,null,null,null,{"$f":"\"ב\"&CP6&\" יש \"&SUBTOTAL(103,פרק_יד[עמודה1])/2 &\" דפים. מתוכם למדת \"&SUBTOTAL(103,פרק_יד[עמודה2])/2 &\" דפים. בעוד \"& SUBTOTAL(103,פרק_יד[עמודה1])/2-SUBTOTAL(103,פרק_יד[עמודה2])/2  &\" תגמור את \"& CP6 &\" בפעם הראשונה.\"","v":"ב יש 0 דפים. מתוכם למדת 0 דפים. בעוד 0 תגמור את  בפעם הראשונה."},null,null,null,null,null,null,{"$f":"\"ב\"&CW6&\" יש \"&SUBTOTAL(103,פרק_טו[עמודה1])/2 &\" דפים. מתוכם למדת \"&SUBTOTAL(103,פרק_טו[עמודה2])/2 &\" דפים. בעוד \"& SUBTOTAL(103,פרק_טו[עמודה1])/2-SUBTOTAL(103,פרק_טו[עמודה2])/2  &\" תגמור את \"& CW6 &\" בפעם הראשונה.\"","v":"ב יש 0 דפים. מתוכם למדת 0 דפים. בעוד 0 תגמור את  בפעם הראשונה."},null,null,null,null,null,null,{"$f":"\"ב\"&DD6&\" יש \"&SUBTOTAL(103,פרק_טז[עמודה1])/2 &\" דפים. מתוכם למדת \"&SUBTOTAL(103,פרק_טז[עמודה2])/2 &\" דפים. בעוד \"& SUBTOTAL(103,פרק_טז[עמודה1])/2-SUBTOTAL(103,פרק_טז[עמודה2])/2  &\" תגמור את \"& DD6 &\" בפעם הראשונה.\"","v":"ב יש 0 דפים. מתוכם למדת 0 דפים. בעוד 0 תגמור את  בפעם הראשונה."},null,null,null,null,null,null,{"$f":"\"ב\"&DK6&\" יש \"&SUBTOTAL(103,פרק_יז[עמודה1])/2 &\" דפים. מתוכם למדת \"&SUBTOTAL(103,פרק_יז[עמודה2])/2 &\" דפים. בעוד \"& SUBTOTAL(103,פרק_יז[עמודה1])/2-SUBTOTAL(103,פרק_יז[עמודה2])/2  &\" תגמור את \"& DK6 &\" בפעם הראשונה.\"","v":"ב יש 0 דפים. מתוכם למדת 0 דפים. בעוד 0 תגמור את  בפעם הראשונה."},null,null,null,null,null,null,{"$f":"\"ב\"&DR6&\" יש \"&SUBTOTAL(103,פרק_יח[עמודה1])/2 &\" דפים. מתוכם למדת \"&SUBTOTAL(103,פרק_יח[עמודה2])/2 &\" דפים. בעוד \"& SUBTOTAL(103,פרק_יח[עמודה1])/2-SUBTOTAL(103,פרק_יח[עמודה2])/2  &\" תגמור את \"& DR6 &\" בפעם הראשונה.\"","v":"ב יש 0 דפים. מתוכם למדת 0 דפים. בעוד 0 תגמור את  בפעם הראשונה."},null,null,null,null,null,null,{"$f":"\"ב\"&DY6&\" יש \"&SUBTOTAL(103,פרק_יט[עמודה1])/2 &\" דפים. מתוכם למדת \"&SUBTOTAL(103,פרק_יט[עמודה2])/2 &\" דפים. בעוד \"& SUBTOTAL(103,פרק_יט[עמודה1])/2-SUBTOTAL(103,פרק_יט[עמודה2])/2  &\" תגמור את \"& DY6 &\" בפעם הראשונה.\"","v":"ב יש 0 דפים. מתוכם למדת 0 דפים. בעוד 0 תגמור את  בפעם הראשונה."},null,null,null,null,null,null,{"$f":"\"ב\"&EF6&\" יש \"&SUBTOTAL(103,פרק_כ[עמודה1])/2 &\" דפים. מתוכם למדת \"&SUBTOTAL(103,פרק_כ[עמודה2])/2 &\" דפים. בעוד \"& SUBTOTAL(103,פרק_כ[עמודה1])/2-SUBTOTAL(103,פרק_כ[עמודה2])/2  &\" תגמור את \"& EF6 &\" בפעם הראשונה.\"","v":"ב יש 0 דפים. מתוכם למדת 0 דפים. בעוד 0 תגמור את  בפעם הראשונה."},null,null,null,null,null,null,{"$f":"\"ב\"&EM6&\" יש \"&SUBTOTAL(103,פרק_כא[עמודה1])/2 &\" דפים. מתוכם למדת \"&SUBTOTAL(103,פרק_כא[עמודה2])/2 &\" דפים. בעוד \"& SUBTOTAL(103,פרק_כא[עמודה1])/2-SUBTOTAL(103,פרק_כא[עמודה2])/2  &\" תגמור את \"& EM6 &\" בפעם הראשונה.\"","v":"ב יש 0 דפים. מתוכם למדת 0 דפים. בעוד 0 תגמור את  בפעם הראשונה."},null,null,null,null,null,null,{"$f":"\"ב\"&ET6&\" יש \"&SUBTOTAL(103,פרק_כב[עמודה1])/2 &\" דפים. מתוכם למדת \"&SUBTOTAL(103,פרק_כב[עמודה2])/2 &\" דפים. בעוד \"& SUBTOTAL(103,פרק_כב[עמודה1])/2-SUBTOTAL(103,פרק_כב[עמודה2])/2  &\" תגמור את \"& ET6 &\" בפעם הראשונה.\"","v":"ב יש 0 דפים. מתוכם למדת 0 דפים. בעוד 0 תגמור את  בפעם הראשונה."},null,null,null,null,null,null,{"$f":"\"ב\"&FA6&\" יש \"&SUBTOTAL(103,פרק_כג[עמודה1])/2 &\" דפים. מתוכם למדת \"&SUBTOTAL(103,פרק_כג[עמודה2])/2 &\" דפים. בעוד \"& SUBTOTAL(103,פרק_כג[עמודה1])/2-SUBTOTAL(103,פרק_כג[עמודה2])/2  &\" תגמור את \"& FA6 &\" בפעם הראשונה.\"","v":"ב יש 0 דפים. מתוכם למדת 0 דפים. בעוד 0 תגמור את  בפעם הראשונה."},null,null,null,null,null,null,{"$f":"\"ב\"&FH6&\" יש \"&SUBTOTAL(103,פרק_כד[עמודה1])/2 &\" דפים. מתוכם למדת \"&SUBTOTAL(103,פרק_כד[עמודה2])/2 &\" דפים. בעוד \"& SUBTOTAL(103,פרק_כד[עמודה1])/2-SUBTOTAL(103,פרק_כד[עמודה2])/2  &\" תגמור את \"& FH6 &\" בפעם הראשונה.\"","v":"ב יש 0 דפים. מתוכם למדת 0 דפים. בעוד 0 תגמור את  בפעם הראשונה."}]
[null,null,null,{"$f":" G124/C124","v":0},null,null,null,null,null,null,{"$f":" N124/J124","v":{"$error":"#DIV/0!"}},null,null,null,null,null,null,{"$f":" U124/Q124","v":{"$error":"#DIV/0!"}},null,null,null,null,null,null,{"$f":" AB124/X124","v":{"$error":"#DIV/0!"}},null,null,null,null,null,null,{"$f":" AI124/AE124","v":{"$error":"#DIV/0!"}},null,null,null,null,null,null,{"$f":" AP124/AL124","v":{"$error":"#DIV/0!"}},null,null,null,null,null,null,{"$f":" AW124/AS124","v":{"$error":"#DIV/0!"}},null,null,null,null,null,null,{"$f":" BD124/AZ124","v":{"$error":"#DIV/0!"}},null,null,null,null,null,null,{"$f":" BK124/BG124","v":{"$error":"#DIV/0!"}},null,null,null,null,null,null,{"$f":" BR124/BN124","v":{"$error":"#DIV/0!"}},null,null,null,null,null,null,{"$f":" BY124/BU124","v":{"$error":"#DIV/0!"}},null,null,null,null,null,null,{"$f":" CF124/CB124","v":{"$error":"#DIV/0!"}},null,null,null,null,null,null,{"$f":" CM124/CI124","v":{"$error":"#DIV/0!"}},null,null,null,null,null,null,{"$f":" CT124/CP124","v":{"$error":"#DIV/0!"}},null,null,null,null,null,null,{"$f":" DA124/CW124","v":{"$error":"#DIV/0!"}},null,null,null,null,null,null,{"$f":" DH124/DD124","v":{"$error":"#DIV/0!"}},null,null,null,null,null,null,{"$f":" DO124/DK124","v":{"$error":"#DIV/0!"}},null,null,null,null,null,null,{"$f":" DV124/DR124","v":{"$error":"#DIV/0!"}},null,null,null,null,null,null,{"$f":" EC124/DY124","v":{"$error":"#DIV/0!"}},null,null,null,null,null,null,{"$f":" EJ124/EF124","v":{"$error":"#DIV/0!"}},null,null,null,null,null,null,{"$f":" EQ124/EM124","v":{"$error":"#DIV/0!"}},null,null,null,null,null,null,{"$f":" EX124/ET124","v":{"$error":"#DIV/0!"}},null,null,null,null,null,null,{"$f":" FE124/FA124","v":{"$error":"#DIV/0!"}},null,null,null,null,null,null,{"$f":" FL124/FH124","v":{"$error":"#DIV/0!"}}]
[null,null,null,{"$f":" F124/C124","v":7.8947368421052627E-2},null,null,null,null,null,null,{"$f":" M124/J124","v":{"$error":"#DIV/0!"}},null,null,null,null,null,null,{"$f":" T124/Q124","v":{"$error":"#DIV/0!"}},null,null,null,null,null,null,{"$f":" AA124/X124","v":{"$error":"#DIV/0!"}},null,null,null,null,null,null,{"$f":" AH124/AE124","v":{"$error":"#DIV/0!"}},null,null,null,null,null,null,{"$f":" AO124/AL124","v":{"$error":"#DIV/0!"}},null,null,null,null,null,null,{"$f":" AV124/AS124","v":{"$error":"#DIV/0!"}},null,null,null,null,null,null,{"$f":" BC124/AZ124","v":{"$error":"#DIV/0!"}},null,null,null,null,null,null,{"$f":" BJ124/BG124","v":{"$error":"#DIV/0!"}},null,null,null,null,null,null,{"$f":" BQ124/BN124","v":{"$error":"#DIV/0!"}},null,null,null,null,null,null,{"$f":" BX124/BU124","v":{"$error":"#DIV/0!"}},null,null,null,null,null,null,{"$f":" CE124/CB124","v":{"$error":"#DIV/0!"}},null,null,null,null,null,null,{"$f":" CL124/CI124","v":{"$error":"#DIV/0!"}},null,null,null,null,null,null,{"$f":" CS124/CP124","v":{"$error":"#DIV/0!"}},null,null,null,null,null,null,{"$f":" CZ124/CW124","v":{"$error":"#DIV/0!"}},null,null,null,null,null,null,{"$f":" DG124/DD124","v":{"$error":"#DIV/0!"}},null,null,null,null,null,null,{"$f":" DN124/DK124","v":{"$error":"#DIV/0!"}},null,null,null,null,null,null,{"$f":" DU124/DR124","v":{"$error":"#DIV/0!"}},null,null,null,null,null,null,{"$f":" EB124/DY124","v":{"$error":"#DIV/0!"}},null,null,null,null,null,null,{"$f":" EI124/EF124","v":{"$error":"#DIV/0!"}},null,null,null,null,null,null,{"$f":" EP124/EM124","v":{"$error":"#DIV/0!"}},null,null,null,null,null,null,{"$f":" EW124/ET124","v":{"$error":"#DIV/0!"}},null,null,null,null,null,null,{"$f":" FD124/FA124","v":{"$error":"#DIV/0!"}},null,null,null,null,null,null,{"$f":" FK124/FH124","v":{"$error":"#DIV/0!"}}]
["  ",null,null,{"$f":" E124/C124","v":0.21052631578947367},null,null,null,null,null,null,{"$f":" L124/J124","v":{"$error":"#DIV/0!"}},null,null,null,null,null,null,{"$f":" S124/Q124","v":{"$error":"#DIV/0!"}},null,null,null,null,null,null,{"$f":" Z124/X124","v":{"$error":"#DIV/0!"}},null,null,null,null,null,null,{"$f":" AG124/AE124","v":{"$error":"#DIV/0!"}},null,null,null,null,null,null,{"$f":" AN124/AL124","v":{"$error":"#DIV/0!"}},null,null,null,null,null,null,{"$f":" AU124/AS124","v":{"$error":"#DIV/0!"}},null,null,null,null,null,null,{"$f":" BB124/AZ124","v":{"$error":"#DIV/0!"}},null,null,null,null,null,null,{"$f":" BI124/BG124","v":{"$error":"#DIV/0!"}},null,null,null,null,null,null,{"$f":" BP124/BN124","v":{"$error":"#DIV/0!"}},null,null,null,null,null,null,{"$f":" BW124/BU124","v":{"$error":"#DIV/0!"}},null,null,null,null,null,null,{"$f":" CD124/CB124","v":{"$error":"#DIV/0!"}},null,null,null,null,null,null,{"$f":" CK124/CI124","v":{"$error":"#DIV/0!"}},null,null,null,null,null,null,{"$f":" CR124/CP124","v":{"$error":"#DIV/0!"}},null,null,null,null,null,null,{"$f":" CY124/CW124","v":{"$error":"#DIV/0!"}},null,null,null,null,null,null,{"$f":" DF124/DD124","v":{"$error":"#DIV/0!"}},null,null,null,null,null,null,{"$f":" DM124/DK124","v":{"$error":"#DIV/0!"}},null,null,null,null,null,null,{"$f":" DT124/DR124","v":{"$error":"#DIV/0!"}},null,null,null,null,null,null,{"$f":" EA124/DY124","v":{"$error":"#DIV/0!"}},null,null,null,null,null,null,{"$f":" EH124/EF124","v":{"$error":"#DIV/0!"}},null,null,null,null,null,null,{"$f":" EO124/EM124","v":{"$error":"#DIV/0!"}},null,null,null,null,null,null,{"$f":" EV124/ET124","v":{"$error":"#DIV/0!"}},null,null,null,null,null,null,{"$f":" FC124/FA124","v":{"$error":"#DIV/0!"}},null,null,null,null,null,null,{"$f":" FJ124/FH124","v":{"$error":"#DIV/0!"}}]
[null,null,null,{"$f":"D124/C124","v":0.42105263157894735},null,null,null,null,null,null,{"$f":"K124/J124","v":{"$error":"#DIV/0!"}},null,null,null,null,null,null,{"$f":"R124/Q124","v":{"$error":"#DIV/0!"}},null,null,null,null,null,null,{"$f":"Y124/X124","v":{"$error":"#DIV/0!"}},null,null,null,null,null,null,{"$f":"AF124/AE124","v":{"$error":"#DIV/0!"}},null,null,null,null,null,null,{"$f":"AM124/AL124","v":{"$error":"#DIV/0!"}},null,null,null,null,null,null,{"$f":"AT124/AS124","v":{"$error":"#DIV/0!"}},null,null,null,null,null,null,{"$f":"BA124/AZ124","v":{"$error":"#DIV/0!"}},null,null,null,null,null,null,{"$f":"BH124/BG124","v":{"$error":"#DIV/0!"}},null,null,null,null,null,null,{"$f":"BO124/BN124","v":{"$error":"#DIV/0!"}},null,null,null,null,null,null,{"$f":"BV124/BU124","v":{"$error":"#DIV/0!"}},null,null,null,null,null,null,{"$f":"CC124/CB124","v":{"$error":"#DIV/0!"}},null,null,null,null,null,null,{"$f":"CJ124/CI124","v":{"$error":"#DIV/0!"}},null,null,null,null,null,null,{"$f":"CQ124/CP124","v":{"$error":"#DIV/0!"}},null,null,null,null,null,null,{"$f":"CX124/CW124","v":{"$error":"#DIV/0!"}},null,null,null,null,null,null,{"$f":"DE124/DD124","v":{"$error":"#DIV/0!"}},null,null,null,null,null,null,{"$f":"DL124/DK124","v":{"$error":"#DIV/0!"}},null,null,null,null,null,null,{"$f":"DS124/DR124","v":{"$error":"#DIV/0!"}},null,null,null,null,null,null,{"$f":"DZ124/DY124","v":{"$error":"#DIV/0!"}},null,null,null,null,null,null,{"$f":"EG124/EF124","v":{"$error":"#DIV/0!"}},null,null,null,null,null,null,{"$f":"EN124/EM124","v":{"$error":"#DIV/0!"}},null,null,null,null,null,null,{"$f":"EU124/ET124","v":{"$error":"#DIV/0!"}},null,null,null,null,null,null,{"$f":"FB124/FA124","v":{"$error":"#DIV/0!"}},null,null,null,null,null,null,{"$f":"FI124/FH124","v":{"$error":"#DIV/0!"}}]
["🔍חיפוש ",null,null,null,null,null,null,null,null,null,null,null,null,null,null,null,null,null,null,null,null,null,null,null,null,null,null,null,null,null,null,null,null,null,null,null,null,null,null,null,null,null,null,null,null,null,null,null,null,null,null,null,null,null,null,null,null,null,null,null,null,null,null,null,null,null,null,null,null,null,null,null,null,null,null,null,null,null,null,null,null,null,null,null,null,null,null,null,null,null,null,null,null,null,null,null,null,null,null,null,null,null,null,null,null,null,null,null,null,null,null,null,null,null,null,null,null,null,null,null,null,null,null,null,null,null,null,null,null,null,null,null,null,null,null,null,null,null,null,null,null,null,null,null,null,null,null,null,null,null,null,null,null,null,null,null,null,null,null,null,null,null,null,null,null,null,null,null,null,null,null,null,null,null,null,null,null,null,null,null,null,null,null,null,null,null,null,null,null,null,null,null,null,null,null,null,null,null,"טבלת סיכום"]
[null,null,null,null,null,null,null,null,null,null,null,null,null,null,null,null,null,null,null,null,null,null,null,null,null,null,null,null,null,null,null,null,null,null,null,null,null,null,null,null,null,null,null,null,null,null,null,null,null,null,null,null,null,null,null,null,null,null,null,null,null,null,null,null,null,null,null,null,null,null,null,null,null,null,null,null,null,null,null,null,null,null,null,null,null,null,null,null,null,null,null,null,null,null,null,null,null,null,null,null,null,null,null,null,null,null,null,null,null,null,null,null,null,null,null,null,null,null,null,null,null,null,null,null,null,null,null,null,null,null,null,null,null,null,null,null,null,null,null,null,null,null,null,null,null,null,null,null,null,null,null,null,null,null,null,null,null,null,null,null,null,null,null,null,null,null,null,null,null,null,null,null,null,null,null,null,null,null,null,null,null,null,null,null,null,null,null,null,null,null,null,null,null,null,null,null,null,null,"סיכום","סך עמודים","לימוד1","לימוד2","לימוד3","לימוד4","סך כל הלימוד"]
["מסכת פלונית",null,"ב.","2021-10-05","2021-10-05","2021-10-05",null,{"$f":"COUNTA(פרק_א[[#This Row],[עמודה2]:[עמודה5]])","v":3},null,null,null,null,null,null,{"$f":"COUNTA(פרק_ב[[#This Row],[עמודה2]:[עמודה5]])","v":0},null,null,null,null,null,null,{"$f":"COUNTA(פרק_ג[[#This Row],[עמודה2]:[עמודה5]])","v":0},null,null,null,null,null,null,{"$f":"COUNTA(פרק_ד[[#This Row],[עמודה2]:[עמודה5]])","v":0},null,null,null,null,null,null,{"$f":"COUNTA(פרק_ה[[#This Row],[עמודה2]:[עמודה5]])","v":0},null,null,null,null,null,null,{"$f":"COUNTA(פרק_ו[[#This Row],[עמודה2]:[עמודה5]])","v":0},null,null,null,null,null,null,{"$f":"COUNTA(פרק_ז[[#This Row],[עמודה2]:[עמודה5]])","v":0},null,null,null,null,null,null,{"$f":"COUNTA(פרק_ח[[#This Row],[עמודה2]:[עמודה5]])","v":0},null,null,null,null,null,null,{"$f":"COUNTA(פרק_ט[[#This Row],[עמודה2]:[עמודה5]])","v":0},null,null,null,null,null,null,{"$f":"COUNTA(פרק_י[[#This Row],[עמודה2]:[עמודה5]])","v":0},null,null,null,null,null,null,{"$f":"COUNTA(פרק_יא[[#This Row],[עמודה2]:[עמודה5]])","v":0},null,null,null,null,null,null,{"$f":"COUNTA(פרק_יב[[#This Row],[עמודה2]:[עמודה5]])","v":0},null,null,null,null,null,null,{"$f":"COUNTA(פרק_יג[[#This Row],[עמודה2]:[עמודה5]])","v":0},null,null,null,null,null,null,{"$f":"COUNTA(פרק_יד[[#This Row],[עמודה2]:[עמודה5]])","v":0},null,null,null,null,null,null,{"$f":"COUNTA(פרק_טו[[#This Row],[עמודה2]:[עמודה5]])","v":0},null,null,null,null,null,null,{"$f":"COUNTA(פרק_טז[[#This Row],[עמודה2]:[עמודה5]])","v":0},null,null,null,null,null,null,{"$f":"COUNTA(פרק_יז[[#This Row],[עמודה2]:[עמודה5]])","v":0},null,null,null,null,null,null,{"$f":"COUNTA(פרק_יח[[#This Row],[עמודה2]:[עמודה5]])","v":0},null,null,null,null,null,null,{"$f":"COUNTA(פרק_יט[[#This Row],[עמודה2]:[עמודה5]])","v":0},null,null,null,null,null,null,{"$f":"COUNTA(פרק_כ[[#This Row],[עמודה2]:[עמודה5]])","v":0},null,null,null,null,null,null,{"$f":"COUNTA(פרק_כא[[#This Row],[עמודה2]:[עמודה5]])","v":0},null,null,null,null,null,null,{"$f":"COUNTA(פרק_כב[[#This Row],[עמודה2]:[עמודה5]])","v":0},null,null,null,null,null,null,{"$f":"COUNTA(פרק_כג[[#This Row],[עמודה2]:[עמודה5]])","v":0},null,null,null,null,null,null,{"$f":"COUNTA(פרק_כד[[#This Row],[עמודה2]:[עמודה5]])","v":0},null,null,null,null,null,null,null,null,null,null,null,null,null,null,null,null,null,null,null,null,null,null,null,null,null,null,null,null,null,{"$f":"HYPERLINK(\"#C6\",C6)","v":0},{"$f":"SUBTOTAL(103,פרק_א[עמודה1])","v":38},{"$f":"SUBTOTAL(103,פרק_א[עמודה2])","v":16},{"$f":"SUBTOTAL(103,פרק_א[עמודה3])","v":8},{"$f":"SUBTOTAL(103,פרק_א[עמודה4])","v":3},{"$f":"SUBTOTAL(103,פרק_א[עמודה5])","v":0},{"$f":"SUBTOTAL(109,פרק_א[עמודה6])","v":27}]
[null,null,"ב:","2021-10-05","2021-10-05","2021-10-05",null,{"$f":"COUNTA(פרק_א[[#This Row],[עמודה2]:[עמודה5]])","v":3},null,null,null,null,null,null,{"$f":"COUNTA(פרק_ב[[#This Row],[עמודה2]:[עמודה5]])","v":0},null,null,null,null,null,null,{"$f":"COUNTA(פרק_ג[[#This Row],[עמודה2]:[עמודה5]])","v":0},null,null,null,null,null,null,{"$f":"COUNTA(פרק_ד[[#This Row],[עמודה2]:[עמודה5]])","v":0},null,null,null,null,null,null,{"$f":"COUNTA(פרק_ה[[#This Row],[עמודה2]:[עמודה5]])","v":0},null,null,null,null,null,null,{"$f":"COUNTA(פרק_ו[[#This Row],[עמודה2]:[עמודה5]])","v":0},null,null,null,null,null,null,{"$f":"COUNTA(פרק_ז[[#This Row],[עמודה2]:[עמודה5]])","v":0},null,null,null,null,null,null,{"$f":"COUNTA(פרק_ח[[#This Row],[עמודה2]:[עמודה5]])","v":0},null,null,null,null,null,null,{"$f":"COUNTA(פרק_ט[[#This Row],[עמודה2]:[עמודה5]])","v":0},null,null,null,null,null,null,{"$f":"COUNTA(פרק_י[[#This Row],[עמודה2]:[עמודה5]])","v":0},null,null,null,null,null,null,{"$f":"COUNTA(פרק_יא[[#This Row],[עמודה2]:[עמודה5]])","v":0},null,null,null,null,null,null,{"$f":"COUNTA(פרק_יב[[#This Row],[עמודה2]:[עמודה5]])","v":0},null,null,null,null,null,null,{"$f":"COUNTA(פרק_יג[[#This Row],[עמודה2]:[עמודה5]])","v":0},null,null,null,null,null,null,{"$f":"COUNTA(פרק_יד[[#This Row],[עמודה2]:[עמודה5]])","v":0},null,null,null,null,null,null,{"$f":"COUNTA(פרק_טו[[#This Row],[עמודה2]:[עמודה5]])","v":0},null,null,null,null,null,null,{"$f":"COUNTA(פרק_טז[[#This Row],[עמודה2]:[עמודה5]])","v":0},null,null,null,null,null,null,{"$f":"COUNTA(פרק_יז[[#This Row],[עמודה2]:[עמודה5]])","v":0},null,null,null,null,null,null,{"$f":"COUNTA(פרק_יח[[#This Row],[עמודה2]:[עמודה5]])","v":0},null,null,null,null,null,null,{"$f":"COUNTA(פרק_יט[[#This Row],[עמודה2]:[עמודה5]])","v":0},null,null,null,null,null,null,{"$f":"COUNTA(פרק_כ[[#This Row],[עמודה2]:[עמודה5]])","v":0},null,null,null,null,null,null,{"$f":"COUNTA(פרק_כא[[#This Row],[עמודה2]:[עמודה5]])","v":0},null,null,null,null,null,null,{"$f":"COUNTA(פרק_כב[[#This Row],[עמודה2]:[עמודה5]])","v":0},null,null,null,null,null,null,{"$f":"COUNTA(פרק_כג[[#This Row],[עמודה2]:[עמודה5]])","v":0},null,null,null,null,null,null,{"$f":"COUNTA(פרק_כד[[#This Row],[עמודה2]:[עמודה5]])","v":0},null,null,null,null,null,null,null,null,null,null,null,null,null,null,null,null,null,null,null,null,null,null,null,null,null,null,null,null,null,{"$f":"HYPERLINK(\"#j6\",J6)","v":0},{"$f":"SUBTOTAL(103,פרק_ב[עמודה1])","v":0},{"$f":"SUBTOTAL(103,פרק_ב[עמודה2])","v":0},{"$f":"SUBTOTAL(103,פרק_ב[עמודה3])","v":0},{"$f":"SUBTOTAL(103,פרק_ב[עמודה4])","v":0},{"$f":"SUBTOTAL(103,פרק_ב[עמודה5])","v":0},{"$f":"SUBTOTAL(109,פרק_ב[עמודה6])","v":0}]
[{"$f":"\"ב\" & A8 &\" ישנם \" &SUBTOTAL(103,C6,J6,Q6,X6,AE6,AL6,AS6,AZ6,BG6,BN6,BU6,CB6,CI6,CP6,CW6,DD6,DK6,DR6,DY6,EF6,EM6,ET6,FA6,FH6)&\" פרקים \"& SUBTOTAL(103,C8:C120,J8:J120,Q8:Q120,X8:X120,AE8:AE120,AL8:AL120,AS8:AS120,AZ8:AZ120,BG8:BG120,BN8:BN120,BU8:BU120,CB8:CB120,CI8:CI120,CP8:CP120,CW8:CW120,DD8:DD120,DK8:DK120,DR8:DR120,DY8:DY120,EF8:EF120,EM8:EM120,ET8:ET120,FA8:FA120,FH8:FH120)/2 & \" דפים.\"","v":"במסכת פלונית ישנם 0 פרקים 19 דפים."},null,"ג.","2021-10-05","2021-10-05","2021-10-05",null,{"$f":"COUNTA(פרק_א[[#This Row],[עמודה2]:[עמודה5]])","v":3},null,null,null,null,null,null,{"$f":"COUNTA(פרק_ב[[#This Row],[עמודה2]:[עמודה5]])","v":0},null,null,null,null,null,null,{"$f":"COUNTA(פרק_ג[[#This Row],[עמודה2]:[עמודה5]])","v":0},null,null,null,null,null,null,{"$f":"COUNTA(פרק_ד[[#This Row],[עמודה2]:[עמודה5]])","v":0},null,null,null,null,null,null,{"$f":"COUNTA(פרק_ה[[#This Row],[עמודה2]:[עמודה5]])","v":0},null,null,null,null,null,null,{"$f":"COUNTA(פרק_ו[[#This Row],[עמודה2]:[עמודה5]])","v":0},null,null,null,null,null,null,{"$f":"COUNTA(פרק_ז[[#This Row],[עמודה2]:[עמודה5]])","v":0},null,null,null,null,null,null,{"$f":"COUNTA(פרק_ח[[#This Row],[עמודה2]:[עמודה5]])","v":0},null,null,null,null,null,null,{"$f":"COUNTA(פרק_ט[[#This Row],[עמודה2]:[עמודה5]])","v":0},null,null,null,null,null,null,{"$f":"COUNTA(פרק_י[[#This Row],[עמודה2]:[עמודה5]])","v":0},null,null,null,null,null,null,{"$f":"COUNTA(פרק_יא[[#This Row],[עמודה2]:[עמודה5]])","v":0},null,null,null,null,null,null,{"$f":"COUNTA(פרק_יב[[#This Row],[עמודה2]:[עמודה5]])","v":0},null,null,null,null,null,null,{"$f":"COUNTA(פרק_יג[[#This Row],[עמודה2]:[עמודה5]])","v":0},null,null,null,null,null,null,{"$f":"COUNTA(פרק_יד[[#This Row],[עמודה2]:[עמודה5]])","v":0},null,null,null,null,null,null,{"$f":"COUNTA(פרק_טו[[#This Row],[עמודה2]:[עמודה5]])","v":0},null,null,null,null,null,null,{"$f":"COUNTA(פרק_טז[[#This Row],[עמודה2]:[עמודה5]])","v":0},null,null,null,null,null,null,{"$f":"COUNTA(פרק_יז[[#This Row],[עמודה2]:[עמודה5]])","v":0},null,null,null,null,null,null,{"$f":"COUNTA(פרק_יח[[#This Row],[עמודה2]:[עמודה5]])","v":0},null,null,null,null,null,null,{"$f":"COUNTA(פרק_יט[[#This Row],[עמודה2]:[עמודה5]])","v":0},null,null,null,null,null,null,{"$f":"COUNTA(פרק_כ[[#This Row],[עמודה2]:[עמודה5]])","v":0},null,null,null,null,null,null,{"$f":"COUNTA(פרק_כא[[#This Row],[עמודה2]:[עמודה5]])","v":0},null,null,null,null,null,null,{"$f":"COUNTA(פרק_כב[[#This Row],[עמודה2]:[עמודה5]])","v":0},null,null,null,null,null,null,{"$f":"COUNTA(פרק_כג[[#This Row],[עמודה2]:[עמודה5]])","v":0},null,null,null,null,null,null,{"$f":"COUNTA(פרק_כד[[#This Row],[עמודה2]:[עמודה5]])","v":0},null,null,null,null,null,null,null,null,null,null,null,null,null,null,null,null,null,null,null,null,null,null,null,null,null,null,null,null,null,{"$f":"HYPERLINK(\"#q6\",Q6)","v":0},{"$f":"SUBTOTAL(103,פרק_ג[עמודה1])","v":0},{"$f":"SUBTOTAL(103,פרק_ג[עמודה2])","v":0},{"$f":"SUBTOTAL(103,פרק_ג[עמודה3])","v":0},{"$f":"SUBTOTAL(103,פרק_ג[עמודה4])","v":0},{"$f":"SUBTOTAL(103,פרק_ג[עמודה5])","v":0},{"$f":"SUBTOTAL(109,פרק_ג[עמודה6])","v":0}]
[null,null,"ג:","2021-10-05","2021-10-05",null,null,{"$f":"COUNTA(פרק_א[[#This Row],[עמודה2]:[עמודה5]])","v":2},null,null,null,null,null,null,{"$f":"COUNTA(פרק_ב[[#This Row],[עמודה2]:[עמודה5]])","v":0},null,null,null,null,null,null,{"$f":"COUNTA(פרק_ג[[#This Row],[עמודה2]:[עמודה5]])","v":0},null,null,null,null,null,null,{"$f":"COUNTA(פרק_ד[[#This Row],[עמודה2]:[עמודה5]])","v":0},null,null,null,null,null,null,{"$f":"COUNTA(פרק_ה[[#This Row],[עמודה2]:[עמודה5]])","v":0},null,null,null,null,null,null,{"$f":"COUNTA(פרק_ו[[#This Row],[עמודה2]:[עמודה5]])","v":0},null,null,null,null,null,null,{"$f":"COUNTA(פרק_ז[[#This Row],[עמודה2]:[עמודה5]])","v":0},null,null,null,null,null,null,{"$f":"COUNTA(פרק_ח[[#This Row],[עמודה2]:[עמודה5]])","v":0},null,null,null,null,null,null,{"$f":"COUNTA(פרק_ט[[#This Row],[עמודה2]:[עמודה5]])","v":0},null,null,null,null,null,null,{"$f":"COUNTA(פרק_י[[#This Row],[עמודה2]:[עמודה5]])","v":0},null,null,null,null,null,null,{"$f":"COUNTA(פרק_יא[[#This Row],[עמודה2]:[עמודה5]])","v":0},null,null,null,null,null,null,{"$f":"COUNTA(פרק_יב[[#This Row],[עמודה2]:[עמודה5]])","v":0},null,null,null,null,null,null,{"$f":"COUNTA(פרק_יג[[#This Row],[עמודה2]:[עמודה5]])","v":0},null,null,null,null,null,null,{"$f":"COUNTA(פרק_יד[[#This Row],[עמודה2]:[עמודה5]])","v":0},null,null,null,null,null,null,{"$f":"COUNTA(פרק_טו[[#This Row],[עמודה2]:[עמודה5]])","v":0},null,null,null,null,null,null,{"$f":"COUNTA(פרק_טז[[#This Row],[עמודה2]:[עמודה5]])","v":0},null,null,null,null,null,null,{"$f":"COUNTA(פרק_יז[[#This Row],[עמודה2]:[עמודה5]])","v":0},null,null,null,null,null,null,{"$f":"COUNTA(פרק_יח[[#This Row],[עמודה2]:[עמודה5]])","v":0},null,null,null,null,null,null,{"$f":"COUNTA(פרק_יט[[#This Row],[עמודה2]:[עמודה5]])","v":0},null,null,null,null,null,null,{"$f":"COUNTA(פרק_כ[[#This Row],[עמודה2]:[עמודה5]])","v":0},null,null,null,null,null,null,{"$f":"COUNTA(פרק_כא[[#This Row],[עמודה2]:[עמודה5]])","v":0},null,null,null,null,null,null,{"$f":"COUNTA(פרק_כב[[#This Row],[עמודה2]:[עמודה5]])","v":0},null,null,null,null,null,null,{"$f":"COUNTA(פרק_כג[[#This Row],[עמודה2]:[עמודה5]])","v":0},null,null,null,null,null,null,{"$f":"COUNTA(פרק_כד[[#This Row],[עמודה2]:[עמודה5]])","v":0},null,null,null,null,null,null,null,null,null,null,null,null,null,null,null,null,null,null,null,null,null,null,null,null,null,null,null,null,null,{"$f":"HYPERLINK(\"#x6\",X6)","v":0},{"$f":"SUBTOTAL(103,פרק_ד[עמודה1])","v":0},{"$f":"SUBTOTAL(103,פרק_ד[עמודה2])","v":0},{"$f":"SUBTOTAL(103,פרק_ד[עמודה3])","v":0},{"$f":"SUBTOTAL(103,פרק_ד[עמודה4])","v":0},{"$f":"SUBTOTAL(103,פרק_ד[עמודה5])","v":0},{"$f":"SUBTOTAL(109,פרק_ד[עמודה6])","v":0}]
[null,null,"ד.","2021-10-05","2021-10-05",null,null,{"$f":"COUNTA(פרק_א[[#This Row],[עמודה2]:[עמודה5]])","v":2},null,null,null,null,null,null,{"$f":"COUNTA(פרק_ב[[#This Row],[עמודה2]:[עמודה5]])","v":0},null,null,null,null,null,null,{"$f":"COUNTA(פרק_ג[[#This Row],[עמודה2]:[עמודה5]])","v":0},null,null,null,null,null,null,{"$f":"COUNTA(פרק_ד[[#This Row],[עמודה2]:[עמודה5]])","v":0},null,null,null,null,null,null,{"$f":"COUNTA(פרק_ה[[#This Row],[עמודה2]:[עמודה5]])","v":0},null,null,null,null,null,null,{"$f":"COUNTA(פרק_ו[[#This Row],[עמודה2]:[עמודה5]])","v":0},null,null,null,null,null,null,{"$f":"COUNTA(פרק_ז[[#This Row],[עמודה2]:[עמודה5]])","v":0},null,null,null,null,null,null,{"$f":"COUNTA(פרק_ח[[#This Row],[עמודה2]:[עמודה5]])","v":0},null,null,null,null,null,null,{"$f":"COUNTA(פרק_ט[[#This Row],[עמודה2]:[עמודה5]])","v":0},null,null,null,null,null,null,{"$f":"COUNTA(פרק_י[[#This Row],[עמודה2]:[עמודה5]])","v":0},null,null,null,null,null,null,{"$f":"COUNTA(פרק_יא[[#This Row],[עמודה2]:[עמודה5]])","v":0},null,null,null,null,null,null,{"$f":"COUNTA(פרק_יב[[#This Row],[עמודה2]:[עמודה5]])","v":0},null,null,null,null,null,null,{"$f":"COUNTA(פרק_יג[[#This Row],[עמודה2]:[עמודה5]])","v":0},null,null,null,null,null,null,{"$f":"COUNTA(פרק_יד[[#This Row],[עמודה2]:[עמודה5]])","v":0},null,null,null,null,null,null,{"$f":"COUNTA(פרק_טו[[#This Row],[עמודה2]:[עמודה5]])","v":0},null,null,null,null,null,null,{"$f":"COUNTA(פרק_טז[[#This Row],[עמודה2]:[עמודה5]])","v":0},null,null,null,null,null,null,{"$f":"COUNTA(פרק_יז[[#This Row],[עמודה2]:[עמודה5]])","v":0},null,null,null,null,null,null,{"$f":"COUNTA(פרק_יח[[#This Row],[עמודה2]:[עמודה5]])","v":0},null,null,null,null,null,null,{"$f":"COUNTA(פרק_יט[[#This Row],[עמודה2]:[עמודה5]])","v":0},null,null,null,null,null,null,{"$f":"COUNTA(פרק_כ[[#This Row],[עמודה2]:[עמודה5]])","v":0},null,null,null,null,null,null,{"$f":"COUNTA(פרק_כא[[#This Row],[עמודה2]:[עמודה5]])","v":0},null,null,null,null,null,null,{"$f":"COUNTA(פרק_כב[[#This Row],[עמודה2]:[עמודה5]])","v":0},null,null,null,null,null,null,{"$f":"COUNTA(פרק_כג[[#This Row],[עמודה2]:[עמודה5]])","v":0},null,null,null,null,null,null,{"$f":"COUNTA(פרק_כד[[#This Row],[עמודה2]:[עמודה5]])","v":0},null,null,null,null,null,null,null,null,null,null,null,null,null,null,null,null,null,null,null,null,null,null,null,null,null,null,null,null,null,{"$f":"HYPERLINK(\"#ae6\",AE6)","v":0},{"$f":"SUBTOTAL(103,פרק_ה[עמודה1])","v":0},{"$f":"SUBTOTAL(103,פרק_ה[עמודה2])","v":0},{"$f":"SUBTOTAL(103,פרק_ה[עמודה3])","v":0},{"$f":"SUBTOTAL(103,פרק_ה[עמודה4])","v":0},{"$f":"SUBTOTAL(103,פרק_ה[עמודה5])","v":0},{"$f":"SUBTOTAL(109,פרק_ה[עמודה6])","v":0}]
[null,null,"ד:","2021-10-05","2021-10-05",null,null,{"$f":"COUNTA(פרק_א[[#This Row],[עמודה2]:[עמודה5]])","v":2},null,null,null,null,null,null,{"$f":"COUNTA(פרק_ב[[#This Row],[עמודה2]:[עמודה5]])","v":0},null,null,null,null,null,null,{"$f":"COUNTA(פרק_ג[[#This Row],[עמודה2]:[עמודה5]])","v":0},null,null,null,null,null,null,{"$f":"COUNTA(פרק_ד[[#This Row],[עמודה2]:[עמודה5]])","v":0},null,null,null,null,null,null,{"$f":"COUNTA(פרק_ה[[#This Row],[עמודה2]:[עמודה5]])","v":0},null,null,null,null,null,null,{"$f":"COUNTA(פרק_ו[[#This Row],[עמודה2]:[עמודה5]])","v":0},null,null,null,null,null,null,{"$f":"COUNTA(פרק_ז[[#This Row],[עמודה2]:[עמודה5]])","v":0},null,null,null,null,null,null,{"$f":"COUNTA(פרק_ח[[#This Row],[עמודה2]:[עמודה5]])","v":0},null,null,null,null,null,null,{"$f":"COUNTA(פרק_ט[[#This Row],[עמודה2]:[עמודה5]])","v":0},null,null,null,null,null,null,{"$f":"COUNTA(פרק_י[[#This Row],[עמודה2]:[עמודה5]])","v":0},null,null,null,null,null,null,{"$f":"COUNTA(פרק_יא[[#This Row],[עמודה2]:[עמודה5]])","v":0},null,null,null,null,null,null,{"$f":"COUNTA(פרק_יב[[#This Row],[עמודה2]:[עמודה5]])","v":0},null,null,null,null,null,null,{"$f":"COUNTA(פרק_יג[[#This Row],[עמודה2]:[עמודה5]])","v":0},null,null,null,null,null,null,{"$f":"COUNTA(פרק_יד[[#This Row],[עמודה2]:[עמודה5]])","v":0},null,null,null,null,null,null,{"$f":"COUNTA(פרק_טו[[#This Row],[עמודה2]:[עמודה5]])","v":0},null,null,null,null,null,null,{"$f":"COUNTA(פרק_טז[[#This Row],[עמודה2]:[עמודה5]])","v":0},null,null,null,null,null,null,{"$f":"COUNTA(פרק_יז[[#This Row],[עמודה2]:[עמודה5]])","v":0},null,null,null,null,null,null,{"$f":"COUNTA(פרק_יח[[#This Row],[עמודה2]:[עמודה5]])","v":0},null,null,null,null,null,null,{"$f":"COUNTA(פרק_יט[[#This Row],[עמודה2]:[עמודה5]])","v":0},null,null,null,null,null,null,{"$f":"COUNTA(פרק_כ[[#This Row],[עמודה2]:[עמודה5]])","v":0},null,null,null,null,null,null,{"$f":"COUNTA(פרק_כא[[#This Row],[עמודה2]:[עמודה5]])","v":0},null,null,null,null,null,null,{"$f":"COUNTA(פרק_כב[[#This Row],[עמודה2]:[עמודה5]])","v":0},null,null,null,null,null,null,{"$f":"COUNTA(פרק_כג[[#This Row],[עמודה2]:[עמודה5]])","v":0},null,null,null,null,null,null,{"$f":"COUNTA(פרק_כד[[#This Row],[עמודה2]:[עמודה5]])","v":0},null,null,null,null,null,null,null,null,null,null,null,null,null,null,null,null,null,null,null,null,null,null,null,null,null,null,null,null,null,{"$f":"HYPERLINK(\"#al6\",AL6)","v":0},{"$f":"SUBTOTAL(103,פרק_ו[עמודה1])","v":0},{"$f":"SUBTOTAL(103,פרק_ו[עמודה2])","v":0},{"$f":"SUBTOTAL(103,פרק_ו[עמודה3])","v":0},{"$f":"SUBTOTAL(103,פרק_ו[עמודה4])","v":0},{"$f":"SUBTOTAL(103,פרק_ו[עמודה5])","v":0},{"$f":"SUBTOTAL(109,פרק_ו[עמודה6])","v":0}]
[null,null,"ה.","2021-10-05","2021-10-05",null,null,{"$f":"COUNTA(פרק_א[[#This Row],[עמודה2]:[עמודה5]])","v":2},null,null,null,null,null,null,{"$f":"COUNTA(פרק_ב[[#This Row],[עמודה2]:[עמודה5]])","v":0},null,null,null,null,null,null,{"$f":"COUNTA(פרק_ג[[#This Row],[עמודה2]:[עמודה5]])","v":0},null,null,null,null,null,null,{"$f":"COUNTA(פרק_ד[[#This Row],[עמודה2]:[עמודה5]])","v":0},null,null,null,null,null,null,{"$f":"COUNTA(פרק_ה[[#This Row],[עמודה2]:[עמודה5]])","v":0},null,null,null,null,null,null,{"$f":"COUNTA(פרק_ו[[#This Row],[עמודה2]:[עמודה5]])","v":0},null,null,null,null,null,null,{"$f":"COUNTA(פרק_ז[[#This Row],[עמודה2]:[עמודה5]])","v":0},null,null,null,null,null,null,{"$f":"COUNTA(פרק_ח[[#This Row],[עמודה2]:[עמודה5]])","v":0},null,null,null,null,null,null,{"$f":"COUNTA(פרק_ט[[#This Row],[עמודה2]:[עמודה5]])","v":0},null,null,null,null,null,null,{"$f":"COUNTA(פרק_י[[#This Row],[עמודה2]:[עמודה5]])","v":0},null,null,null,null,null,null,{"$f":"COUNTA(פרק_יא[[#This Row],[עמודה2]:[עמודה5]])","v":0},null,null,null,null,null,null,{"$f":"COUNTA(פרק_יב[[#This Row],[עמודה2]:[עמודה5]])","v":0},null,null,null,null,null,null,{"$f":"COUNTA(פרק_יג[[#This Row],[עמודה2]:[עמודה5]])","v":0},null,null,null,null,null,null,{"$f":"COUNTA(פרק_יד[[#This Row],[עמודה2]:[עמודה5]])","v":0},null,null,null,null,null,null,{"$f":"COUNTA(פרק_טו[[#This Row],[עמודה2]:[עמודה5]])","v":0},null,null,null,null,null,null,{"$f":"COUNTA(פרק_טז[[#This Row],[עמודה2]:[עמודה5]])","v":0},null,null,null,null,null,null,{"$f":"COUNTA(פרק_יז[[#This Row],[עמודה2]:[עמודה5]])","v":0},null,null,null,null,null,null,{"$f":"COUNTA(פרק_יח[[#This Row],[עמודה2]:[עמודה5]])","v":0},null,null,null,null,null,null,{"$f":"COUNTA(פרק_יט[[#This Row],[עמודה2]:[עמודה5]])","v":0},null,null,null,null,null,null,{"$f":"COUNTA(פרק_כ[[#This Row],[עמודה2]:[עמודה5]])","v":0},null,null,null,null,null,null,{"$f":"COUNTA(פרק_כא[[#This Row],[עמודה2]:[עמודה5]])","v":0},null,null,null,null,null,null,{"$f":"COUNTA(פרק_כב[[#This Row],[עמודה2]:[עמודה5]])","v":0},null,null,null,null,null,null,{"$f":"COUNTA(פרק_כג[[#This Row],[עמודה2]:[עמודה5]])","v":0},null,null,null,null,null,null,{"$f":"COUNTA(פרק_כד[[#This Row],[עמודה2]:[עמודה5]])","v":0},null,null,null,null,null,null,null,null,null,null,null,null,null,null,null,null,null,null,null,null,null,null,null,null,null,null,null,null,null,{"$f":"HYPERLINK(\"#as6\",AS6)","v":0},{"$f":"SUBTOTAL(103,פרק_ז[עמודה1])","v":0},{"$f":"SUBTOTAL(103,פרק_ז[עמודה2])","v":0},{"$f":"SUBTOTAL(103,פרק_ז[עמודה3])","v":0},{"$f":"SUBTOTAL(103,פרק_ז[עמודה4])","v":0},{"$f":"SUBTOTAL(103,פרק_ז[עמודה5])","v":0},{"$f":"SUBTOTAL(109,פרק_ז[עמודה6])","v":0}]
[null,null,"ה:","2021-10-05","2021-10-05",null,null,{"$f":"COUNTA(פרק_א[[#This Row],[עמודה2]:[עמודה5]])","v":2},null,null,null,null,null,null,{"$f":"COUNTA(פרק_ב[[#This Row],[עמודה2]:[עמודה5]])","v":0},null,null,null,null,null,null,{"$f":"COUNTA(פרק_ג[[#This Row],[עמודה2]:[עמודה5]])","v":0},null,null,null,null,null,null,{"$f":"COUNTA(פרק_ד[[#This Row],[עמודה2]:[עמודה5]])","v":0},null,null,null,null,null,null,{"$f":"COUNTA(פרק_ה[[#This Row],[עמודה2]:[עמודה5]])","v":0},null,null,null,null,null,null,{"$f":"COUNTA(פרק_ו[[#This Row],[עמודה2]:[עמודה5]])","v":0},null,null,null,null,null,null,{"$f":"COUNTA(פרק_ז[[#This Row],[עמודה2]:[עמודה5]])","v":0},null,null,null,null,null,null,{"$f":"COUNTA(פרק_ח[[#This Row],[עמודה2]:[עמודה5]])","v":0},null,null,null,null,null,null,{"$f":"COUNTA(פרק_ט[[#This Row],[עמודה2]:[עמודה5]])","v":0},null,null,null,null,null,null,{"$f":"COUNTA(פרק_י[[#This Row],[עמודה2]:[עמודה5]])","v":0},null,null,null,null,null,null,{"$f":"COUNTA(פרק_יא[[#This Row],[עמודה2]:[עמודה5]])","v":0},null,null,null,null,null,null,{"$f":"COUNTA(פרק_יב[[#This Row],[עמודה2]:[עמודה5]])","v":0},null,null,null,null,null,null,{"$f":"COUNTA(פרק_יג[[#This Row],[עמודה2]:[עמודה5]])","v":0},null,null,null,null,null,null,{"$f":"COUNTA(פרק_יד[[#This Row],[עמודה2]:[עמודה5]])","v":0},null,null,null,null,null,null,{"$f":"COUNTA(פרק_טו[[#This Row],[עמודה2]:[עמודה5]])","v":0},null,null,null,null,null,null,{"$f":"COUNTA(פרק_טז[[#This Row],[עמודה2]:[עמודה5]])","v":0},null,null,null,null,null,null,{"$f":"COUNTA(פרק_יז[[#This Row],[עמודה2]:[עמודה5]])","v":0},null,null,null,null,null,null,{"$f":"COUNTA(פרק_יח[[#This Row],[עמודה2]:[עמודה5]])","v":0},null,null,null,null,null,null,{"$f":"COUNTA(פרק_יט[[#This Row],[עמודה2]:[עמודה5]])","v":0},null,null,null,null,null,null,{"$f":"COUNTA(פרק_כ[[#This Row],[עמודה2]:[עמודה5]])","v":0},null,null,null,null,null,null,{"$f":"COUNTA(פרק_כא[[#This Row],[עמודה2]:[עמודה5]])","v":0},null,null,null,null,null,null,{"$f":"COUNTA(פרק_כב[[#This Row],[עמודה2]:[עמודה5]])","v":0},null,null,null,null,null,null,{"$f":"COUNTA(פרק_כג[[#This Row],[עמודה2]:[עמודה5]])","v":0},null,null,null,null,null,null,{"$f":"COUNTA(פרק_כד[[#This Row],[עמודה2]:[עמודה5]])","v":0},null,null,null,null,null,null,null,null,null,null,null,null,null,null,null,null,null,null,null,null,null,null,null,null,null,null,null,null,null,{"$f":"HYPERLINK(\"#az6\",AZ6)","v":0},{"$f":"SUBTOTAL(103,פרק_ח[עמודה1])","v":0},{"$f":"SUBTOTAL(103,פרק_ח[עמודה2])","v":0},{"$f":"SUBTOTAL(103,פרק_ח[עמודה3])","v":0},{"$f":"SUBTOTAL(103,פרק_ח[עמודה4])","v":0},{"$f":"SUBTOTAL(103,פרק_ח[עמודה5])","v":0},{"$f":"SUBTOTAL(109,פרק_ח[עמודה6])","v":0}]
[{"$f":"\"מתוכם למדת  \"  & SUBTOTAL(103,D8:D120,K8:K120,R8:R120,Y8:Y120,AF8:AF120,AM8:AM120,AT8:AT120,BA8:BA120,BH8:BH120,BO8:BO120,BV8:BV120,CC8:CC120,CJ8:CJ120,CQ8:CQ120,CX8:CX120,DE8:DE120,DL8:DL120,DS8:DS120,DZ8:DZ120,EG8:EG120,EN8:EN120,EU8:EU120,FB8:FB120,FI8:FI120)/2 &\" דפים, נותרו לך עוד \" & SUBTOTAL(103,C8:C120,J8:J120,Q8:Q120,X8:X120,AE8:AE120,AL8:AL120,AS8:AS120,AZ8:AZ120,BG8:BG120,BN8:BN120,BU8:BU120,CB8:CB120,CI8:CI120,CP8:CP120,CW8:CW120,DD8:DD120,DK8:DK120,DR8:DR120,DY8:DY120,EF8:EF120,EM8:EM120,ET8:ET120,FA8:FA120,FH8:FH120) /2- SUBTOTAL(103,D8:D120,K8:K120,R8:R120,Y8:Y120,AF8:AF120,AM8:AM120,AT8:AT120,BA8:BA120,BH8:BH120,BO8:BO120,BV8:BV120,CC8:CC120,CJ8:CJ120,CQ8:CQ120,CX8:CX120,DE8:DE120,DL8:DL120,DS8:DS120,DZ8:DZ120,EG8:EG120,EN8:EN120,EU8:EU120,FB8:FB120,FI8:FI120)/2 &\" להשלמת \"&A8&\" בפעם הראשונה\"","v":"מתוכם למדת  8 דפים, נותרו לך עוד 11 להשלמת מסכת פלונית בפעם הראשונה"},null,"ו.","2021-10-05",null,null,null,{"$f":"COUNTA(פרק_א[[#This Row],[עמודה2]:[עמודה5]])","v":1},null,null,null,null,null,null,{"$f":"COUNTA(פרק_ב[[#This Row],[עמודה2]:[עמודה5]])","v":0},null,null,null,null,null,null,{"$f":"COUNTA(פרק_ג[[#This Row],[עמודה2]:[עמודה5]])","v":0},null,null,null,null,null,null,{"$f":"COUNTA(פרק_ד[[#This Row],[עמודה2]:[עמודה5]])","v":0},null,null,null,null,null,null,{"$f":"COUNTA(פרק_ה[[#This Row],[עמודה2]:[עמודה5]])","v":0},null,null,null,null,null,null,{"$f":"COUNTA(פרק_ו[[#This Row],[עמודה2]:[עמודה5]])","v":0},null,null,null,null,null,null,{"$f":"COUNTA(פרק_ז[[#This Row],[עמודה2]:[עמודה5]])","v":0},null,null,null,null,null,null,{"$f":"COUNTA(פרק_ח[[#This Row],[עמודה2]:[עמודה5]])","v":0},null,null,null,null,null,null,{"$f":"COUNTA(פרק_ט[[#This Row],[עמודה2]:[עמודה5]])","v":0},null,null,null,null,null,null,{"$f":"COUNTA(פרק_י[[#This Row],[עמודה2]:[עמודה5]])","v":0},null,null,null,null,null,null,{"$f":"COUNTA(פרק_יא[[#This Row],[עמודה2]:[עמודה5]])","v":0},null,null,null,null,null,null,{"$f":"COUNTA(פרק_יב[[#This Row],[עמודה2]:[עמודה5]])","v":0},null,null,null,null,null,null,{"$f":"COUNTA(פרק_יג[[#This Row],[עמודה2]:[עמודה5]])","v":0},null,null,null,null,null,null,{"$f":"COUNTA(פרק_יד[[#This Row],[עמודה2]:[עמודה5]])","v":0},null,null,null,null,null,null,{"$f":"COUNTA(פרק_טו[[#This Row],[עמודה2]:[עמודה5]])","v":0},null,null,null,null,null,null,{"$f":"COUNTA(פרק_טז[[#This Row],[עמודה2]:[עמודה5]])","v":0},null,null,null,null,null,null,{"$f":"COUNTA(פרק_יז[[#This Row],[עמודה2]:[עמודה5]])","v":0},null,null,null,null,null,null,{"$f":"COUNTA(פרק_יח[[#This Row],[עמודה2]:[עמודה5]])","v":0},null,null,null,null,null,null,{"$f":"COUNTA(פרק_יט[[#This Row],[עמודה2]:[עמודה5]])","v":0},null,null,null,null,null,null,{"$f":"COUNTA(פרק_כ[[#This Row],[עמודה2]:[עמודה5]])","v":0},null,null,null,null,null,null,{"$f":"COUNTA(פרק_כא[[#This Row],[עמודה2]:[עמודה5]])","v":0},null,null,null,null,null,null,{"$f":"COUNTA(פרק_כב[[#This Row],[עמודה2]:[עמודה5]])","v":0},null,null,null,null,null,null,{"$f":"COUNTA(פרק_כג[[#This Row],[עמודה2]:[עמודה5]])","v":0},null,null,null,null,null,null,{"$f":"COUNTA(פרק_כד[[#This Row],[עמודה2]:[עמודה5]])","v":0},null,null,null,null,null,null,null,null,null,null,null,null,null,null,null,null,null,null,null,null,null,null,null,null,null,null,null,null,null,{"$f":"HYPERLINK(\"#bg6\",BG6)","v":0},{"$f":"SUBTOTAL(103,פרק_ט[עמודה1])","v":0},{"$f":"SUBTOTAL(103,פרק_ט[עמודה2])","v":0},{"$f":"SUBTOTAL(103,פרק_ט[עמודה3])","v":0},{"$f":"SUBTOTAL(103,פרק_ט[עמודה4])","v":0},{"$f":"SUBTOTAL(103,פרק_ט[עמודה5])","v":0},{"$f":"SUBTOTAL(109,פרק_ט[עמודה6])","v":0}]
[null,null,"ו:","2021-10-05",null,null,null,{"$f":"COUNTA(פרק_א[[#This Row],[עמודה2]:[עמודה5]])","v":1},null,null,null,null,null,null,{"$f":"COUNTA(פרק_ב[[#This Row],[עמודה2]:[עמודה5]])","v":0},null,null,null,null,null,null,{"$f":"COUNTA(פרק_ג[[#This Row],[עמודה2]:[עמודה5]])","v":0},null,null,null,null,null,null,{"$f":"COUNTA(פרק_ד[[#This Row],[עמודה2]:[עמודה5]])","v":0},null,null,null,null,null,null,{"$f":"COUNTA(פרק_ה[[#This Row],[עמודה2]:[עמודה5]])","v":0},null,null,null,null,null,null,{"$f":"COUNTA(פרק_ו[[#This Row],[עמודה2]:[עמודה5]])","v":0},null,null,null,null,null,null,{"$f":"COUNTA(פרק_ז[[#This Row],[עמודה2]:[עמודה5]])","v":0},null,null,null,null,null,null,{"$f":"COUNTA(פרק_ח[[#This Row],[עמודה2]:[עמודה5]])","v":0},null,null,null,null,null,null,{"$f":"COUNTA(פרק_ט[[#This Row],[עמודה2]:[עמודה5]])","v":0},null,null,null,null,null,null,{"$f":"COUNTA(פרק_י[[#This Row],[עמודה2]:[עמודה5]])","v":0},null,null,null,null,null,null,{"$f":"COUNTA(פרק_יא[[#This Row],[עמודה2]:[עמודה5]])","v":0},null,null,null,null,null,null,{"$f":"COUNTA(פרק_יב[[#This Row],[עמודה2]:[עמודה5]])","v":0},null,null,null,null,null,null,{"$f":"COUNTA(פרק_יג[[#This Row],[עמודה2]:[עמודה5]])","v":0},null,null,null,null,null,null,{"$f":"COUNTA(פרק_יד[[#This Row],[עמודה2]:[עמודה5]])","v":0},null,null,null,null,null,null,{"$f":"COUNTA(פרק_טו[[#This Row],[עמודה2]:[עמודה5]])","v":0},null,null,null,null,null,null,{"$f":"COUNTA(פרק_טז[[#This Row],[עמודה2]:[עמודה5]])","v":0},null,null,null,null,null,null,{"$f":"COUNTA(פרק_יז[[#This Row],[עמודה2]:[עמודה5]])","v":0},null,null,null,null,null,null,{"$f":"COUNTA(פרק_יח[[#This Row],[עמודה2]:[עמודה5]])","v":0},null,null,null,null,null,null,{"$f":"COUNTA(פרק_יט[[#This Row],[עמודה2]:[עמודה5]])","v":0},null,null,null,null,null,null,{"$f":"COUNTA(פרק_כ[[#This Row],[עמודה2]:[עמודה5]])","v":0},null,null,null,null,null,null,{"$f":"COUNTA(פרק_כא[[#This Row],[עמודה2]:[עמודה5]])","v":0},null,null,null,null,null,null,{"$f":"COUNTA(פרק_כב[[#This Row],[עמודה2]:[עמודה5]])","v":0},null,null,null,null,null,null,{"$f":"COUNTA(פרק_כג[[#This Row],[עמודה2]:[עמודה5]])","v":0},null,null,null,null,null,null,{"$f":"COUNTA(פרק_כד[[#This Row],[עמודה2]:[עמודה5]])","v":0},null,null,null,null,null,null,null,null,null,null,null,null,null,null,null,null,null,null,null,null,null,null,null,null,null,null,null,null,null,{"$f":"HYPERLINK(\"#bn6\",BN6)","v":0},{"$f":"SUBTOTAL(103,פרק_י[עמודה1])","v":0},{"$f":"SUBTOTAL(103,פרק_י[עמודה2])","v":0},{"$f":"SUBTOTAL(103,פרק_י[עמודה3])","v":0},{"$f":"SUBTOTAL(103,פרק_י[עמודה4])","v":0},{"$f":"SUBTOTAL(103,פרק_י[עמודה5])","v":0},{"$f":"SUBTOTAL(109,פרק_י[עמודה6])","v":0}]
[null,null,"ז.","2021-10-05",null,null,null,{"$f":"COUNTA(פרק_א[[#This Row],[עמודה2]:[עמודה5]])","v":1},null,null,null,null,null,null,{"$f":"COUNTA(פרק_ב[[#This Row],[עמודה2]:[עמודה5]])","v":0},null,null,null,null,null,null,{"$f":"COUNTA(פרק_ג[[#This Row],[עמודה2]:[עמודה5]])","v":0},null,null,null,null,null,null,{"$f":"COUNTA(פרק_ד[[#This Row],[עמודה2]:[עמודה5]])","v":0},null,null,null,null,null,null,{"$f":"COUNTA(פרק_ה[[#This Row],[עמודה2]:[עמודה5]])","v":0},null,null,null,null,null,null,{"$f":"COUNTA(פרק_ו[[#This Row],[עמודה2]:[עמודה5]])","v":0},null,null,null,null,null,null,{"$f":"COUNTA(פרק_ז[[#This Row],[עמודה2]:[עמודה5]])","v":0},null,null,null,null,null,null,{"$f":"COUNTA(פרק_ח[[#This Row],[עמודה2]:[עמודה5]])","v":0},null,null,null,null,null,null,{"$f":"COUNTA(פרק_ט[[#This Row],[עמודה2]:[עמודה5]])","v":0},null,null,null,null,null,null,{"$f":"COUNTA(פרק_י[[#This Row],[עמודה2]:[עמודה5]])","v":0},null,null,null,null,null,null,{"$f":"COUNTA(פרק_יא[[#This Row],[עמודה2]:[עמודה5]])","v":0},null,null,null,null,null,null,{"$f":"COUNTA(פרק_יב[[#This Row],[עמודה2]:[עמודה5]])","v":0},null,null,null,null,null,null,{"$f":"COUNTA(פרק_יג[[#This Row],[עמודה2]:[עמודה5]])","v":0},null,null,null,null,null,null,{"$f":"COUNTA(פרק_יד[[#This Row],[עמודה2]:[עמודה5]])","v":0},null,null,null,null,null,null,{"$f":"COUNTA(פרק_טו[[#This Row],[עמודה2]:[עמודה5]])","v":0},null,null,null,null,null,null,{"$f":"COUNTA(פרק_טז[[#This Row],[עמודה2]:[עמודה5]])","v":0},null,null,null,null,null,null,{"$f":"COUNTA(פרק_יז[[#This Row],[עמודה2]:[עמודה5]])","v":0},null,null,null,null,null,null,{"$f":"COUNTA(פרק_יח[[#This Row],[עמודה2]:[עמודה5]])","v":0},null,null,null,null,null,null,{"$f":"COUNTA(פרק_יט[[#This Row],[עמודה2]:[עמודה5]])","v":0},null,null,null,null,null,null,{"$f":"COUNTA(פרק_כ[[#This Row],[עמודה2]:[עמודה5]])","v":0},null,null,null,null,null,null,{"$f":"COUNTA(פרק_כא[[#This Row],[עמודה2]:[עמודה5]])","v":0},null,null,null,null,null,null,{"$f":"COUNTA(פרק_כב[[#This Row],[עמודה2]:[עמודה5]])","v":0},null,null,null,null,null,null,{"$f":"COUNTA(פרק_כג[[#This Row],[עמודה2]:[עמודה5]])","v":0},null,null,null,null,null,null,{"$f":"COUNTA(פרק_כד[[#This Row],[עמודה2]:[עמודה5]])","v":0},null,null,null,null,null,null,null,null,null,null,null,null,null,null,null,null,null,null,null,null,null,null,null,null,null,null,null,null,null,{"$f":"HYPERLINK(\"#bu6\",BU6)","v":0},{"$f":"SUBTOTAL(103,פרק_יא[עמודה1])","v":0},{"$f":"SUBTOTAL(103,פרק_יא[עמודה2])","v":0},{"$f":"SUBTOTAL(103,פרק_יא[עמודה3])","v":0},{"$f":"SUBTOTAL(103,פרק_יא[עמודה4])","v":0},{"$f":"SUBTOTAL(103,פרק_יא[עמודה5])","v":0},{"$f":"SUBTOTAL(109,פרק_יא[עמודה6])","v":0}]
[null,null,"ז:","2021-10-05",null,null,null,{"$f":"COUNTA(פרק_א[[#This Row],[עמודה2]:[עמודה5]])","v":1},null,null,null,null,null,null,{"$f":"COUNTA(פרק_ב[[#This Row],[עמודה2]:[עמודה5]])","v":0},null,null,null,null,null,null,{"$f":"COUNTA(פרק_ג[[#This Row],[עמודה2]:[עמודה5]])","v":0},null,null,null,null,null,null,{"$f":"COUNTA(פרק_ד[[#This Row],[עמודה2]:[עמודה5]])","v":0},null,null,null,null,null,null,{"$f":"COUNTA(פרק_ה[[#This Row],[עמודה2]:[עמודה5]])","v":0},null,null,null,null,null,null,{"$f":"COUNTA(פרק_ו[[#This Row],[עמודה2]:[עמודה5]])","v":0},null,null,null,null,null,null,{"$f":"COUNTA(פרק_ז[[#This Row],[עמודה2]:[עמודה5]])","v":0},null,null,null,null,null,null,{"$f":"COUNTA(פרק_ח[[#This Row],[עמודה2]:[עמודה5]])","v":0},null,null,null,null,null,null,{"$f":"COUNTA(פרק_ט[[#This Row],[עמודה2]:[עמודה5]])","v":0},null,null,null,null,null,null,{"$f":"COUNTA(פרק_י[[#This Row],[עמודה2]:[עמודה5]])","v":0},null,null,null,null,null,null,{"$f":"COUNTA(פרק_יא[[#This Row],[עמודה2]:[עמודה5]])","v":0},null,null,null,null,null,null,{"$f":"COUNTA(פרק_יב[[#This Row],[עמודה2]:[עמודה5]])","v":0},null,null,null,null,null,null,{"$f":"COUNTA(פרק_יג[[#This Row],[עמודה2]:[עמודה5]])","v":0},null,null,null,null,null,null,{"$f":"COUNTA(פרק_יד[[#This Row],[עמודה2]:[עמודה5]])","v":0},null,null,null,null,null,null,{"$f":"COUNTA(פרק_טו[[#This Row],[עמודה2]:[עמודה5]])","v":0},null,null,null,null,null,null,{"$f":"COUNTA(פרק_טז[[#This Row],[עמודה2]:[עמודה5]])","v":0},null,null,null,null,null,null,{"$f":"COUNTA(פרק_יז[[#This Row],[עמודה2]:[עמודה5]])","v":0},null,null,null,null,null,null,{"$f":"COUNTA(פרק_יח[[#This Row],[עמודה2]:[עמודה5]])","v":0},null,null,null,null,null,null,{"$f":"COUNTA(פרק_יט[[#This Row],[עמודה2]:[עמודה5]])","v":0},null,null,null,null,null,null,{"$f":"COUNTA(פרק_כ[[#This Row],[עמודה2]:[עמודה5]])","v":0},null,null,null,null,null,null,{"$f":"COUNTA(פרק_כא[[#This Row],[עמודה2]:[עמודה5]])","v":0},null,null,null,null,null,null,{"$f":"COUNTA(פרק_כב[[#This Row],[עמודה2]:[עמודה5]])","v":0},null,null,null,null,null,null,{"$f":"COUNTA(פרק_כג[[#This Row],[עמודה2]:[עמודה5]])","v":0},null,null,null,null,null,null,{"$f":"COUNTA(פרק_כד[[#This Row],[עמודה2]:[עמודה5]])","v":0},null,null,null,null,null,null,null,null,null,null,null,null,null,null,null,null,null,null,null,null,null,null,null,null,null,null,null,null,null,{"$f":"HYPERLINK(\"#cb6\",CB6)","v":0},{"$f":"SUBTOTAL(103,פרק_יב[עמודה1])","v":0},{"$f":"SUBTOTAL(103,פרק_יב[עמודה2])","v":0},{"$f":"SUBTOTAL(103,פרק_יב[עמודה3])","v":0},{"$f":"SUBTOTAL(103,פרק_יב[עמודה4])","v":0},{"$f":"SUBTOTAL(103,פרק_יב[עמודה5])","v":0},{"$f":"SUBTOTAL(109,פרק_יב[עמודה6])","v":0}]
[null,null,"ח.","2021-10-05",null,null,null,{"$f":"COUNTA(פרק_א[[#This Row],[עמודה2]:[עמודה5]])","v":1},null,null,null,null,null,null,{"$f":"COUNTA(פרק_ב[[#This Row],[עמודה2]:[עמודה5]])","v":0},null,null,null,null,null,null,{"$f":"COUNTA(פרק_ג[[#This Row],[עמודה2]:[עמודה5]])","v":0},null,null,null,null,null,null,{"$f":"COUNTA(פרק_ד[[#This Row],[עמודה2]:[עמודה5]])","v":0},null,null,null,null,null,null,{"$f":"COUNTA(פרק_ה[[#This Row],[עמודה2]:[עמודה5]])","v":0},null,null,null,null,null,null,{"$f":"COUNTA(פרק_ו[[#This Row],[עמודה2]:[עמודה5]])","v":0},null,null,null,null,null,null,{"$f":"COUNTA(פרק_ז[[#This Row],[עמודה2]:[עמודה5]])","v":0},null,null,null,null,null,null,{"$f":"COUNTA(פרק_ח[[#This Row],[עמודה2]:[עמודה5]])","v":0},null,null,null,null,null,null,{"$f":"COUNTA(פרק_ט[[#This Row],[עמודה2]:[עמודה5]])","v":0},null,null,null,null,null,null,{"$f":"COUNTA(פרק_י[[#This Row],[עמודה2]:[עמודה5]])","v":0},null,null,null,null,null,null,{"$f":"COUNTA(פרק_יא[[#This Row],[עמודה2]:[עמודה5]])","v":0},null,null,null,null,null,null,{"$f":"COUNTA(פרק_יב[[#This Row],[עמודה2]:[עמודה5]])","v":0},null,null,null,null,null,null,{"$f":"COUNTA(פרק_יג[[#This Row],[עמודה2]:[עמודה5]])","v":0},null,null,null,null,null,null,{"$f":"COUNTA(פרק_יד[[#This Row],[עמודה2]:[עמודה5]])","v":0},null,null,null,null,null,null,{"$f":"COUNTA(פרק_טו[[#This Row],[עמודה2]:[עמודה5]])","v":0},null,null,null,null,null,null,{"$f":"COUNTA(פרק_טז[[#This Row],[עמודה2]:[עמודה5]])","v":0},null,null,null,null,null,null,{"$f":"COUNTA(פרק_יז[[#This Row],[עמודה2]:[עמודה5]])","v":0},null,null,null,null,null,null,{"$f":"COUNTA(פרק_יח[[#This Row],[עמודה2]:[עמודה5]])","v":0},null,null,null,null,null,null,{"$f":"COUNTA(פרק_יט[[#This Row],[עמודה2]:[עמודה5]])","v":0},null,null,null,null,null,null,{"$f":"COUNTA(פרק_כ[[#This Row],[עמודה2]:[עמודה5]])","v":0},null,null,null,null,null,null,{"$f":"COUNTA(פרק_כא[[#This Row],[עמודה2]:[עמודה5]])","v":0},null,null,null,null,null,null,{"$f":"COUNTA(פרק_כב[[#This Row],[עמודה2]:[עמודה5]])","v":0},null,null,null,null,null,null,{"$f":"COUNTA(פרק_כג[[#This Row],[עמודה2]:[עמודה5]])","v":0},null,null,null,null,null,null,{"$f":"COUNTA(פרק_כד[[#This Row],[עמודה2]:[עמודה5]])","v":0},null,null,null,null,null,null,null,null,null,null,null,null,null,null,null,null,null,null,null,null,null,null,null,null,null,null,null,null,null,{"$f":"HYPERLINK(\"#ci6\",CI6)","v":0},{"$f":"SUBTOTAL(103,פרק_יג[עמודה1])","v":0},{"$f":"SUBTOTAL(103,פרק_יג[עמודה2])","v":0},{"$f":"SUBTOTAL(103,פרק_יג[עמודה3])","v":0},{"$f":"SUBTOTAL(103,פרק_יג[עמודה4])","v":0},{"$f":"SUBTOTAL(103,פרק_יג[עמודה5])","v":0},{"$f":"SUBTOTAL(109,פרק_יג[עמודה6])","v":0}]
[{"$f":"\"במהלך החזרות שלך, למדת \"& SUM(טבלה4[[#Totals],[סך כל הלימוד]]) &\" דפים ב\"& A8","v":"במהלך החזרות שלך, למדת 27 דפים במסכת פלונית"},null,"ח:","2021-10-05",null,null,null,{"$f":"COUNTA(פרק_א[[#This Row],[עמודה2]:[עמודה5]])","v":1},null,null,null,null,null,null,{"$f":"COUNTA(פרק_ב[[#This Row],[עמודה2]:[עמודה5]])","v":0},null,null,null,null,null,null,{"$f":"COUNTA(פרק_ג[[#This Row],[עמודה2]:[עמודה5]])","v":0},null,null,null,null,null,null,{"$f":"COUNTA(פרק_ד[[#This Row],[עמודה2]:[עמודה5]])","v":0},null,null,null,null,null,null,{"$f":"COUNTA(פרק_ה[[#This Row],[עמודה2]:[עמודה5]])","v":0},null,null,null,null,null,null,{"$f":"COUNTA(פרק_ו[[#This Row],[עמודה2]:[עמודה5]])","v":0},null,null,null,null,null,null,{"$f":"COUNTA(פרק_ז[[#This Row],[עמודה2]:[עמודה5]])","v":0},null,null,null,null,null,null,{"$f":"COUNTA(פרק_ח[[#This Row],[עמודה2]:[עמודה5]])","v":0},null,null,null,null,null,null,{"$f":"COUNTA(פרק_ט[[#This Row],[עמודה2]:[עמודה5]])","v":0},null,null,null,null,null,null,{"$f":"COUNTA(פרק_י[[#This Row],[עמודה2]:[עמודה5]])","v":0},null,null,null,null,null,null,{"$f":"COUNTA(פרק_יא[[#This Row],[עמודה2]:[עמודה5]])","v":0},null,null,null,null,null,null,{"$f":"COUNTA(פרק_יב[[#This Row],[עמודה2]:[עמודה5]])","v":0},null,null,null,null,null,null,{"$f":"COUNTA(פרק_יג[[#This Row],[עמודה2]:[עמודה5]])","v":0},null,null,null,null,null,null,{"$f":"COUNTA(פרק_יד[[#This Row],[עמודה2]:[עמודה5]])","v":0},null,null,null,null,null,null,{"$f":"COUNTA(פרק_טו[[#This Row],[עמודה2]:[עמודה5]])","v":0},null,null,null,null,null,null,{"$f":"COUNTA(פרק_טז[[#This Row],[עמודה2]:[עמודה5]])","v":0},null,null,null,null,null,null,{"$f":"COUNTA(פרק_יז[[#This Row],[עמודה2]:[עמודה5]])","v":0},null,null,null,null,null,null,{"$f":"COUNTA(פרק_יח[[#This Row],[עמודה2]:[עמודה5]])","v":0},null,null,null,null,null,null,{"$f":"COUNTA(פרק_יט[[#This Row],[עמודה2]:[עמודה5]])","v":0},null,null,null,null,null,null,{"$f":"COUNTA(פרק_כ[[#This Row],[עמודה2]:[עמודה5]])","v":0},null,null,null,null,null,null,{"$f":"COUNTA(פרק_כא[[#This Row],[עמודה2]:[עמודה5]])","v":0},null,null,null,null,null,null,{"$f":"COUNTA(פרק_כב[[#This Row],[עמודה2]:[עמודה5]])","v":0},null,null,null,null,null,null,{"$f":"COUNTA(פרק_כג[[#This Row],[עמודה2]:[עמודה5]])","v":0},null,null,null,null,null,null,{"$f":"COUNTA(פרק_כד[[#This Row],[עמודה2]:[עמודה5]])","v":0},null,null,null,null,null,null,null,null,null,null,null,null,null,null,null,null,null,null,null,null,null,null,null,null,null,null,null,null,null,{"$f":"HYPERLINK(\"#cp6\",CP6)","v":0},{"$f":"SUBTOTAL(103,פרק_יד[עמודה1])","v":0},{"$f":"SUBTOTAL(103,פרק_יד[עמודה2])","v":0},{"$f":"SUBTOTAL(103,פרק_יד[עמודה3])","v":0},{"$f":"SUBTOTAL(103,פרק_יד[עמודה4])","v":0},{"$f":"SUBTOTAL(103,פרק_יד[עמודה5])","v":0},{"$f":"SUBTOTAL(109,פרק_יד[עמודה6])","v":0}]
[null,null,"ט.","2021-10-05",null,null,null,{"$f":"COUNTA(פרק_א[[#This Row],[עמודה2]:[עמודה5]])","v":1},null,null,null,null,null,null,{"$f":"COUNTA(פרק_ב[[#This Row],[עמודה2]:[עמודה5]])","v":0},null,null,null,null,null,null,{"$f":"COUNTA(פרק_ג[[#This Row],[עמודה2]:[עמודה5]])","v":0},null,null,null,null,null,null,{"$f":"COUNTA(פרק_ד[[#This Row],[עמודה2]:[עמודה5]])","v":0},null,null,null,null,null,null,{"$f":"COUNTA(פרק_ה[[#This Row],[עמודה2]:[עמודה5]])","v":0},null,null,null,null,null,null,{"$f":"COUNTA(פרק_ו[[#This Row],[עמודה2]:[עמודה5]])","v":0},null,null,null,null,null,null,{"$f":"COUNTA(פרק_ז[[#This Row],[עמודה2]:[עמודה5]])","v":0},null,null,null,null,null,null,{"$f":"COUNTA(פרק_ח[[#This Row],[עמודה2]:[עמודה5]])","v":0},null,null,null,null,null,null,{"$f":"COUNTA(פרק_ט[[#This Row],[עמודה2]:[עמודה5]])","v":0},null,null,null,null,null,null,{"$f":"COUNTA(פרק_י[[#This Row],[עמודה2]:[עמודה5]])","v":0},null,null,null,null,null,null,{"$f":"COUNTA(פרק_יא[[#This Row],[עמודה2]:[עמודה5]])","v":0},null,null,null,null,null,null,{"$f":"COUNTA(פרק_יב[[#This Row],[עמודה2]:[עמודה5]])","v":0},null,null,null,null,null,null,{"$f":"COUNTA(פרק_יג[[#This Row],[עמודה2]:[עמודה5]])","v":0},null,null,null,null,null,null,{"$f":"COUNTA(פרק_יד[[#This Row],[עמודה2]:[עמודה5]])","v":0},null,null,null,null,null,null,{"$f":"COUNTA(פרק_טו[[#This Row],[עמודה2]:[עמודה5]])","v":0},null,null,null,null,null,null,{"$f":"COUNTA(פרק_טז[[#This Row],[עמודה2]:[עמודה5]])","v":0},null,null,null,null,null,null,{"$f":"COUNTA(פרק_יז[[#This Row],[עמודה2]:[עמודה5]])","v":0},null,null,null,null,null,null,{"$f":"COUNTA(פרק_יח[[#This Row],[עמודה2]:[עמודה5]])","v":0},null,null,null,null,null,null,{"$f":"COUNTA(פרק_יט[[#This Row],[עמודה2]:[עמודה5]])","v":0},null,null,null,null,null,null,{"$f":"COUNTA(פרק_כ[[#This Row],[עמודה2]:[עמודה5]])","v":0},null,null,null,null,null,null,{"$f":"COUNTA(פרק_כא[[#This Row],[עמודה2]:[עמודה5]])","v":0},null,null,null,null,null,null,{"$f":"COUNTA(פרק_כב[[#This Row],[עמודה2]:[עמודה5]])","v":0},null,null,null,null,null,null,{"$f":"COUNTA(פרק_כג[[#This Row],[עמודה2]:[עמודה5]])","v":0},null,null,null,null,null,null,{"$f":"COUNTA(פרק_כד[[#This Row],[עמודה2]:[עמודה5]])","v":0},null,null,null,null,null,null,null,null,null,null,null,null,null,null,null,null,null,null,null,null,null,null,null,null,null,null,null,null,null,{"$f":"HYPERLINK(\"#cw6\",CW6)","v":0},{"$f":"SUBTOTAL(103,פרק_טו[עמודה1])","v":0},{"$f":"SUBTOTAL(103,פרק_טו[עמודה2])","v":0},{"$f":"SUBTOTAL(103,פרק_טו[עמודה3])","v":0},{"$f":"SUBTOTAL(103,פרק_טו[עמודה4])","v":0},{"$f":"SUBTOTAL(103,פרק_טו[עמודה5])","v":0},{"$f":"SUBTOTAL(109,פרק_טו[עמודה6])","v":0}]
[null,null,"ט:","2021-10-05",null,null,null,{"$f":"COUNTA(פרק_א[[#This Row],[עמודה2]:[עמודה5]])","v":1},null,null,null,null,null,null,{"$f":"COUNTA(פרק_ב[[#This Row],[עמודה2]:[עמודה5]])","v":0},null,null,null,null,null,null,{"$f":"COUNTA(פרק_ג[[#This Row],[עמודה2]:[עמודה5]])","v":0},null,null,null,null,null,null,{"$f":"COUNTA(פרק_ד[[#This Row],[עמודה2]:[עמודה5]])","v":0},null,null,null,null,null,null,{"$f":"COUNTA(פרק_ה[[#This Row],[עמודה2]:[עמודה5]])","v":0},null,null,null,null,null,null,{"$f":"COUNTA(פרק_ו[[#This Row],[עמודה2]:[עמודה5]])","v":0},null,null,null,null,null,null,{"$f":"COUNTA(פרק_ז[[#This Row],[עמודה2]:[עמודה5]])","v":0},null,null,null,null,null,null,{"$f":"COUNTA(פרק_ח[[#This Row],[עמודה2]:[עמודה5]])","v":0},null,null,null,null,null,null,{"$f":"COUNTA(פרק_ט[[#This Row],[עמודה2]:[עמודה5]])","v":0},null,null,null,null,null,null,{"$f":"COUNTA(פרק_י[[#This Row],[עמודה2]:[עמודה5]])","v":0},null,null,null,null,null,null,{"$f":"COUNTA(פרק_יא[[#This Row],[עמודה2]:[עמודה5]])","v":0},null,null,null,null,null,null,{"$f":"COUNTA(פרק_יב[[#This Row],[עמודה2]:[עמודה5]])","v":0},null,null,null,null,null,null,{"$f":"COUNTA(פרק_יג[[#This Row],[עמודה2]:[עמודה5]])","v":0},null,null,null,null,null,null,{"$f":"COUNTA(פרק_יד[[#This Row],[עמודה2]:[עמודה5]])","v":0},null,null,null,null,null,null,{"$f":"COUNTA(פרק_טו[[#This Row],[עמודה2]:[עמודה5]])","v":0},null,null,null,null,null,null,{"$f":"COUNTA(פרק_טז[[#This Row],[עמודה2]:[עמודה5]])","v":0},null,null,null,null,null,null,{"$f":"COUNTA(פרק_יז[[#This Row],[עמודה2]:[עמודה5]])","v":0},null,null,null,null,null,null,{"$f":"COUNTA(פרק_יח[[#This Row],[עמודה2]:[עמודה5]])","v":0},null,null,null,null,null,null,{"$f":"COUNTA(פרק_יט[[#This Row],[עמודה2]:[עמודה5]])","v":0},null,null,null,null,null,null,{"$f":"COUNTA(פרק_כ[[#This Row],[עמודה2]:[עמודה5]])","v":0},null,null,null,null,null,null,{"$f":"COUNTA(פרק_כא[[#This Row],[עמודה2]:[עמודה5]])","v":0},null,null,null,null,null,null,{"$f":"COUNTA(פרק_כב[[#This Row],[עמודה2]:[עמודה5]])","v":0},null,null,null,null,null,null,{"$f":"COUNTA(פרק_כג[[#This Row],[עמודה2]:[עמודה5]])","v":0},null,null,null,null,null,null,{"$f":"COUNTA(פרק_כד[[#This Row],[עמודה2]:[עמודה5]])","v":0},null,null,null,null,null,null,null,null,null,null,null,null,null,null,null,null,null,null,null,null,null,null,null,null,null,null,null,null,null,{"$f":"HYPERLINK(\"#dd6\",DD6)","v":0},{"$f":"SUBTOTAL(103,פרק_טז[עמודה1])","v":0},{"$f":"SUBTOTAL(103,פרק_טז[עמודה2])","v":0},{"$f":"SUBTOTAL(103,פרק_טז[עמודה3])","v":0},{"$f":"SUBTOTAL(103,פרק_טז[עמודה4])","v":0},{"$f":"SUBTOTAL(103,פרק_טז[עמודה5])","v":0},{"$f":"SUBTOTAL(109,פרק_טז[עמודה6])","v":0}]
[null,null,"י.",null,null,null,null,{"$f":"COUNTA(פרק_א[[#This Row],[עמודה2]:[עמודה5]])","v":0},null,null,null,null,null,null,{"$f":"COUNTA(פרק_ב[[#This Row],[עמודה2]:[עמודה5]])","v":0},null,null,null,null,null,null,{"$f":"COUNTA(פרק_ג[[#This Row],[עמודה2]:[עמודה5]])","v":0},null,null,null,null,null,null,{"$f":"COUNTA(פרק_ד[[#This Row],[עמודה2]:[עמודה5]])","v":0},null,null,null,null,null,null,{"$f":"COUNTA(פרק_ה[[#This Row],[עמודה2]:[עמודה5]])","v":0},null,null,null,null,null,null,{"$f":"COUNTA(פרק_ו[[#This Row],[עמודה2]:[עמודה5]])","v":0},null,null,null,null,null,null,{"$f":"COUNTA(פרק_ז[[#This Row],[עמודה2]:[עמודה5]])","v":0},null,null,null,null,null,null,{"$f":"COUNTA(פרק_ח[[#This Row],[עמודה2]:[עמודה5]])","v":0},null,null,null,null,null,null,{"$f":"COUNTA(פרק_ט[[#This Row],[עמודה2]:[עמודה5]])","v":0},null,null,null,null,null,null,{"$f":"COUNTA(פרק_י[[#This Row],[עמודה2]:[עמודה5]])","v":0},null,null,null,null,null,null,{"$f":"COUNTA(פרק_יא[[#This Row],[עמודה2]:[עמודה5]])","v":0},null,null,null,null,null,null,{"$f":"COUNTA(פרק_יב[[#This Row],[עמודה2]:[עמודה5]])","v":0},null,null,null,null,null,null,{"$f":"COUNTA(פרק_יג[[#This Row],[עמודה2]:[עמודה5]])","v":0},null,null,null,null,null,null,{"$f":"COUNTA(פרק_יד[[#This Row],[עמודה2]:[עמודה5]])","v":0},null,null,null,null,null,null,{"$f":"COUNTA(פרק_טו[[#This Row],[עמודה2]:[עמודה5]])","v":0},null,null,null,null,null,null,{"$f":"COUNTA(פרק_טז[[#This Row],[עמודה2]:[עמודה5]])","v":0},null,null,null,null,null,null,{"$f":"COUNTA(פרק_יז[[#This Row],[עמודה2]:[עמודה5]])","v":0},null,null,null,null,null,null,{"$f":"COUNTA(פרק_יח[[#This Row],[עמודה2]:[עמודה5]])","v":0},null,null,null,null,null,null,{"$f":"COUNTA(פרק_יט[[#This Row],[עמודה2]:[עמודה5]])","v":0},null,null,null,null,null,null,{"$f":"COUNTA(פרק_כ[[#This Row],[עמודה2]:[עמודה5]])","v":0},null,null,null,null,null,null,{"$f":"COUNTA(פרק_כא[[#This Row],[עמודה2]:[עמודה5]])","v":0},null,null,null,null,null,null,{"$f":"COUNTA(פרק_כב[[#This Row],[עמודה2]:[עמודה5]])","v":0},null,null,null,null,null,null,{"$f":"COUNTA(פרק_כג[[#This Row],[עמודה2]:[עמודה5]])","v":0},null,null,null,null,null,null,{"$f":"COUNTA(פרק_כד[[#This Row],[עמודה2]:[עמודה5]])","v":0},null,null,null,null,null,null,null,null,null,null,null,null,null,null,null,null,null,null,null,null,null,null,null,null,null,null,null,null,null,{"$f":"HYPERLINK(\"#dk6\",DK6)","v":0},{"$f":"SUBTOTAL(103,פרק_יז[עמודה1])","v":0},{"$f":"SUBTOTAL(103,פרק_יז[עמודה2])","v":0},{"$f":"SUBTOTAL(103,פרק_יז[עמודה3])","v":0},{"$f":"SUBTOTAL(103,פרק_יז[עמודה4])","v":0},{"$f":"SUBTOTAL(103,פרק_יז[עמודה5])","v":0},{"$f":"SUBTOTAL(109,פרק_יז[עמודה6])","v":0}]
[null,null,"י:",null,null,null,null,{"$f":"COUNTA(פרק_א[[#This Row],[עמודה2]:[עמודה5]])","v":0},null,null,null,null,null,null,{"$f":"COUNTA(פרק_ב[[#This Row],[עמודה2]:[עמודה5]])","v":0},null,null,null,null,null,null,{"$f":"COUNTA(פרק_ג[[#This Row],[עמודה2]:[עמודה5]])","v":0},null,null,null,null,null,null,{"$f":"COUNTA(פרק_ד[[#This Row],[עמודה2]:[עמודה5]])","v":0},null,null,null,null,null,null,{"$f":"COUNTA(פרק_ה[[#This Row],[עמודה2]:[עמודה5]])","v":0},null,null,null,null,null,null,{"$f":"COUNTA(פרק_ו[[#This Row],[עמודה2]:[עמודה5]])","v":0},null,null,null,null,null,null,{"$f":"COUNTA(פרק_ז[[#This Row],[עמודה2]:[עמודה5]])","v":0},null,null,null,null,null,null,{"$f":"COUNTA(פרק_ח[[#This Row],[עמודה2]:[עמודה5]])","v":0},null,null,null,null,null,null,{"$f":"COUNTA(פרק_ט[[#This Row],[עמודה2]:[עמודה5]])","v":0},null,null,null,null,null,null,{"$f":"COUNTA(פרק_י[[#This Row],[עמודה2]:[עמודה5]])","v":0},null,null,null,null,null,null,{"$f":"COUNTA(פרק_יא[[#This Row],[עמודה2]:[עמודה5]])","v":0},null,null,null,null,null,null,{"$f":"COUNTA(פרק_יב[[#This Row],[עמודה2]:[עמודה5]])","v":0},null,null,null,null,null,null,{"$f":"COUNTA(פרק_יג[[#This Row],[עמודה2]:[עמודה5]])","v":0},null,null,null,null,null,null,{"$f":"COUNTA(פרק_יד[[#This Row],[עמודה2]:[עמודה5]])","v":0},null,null,null,null,null,null,{"$f":"COUNTA(פרק_טו[[#This Row],[עמודה2]:[עמודה5]])","v":0},null,null,null,null,null,null,{"$f":"COUNTA(פרק_טז[[#This Row],[עמודה2]:[עמודה5]])","v":0},null,null,null,null,null,null,{"$f":"COUNTA(פרק_יז[[#This Row],[עמודה2]:[עמודה5]])","v":0},null,null,null,null,null,null,{"$f":"COUNTA(פרק_יח[[#This Row],[עמודה2]:[עמודה5]])","v":0},null,null,null,null,null,null,{"$f":"COUNTA(פרק_יט[[#This Row],[עמודה2]:[עמודה5]])","v":0},null,null,null,null,null,null,{"$f":"COUNTA(פרק_כ[[#This Row],[עמודה2]:[עמודה5]])","v":0},null,null,null,null,null,null,{"$f":"COUNTA(פרק_כא[[#This Row],[עמודה2]:[עמודה5]])","v":0},null,null,null,null,null,null,{"$f":"COUNTA(פרק_כב[[#This Row],[עמודה2]:[עמודה5]])","v":0},null,null,null,null,null,null,{"$f":"COUNTA(פרק_כג[[#This Row],[עמודה2]:[עמודה5]])","v":0},null,null,null,null,null,null,{"$f":"COUNTA(פרק_כד[[#This Row],[עמודה2]:[עמודה5]])","v":0},null,null,null,null,null,null,null,null,null,null,null,null,null,null,null,null,null,null,null,null,null,null,null,null,null,null,null,null,null,{"$f":"HYPERLINK(\"#dr6\",DR6)","v":0},{"$f":"SUBTOTAL(103,פרק_יח[עמודה1])","v":0},{"$f":"SUBTOTAL(103,פרק_יח[עמודה2])","v":0},{"$f":"SUBTOTAL(103,פרק_יח[עמודה3])","v":0},{"$f":"SUBTOTAL(103,פרק_יח[עמודה4])","v":0},{"$f":"SUBTOTAL(103,פרק_יח[עמודה5])","v":0},{"$f":"SUBTOTAL(109,פרק_יח[עמודה6])","v":0}]
[null,null,"יא.",null,null,null,null,{"$f":"COUNTA(פרק_א[[#This Row],[עמודה2]:[עמודה5]])","v":0},null,null,null,null,null,null,{"$f":"COUNTA(פרק_ב[[#This Row],[עמודה2]:[עמודה5]])","v":0},null,null,null,null,null,null,{"$f":"COUNTA(פרק_ג[[#This Row],[עמודה2]:[עמודה5]])","v":0},null,null,null,null,null,null,{"$f":"COUNTA(פרק_ד[[#This Row],[עמודה2]:[עמודה5]])","v":0},null,null,null,null,null,null,{"$f":"COUNTA(פרק_ה[[#This Row],[עמודה2]:[עמודה5]])","v":0},null,null,null,null,null,null,{"$f":"COUNTA(פרק_ו[[#This Row],[עמודה2]:[עמודה5]])","v":0},null,null,null,null,null,null,{"$f":"COUNTA(פרק_ז[[#This Row],[עמודה2]:[עמודה5]])","v":0},null,null,null,null,null,null,{"$f":"COUNTA(פרק_ח[[#This Row],[עמודה2]:[עמודה5]])","v":0},null,null,null,null,null,null,{"$f":"COUNTA(פרק_ט[[#This Row],[עמודה2]:[עמודה5]])","v":0},null,null,null,null,null,null,{"$f":"COUNTA(פרק_י[[#This Row],[עמודה2]:[עמודה5]])","v":0},null,null,null,null,null,null,{"$f":"COUNTA(פרק_יא[[#This Row],[עמודה2]:[עמודה5]])","v":0},null,null,null,null,null,null,{"$f":"COUNTA(פרק_יב[[#This Row],[עמודה2]:[עמודה5]])","v":0},null,null,null,null,null,null,{"$f":"COUNTA(פרק_יג[[#This Row],[עמודה2]:[עמודה5]])","v":0},null,null,null,null,null,null,{"$f":"COUNTA(פרק_יד[[#This Row],[עמודה2]:[עמודה5]])","v":0},null,null,null,null,null,null,{"$f":"COUNTA(פרק_טו[[#This Row],[עמודה2]:[עמודה5]])","v":0},null,null,null,null,null,null,{"$f":"COUNTA(פרק_טז[[#This Row],[עמודה2]:[עמודה5]])","v":0},null,null,null,null,null,null,{"$f":"COUNTA(פרק_יז[[#This Row],[עמודה2]:[עמודה5]])","v":0},null,null,null,null,null,null,{"$f":"COUNTA(פרק_יח[[#This Row],[עמודה2]:[עמודה5]])","v":0},null,null,null,null,null,null,{"$f":"COUNTA(פרק_יט[[#This Row],[עמודה2]:[עמודה5]])","v":0},null,null,null,null,null,null,{"$f":"COUNTA(פרק_כ[[#This Row],[עמודה2]:[עמודה5]])","v":0},null,null,null,null,null,null,{"$f":"COUNTA(פרק_כא[[#This Row],[עמודה2]:[עמודה5]])","v":0},null,null,null,null,null,null,{"$f":"COUNTA(פרק_כב[[#This Row],[עמודה2]:[עמודה5]])","v":0},null,null,null,null,null,null,{"$f":"COUNTA(פרק_כג[[#This Row],[עמודה2]:[עמודה5]])","v":0},null,null,null,null,null,null,{"$f":"COUNTA(פרק_כד[[#This Row],[עמודה2]:[עמודה5]])","v":0},null,null,null,null,null,null,null,null,null,null,null,null,null,null,null,null,null,null,null,null,null,null,null,null,null,null,null,null,null,{"$f":"HYPERLINK(\"#dy6\",DY6)","v":0},{"$f":"SUBTOTAL(103,פרק_יט[עמודה1])","v":0},{"$f":"SUBTOTAL(103,פרק_יט[עמודה2])","v":0},{"$f":"SUBTOTAL(103,פרק_יט[עמודה3])","v":0},{"$f":"SUBTOTAL(103,פרק_יט[עמודה4])","v":0},{"$f":"SUBTOTAL(103,פרק_יט[עמודה5])","v":0},{"$f":"SUBTOTAL(109,פרק_יט[עמודה6])","v":0}]
[null,null,"יא:",null,null,null,null,{"$f":"COUNTA(פרק_א[[#This Row],[עמודה2]:[עמודה5]])","v":0},null,null,null,null,null,null,{"$f":"COUNTA(פרק_ב[[#This Row],[עמודה2]:[עמודה5]])","v":0},null,null,null,null,null,null,{"$f":"COUNTA(פרק_ג[[#This Row],[עמודה2]:[עמודה5]])","v":0},null,null,null,null,null,null,{"$f":"COUNTA(פרק_ד[[#This Row],[עמודה2]:[עמודה5]])","v":0},null,null,null,null,null,null,{"$f":"COUNTA(פרק_ה[[#This Row],[עמודה2]:[עמודה5]])","v":0},null,null,null,null,null,null,{"$f":"COUNTA(פרק_ו[[#This Row],[עמודה2]:[עמודה5]])","v":0},null,null,null,null,null,null,{"$f":"COUNTA(פרק_ז[[#This Row],[עמודה2]:[עמודה5]])","v":0},null,null,null,null,null,null,{"$f":"COUNTA(פרק_ח[[#This Row],[עמודה2]:[עמודה5]])","v":0},null,null,null,null,null,null,{"$f":"COUNTA(פרק_ט[[#This Row],[עמודה2]:[עמודה5]])","v":0},null,null,null,null,null,null,{"$f":"COUNTA(פרק_י[[#This Row],[עמודה2]:[עמודה5]])","v":0},null,null,null,null,null,null,{"$f":"COUNTA(פרק_יא[[#This Row],[עמודה2]:[עמודה5]])","v":0},null,null,null,null,null,null,{"$f":"COUNTA(פרק_יב[[#This Row],[עמודה2]:[עמודה5]])","v":0},null,null,null,null,null,null,{"$f":"COUNTA(פרק_יג[[#This Row],[עמודה2]:[עמודה5]])","v":0},null,null,null,null,null,null,{"$f":"COUNTA(פרק_יד[[#This Row],[עמודה2]:[עמודה5]])","v":0},null,null,null,null,null,null,{"$f":"COUNTA(פרק_טו[[#This Row],[עמודה2]:[עמודה5]])","v":0},null,null,null,null,null,null,{"$f":"COUNTA(פרק_טז[[#This Row],[עמודה2]:[עמודה5]])","v":0},null,null,null,null,null,null,{"$f":"COUNTA(פרק_יז[[#This Row],[עמודה2]:[עמודה5]])","v":0},null,null,null,null,null,null,{"$f":"COUNTA(פרק_יח[[#This Row],[עמודה2]:[עמודה5]])","v":0},null,null,null,null,null,null,{"$f":"COUNTA(פרק_יט[[#This Row],[עמודה2]:[עמודה5]])","v":0},null,null,null,null,null,null,{"$f":"COUNTA(פרק_כ[[#This Row],[עמודה2]:[עמודה5]])","v":0},null,null,null,null,null,null,{"$f":"COUNTA(פרק_כא[[#This Row],[עמודה2]:[עמודה5]])","v":0},null,null,null,null,null,null,{"$f":"COUNTA(פרק_כב[[#This Row],[עמודה2]:[עמודה5]])","v":0},null,null,null,null,null,null,{"$f":"COUNTA(פרק_כג[[#This Row],[עמודה2]:[עמודה5]])","v":0},null,null,null,null,null,null,{"$f":"COUNTA(פרק_כד[[#This Row],[עמודה2]:[עמודה5]])","v":0},null,null,null,null,null,null,null,null,null,null,null,null,null,null,null,null,null,null,null,null,null,null,null,null,null,null,null,null,null,{"$f":"HYPERLINK(\"#ef6\",EF6)","v":0},{"$f":"SUBTOTAL(103,פרק_כ[עמודה1])","v":0},{"$f":"SUBTOTAL(103,פרק_כ[עמודה2])","v":0},{"$f":"SUBTOTAL(103,פרק_כ[עמודה3])","v":0},{"$f":"SUBTOTAL(103,פרק_כ[עמודה4])","v":0},{"$f":"SUBTOTAL(103,פרק_כ[עמודה5])","v":0},{"$f":"SUBTOTAL(109,פרק_כ[עמודה6])","v":0}]
[null,null,"יב.",null,null,null,null,{"$f":"COUNTA(פרק_א[[#This Row],[עמודה2]:[עמודה5]])","v":0},null,null,null,null,null,null,{"$f":"COUNTA(פרק_ב[[#This Row],[עמודה2]:[עמודה5]])","v":0},null,null,null,null,null,null,{"$f":"COUNTA(פרק_ג[[#This Row],[עמודה2]:[עמודה5]])","v":0},null,null,null,null,null,null,{"$f":"COUNTA(פרק_ד[[#This Row],[עמודה2]:[עמודה5]])","v":0},null,null,null,null,null,null,{"$f":"COUNTA(פרק_ה[[#This Row],[עמודה2]:[עמודה5]])","v":0},null,null,null,null,null,null,{"$f":"COUNTA(פרק_ו[[#This Row],[עמודה2]:[עמודה5]])","v":0},null,null,null,null,null,null,{"$f":"COUNTA(פרק_ז[[#This Row],[עמודה2]:[עמודה5]])","v":0},null,null,null,null,null,null,{"$f":"COUNTA(פרק_ח[[#This Row],[עמודה2]:[עמודה5]])","v":0},null,null,null,null,null,null,{"$f":"COUNTA(פרק_ט[[#This Row],[עמודה2]:[עמודה5]])","v":0},null,null,null,null,null,null,{"$f":"COUNTA(פרק_י[[#This Row],[עמודה2]:[עמודה5]])","v":0},null,null,null,null,null,null,{"$f":"COUNTA(פרק_יא[[#This Row],[עמודה2]:[עמודה5]])","v":0},null,null,null,null,null,null,{"$f":"COUNTA(פרק_יב[[#This Row],[עמודה2]:[עמודה5]])","v":0},null,null,null,null,null,null,{"$f":"COUNTA(פרק_יג[[#This Row],[עמודה2]:[עמודה5]])","v":0},null,null,null,null,null,null,{"$f":"COUNTA(פרק_יד[[#This Row],[עמודה2]:[עמודה5]])","v":0},null,null,null,null,null,null,{"$f":"COUNTA(פרק_טו[[#This Row],[עמודה2]:[עמודה5]])","v":0},null,null,null,null,null,null,{"$f":"COUNTA(פרק_טז[[#This Row],[עמודה2]:[עמודה5]])","v":0},null,null,null,null,null,null,{"$f":"COUNTA(פרק_יז[[#This Row],[עמודה2]:[עמודה5]])","v":0},null,null,null,null,null,null,{"$f":"COUNTA(פרק_יח[[#This Row],[עמודה2]:[עמודה5]])","v":0},null,null,null,null,null,null,{"$f":"COUNTA(פרק_יט[[#This Row],[עמודה2]:[עמודה5]])","v":0},null,null,null,null,null,null,{"$f":"COUNTA(פרק_כ[[#This Row],[עמודה2]:[עמודה5]])","v":0},null,null,null,null,null,null,{"$f":"COUNTA(פרק_כא[[#This Row],[עמודה2]:[עמודה5]])","v":0},null,null,null,null,null,null,{"$f":"COUNTA(פרק_כב[[#This Row],[עמודה2]:[עמודה5]])","v":0},null,null,null,null,null,null,{"$f":"COUNTA(פרק_כג[[#This Row],[עמודה2]:[עמודה5]])","v":0},null,null,null,null,null,null,{"$f":"COUNTA(פרק_כד[[#This Row],[עמודה2]:[עמודה5]])","v":0},null,null,null,null,null,null,null,null,null,null,null,null,null,null,null,null,null,null,null,null,null,null,null,null,null,null,null,null,null,{"$f":"HYPERLINK(\"#em6\",EM6)","v":0},{"$f":"SUBTOTAL(103,פרק_כא[עמודה1])","v":0},{"$f":"SUBTOTAL(103,פרק_כא[עמודה2])","v":0},{"$f":"SUBTOTAL(103,פרק_כא[עמודה3])","v":0},{"$f":"SUBTOTAL(103,פרק_כא[עמודה4])","v":0},{"$f":"SUBTOTAL(103,פרק_כא[עמודה5])","v":0},{"$f":"SUBTOTAL(109,פרק_כא[עמודה6])","v":0}]
[null,null,"יב:",null,null,null,null,{"$f":"COUNTA(פרק_א[[#This Row],[עמודה2]:[עמודה5]])","v":0},null,null,null,null,null,null,{"$f":"COUNTA(פרק_ב[[#This Row],[עמודה2]:[עמודה5]])","v":0},null,null,null,null,null,null,{"$f":"COUNTA(פרק_ג[[#This Row],[עמודה2]:[עמודה5]])","v":0},null,null,null,null,null,null,{"$f":"COUNTA(פרק_ד[[#This Row],[עמודה2]:[עמודה5]])","v":0},null,null,null,null,null,null,{"$f":"COUNTA(פרק_ה[[#This Row],[עמודה2]:[עמודה5]])","v":0},null,null,null,null,null,null,{"$f":"COUNTA(פרק_ו[[#This Row],[עמודה2]:[עמודה5]])","v":0},null,null,null,null,null,null,{"$f":"COUNTA(פרק_ז[[#This Row],[עמודה2]:[עמודה5]])","v":0},null,null,null,null,null,null,{"$f":"COUNTA(פרק_ח[[#This Row],[עמודה2]:[עמודה5]])","v":0},null,null,null,null,null,null,{"$f":"COUNTA(פרק_ט[[#This Row],[עמודה2]:[עמודה5]])","v":0},null,null,null,null,null,null,{"$f":"COUNTA(פרק_י[[#This Row],[עמודה2]:[עמודה5]])","v":0},null,null,null,null,null,null,{"$f":"COUNTA(פרק_יא[[#This Row],[עמודה2]:[עמודה5]])","v":0},null,null,null,null,null,null,{"$f":"COUNTA(פרק_יב[[#This Row],[עמודה2]:[עמודה5]])","v":0},null,null,null,null,null,null,{"$f":"COUNTA(פרק_יג[[#This Row],[עמודה2]:[עמודה5]])","v":0},null,null,null,null,null,null,{"$f":"COUNTA(פרק_יד[[#This Row],[עמודה2]:[עמודה5]])","v":0},null,null,null,null,null,null,{"$f":"COUNTA(פרק_טו[[#This Row],[עמודה2]:[עמודה5]])","v":0},null,null,null,null,null,null,{"$f":"COUNTA(פרק_טז[[#This Row],[עמודה2]:[עמודה5]])","v":0},null,null,null,null,null,null,{"$f":"COUNTA(פרק_יז[[#This Row],[עמודה2]:[עמודה5]])","v":0},null,null,null,null,null,null,{"$f":"COUNTA(פרק_יח[[#This Row],[עמודה2]:[עמודה5]])","v":0},null,null,null,null,null,null,{"$f":"COUNTA(פרק_יט[[#This Row],[עמודה2]:[עמודה5]])","v":0},null,null,null,null,null,null,{"$f":"COUNTA(פרק_כ[[#This Row],[עמודה2]:[עמודה5]])","v":0},null,null,null,null,null,null,{"$f":"COUNTA(פרק_כא[[#This Row],[עמודה2]:[עמודה5]])","v":0},null,null,null,null,null,null,{"$f":"COUNTA(פרק_כב[[#This Row],[עמודה2]:[עמודה5]])","v":0},null,null,null,null,null,null,{"$f":"COUNTA(פרק_כג[[#This Row],[עמודה2]:[עמודה5]])","v":0},null,null,null,null,null,null,{"$f":"COUNTA(פרק_כד[[#This Row],[עמודה2]:[עמודה5]])","v":0},null,null,null,null,null,null,null,null,null,null,null,null,null,null,null,null,null,null,null,null,null,null,null,null,null,null,null,null,null,{"$f":"HYPERLINK(\"#et6\",ET6)","v":0},{"$f":"SUBTOTAL(103,פרק_כב[עמודה1])","v":0},{"$f":"SUBTOTAL(103,פרק_כב[עמודה2])","v":0},{"$f":"SUBTOTAL(103,פרק_כב[עמודה3])","v":0},{"$f":"SUBTOTAL(103,פרק_כב[עמודה4])","v":0},{"$f":"SUBTOTAL(103,פרק_כב[עמודה5])","v":0},{"$f":"SUBTOTAL(109,פרק_כב[עמודה6])","v":0}]
[null,null,"יג.",null,null,null,null,{"$f":"COUNTA(פרק_א[[#This Row],[עמודה2]:[עמודה5]])","v":0},null,null,null,null,null,null,{"$f":"COUNTA(פרק_ב[[#This Row],[עמודה2]:[עמודה5]])","v":0},null,null,null,null,null,null,{"$f":"COUNTA(פרק_ג[[#This Row],[עמודה2]:[עמודה5]])","v":0},null,null,null,null,null,null,{"$f":"COUNTA(פרק_ד[[#This Row],[עמודה2]:[עמודה5]])","v":0},null,null,null,null,null,null,{"$f":"COUNTA(פרק_ה[[#This Row],[עמודה2]:[עמודה5]])","v":0},null,null,null,null,null,null,{"$f":"COUNTA(פרק_ו[[#This Row],[עמודה2]:[עמודה5]])","v":0},null,null,null,null,null,null,{"$f":"COUNTA(פרק_ז[[#This Row],[עמודה2]:[עמודה5]])","v":0},null,null,null,null,null,null,{"$f":"COUNTA(פרק_ח[[#This Row],[עמודה2]:[עמודה5]])","v":0},null,null,null,null,null,null,{"$f":"COUNTA(פרק_ט[[#This Row],[עמודה2]:[עמודה5]])","v":0},null,null,null,null,null,null,{"$f":"COUNTA(פרק_י[[#This Row],[עמודה2]:[עמודה5]])","v":0},null,null,null,null,null,null,{"$f":"COUNTA(פרק_יא[[#This Row],[עמודה2]:[עמודה5]])","v":0},null,null,null,null,null,null,{"$f":"COUNTA(פרק_יב[[#This Row],[עמודה2]:[עמודה5]])","v":0},null,null,null,null,null,null,{"$f":"COUNTA(פרק_יג[[#This Row],[עמודה2]:[עמודה5]])","v":0},null,null,null,null,null,null,{"$f":"COUNTA(פרק_יד[[#This Row],[עמודה2]:[עמודה5]])","v":0},null,null,null,null,null,null,{"$f":"COUNTA(פרק_טו[[#This Row],[עמודה2]:[עמודה5]])","v":0},null,null,null,null,null,null,{"$f":"COUNTA(פרק_טז[[#This Row],[עמודה2]:[עמודה5]])","v":0},null,null,null,null,null,null,{"$f":"COUNTA(פרק_יז[[#This Row],[עמודה2]:[עמודה5]])","v":0},null,null,null,null,null,null,{"$f":"COUNTA(פרק_יח[[#This Row],[עמודה2]:[עמודה5]])","v":0},null,null,null,null,null,null,{"$f":"COUNTA(פרק_יט[[#This Row],[עמודה2]:[עמודה5]])","v":0},null,null,null,null,null,null,{"$f":"COUNTA(פרק_כ[[#This Row],[עמודה2]:[עמודה5]])","v":0},null,null,null,null,null,null,{"$f":"COUNTA(פרק_כא[[#This Row],[עמודה2]:[עמודה5]])","v":0},null,null,null,null,null,null,{"$f":"COUNTA(פרק_כב[[#This Row],[עמודה2]:[עמודה5]])","v":0},null,null,null,null,null,null,{"$f":"COUNTA(פרק_כג[[#This Row],[עמודה2]:[עמודה5]])","v":0},null,null,null,null,null,null,{"$f":"COUNTA(פרק_כד[[#This Row],[עמודה2]:[עמודה5]])","v":0},null,null,null,null,null,null,null,null,null,null,null,null,null,null,null,null,null,null,null,null,null,null,null,null,null,null,null,null,null,{"$f":"HYPERLINK(\"#fa6\",FA6)","v":0},{"$f":"SUBTOTAL(103,פרק_כג[עמודה1])","v":0},{"$f":"SUBTOTAL(103,פרק_כג[עמודה2])","v":0},{"$f":"SUBTOTAL(103,פרק_כג[עמודה3])","v":0},{"$f":"SUBTOTAL(103,פרק_כג[עמודה4])","v":0},{"$f":"SUBTOTAL(103,פרק_כג[עמודה5])","v":0},{"$f":"SUBTOTAL(109,פרק_כג[עמודה6])","v":0}]
[null,null,"יג:",null,null,null,null,{"$f":"COUNTA(פרק_א[[#This Row],[עמודה2]:[עמודה5]])","v":0},null,null,null,null,null,null,{"$f":"COUNTA(פרק_ב[[#This Row],[עמודה2]:[עמודה5]])","v":0},null,null,null,null,null,null,{"$f":"COUNTA(פרק_ג[[#This Row],[עמודה2]:[עמודה5]])","v":0},null,null,null,null,null,null,{"$f":"COUNTA(פרק_ד[[#This Row],[עמודה2]:[עמודה5]])","v":0},null,null,null,null,null,null,{"$f":"COUNTA(פרק_ה[[#This Row],[עמודה2]:[עמודה5]])","v":0},null,null,null,null,null,null,{"$f":"COUNTA(פרק_ו[[#This Row],[עמודה2]:[עמודה5]])","v":0},null,null,null,null,null,null,{"$f":"COUNTA(פרק_ז[[#This Row],[עמודה2]:[עמודה5]])","v":0},null,null,null,null,null,null,{"$f":"COUNTA(פרק_ח[[#This Row],[עמודה2]:[עמודה5]])","v":0},null,null,null,null,null,null,{"$f":"COUNTA(פרק_ט[[#This Row],[עמודה2]:[עמודה5]])","v":0},null,null,null,null,null,null,{"$f":"COUNTA(פרק_י[[#This Row],[עמודה2]:[עמודה5]])","v":0},null,null,null,null,null,null,{"$f":"COUNTA(פרק_יא[[#This Row],[עמודה2]:[עמודה5]])","v":0},null,null,null,null,null,null,{"$f":"COUNTA(פרק_יב[[#This Row],[עמודה2]:[עמודה5]])","v":0},null,null,null,null,null,null,{"$f":"COUNTA(פרק_יג[[#This Row],[עמודה2]:[עמודה5]])","v":0},null,null,null,null,null,null,{"$f":"COUNTA(פרק_יד[[#This Row],[עמודה2]:[עמודה5]])","v":0},null,null,null,null,null,null,{"$f":"COUNTA(פרק_טו[[#This Row],[עמודה2]:[עמודה5]])","v":0},null,null,null,null,null,null,{"$f":"COUNTA(פרק_טז[[#This Row],[עמודה2]:[עמודה5]])","v":0},null,null,null,null,null,null,{"$f":"COUNTA(פרק_יז[[#This Row],[עמודה2]:[עמודה5]])","v":0},null,null,null,null,null,null,{"$f":"COUNTA(פרק_יח[[#This Row],[עמודה2]:[עמודה5]])","v":0},null,null,null,null,null,null,{"$f":"COUNTA(פרק_יט[[#This Row],[עמודה2]:[עמודה5]])","v":0},null,null,null,null,null,null,{"$f":"COUNTA(פרק_כ[[#This Row],[עמודה2]:[עמודה5]])","v":0},null,null,null,null,null,null,{"$f":"COUNTA(פרק_כא[[#This Row],[עמודה2]:[עמודה5]])","v":0},null,null,null,null,null,null,{"$f":"COUNTA(פרק_כב[[#This Row],[עמודה2]:[עמודה5]])","v":0},null,null,null,null,null,null,{"$f":"COUNTA(פרק_כג[[#This Row],[עמודה2]:[עמודה5]])","v":0},null,null,null,null,null,null,{"$f":"COUNTA(פרק_כד[[#This Row],[עמודה2]:[עמודה5]])","v":0},null,null,null,null,null,null,null,null,null,null,null,null,null,null,null,null,null,null,null,null,null,null,null,null,null,null,null,null,null,{"$f":"HYPERLINK(\"#fh6\",FH6)","v":0},{"$f":"SUBTOTAL(103,פרק_כד[עמודה1])","v":0},{"$f":"SUBTOTAL(103,פרק_כד[עמודה2])","v":0},{"$f":"SUBTOTAL(103,פרק_כד[עמודה3])","v":0},{"$f":"SUBTOTAL(103,פרק_כד[עמודה4])","v":0},{"$f":"SUBTOTAL(103,פרק_כד[עמודה5])","v":0},{"$f":"SUBTOTAL(109,פרק_כד[עמודה6])","v":0}]
[null,null,"יד.",null,null,null,null,{"$f":"COUNTA(פרק_א[[#This Row],[עמודה2]:[עמודה5]])","v":0},null,null,null,null,null,null,{"$f":"COUNTA(פרק_ב[[#This Row],[עמודה2]:[עמודה5]])","v":0},null,null,null,null,null,null,{"$f":"COUNTA(פרק_ג[[#This Row],[עמודה2]:[עמודה5]])","v":0},null,null,null,null,null,null,{"$f":"COUNTA(פרק_ד[[#This Row],[עמודה2]:[עמודה5]])","v":0},null,null,null,null,null,null,{"$f":"COUNTA(פרק_ה[[#This Row],[עמודה2]:[עמודה5]])","v":0},null,null,null,null,null,null,{"$f":"COUNTA(פרק_ו[[#This Row],[עמודה2]:[עמודה5]])","v":0},null,null,null,null,null,null,{"$f":"COUNTA(פרק_ז[[#This Row],[עמודה2]:[עמודה5]])","v":0},null,null,null,null,null,null,{"$f":"COUNTA(פרק_ח[[#This Row],[עמודה2]:[עמודה5]])","v":0},null,null,null,null,null,null,{"$f":"COUNTA(פרק_ט[[#This Row],[עמודה2]:[עמודה5]])","v":0},null,null,null,null,null,null,{"$f":"COUNTA(פרק_י[[#This Row],[עמודה2]:[עמודה5]])","v":0},null,null,null,null,null,null,{"$f":"COUNTA(פרק_יא[[#This Row],[עמודה2]:[עמודה5]])","v":0},null,null,null,null,null,null,{"$f":"COUNTA(פרק_יב[[#This Row],[עמודה2]:[עמודה5]])","v":0},null,null,null,null,null,null,{"$f":"COUNTA(פרק_יג[[#This Row],[עמודה2]:[עמודה5]])","v":0},null,null,null,null,null,null,{"$f":"COUNTA(פרק_יד[[#This Row],[עמודה2]:[עמודה5]])","v":0},null,null,null,null,null,null,{"$f":"COUNTA(פרק_טו[[#This Row],[עמודה2]:[עמודה5]])","v":0},null,null,null,null,null,null,{"$f":"COUNTA(פרק_טז[[#This Row],[עמודה2]:[עמודה5]])","v":0},null,null,null,null,null,null,{"$f":"COUNTA(פרק_יז[[#This Row],[עמודה2]:[עמודה5]])","v":0},null,null,null,null,null,null,{"$f":"COUNTA(פרק_יח[[#This Row],[עמודה2]:[עמודה5]])","v":0},null,null,null,null,null,null,{"$f":"COUNTA(פרק_יט[[#This Row],[עמודה2]:[עמודה5]])","v":0},null,null,null,null,null,null,{"$f":"COUNTA(פרק_כ[[#This Row],[עמודה2]:[עמודה5]])","v":0},null,null,null,null,null,null,{"$f":"COUNTA(פרק_כא[[#This Row],[עמודה2]:[עמודה5]])","v":0},null,null,null,null,null,null,{"$f":"COUNTA(פרק_כב[[#This Row],[עמודה2]:[עמודה5]])","v":0},null,null,null,null,null,null,{"$f":"COUNTA(פרק_כג[[#This Row],[עמודה2]:[עמודה5]])","v":0},null,null,null,null,null,null,{"$f":"COUNTA(פרק_כד[[#This Row],[עמודה2]:[עמודה5]])","v":0},null,null,null,null,null,null,null,null,null,null,null,null,null,null,null,null,null,null,null,null,null,null,null,null,null,null,null,null,null,{"$f":"SUBTOTAL(103,$GQ$8:$GQ$31)","v":24},{"$f":"SUM(,$GR$8:$GR$31)","v":38},{"$f":"SUM(,$GS$8:$GS$31)","v":16},{"$f":"SUM(,$GT$8:$GT$31)","v":8},{"$f":"SUM($GU$8:$GU$31)","v":3},{"$f":"SUM($GV$8:$GV$31)","v":0},{"$f":"SUM($GW$8:$GW$31)","v":27}]
[null,null,"יד:",null,null,null,null,{"$f":"COUNTA(פרק_א[[#This Row],[עמודה2]:[עמודה5]])","v":0},null,null,null,null,null,null,{"$f":"COUNTA(פרק_ב[[#This Row],[עמודה2]:[עמודה5]])","v":0},null,null,null,null,null,null,{"$f":"COUNTA(פרק_ג[[#This Row],[עמודה2]:[עמודה5]])","v":0},null,null,null,null,null,null,{"$f":"COUNTA(פרק_ד[[#This Row],[עמודה2]:[עמודה5]])","v":0},null,null,null,null,null,null,{"$f":"COUNTA(פרק_ה[[#This Row],[עמודה2]:[עמודה5]])","v":0},null,null,null,null,null,null,{"$f":"COUNTA(פרק_ו[[#This Row],[עמודה2]:[עמודה5]])","v":0},null,null,null,null,null,null,{"$f":"COUNTA(פרק_ז[[#This Row],[עמודה2]:[עמודה5]])","v":0},null,null,null,null,null,null,{"$f":"COUNTA(פרק_ח[[#This Row],[עמודה2]:[עמודה5]])","v":0},null,null,null,null,null,null,{"$f":"COUNTA(פרק_ט[[#This Row],[עמודה2]:[עמודה5]])","v":0},null,null,null,null,null,null,{"$f":"COUNTA(פרק_י[[#This Row],[עמודה2]:[עמודה5]])","v":0},null,null,null,null,null,null,{"$f":"COUNTA(פרק_יא[[#This Row],[עמודה2]:[עמודה5]])","v":0},null,null,null,null,null,null,{"$f":"COUNTA(פרק_יב[[#This Row],[עמודה2]:[עמודה5]])","v":0},null,null,null,null,null,null,{"$f":"COUNTA(פרק_יג[[#This Row],[עמודה2]:[עמודה5]])","v":0},null,null,null,null,null,null,{"$f":"COUNTA(פרק_יד[[#This Row],[עמודה2]:[עמודה5]])","v":0},null,null,null,null,null,null,{"$f":"COUNTA(פרק_טו[[#This Row],[עמודה2]:[עמודה5]])","v":0},null,null,null,null,null,null,{"$f":"COUNTA(פרק_טז[[#This Row],[עמודה2]:[עמודה5]])","v":0},null,null,null,null,null,null,{"$f":"COUNTA(פרק_יז[[#This Row],[עמודה2]:[עמודה5]])","v":0},null,null,null,null,null,null,{"$f":"COUNTA(פרק_יח[[#This Row],[עמודה2]:[עמודה5]])","v":0},null,null,null,null,null,null,{"$f":"COUNTA(פרק_יט[[#This Row],[עמודה2]:[עמודה5]])","v":0},null,null,null,null,null,null,{"$f":"COUNTA(פרק_כ[[#This Row],[עמודה2]:[עמודה5]])","v":0},null,null,null,null,null,null,{"$f":"COUNTA(פרק_כא[[#This Row],[עמודה2]:[עמודה5]])","v":0},null,null,null,null,null,null,{"$f":"COUNTA(פרק_כב[[#This Row],[עמודה2]:[עמודה5]])","v":0},null,null,null,null,null,null,{"$f":"COUNTA(פרק_כג[[#This Row],[עמודה2]:[עמודה5]])","v":0},null,null,null,null,null,null,{"$f":"COUNTA(פרק_כד[[#This Row],[עמודה2]:[עמודה5]])","v":0}]
[null,null,"טו.",null,null,null,null,{"$f":"COUNTA(פרק_א[[#This Row],[עמודה2]:[עמודה5]])","v":0},null,null,null,null,null,null,{"$f":"COUNTA(פרק_ב[[#This Row],[עמודה2]:[עמודה5]])","v":0},null,null,null,null,null,null,{"$f":"COUNTA(פרק_ג[[#This Row],[עמודה2]:[עמודה5]])","v":0},null,null,null,null,null,null,{"$f":"COUNTA(פרק_ד[[#This Row],[עמודה2]:[עמודה5]])","v":0},null,null,null,null,null,null,{"$f":"COUNTA(פרק_ה[[#This Row],[עמודה2]:[עמודה5]])","v":0},null,null,null,null,null,null,{"$f":"COUNTA(פרק_ו[[#This Row],[עמודה2]:[עמודה5]])","v":0},null,null,null,null,null,null,{"$f":"COUNTA(פרק_ז[[#This Row],[עמודה2]:[עמודה5]])","v":0},null,null,null,null,null,null,{"$f":"COUNTA(פרק_ח[[#This Row],[עמודה2]:[עמודה5]])","v":0},null,null,null,null,null,null,{"$f":"COUNTA(פרק_ט[[#This Row],[עמודה2]:[עמודה5]])","v":0},null,null,null,null,null,null,{"$f":"COUNTA(פרק_י[[#This Row],[עמודה2]:[עמודה5]])","v":0},null,null,null,null,null,null,{"$f":"COUNTA(פרק_יא[[#This Row],[עמודה2]:[עמודה5]])","v":0},null,null,null,null,null,null,{"$f":"COUNTA(פרק_יב[[#This Row],[עמודה2]:[עמודה5]])","v":0},null,null,null,null,null,null,{"$f":"COUNTA(פרק_יג[[#This Row],[עמודה2]:[עמודה5]])","v":0},null,null,null,null,null,null,{"$f":"COUNTA(פרק_יד[[#This Row],[עמודה2]:[עמודה5]])","v":0},null,null,null,null,null,null,{"$f":"COUNTA(פרק_טו[[#This Row],[עמודה2]:[עמודה5]])","v":0},null,null,null,null,null,null,{"$f":"COUNTA(פרק_טז[[#This Row],[עמודה2]:[עמודה5]])","v":0},null,null,null,null,null,null,{"$f":"COUNTA(פרק_יז[[#This Row],[עמודה2]:[עמודה5]])","v":0},null,null,null,null,null,null,{"$f":"COUNTA(פרק_יח[[#This Row],[עמודה2]:[עמודה5]])","v":0},null,null,null,null,null,null,{"$f":"COUNTA(פרק_יט[[#This Row],[עמודה2]:[עמודה5]])","v":0},null,null,null,null,null,null,{"$f":"COUNTA(פרק_כ[[#This Row],[עמודה2]:[עמודה5]])","v":0},null,null,null,null,null,null,{"$f":"COUNTA(פרק_כא[[#This Row],[עמודה2]:[עמודה5]])","v":0},null,null,null,null,null,null,{"$f":"COUNTA(פרק_כב[[#This Row],[עמודה2]:[עמודה5]])","v":0},null,null,null,null,null,null,{"$f":"COUNTA(פרק_כג[[#This Row],[עמודה2]:[עמודה5]])","v":0},null,null,null,null,null,null,{"$f":"COUNTA(פרק_כד[[#This Row],[עמודה2]:[עמודה5]])","v":0}]
[null,null,"טו:",null,null,null,null,{"$f":"COUNTA(פרק_א[[#This Row],[עמודה2]:[עמודה5]])","v":0},null,null,null,null,null,null,{"$f":"COUNTA(פרק_ב[[#This Row],[עמודה2]:[עמודה5]])","v":0},null,null,null,null,null,null,{"$f":"COUNTA(פרק_ג[[#This Row],[עמודה2]:[עמודה5]])","v":0},null,null,null,null,null,null,{"$f":"COUNTA(פרק_ד[[#This Row],[עמודה2]:[עמודה5]])","v":0},null,null,null,null,null,null,{"$f":"COUNTA(פרק_ה[[#This Row],[עמודה2]:[עמודה5]])","v":0},null,null,null,null,null,null,{"$f":"COUNTA(פרק_ו[[#This Row],[עמודה2]:[עמודה5]])","v":0},null,null,null,null,null,null,{"$f":"COUNTA(פרק_ז[[#This Row],[עמודה2]:[עמודה5]])","v":0},null,null,null,null,null,null,{"$f":"COUNTA(פרק_ח[[#This Row],[עמודה2]:[עמודה5]])","v":0},null,null,null,null,null,null,{"$f":"COUNTA(פרק_ט[[#This Row],[עמודה2]:[עמודה5]])","v":0},null,null,null,null,null,null,{"$f":"COUNTA(פרק_י[[#This Row],[עמודה2]:[עמודה5]])","v":0},null,null,null,null,null,null,{"$f":"COUNTA(פרק_יא[[#This Row],[עמודה2]:[עמודה5]])","v":0},null,null,null,null,null,null,{"$f":"COUNTA(פרק_יב[[#This Row],[עמודה2]:[עמודה5]])","v":0},null,null,null,null,null,null,{"$f":"COUNTA(פרק_יג[[#This Row],[עמודה2]:[עמודה5]])","v":0},null,null,null,null,null,null,{"$f":"COUNTA(פרק_יד[[#This Row],[עמודה2]:[עמודה5]])","v":0},null,null,null,null,null,null,{"$f":"COUNTA(פרק_טו[[#This Row],[עמודה2]:[עמודה5]])","v":0},null,null,null,null,null,null,{"$f":"COUNTA(פרק_טז[[#This Row],[עמודה2]:[עמודה5]])","v":0},null,null,null,null,null,null,{"$f":"COUNTA(פרק_יז[[#This Row],[עמודה2]:[עמודה5]])","v":0},null,null,null,null,null,null,{"$f":"COUNTA(פרק_יח[[#This Row],[עמודה2]:[עמודה5]])","v":0},null,null,null,null,null,null,{"$f":"COUNTA(פרק_יט[[#This Row],[עמודה2]:[עמודה5]])","v":0},null,null,null,null,null,null,{"$f":"COUNTA(פרק_כ[[#This Row],[עמודה2]:[עמודה5]])","v":0},null,null,null,null,null,null,{"$f":"COUNTA(פרק_כא[[#This Row],[עמודה2]:[עמודה5]])","v":0},null,null,null,null,null,null,{"$f":"COUNTA(פרק_כב[[#This Row],[עמודה2]:[עמודה5]])","v":0},null,null,null,null,null,null,{"$f":"COUNTA(פרק_כג[[#This Row],[עמודה2]:[עמודה5]])","v":0},null,null,null,null,null,null,{"$f":"COUNTA(פרק_כד[[#This Row],[עמודה2]:[עמודה5]])","v":0}]
[null,null,"טז.",null,null,null,null,{"$f":"COUNTA(פרק_א[[#This Row],[עמודה2]:[עמודה5]])","v":0},null,null,null,null,null,null,{"$f":"COUNTA(פרק_ב[[#This Row],[עמודה2]:[עמודה5]])","v":0},null,null,null,null,null,null,{"$f":"COUNTA(פרק_ג[[#This Row],[עמודה2]:[עמודה5]])","v":0},null,null,null,null,null,null,{"$f":"COUNTA(פרק_ד[[#This Row],[עמודה2]:[עמודה5]])","v":0},null,null,null,null,null,null,{"$f":"COUNTA(פרק_ה[[#This Row],[עמודה2]:[עמודה5]])","v":0},null,null,null,null,null,null,{"$f":"COUNTA(פרק_ו[[#This Row],[עמודה2]:[עמודה5]])","v":0},null,null,null,null,null,null,{"$f":"COUNTA(פרק_ז[[#This Row],[עמודה2]:[עמודה5]])","v":0},null,null,null,null,null,null,{"$f":"COUNTA(פרק_ח[[#This Row],[עמודה2]:[עמודה5]])","v":0},null,null,null,null,null,null,{"$f":"COUNTA(פרק_ט[[#This Row],[עמודה2]:[עמודה5]])","v":0},null,null,null,null,null,null,{"$f":"COUNTA(פרק_י[[#This Row],[עמודה2]:[עמודה5]])","v":0},null,null,null,null,null,null,{"$f":"COUNTA(פרק_יא[[#This Row],[עמודה2]:[עמודה5]])","v":0},null,null,null,null,null,null,{"$f":"COUNTA(פרק_יב[[#This Row],[עמודה2]:[עמודה5]])","v":0},null,null,null,null,null,null,{"$f":"COUNTA(פרק_יג[[#This Row],[עמודה2]:[עמודה5]])","v":0},null,null,null,null,null,null,{"$f":"COUNTA(פרק_יד[[#This Row],[עמודה2]:[עמודה5]])","v":0},null,null,null,null,null,null,{"$f":"COUNTA(פרק_טו[[#This Row],[עמודה2]:[עמודה5]])","v":0},null,null,null,null,null,null,{"$f":"COUNTA(פרק_טז[[#This Row],[עמודה2]:[עמודה5]])","v":0},null,null,null,null,null,null,{"$f":"COUNTA(פרק_יז[[#This Row],[עמודה2]:[עמודה5]])","v":0},null,null,null,null,null,null,{"$f":"COUNTA(פרק_יח[[#This Row],[עמודה2]:[עמודה5]])","v":0},null,null,null,null,null,null,{"$f":"COUNTA(פרק_יט[[#This Row],[עמודה2]:[עמודה5]])","v":0},null,null,null,null,null,null,{"$f":"COUNTA(פרק_כ[[#This Row],[עמודה2]:[עמודה5]])","v":0},null,null,null,null,null,null,{"$f":"COUNTA(פרק_כא[[#This Row],[עמודה2]:[עמודה5]])","v":0},null,null,null,null,null,null,{"$f":"COUNTA(פרק_כב[[#This Row],[עמודה2]:[עמודה5]])","v":0},null,null,null,null,null,null,{"$f":"COUNTA(פרק_כג[[#This Row],[עמודה2]:[עמודה5]])","v":0},null,null,null,null,null,null,{"$f":"COUNTA(פרק_כד[[#This Row],[עמודה2]:[עמודה5]])","v":0}]
[null,null,"טז:",null,null,null,null,{"$f":"COUNTA(פרק_א[[#This Row],[עמודה2]:[עמודה5]])","v":0},null,null,null,null,null,null,{"$f":"COUNTA(פרק_ב[[#This Row],[עמודה2]:[עמודה5]])","v":0},null,null,null,null,null,null,{"$f":"COUNTA(פרק_ג[[#This Row],[עמודה2]:[עמודה5]])","v":0},null,null,null,null,null,null,{"$f":"COUNTA(פרק_ד[[#This Row],[עמודה2]:[עמודה5]])","v":0},null,null,null,null,null,null,{"$f":"COUNTA(פרק_ה[[#This Row],[עמודה2]:[עמודה5]])","v":0},null,null,null,null,null,null,{"$f":"COUNTA(פרק_ו[[#This Row],[עמודה2]:[עמודה5]])","v":0},null,null,null,null,null,null,{"$f":"COUNTA(פרק_ז[[#This Row],[עמודה2]:[עמודה5]])","v":0},null,null,null,null,null,null,{"$f":"COUNTA(פרק_ח[[#This Row],[עמודה2]:[עמודה5]])","v":0},null,null,null,null,null,null,{"$f":"COUNTA(פרק_ט[[#This Row],[עמודה2]:[עמודה5]])","v":0},null,null,null,null,null,null,{"$f":"COUNTA(פרק_י[[#This Row],[עמודה2]:[עמודה5]])","v":0},null,null,null,null,null,null,{"$f":"COUNTA(פרק_יא[[#This Row],[עמודה2]:[עמודה5]])","v":0},null,null,null,null,null,null,{"$f":"COUNTA(פרק_יב[[#This Row],[עמודה2]:[עמודה5]])","v":0},null,null,null,null,null,null,{"$f":"COUNTA(פרק_יג[[#This Row],[עמודה2]:[עמודה5]])","v":0},null,null,null,null,null,null,{"$f":"COUNTA(פרק_יד[[#This Row],[עמודה2]:[עמודה5]])","v":0},null,null,null,null,null,null,{"$f":"COUNTA(פרק_טו[[#This Row],[עמודה2]:[עמודה5]])","v":0},null,null,null,null,null,null,{"$f":"COUNTA(פרק_טז[[#This Row],[עמודה2]:[עמודה5]])","v":0},null,null,null,null,null,null,{"$f":"COUNTA(פרק_יז[[#This Row],[עמודה2]:[עמודה5]])","v":0},null,null,null,null,null,null,{"$f":"COUNTA(פרק_יח[[#This Row],[עמודה2]:[עמודה5]])","v":0},null,null,null,null,null,null,{"$f":"COUNTA(פרק_יט[[#This Row],[עמודה2]:[עמודה5]])","v":0},null,null,null,null,null,null,{"$f":"COUNTA(פרק_כ[[#This Row],[עמודה2]:[עמודה5]])","v":0},null,null,null,null,null,null,{"$f":"COUNTA(פרק_כא[[#This Row],[עמודה2]:[עמודה5]])","v":0},null,null,null,null,null,null,{"$f":"COUNTA(פרק_כב[[#This Row],[עמודה2]:[עמודה5]])","v":0},null,null,null,null,null,null,{"$f":"COUNTA(פרק_כג[[#This Row],[עמודה2]:[עמודה5]])","v":0},null,null,null,null,null,null,{"$f":"COUNTA(פרק_כד[[#This Row],[עמודה2]:[עמודה5]])","v":0}]
[null,null,"יז.",null,null,null,null,{"$f":"COUNTA(פרק_א[[#This Row],[עמודה2]:[עמודה5]])","v":0},null,null,null,null,null,null,{"$f":"COUNTA(פרק_ב[[#This Row],[עמודה2]:[עמודה5]])","v":0},null,null,null,null,null,null,{"$f":"COUNTA(פרק_ג[[#This Row],[עמודה2]:[עמודה5]])","v":0},null,null,null,null,null,null,{"$f":"COUNTA(פרק_ד[[#This Row],[עמודה2]:[עמודה5]])","v":0},null,null,null,null,null,null,{"$f":"COUNTA(פרק_ה[[#This Row],[עמודה2]:[עמודה5]])","v":0},null,null,null,null,null,null,{"$f":"COUNTA(פרק_ו[[#This Row],[עמודה2]:[עמודה5]])","v":0},null,null,null,null,null,null,{"$f":"COUNTA(פרק_ז[[#This Row],[עמודה2]:[עמודה5]])","v":0},null,null,null,null,null,null,{"$f":"COUNTA(פרק_ח[[#This Row],[עמודה2]:[עמודה5]])","v":0},null,null,null,null,null,null,{"$f":"COUNTA(פרק_ט[[#This Row],[עמודה2]:[עמודה5]])","v":0},null,null,null,null,null,null,{"$f":"COUNTA(פרק_י[[#This Row],[עמודה2]:[עמודה5]])","v":0},null,null,null,null,null,null,{"$f":"COUNTA(פרק_יא[[#This Row],[עמודה2]:[עמודה5]])","v":0},null,null,null,null,null,null,{"$f":"COUNTA(פרק_יב[[#This Row],[עמודה2]:[עמודה5]])","v":0},null,null,null,null,null,null,{"$f":"COUNTA(פרק_יג[[#This Row],[עמודה2]:[עמודה5]])","v":0},null,null,null,null,null,null,{"$f":"COUNTA(פרק_יד[[#This Row],[עמודה2]:[עמודה5]])","v":0},null,null,null,null,null,null,{"$f":"COUNTA(פרק_טו[[#This Row],[עמודה2]:[עמודה5]])","v":0},null,null,null,null,null,null,{"$f":"COUNTA(פרק_טז[[#This Row],[עמודה2]:[עמודה5]])","v":0},null,null,null,null,null,null,{"$f":"COUNTA(פרק_יז[[#This Row],[עמודה2]:[עמודה5]])","v":0},null,null,null,null,null,null,{"$f":"COUNTA(פרק_יח[[#This Row],[עמודה2]:[עמודה5]])","v":0},null,null,null,null,null,null,{"$f":"COUNTA(פרק_יט[[#This Row],[עמודה2]:[עמודה5]])","v":0},null,null,null,null,null,null,{"$f":"COUNTA(פרק_כ[[#This Row],[עמודה2]:[עמודה5]])","v":0},null,null,null,null,null,null,{"$f":"COUNTA(פרק_כא[[#This Row],[עמודה2]:[עמודה5]])","v":0},null,null,null,null,null,null,{"$f":"COUNTA(פרק_כב[[#This Row],[עמודה2]:[עמודה5]])","v":0},null,null,null,null,null,null,{"$f":"COUNTA(פרק_כג[[#This Row],[עמודה2]:[עמודה5]])","v":0},null,null,null,null,null,null,{"$f":"COUNTA(פרק_כד[[#This Row],[עמודה2]:[עמודה5]])","v":0}]
[null,null,"יז:",null,null,null,null,{"$f":"COUNTA(פרק_א[[#This Row],[עמודה2]:[עמודה5]])","v":0},null,null,null,null,null,null,{"$f":"COUNTA(פרק_ב[[#This Row],[עמודה2]:[עמודה5]])","v":0},null,null,null,null,null,null,{"$f":"COUNTA(פרק_ג[[#This Row],[עמודה2]:[עמודה5]])","v":0},null,null,null,null,null,null,{"$f":"COUNTA(פרק_ד[[#This Row],[עמודה2]:[עמודה5]])","v":0},null,null,null,null,null,null,{"$f":"COUNTA(פרק_ה[[#This Row],[עמודה2]:[עמודה5]])","v":0},null,null,null,null,null,null,{"$f":"COUNTA(פרק_ו[[#This Row],[עמודה2]:[עמודה5]])","v":0},null,null,null,null,null,null,{"$f":"COUNTA(פרק_ז[[#This Row],[עמודה2]:[עמודה5]])","v":0},null,null,null,null,null,null,{"$f":"COUNTA(פרק_ח[[#This Row],[עמודה2]:[עמודה5]])","v":0},null,null,null,null,null,null,{"$f":"COUNTA(פרק_ט[[#This Row],[עמודה2]:[עמודה5]])","v":0},null,null,null,null,null,null,{"$f":"COUNTA(פרק_י[[#This Row],[עמודה2]:[עמודה5]])","v":0},null,null,null,null,null,null,{"$f":"COUNTA(פרק_יא[[#This Row],[עמודה2]:[עמודה5]])","v":0},null,null,null,null,null,null,{"$f":"COUNTA(פרק_יב[[#This Row],[עמודה2]:[עמודה5]])","v":0},null,null,null,null,null,null,{"$f":"COUNTA(פרק_יג[[#This Row],[עמודה2]:[עמודה5]])","v":0},null,null,null,null,null,null,{"$f":"COUNTA(פרק_יד[[#This Row],[עמודה2]:[עמודה5]])","v":0},null,null,null,null,null,null,{"$f":"COUNTA(פרק_טו[[#This Row],[עמודה2]:[עמודה5]])","v":0},null,null,null,null,null,null,{"$f":"COUNTA(פרק_טז[[#This Row],[עמודה2]:[עמודה5]])","v":0},null,null,null,null,null,null,{"$f":"COUNTA(פרק_יז[[#This Row],[עמודה2]:[עמודה5]])","v":0},null,null,null,null,null,null,{"$f":"COUNTA(פרק_יח[[#This Row],[עמודה2]:[עמודה5]])","v":0},null,null,null,null,null,null,{"$f":"COUNTA(פרק_יט[[#This Row],[עמודה2]:[עמודה5]])","v":0},null,null,null,null,null,null,{"$f":"COUNTA(פרק_כ[[#This Row],[עמודה2]:[עמודה5]])","v":0},null,null,null,null,null,null,{"$f":"COUNTA(פרק_כא[[#This Row],[עמודה2]:[עמודה5]])","v":0},null,null,null,null,null,null,{"$f":"COUNTA(פרק_כב[[#This Row],[עמודה2]:[עמודה5]])","v":0},null,null,null,null,null,null,{"$f":"COUNTA(פרק_כג[[#This Row],[עמודה2]:[עמודה5]])","v":0},null,null,null,null,null,null,{"$f":"COUNTA(פרק_כד[[#This Row],[עמודה2]:[עמודה5]])","v":0}]
[null,null,"יח.",null,null,null,null,{"$f":"COUNTA(פרק_א[[#This Row],[עמודה2]:[עמודה5]])","v":0},null,null,null,null,null,null,{"$f":"COUNTA(פרק_ב[[#This Row],[עמודה2]:[עמודה5]])","v":0},null,null,null,null,null,null,{"$f":"COUNTA(פרק_ג[[#This Row],[עמודה2]:[עמודה5]])","v":0},null,null,null,null,null,null,{"$f":"COUNTA(פרק_ד[[#This Row],[עמודה2]:[עמודה5]])","v":0},null,null,null,null,null,null,{"$f":"COUNTA(פרק_ה[[#This Row],[עמודה2]:[עמודה5]])","v":0},null,null,null,null,null,null,{"$f":"COUNTA(פרק_ו[[#This Row],[עמודה2]:[עמודה5]])","v":0},null,null,null,null,null,null,{"$f":"COUNTA(פרק_ז[[#This Row],[עמודה2]:[עמודה5]])","v":0},null,null,null,null,null,null,{"$f":"COUNTA(פרק_ח[[#This Row],[עמודה2]:[עמודה5]])","v":0},null,null,null,null,null,null,{"$f":"COUNTA(פרק_ט[[#This Row],[עמודה2]:[עמודה5]])","v":0},null,null,null,null,null,null,{"$f":"COUNTA(פרק_י[[#This Row],[עמודה2]:[עמודה5]])","v":0},null,null,null,null,null,null,{"$f":"COUNTA(פרק_יא[[#This Row],[עמודה2]:[עמודה5]])","v":0},null,null,null,null,null,null,{"$f":"COUNTA(פרק_יב[[#This Row],[עמודה2]:[עמודה5]])","v":0},null,null,null,null,null,null,{"$f":"COUNTA(פרק_יג[[#This Row],[עמודה2]:[עמודה5]])","v":0},null,null,null,null,null,null,{"$f":"COUNTA(פרק_יד[[#This Row],[עמודה2]:[עמודה5]])","v":0},null,null,null,null,null,null,{"$f":"COUNTA(פרק_טו[[#This Row],[עמודה2]:[עמודה5]])","v":0},null,null,null,null,null,null,{"$f":"COUNTA(פרק_טז[[#This Row],[עמודה2]:[עמודה5]])","v":0},null,null,null,null,null,null,{"$f":"COUNTA(פרק_יז[[#This Row],[עמודה2]:[עמודה5]])","v":0},null,null,null,null,null,null,{"$f":"COUNTA(פרק_יח[[#This Row],[עמודה2]:[עמודה5]])","v":0},null,null,null,null,null,null,{"$f":"COUNTA(פרק_יט[[#This Row],[עמודה2]:[עמודה5]])","v":0},null,null,null,null,null,null,{"$f":"COUNTA(פרק_כ[[#This Row],[עמודה2]:[עמודה5]])","v":0},null,null,null,null,null,null,{"$f":"COUNTA(פרק_כא[[#This Row],[עמודה2]:[עמודה5]])","v":0},null,null,null,null,null,null,{"$f":"COUNTA(פרק_כב[[#This Row],[עמודה2]:[עמודה5]])","v":0},null,null,null,null,null,null,{"$f":"COUNTA(פרק_כג[[#This Row],[עמודה2]:[עמודה5]])","v":0},null,null,null,null,null,null,{"$f":"COUNTA(פרק_כד[[#This Row],[עמודה2]:[עמודה5]])","v":0}]
[null,null,"יח:",null,null,null,null,{"$f":"COUNTA(פרק_א[[#This Row],[עמודה2]:[עמודה5]])","v":0},null,null,null,null,null,null,{"$f":"COUNTA(פרק_ב[[#This Row],[עמודה2]:[עמודה5]])","v":0},null,null,null,null,null,null,{"$f":"COUNTA(פרק_ג[[#This Row],[עמודה2]:[עמודה5]])","v":0},null,null,null,null,null,null,{"$f":"COUNTA(פרק_ד[[#This Row],[עמודה2]:[עמודה5]])","v":0},null,null,null,null,null,null,{"$f":"COUNTA(פרק_ה[[#This Row],[עמודה2]:[עמודה5]])","v":0},null,null,null,null,null,null,{"$f":"COUNTA(פרק_ו[[#This Row],[עמודה2]:[עמודה5]])","v":0},null,null,null,null,null,null,{"$f":"COUNTA(פרק_ז[[#This Row],[עמודה2]:[עמודה5]])","v":0},null,null,null,null,null,null,{"$f":"COUNTA(פרק_ח[[#This Row],[עמודה2]:[עמודה5]])","v":0},null,null,null,null,null,null,{"$f":"COUNTA(פרק_ט[[#This Row],[עמודה2]:[עמודה5]])","v":0},null,null,null,null,null,null,{"$f":"COUNTA(פרק_י[[#This Row],[עמודה2]:[עמודה5]])","v":0},null,null,null,null,null,null,{"$f":"COUNTA(פרק_יא[[#This Row],[עמודה2]:[עמודה5]])","v":0},null,null,null,null,null,null,{"$f":"COUNTA(פרק_יב[[#This Row],[עמודה2]:[עמודה5]])","v":0},null,null,null,null,null,null,{"$f":"COUNTA(פרק_יג[[#This Row],[עמודה2]:[עמודה5]])","v":0},null,null,null,null,null,null,{"$f":"COUNTA(פרק_יד[[#This Row],[עמודה2]:[עמודה5]])","v":0},null,null,null,null,null,null,{"$f":"COUNTA(פרק_טו[[#This Row],[עמודה2]:[עמודה5]])","v":0},null,null,null,null,null,null,{"$f":"COUNTA(פרק_טז[[#This Row],[עמודה2]:[עמודה5]])","v":0},null,null,null,null,null,null,{"$f":"COUNTA(פרק_יז[[#This Row],[עמודה2]:[עמודה5]])","v":0},null,null,null,null,null,null,{"$f":"COUNTA(פרק_יח[[#This Row],[עמודה2]:[עמודה5]])","v":0},null,null,null,null,null,null,{"$f":"COUNTA(פרק_יט[[#This Row],[עמודה2]:[עמודה5]])","v":0},null,null,null,null,null,null,{"$f":"COUNTA(פרק_כ[[#This Row],[עמודה2]:[עמודה5]])","v":0},null,null,null,null,null,null,{"$f":"COUNTA(פרק_כא[[#This Row],[עמודה2]:[עמודה5]])","v":0},null,null,null,null,null,null,{"$f":"COUNTA(פרק_כב[[#This Row],[עמודה2]:[עמודה5]])","v":0},null,null,null,null,null,null,{"$f":"COUNTA(פרק_כג[[#This Row],[עמודה2]:[עמודה5]])","v":0},null,null,null,null,null,null,{"$f":"COUNTA(פרק_כד[[#This Row],[עמודה2]:[עמודה5]])","v":0}]
[null,null,"יט.",null,null,null,null,{"$f":"COUNTA(פרק_א[[#This Row],[עמודה2]:[עמודה5]])","v":0},null,null,null,null,null,null,{"$f":"COUNTA(פרק_ב[[#This Row],[עמודה2]:[עמודה5]])","v":0},null,null,null,null,null,null,{"$f":"COUNTA(פרק_ג[[#This Row],[עמודה2]:[עמודה5]])","v":0},null,null,null,null,null,null,{"$f":"COUNTA(פרק_ד[[#This Row],[עמודה2]:[עמודה5]])","v":0},null,null,null,null,null,null,{"$f":"COUNTA(פרק_ה[[#This Row],[עמודה2]:[עמודה5]])","v":0},null,null,null,null,null,null,{"$f":"COUNTA(פרק_ו[[#This Row],[עמודה2]:[עמודה5]])","v":0},null,null,null,null,null,null,{"$f":"COUNTA(פרק_ז[[#This Row],[עמודה2]:[עמודה5]])","v":0},null,null,null,null,null,null,{"$f":"COUNTA(פרק_ח[[#This Row],[עמודה2]:[עמודה5]])","v":0},null,null,null,null,null,null,{"$f":"COUNTA(פרק_ט[[#This Row],[עמודה2]:[עמודה5]])","v":0},null,null,null,null,null,null,{"$f":"COUNTA(פרק_י[[#This Row],[עמודה2]:[עמודה5]])","v":0},null,null,null,null,null,null,{"$f":"COUNTA(פרק_יא[[#This Row],[עמודה2]:[עמודה5]])","v":0},null,null,null,null,null,null,{"$f":"COUNTA(פרק_יב[[#This Row],[עמודה2]:[עמודה5]])","v":0},null,null,null,null,null,null,{"$f":"COUNTA(פרק_יג[[#This Row],[עמודה2]:[עמודה5]])","v":0},null,null,null,null,null,null,{"$f":"COUNTA(פרק_יד[[#This Row],[עמודה2]:[עמודה5]])","v":0},null,null,null,null,null,null,{"$f":"COUNTA(פרק_טו[[#This Row],[עמודה2]:[עמודה5]])","v":0},null,null,null,null,null,null,{"$f":"COUNTA(פרק_טז[[#This Row],[עמודה2]:[עמודה5]])","v":0},null,null,null,null,null,null,{"$f":"COUNTA(פרק_יז[[#This Row],[עמודה2]:[עמודה5]])","v":0},null,null,null,null,null,null,{"$f":"COUNTA(פרק_יח[[#This Row],[עמודה2]:[עמודה5]])","v":0},null,null,null,null,null,null,{"$f":"COUNTA(פרק_יט[[#This Row],[עמודה2]:[עמודה5]])","v":0},null,null,null,null,null,null,{"$f":"COUNTA(פרק_כ[[#This Row],[עמודה2]:[עמודה5]])","v":0},null,null,null,null,null,null,{"$f":"COUNTA(פרק_כא[[#This Row],[עמודה2]:[עמודה5]])","v":0},null,null,null,null,null,null,{"$f":"COUNTA(פרק_כב[[#This Row],[עמודה2]:[עמודה5]])","v":0},null,null,null,null,null,null,{"$f":"COUNTA(פרק_כג[[#This Row],[עמודה2]:[עמודה5]])","v":0},null,null,null,null,null,null,{"$f":"COUNTA(פרק_כד[[#This Row],[עמודה2]:[עמודה5]])","v":0}]
[null,null,"יט:",null,null,null,null,{"$f":"COUNTA(פרק_א[[#This Row],[עמודה2]:[עמודה5]])","v":0},null,null,null,null,null,null,{"$f":"COUNTA(פרק_ב[[#This Row],[עמודה2]:[עמודה5]])","v":0},null,null,null,null,null,null,{"$f":"COUNTA(פרק_ג[[#This Row],[עמודה2]:[עמודה5]])","v":0},null,null,null,null,null,null,{"$f":"COUNTA(פרק_ד[[#This Row],[עמודה2]:[עמודה5]])","v":0},null,null,null,null,null,null,{"$f":"COUNTA(פרק_ה[[#This Row],[עמודה2]:[עמודה5]])","v":0},null,null,null,null,null,null,{"$f":"COUNTA(פרק_ו[[#This Row],[עמודה2]:[עמודה5]])","v":0},null,null,null,null,null,null,{"$f":"COUNTA(פרק_ז[[#This Row],[עמודה2]:[עמודה5]])","v":0},null,null,null,null,null,null,{"$f":"COUNTA(פרק_ח[[#This Row],[עמודה2]:[עמודה5]])","v":0},null,null,null,null,null,null,{"$f":"COUNTA(פרק_ט[[#This Row],[עמודה2]:[עמודה5]])","v":0},null,null,null,null,null,null,{"$f":"COUNTA(פרק_י[[#This Row],[עמודה2]:[עמודה5]])","v":0},null,null,null,null,null,null,{"$f":"COUNTA(פרק_יא[[#This Row],[עמודה2]:[עמודה5]])","v":0},null,null,null,null,null,null,{"$f":"COUNTA(פרק_יב[[#This Row],[עמודה2]:[עמודה5]])","v":0},null,null,null,null,null,null,{"$f":"COUNTA(פרק_יג[[#This Row],[עמודה2]:[עמודה5]])","v":0},null,null,null,null,null,null,{"$f":"COUNTA(פרק_יד[[#This Row],[עמודה2]:[עמודה5]])","v":0},null,null,null,null,null,null,{"$f":"COUNTA(פרק_טו[[#This Row],[עמודה2]:[עמודה5]])","v":0},null,null,null,null,null,null,{"$f":"COUNTA(פרק_טז[[#This Row],[עמודה2]:[עמודה5]])","v":0},null,null,null,null,null,null,{"$f":"COUNTA(פרק_יז[[#This Row],[עמודה2]:[עמודה5]])","v":0},null,null,null,null,null,null,{"$f":"COUNTA(פרק_יח[[#This Row],[עמודה2]:[עמודה5]])","v":0},null,null,null,null,null,null,{"$f":"COUNTA(פרק_יט[[#This Row],[עמודה2]:[עמודה5]])","v":0},null,null,null,null,null,null,{"$f":"COUNTA(פרק_כ[[#This Row],[עמודה2]:[עמודה5]])","v":0},null,null,null,null,null,null,{"$f":"COUNTA(פרק_כא[[#This Row],[עמודה2]:[עמודה5]])","v":0},null,null,null,null,null,null,{"$f":"COUNTA(פרק_כב[[#This Row],[עמודה2]:[עמודה5]])","v":0},null,null,null,null,null,null,{"$f":"COUNTA(פרק_כג[[#This Row],[עמודה2]:[עמודה5]])","v":0},null,null,null,null,null,null,{"$f":"COUNTA(פרק_כד[[#This Row],[עמודה2]:[עמודה5]])","v":0}]
[null,null,"כ.",null,null,null,null,{"$f":"COUNTA(פרק_א[[#This Row],[עמודה2]:[עמודה5]])","v":0},null,null,null,null,null,null,{"$f":"COUNTA(פרק_ב[[#This Row],[עמודה2]:[עמודה5]])","v":0},null,null,null,null,null,null,{"$f":"COUNTA(פרק_ג[[#This Row],[עמודה2]:[עמודה5]])","v":0},null,null,null,null,null,null,{"$f":"COUNTA(פרק_ד[[#This Row],[עמודה2]:[עמודה5]])","v":0},null,null,null,null,null,null,{"$f":"COUNTA(פרק_ה[[#This Row],[עמודה2]:[עמודה5]])","v":0},null,null,null,null,null,null,{"$f":"COUNTA(פרק_ו[[#This Row],[עמודה2]:[עמודה5]])","v":0},null,null,null,null,null,null,{"$f":"COUNTA(פרק_ז[[#This Row],[עמודה2]:[עמודה5]])","v":0},null,null,null,null,null,null,{"$f":"COUNTA(פרק_ח[[#This Row],[עמודה2]:[עמודה5]])","v":0},null,null,null,null,null,null,{"$f":"COUNTA(פרק_ט[[#This Row],[עמודה2]:[עמודה5]])","v":0},null,null,null,null,null,null,{"$f":"COUNTA(פרק_י[[#This Row],[עמודה2]:[עמודה5]])","v":0},null,null,null,null,null,null,{"$f":"COUNTA(פרק_יא[[#This Row],[עמודה2]:[עמודה5]])","v":0},null,null,null,null,null,null,{"$f":"COUNTA(פרק_יב[[#This Row],[עמודה2]:[עמודה5]])","v":0},null,null,null,null,null,null,{"$f":"COUNTA(פרק_יג[[#This Row],[עמודה2]:[עמודה5]])","v":0},null,null,null,null,null,null,{"$f":"COUNTA(פרק_יד[[#This Row],[עמודה2]:[עמודה5]])","v":0},null,null,null,null,null,null,{"$f":"COUNTA(פרק_טו[[#This Row],[עמודה2]:[עמודה5]])","v":0},null,null,null,null,null,null,{"$f":"COUNTA(פרק_טז[[#This Row],[עמודה2]:[עמודה5]])","v":0},null,null,null,null,null,null,{"$f":"COUNTA(פרק_יז[[#This Row],[עמודה2]:[עמודה5]])","v":0},null,null,null,null,null,null,{"$f":"COUNTA(פרק_יח[[#This Row],[עמודה2]:[עמודה5]])","v":0},null,null,null,null,null,null,{"$f":"COUNTA(פרק_יט[[#This Row],[עמודה2]:[עמודה5]])","v":0},null,null,null,null,null,null,{"$f":"COUNTA(פרק_כ[[#This Row],[עמודה2]:[עמודה5]])","v":0},null,null,null,null,null,null,{"$f":"COUNTA(פרק_כא[[#This Row],[עמודה2]:[עמודה5]])","v":0},null,null,null,null,null,null,{"$f":"COUNTA(פרק_כב[[#This Row],[עמודה2]:[עמודה5]])","v":0},null,null,null,null,null,null,{"$f":"COUNTA(פרק_כג[[#This Row],[עמודה2]:[עמודה5]])","v":0},null,null,null,null,null,null,{"$f":"COUNTA(פרק_כד[[#This Row],[עמודה2]:[עמודה5]])","v":0}]
[null,null,"כ:",null,null,null,null,{"$f":"COUNTA(פרק_א[[#This Row],[עמודה2]:[עמודה5]])","v":0},null,null,null,null,null,null,{"$f":"COUNTA(פרק_ב[[#This Row],[עמודה2]:[עמודה5]])","v":0},null,null,null,null,null,null,{"$f":"COUNTA(פרק_ג[[#This Row],[עמודה2]:[עמודה5]])","v":0},null,null,null,null,null,null,{"$f":"COUNTA(פרק_ד[[#This Row],[עמודה2]:[עמודה5]])","v":0},null,null,null,null,null,null,{"$f":"COUNTA(פרק_ה[[#This Row],[עמודה2]:[עמודה5]])","v":0},null,null,null,null,null,null,{"$f":"COUNTA(פרק_ו[[#This Row],[עמודה2]:[עמודה5]])","v":0},null,null,null,null,null,null,{"$f":"COUNTA(פרק_ז[[#This Row],[עמודה2]:[עמודה5]])","v":0},null,null,null,null,null,null,{"$f":"COUNTA(פרק_ח[[#This Row],[עמודה2]:[עמודה5]])","v":0},null,null,null,null,null,null,{"$f":"COUNTA(פרק_ט[[#This Row],[עמודה2]:[עמודה5]])","v":0},null,null,null,null,null,null,{"$f":"COUNTA(פרק_י[[#This Row],[עמודה2]:[עמודה5]])","v":0},null,null,null,null,null,null,{"$f":"COUNTA(פרק_יא[[#This Row],[עמודה2]:[עמודה5]])","v":0},null,null,null,null,null,null,{"$f":"COUNTA(פרק_יב[[#This Row],[עמודה2]:[עמודה5]])","v":0},null,null,null,null,null,null,{"$f":"COUNTA(פרק_יג[[#This Row],[עמודה2]:[עמודה5]])","v":0},null,null,null,null,null,null,{"$f":"COUNTA(פרק_יד[[#This Row],[עמודה2]:[עמודה5]])","v":0},null,null,null,null,null,null,{"$f":"COUNTA(פרק_טו[[#This Row],[עמודה2]:[עמודה5]])","v":0},null,null,null,null,null,null,{"$f":"COUNTA(פרק_טז[[#This Row],[עמודה2]:[עמודה5]])","v":0},null,null,null,null,null,null,{"$f":"COUNTA(פרק_יז[[#This Row],[עמודה2]:[עמודה5]])","v":0},null,null,null,null,null,null,{"$f":"COUNTA(פרק_יח[[#This Row],[עמודה2]:[עמודה5]])","v":0},null,null,null,null,null,null,{"$f":"COUNTA(פרק_יט[[#This Row],[עמודה2]:[עמודה5]])","v":0},null,null,null,null,null,null,{"$f":"COUNTA(פרק_כ[[#This Row],[עמודה2]:[עמודה5]])","v":0},null,null,null,null,null,null,{"$f":"COUNTA(פרק_כא[[#This Row],[עמודה2]:[עמודה5]])","v":0},null,null,null,null,null,null,{"$f":"COUNTA(פרק_כב[[#This Row],[עמודה2]:[עמודה5]])","v":0},null,null,null,null,null,null,{"$f":"COUNTA(פרק_כג[[#This Row],[עמודה2]:[עמודה5]])","v":0},null,null,null,null,null,null,{"$f":"COUNTA(פרק_כד[[#This Row],[עמודה2]:[עמודה5]])","v":0}]
[null,null,null,null,null,null,null,{"$f":"COUNTA(פרק_א[[#This Row],[עמודה2]:[עמודה5]])","v":0},null,null,null,null,null,null,{"$f":"COUNTA(פרק_ב[[#This Row],[עמודה2]:[עמודה5]])","v":0},null,null,null,null,null,null,{"$f":"COUNTA(פרק_ג[[#This Row],[עמודה2]:[עמודה5]])","v":0},null,null,null,null,null,null,{"$f":"COUNTA(פרק_ד[[#This Row],[עמודה2]:[עמודה5]])","v":0},null,null,null,null,null,null,{"$f":"COUNTA(פרק_ה[[#This Row],[עמודה2]:[עמודה5]])","v":0},null,null,null,null,null,null,{"$f":"COUNTA(פרק_ו[[#This Row],[עמודה2]:[עמודה5]])","v":0},null,null,null,null,null,null,{"$f":"COUNTA(פרק_ז[[#This Row],[עמודה2]:[עמודה5]])","v":0},null,null,null,null,null,null,{"$f":"COUNTA(פרק_ח[[#This Row],[עמודה2]:[עמודה5]])","v":0},null,null,null,null,null,null,{"$f":"COUNTA(פרק_ט[[#This Row],[עמודה2]:[עמודה5]])","v":0},null,null,null,null,null,null,{"$f":"COUNTA(פרק_י[[#This Row],[עמודה2]:[עמודה5]])","v":0},null,null,null,null,null,null,{"$f":"COUNTA(פרק_יא[[#This Row],[עמודה2]:[עמודה5]])","v":0},null,null,null,null,null,null,{"$f":"COUNTA(פרק_יב[[#This Row],[עמודה2]:[עמודה5]])","v":0},null,null,null,null,null,null,{"$f":"COUNTA(פרק_יג[[#This Row],[עמודה2]:[עמודה5]])","v":0},null,null,null,null,null,null,{"$f":"COUNTA(פרק_יד[[#This Row],[עמודה2]:[עמודה5]])","v":0},null,null,null,null,null,null,{"$f":"COUNTA(פרק_טו[[#This Row],[עמודה2]:[עמודה5]])","v":0},null,null,null,null,null,null,{"$f":"COUNTA(פרק_טז[[#This Row],[עמודה2]:[עמודה5]])","v":0},null,null,null,null,null,null,{"$f":"COUNTA(פרק_יז[[#This Row],[עמודה2]:[עמודה5]])","v":0},null,null,null,null,null,null,{"$f":"COUNTA(פרק_יח[[#This Row],[עמודה2]:[עמודה5]])","v":0},null,null,null,null,null,null,{"$f":"COUNTA(פרק_יט[[#This Row],[עמודה2]:[עמודה5]])","v":0},null,null,null,null,null,null,{"$f":"COUNTA(פרק_כ[[#This Row],[עמודה2]:[עמודה5]])","v":0},null,null,null,null,null,null,{"$f":"COUNTA(פרק_כא[[#This Row],[עמודה2]:[עמודה5]])","v":0},null,null,null,null,null,null,{"$f":"COUNTA(פרק_כב[[#This Row],[עמודה2]:[עמודה5]])","v":0},null,null,null,null,null,null,{"$f":"COUNTA(פרק_כג[[#This Row],[עמודה2]:[עמודה5]])","v":0},null,null,null,null,null,null,{"$f":"COUNTA(פרק_כד[[#This Row],[עמודה2]:[עמודה5]])","v":0}]
[null,null,null,null,null,null,null,{"$f":"COUNTA(פרק_א[[#This Row],[עמודה2]:[עמודה5]])","v":0},null,null,null,null,null,null,{"$f":"COUNTA(פרק_ב[[#This Row],[עמודה2]:[עמודה5]])","v":0},null,null,null,null,null,null,{"$f":"COUNTA(פרק_ג[[#This Row],[עמודה2]:[עמודה5]])","v":0},null,null,null,null,null,null,{"$f":"COUNTA(פרק_ד[[#This Row],[עמודה2]:[עמודה5]])","v":0},null,null,null,null,null,null,{"$f":"COUNTA(פרק_ה[[#This Row],[עמודה2]:[עמודה5]])","v":0},null,null,null,null,null,null,{"$f":"COUNTA(פרק_ו[[#This Row],[עמודה2]:[עמודה5]])","v":0},null,null,null,null,null,null,{"$f":"COUNTA(פרק_ז[[#This Row],[עמודה2]:[עמודה5]])","v":0},null,null,null,null,null,null,{"$f":"COUNTA(פרק_ח[[#This Row],[עמודה2]:[עמודה5]])","v":0},null,null,null,null,null,null,{"$f":"COUNTA(פרק_ט[[#This Row],[עמודה2]:[עמודה5]])","v":0},null,null,null,null,null,null,{"$f":"COUNTA(פרק_י[[#This Row],[עמודה2]:[עמודה5]])","v":0},null,null,null,null,null,null,{"$f":"COUNTA(פרק_יא[[#This Row],[עמודה2]:[עמודה5]])","v":0},null,null,null,null,null,null,{"$f":"COUNTA(פרק_יב[[#This Row],[עמודה2]:[עמודה5]])","v":0},null,null,null,null,null,null,{"$f":"COUNTA(פרק_יג[[#This Row],[עמודה2]:[עמודה5]])","v":0},null,null,null,null,null,null,{"$f":"COUNTA(פרק_יד[[#This Row],[עמודה2]:[עמודה5]])","v":0},null,null,null,null,null,null,{"$f":"COUNTA(פרק_טו[[#This Row],[עמודה2]:[עמודה5]])","v":0},null,null,null,null,null,null,{"$f":"COUNTA(פרק_טז[[#This Row],[עמודה2]:[עמודה5]])","v":0},null,null,null,null,null,null,{"$f":"COUNTA(פרק_יז[[#This Row],[עמודה2]:[עמודה5]])","v":0},null,null,null,null,null,null,{"$f":"COUNTA(פרק_יח[[#This Row],[עמודה2]:[עמודה5]])","v":0},null,null,null,null,null,null,{"$f":"COUNTA(פרק_יט[[#This Row],[עמודה2]:[עמודה5]])","v":0},null,null,null,null,null,null,{"$f":"COUNTA(פרק_כ[[#This Row],[עמודה2]:[עמודה5]])","v":0},null,null,null,null,null,null,{"$f":"COUNTA(פרק_כא[[#This Row],[עמודה2]:[עמודה5]])","v":0},null,null,null,null,null,null,{"$f":"COUNTA(פרק_כב[[#This Row],[עמודה2]:[עמודה5]])","v":0},null,null,null,null,null,null,{"$f":"COUNTA(פרק_כג[[#This Row],[עמודה2]:[עמודה5]])","v":0},null,null,null,null,null,null,{"$f":"COUNTA(פרק_כד[[#This Row],[עמודה2]:[עמודה5]])","v":0}]
[null,null,null,null,null,null,null,{"$f":"COUNTA(פרק_א[[#This Row],[עמודה2]:[עמודה5]])","v":0},null,null,null,null,null,null,{"$f":"COUNTA(פרק_ב[[#This Row],[עמודה2]:[עמודה5]])","v":0},null,null,null,null,null,null,{"$f":"COUNTA(פרק_ג[[#This Row],[עמודה2]:[עמודה5]])","v":0},null,null,null,null,null,null,{"$f":"COUNTA(פרק_ד[[#This Row],[עמודה2]:[עמודה5]])","v":0},null,null,null,null,null,null,{"$f":"COUNTA(פרק_ה[[#This Row],[עמודה2]:[עמודה5]])","v":0},null,null,null,null,null,null,{"$f":"COUNTA(פרק_ו[[#This Row],[עמודה2]:[עמודה5]])","v":0},null,null,null,null,null,null,{"$f":"COUNTA(פרק_ז[[#This Row],[עמודה2]:[עמודה5]])","v":0},null,null,null,null,null,null,{"$f":"COUNTA(פרק_ח[[#This Row],[עמודה2]:[עמודה5]])","v":0},null,null,null,null,null,null,{"$f":"COUNTA(פרק_ט[[#This Row],[עמודה2]:[עמודה5]])","v":0},null,null,null,null,null,null,{"$f":"COUNTA(פרק_י[[#This Row],[עמודה2]:[עמודה5]])","v":0},null,null,null,null,null,null,{"$f":"COUNTA(פרק_יא[[#This Row],[עמודה2]:[עמודה5]])","v":0},null,null,null,null,null,null,{"$f":"COUNTA(פרק_יב[[#This Row],[עמודה2]:[עמודה5]])","v":0},null,null,null,null,null,null,{"$f":"COUNTA(פרק_יג[[#This Row],[עמודה2]:[עמודה5]])","v":0},null,null,null,null,null,null,{"$f":"COUNTA(פרק_יד[[#This Row],[עמודה2]:[עמודה5]])","v":0},null,null,null,null,null,null,{"$f":"COUNTA(פרק_טו[[#This Row],[עמודה2]:[עמודה5]])","v":0},null,null,null,null,null,null,{"$f":"COUNTA(פרק_טז[[#This Row],[עמודה2]:[עמודה5]])","v":0},null,null,null,null,null,null,{"$f":"COUNTA(פרק_יז[[#This Row],[עמודה2]:[עמודה5]])","v":0},null,null,null,null,null,null,{"$f":"COUNTA(פרק_יח[[#This Row],[עמודה2]:[עמודה5]])","v":0},null,null,null,null,null,null,{"$f":"COUNTA(פרק_יט[[#This Row],[עמודה2]:[עמודה5]])","v":0},null,null,null,null,null,null,{"$f":"COUNTA(פרק_כ[[#This Row],[עמודה2]:[עמודה5]])","v":0},null,null,null,null,null,null,{"$f":"COUNTA(פרק_כא[[#This Row],[עמודה2]:[עמודה5]])","v":0},null,null,null,null,null,null,{"$f":"COUNTA(פרק_כב[[#This Row],[עמודה2]:[עמודה5]])","v":0},null,null,null,null,null,null,{"$f":"COUNTA(פרק_כג[[#This Row],[עמודה2]:[עמודה5]])","v":0},null,null,null,null,null,null,{"$f":"COUNTA(פרק_כד[[#This Row],[עמודה2]:[עמודה5]])","v":0}]
[null,null,null,null,null,null,null,{"$f":"COUNTA(פרק_א[[#This Row],[עמודה2]:[עמודה5]])","v":0},null,null,null,null,null,null,{"$f":"COUNTA(פרק_ב[[#This Row],[עמודה2]:[עמודה5]])","v":0},null,null,null,null,null,null,{"$f":"COUNTA(פרק_ג[[#This Row],[עמודה2]:[עמודה5]])","v":0},null,null,null,null,null,null,{"$f":"COUNTA(פרק_ד[[#This Row],[עמודה2]:[עמודה5]])","v":0},null,null,null,null,null,null,{"$f":"COUNTA(פרק_ה[[#This Row],[עמודה2]:[עמודה5]])","v":0},null,null,null,null,null,null,{"$f":"COUNTA(פרק_ו[[#This Row],[עמודה2]:[עמודה5]])","v":0},null,null,null,null,null,null,{"$f":"COUNTA(פרק_ז[[#This Row],[עמודה2]:[עמודה5]])","v":0},null,null,null,null,null,null,{"$f":"COUNTA(פרק_ח[[#This Row],[עמודה2]:[עמודה5]])","v":0},null,null,null,null,null,null,{"$f":"COUNTA(פרק_ט[[#This Row],[עמודה2]:[עמודה5]])","v":0},null,null,null,null,null,null,{"$f":"COUNTA(פרק_י[[#This Row],[עמודה2]:[עמודה5]])","v":0},null,null,null,null,null,null,{"$f":"COUNTA(פרק_יא[[#This Row],[עמודה2]:[עמודה5]])","v":0},null,null,null,null,null,null,{"$f":"COUNTA(פרק_יב[[#This Row],[עמודה2]:[עמודה5]])","v":0},null,null,null,null,null,null,{"$f":"COUNTA(פרק_יג[[#This Row],[עמודה2]:[עמודה5]])","v":0},null,null,null,null,null,null,{"$f":"COUNTA(פרק_יד[[#This Row],[עמודה2]:[עמודה5]])","v":0},null,null,null,null,null,null,{"$f":"COUNTA(פרק_טו[[#This Row],[עמודה2]:[עמודה5]])","v":0},null,null,null,null,null,null,{"$f":"COUNTA(פרק_טז[[#This Row],[עמודה2]:[עמודה5]])","v":0},null,null,null,null,null,null,{"$f":"COUNTA(פרק_יז[[#This Row],[עמודה2]:[עמודה5]])","v":0},null,null,null,null,null,null,{"$f":"COUNTA(פרק_יח[[#This Row],[עמודה2]:[עמודה5]])","v":0},null,null,null,null,null,null,{"$f":"COUNTA(פרק_יט[[#This Row],[עמודה2]:[עמודה5]])","v":0},null,null,null,null,null,null,{"$f":"COUNTA(פרק_כ[[#This Row],[עמודה2]:[עמודה5]])","v":0},null,null,null,null,null,null,{"$f":"COUNTA(פרק_כא[[#This Row],[עמודה2]:[עמודה5]])","v":0},null,null,null,null,null,null,{"$f":"COUNTA(פרק_כב[[#This Row],[עמודה2]:[עמודה5]])","v":0},null,null,null,null,null,null,{"$f":"COUNTA(פרק_כג[[#This Row],[עמודה2]:[עמודה5]])","v":0},null,null,null,null,null,null,{"$f":"COUNTA(פרק_כד[[#This Row],[עמודה2]:[עמודה5]])","v":0}]
[null,null,null,null,null,null,null,{"$f":"COUNTA(פרק_א[[#This Row],[עמודה2]:[עמודה5]])","v":0},null,null,null,null,null,null,{"$f":"COUNTA(פרק_ב[[#This Row],[עמודה2]:[עמודה5]])","v":0},null,null,null,null,null,null,{"$f":"COUNTA(פרק_ג[[#This Row],[עמודה2]:[עמודה5]])","v":0},null,null,null,null,null,null,{"$f":"COUNTA(פרק_ד[[#This Row],[עמודה2]:[עמודה5]])","v":0},null,null,null,null,null,null,{"$f":"COUNTA(פרק_ה[[#This Row],[עמודה2]:[עמודה5]])","v":0},null,null,null,null,null,null,{"$f":"COUNTA(פרק_ו[[#This Row],[עמודה2]:[עמודה5]])","v":0},null,null,null,null,null,null,{"$f":"COUNTA(פרק_ז[[#This Row],[עמודה2]:[עמודה5]])","v":0},null,null,null,null,null,null,{"$f":"COUNTA(פרק_ח[[#This Row],[עמודה2]:[עמודה5]])","v":0},null,null,null,null,null,null,{"$f":"COUNTA(פרק_ט[[#This Row],[עמודה2]:[עמודה5]])","v":0},null,null,null,null,null,null,{"$f":"COUNTA(פרק_י[[#This Row],[עמודה2]:[עמודה5]])","v":0},null,null,null,null,null,null,{"$f":"COUNTA(פרק_יא[[#This Row],[עמודה2]:[עמודה5]])","v":0},null,null,null,null,null,null,{"$f":"COUNTA(פרק_יב[[#This Row],[עמודה2]:[עמודה5]])","v":0},null,null,null,null,null,null,{"$f":"COUNTA(פרק_יג[[#This Row],[עמודה2]:[עמודה5]])","v":0},null,null,null,null,null,null,{"$f":"COUNTA(פרק_יד[[#This Row],[עמודה2]:[עמודה5]])","v":0},null,null,null,null,null,null,{"$f":"COUNTA(פרק_טו[[#This Row],[עמודה2]:[עמודה5]])","v":0},null,null,null,null,null,null,{"$f":"COUNTA(פרק_טז[[#This Row],[עמודה2]:[עמודה5]])","v":0},null,null,null,null,null,null,{"$f":"COUNTA(פרק_יז[[#This Row],[עמודה2]:[עמודה5]])","v":0},null,null,null,null,null,null,{"$f":"COUNTA(פרק_יח[[#This Row],[עמודה2]:[עמודה5]])","v":0},null,null,null,null,null,null,{"$f":"COUNTA(פרק_יט[[#This Row],[עמודה2]:[עמודה5]])","v":0},null,null,null,null,null,null,{"$f":"COUNTA(פרק_כ[[#This Row],[עמודה2]:[עמודה5]])","v":0},null,null,null,null,null,null,{"$f":"COUNTA(פרק_כא[[#This Row],[עמודה2]:[עמודה5]])","v":0},null,null,null,null,null,null,{"$f":"COUNTA(פרק_כב[[#This Row],[עמודה2]:[עמודה5]])","v":0},null,null,null,null,null,null,{"$f":"COUNTA(פרק_כג[[#This Row],[עמודה2]:[עמודה5]])","v":0},null,null,null,null,null,null,{"$f":"COUNTA(פרק_כד[[#This Row],[עמודה2]:[עמודה5]])","v":0}]
[null,null,null,null,null,null,null,{"$f":"COUNTA(פרק_א[[#This Row],[עמודה2]:[עמודה5]])","v":0},null,null,null,null,null,null,{"$f":"COUNTA(פרק_ב[[#This Row],[עמודה2]:[עמודה5]])","v":0},null,null,null,null,null,null,{"$f":"COUNTA(פרק_ג[[#This Row],[עמודה2]:[עמודה5]])","v":0},null,null,null,null,null,null,{"$f":"COUNTA(פרק_ד[[#This Row],[עמודה2]:[עמודה5]])","v":0},null,null,null,null,null,null,{"$f":"COUNTA(פרק_ה[[#This Row],[עמודה2]:[עמודה5]])","v":0},null,null,null,null,null,null,{"$f":"COUNTA(פרק_ו[[#This Row],[עמודה2]:[עמודה5]])","v":0},null,null,null,null,null,null,{"$f":"COUNTA(פרק_ז[[#This Row],[עמודה2]:[עמודה5]])","v":0},null,null,null,null,null,null,{"$f":"COUNTA(פרק_ח[[#This Row],[עמודה2]:[עמודה5]])","v":0},null,null,null,null,null,null,{"$f":"COUNTA(פרק_ט[[#This Row],[עמודה2]:[עמודה5]])","v":0},null,null,null,null,null,null,{"$f":"COUNTA(פרק_י[[#This Row],[עמודה2]:[עמודה5]])","v":0},null,null,null,null,null,null,{"$f":"COUNTA(פרק_יא[[#This Row],[עמודה2]:[עמודה5]])","v":0},null,null,null,null,null,null,{"$f":"COUNTA(פרק_יב[[#This Row],[עמודה2]:[עמודה5]])","v":0},null,null,null,null,null,null,{"$f":"COUNTA(פרק_יג[[#This Row],[עמודה2]:[עמודה5]])","v":0},null,null,null,null,null,null,{"$f":"COUNTA(פרק_יד[[#This Row],[עמודה2]:[עמודה5]])","v":0},null,null,null,null,null,null,{"$f":"COUNTA(פרק_טו[[#This Row],[עמודה2]:[עמודה5]])","v":0},null,null,null,null,null,null,{"$f":"COUNTA(פרק_טז[[#This Row],[עמודה2]:[עמודה5]])","v":0},null,null,null,null,null,null,{"$f":"COUNTA(פרק_יז[[#This Row],[עמודה2]:[עמודה5]])","v":0},null,null,null,null,null,null,{"$f":"COUNTA(פרק_יח[[#This Row],[עמודה2]:[עמודה5]])","v":0},null,null,null,null,null,null,{"$f":"COUNTA(פרק_יט[[#This Row],[עמודה2]:[עמודה5]])","v":0},null,null,null,null,null,null,{"$f":"COUNTA(פרק_כ[[#This Row],[עמודה2]:[עמודה5]])","v":0},null,null,null,null,null,null,{"$f":"COUNTA(פרק_כא[[#This Row],[עמודה2]:[עמודה5]])","v":0},null,null,null,null,null,null,{"$f":"COUNTA(פרק_כב[[#This Row],[עמודה2]:[עמודה5]])","v":0},null,null,null,null,null,null,{"$f":"COUNTA(פרק_כג[[#This Row],[עמודה2]:[עמודה5]])","v":0},null,null,null,null,null,null,{"$f":"COUNTA(פרק_כד[[#This Row],[עמודה2]:[עמודה5]])","v":0}]
[null,null,null,null,null,null,null,{"$f":"COUNTA(פרק_א[[#This Row],[עמודה2]:[עמודה5]])","v":0},null,null,null,null,null,null,{"$f":"COUNTA(פרק_ב[[#This Row],[עמודה2]:[עמודה5]])","v":0},null,null,null,null,null,null,{"$f":"COUNTA(פרק_ג[[#This Row],[עמודה2]:[עמודה5]])","v":0},null,null,null,null,null,null,{"$f":"COUNTA(פרק_ד[[#This Row],[עמודה2]:[עמודה5]])","v":0},null,null,null,null,null,null,{"$f":"COUNTA(פרק_ה[[#This Row],[עמודה2]:[עמודה5]])","v":0},null,null,null,null,null,null,{"$f":"COUNTA(פרק_ו[[#This Row],[עמודה2]:[עמודה5]])","v":0},null,null,null,null,null,null,{"$f":"COUNTA(פרק_ז[[#This Row],[עמודה2]:[עמודה5]])","v":0},null,null,null,null,null,null,{"$f":"COUNTA(פרק_ח[[#This Row],[עמודה2]:[עמודה5]])","v":0},null,null,null,null,null,null,{"$f":"COUNTA(פרק_ט[[#This Row],[עמודה2]:[עמודה5]])","v":0},null,null,null,null,null,null,{"$f":"COUNTA(פרק_י[[#This Row],[עמודה2]:[עמודה5]])","v":0},null,null,null,null,null,null,{"$f":"COUNTA(פרק_יא[[#This Row],[עמודה2]:[עמודה5]])","v":0},null,null,null,null,null,null,{"$f":"COUNTA(פרק_יב[[#This Row],[עמודה2]:[עמודה5]])","v":0},null,null,null,null,null,null,{"$f":"COUNTA(פרק_יג[[#This Row],[עמודה2]:[עמודה5]])","v":0},null,null,null,null,null,null,{"$f":"COUNTA(פרק_יד[[#This Row],[עמודה2]:[עמודה5]])","v":0},null,null,null,null,null,null,{"$f":"COUNTA(פרק_טו[[#This Row],[עמודה2]:[עמודה5]])","v":0},null,null,null,null,null,null,{"$f":"COUNTA(פרק_טז[[#This Row],[עמודה2]:[עמודה5]])","v":0},null,null,null,null,null,null,{"$f":"COUNTA(פרק_יז[[#This Row],[עמודה2]:[עמודה5]])","v":0},null,null,null,null,null,null,{"$f":"COUNTA(פרק_יח[[#This Row],[עמודה2]:[עמודה5]])","v":0},null,null,null,null,null,null,{"$f":"COUNTA(פרק_יט[[#This Row],[עמודה2]:[עמודה5]])","v":0},null,null,null,null,null,null,{"$f":"COUNTA(פרק_כ[[#This Row],[עמודה2]:[עמודה5]])","v":0},null,null,null,null,null,null,{"$f":"COUNTA(פרק_כא[[#This Row],[עמודה2]:[עמודה5]])","v":0},null,null,null,null,null,null,{"$f":"COUNTA(פרק_כב[[#This Row],[עמודה2]:[עמודה5]])","v":0},null,null,null,null,null,null,{"$f":"COUNTA(פרק_כג[[#This Row],[עמודה2]:[עמודה5]])","v":0},null,null,null,null,null,null,{"$f":"COUNTA(פרק_כד[[#This Row],[עמודה2]:[עמודה5]])","v":0}]
[null,null,null,null,null,null,null,{"$f":"COUNTA(פרק_א[[#This Row],[עמודה2]:[עמודה5]])","v":0},null,null,null,null,null,null,{"$f":"COUNTA(פרק_ב[[#This Row],[עמודה2]:[עמודה5]])","v":0},null,null,null,null,null,null,{"$f":"COUNTA(פרק_ג[[#This Row],[עמודה2]:[עמודה5]])","v":0},null,null,null,null,null,null,{"$f":"COUNTA(פרק_ד[[#This Row],[עמודה2]:[עמודה5]])","v":0},null,null,null,null,null,null,{"$f":"COUNTA(פרק_ה[[#This Row],[עמודה2]:[עמודה5]])","v":0},null,null,null,null,null,null,{"$f":"COUNTA(פרק_ו[[#This Row],[עמודה2]:[עמודה5]])","v":0},null,null,null,null,null,null,{"$f":"COUNTA(פרק_ז[[#This Row],[עמודה2]:[עמודה5]])","v":0},null,null,null,null,null,null,{"$f":"COUNTA(פרק_ח[[#This Row],[עמודה2]:[עמודה5]])","v":0},null,null,null,null,null,null,{"$f":"COUNTA(פרק_ט[[#This Row],[עמודה2]:[עמודה5]])","v":0},null,null,null,null,null,null,{"$f":"COUNTA(פרק_י[[#This Row],[עמודה2]:[עמודה5]])","v":0},null,null,null,null,null,null,{"$f":"COUNTA(פרק_יא[[#This Row],[עמודה2]:[עמודה5]])","v":0},null,null,null,null,null,null,{"$f":"COUNTA(פרק_יב[[#This Row],[עמודה2]:[עמודה5]])","v":0},null,null,null,null,null,null,{"$f":"COUNTA(פרק_יג[[#This Row],[עמודה2]:[עמודה5]])","v":0},null,null,null,null,null,null,{"$f":"COUNTA(פרק_יד[[#This Row],[עמודה2]:[עמודה5]])","v":0},null,null,null,null,null,null,{"$f":"COUNTA(פרק_טו[[#This Row],[עמודה2]:[עמודה5]])","v":0},null,null,null,null,null,null,{"$f":"COUNTA(פרק_טז[[#This Row],[עמודה2]:[עמודה5]])","v":0},null,null,null,null,null,null,{"$f":"COUNTA(פרק_יז[[#This Row],[עמודה2]:[עמודה5]])","v":0},null,null,null,null,null,null,{"$f":"COUNTA(פרק_יח[[#This Row],[עמודה2]:[עמודה5]])","v":0},null,null,null,null,null,null,{"$f":"COUNTA(פרק_יט[[#This Row],[עמודה2]:[עמודה5]])","v":0},null,null,null,null,null,null,{"$f":"COUNTA(פרק_כ[[#This Row],[עמודה2]:[עמודה5]])","v":0},null,null,null,null,null,null,{"$f":"COUNTA(פרק_כא[[#This Row],[עמודה2]:[עמודה5]])","v":0},null,null,null,null,null,null,{"$f":"COUNTA(פרק_כב[[#This Row],[עמודה2]:[עמודה5]])","v":0},null,null,null,null,null,null,{"$f":"COUNTA(פרק_כג[[#This Row],[עמודה2]:[עמודה5]])","v":0},null,null,null,null,null,null,{"$f":"COUNTA(פרק_כד[[#This Row],[עמודה2]:[עמודה5]])","v":0}]
[null,null,null,null,null,null,null,{"$f":"COUNTA(פרק_א[[#This Row],[עמודה2]:[עמודה5]])","v":0},null,null,null,null,null,null,{"$f":"COUNTA(פרק_ב[[#This Row],[עמודה2]:[עמודה5]])","v":0},null,null,null,null,null,null,{"$f":"COUNTA(פרק_ג[[#This Row],[עמודה2]:[עמודה5]])","v":0},null,null,null,null,null,null,{"$f":"COUNTA(פרק_ד[[#This Row],[עמודה2]:[עמודה5]])","v":0},null,null,null,null,null,null,{"$f":"COUNTA(פרק_ה[[#This Row],[עמודה2]:[עמודה5]])","v":0},null,null,null,null,null,null,{"$f":"COUNTA(פרק_ו[[#This Row],[עמודה2]:[עמודה5]])","v":0},null,null,null,null,null,null,{"$f":"COUNTA(פרק_ז[[#This Row],[עמודה2]:[עמודה5]])","v":0},null,null,null,null,null,null,{"$f":"COUNTA(פרק_ח[[#This Row],[עמודה2]:[עמודה5]])","v":0},null,null,null,null,null,null,{"$f":"COUNTA(פרק_ט[[#This Row],[עמודה2]:[עמודה5]])","v":0},null,null,null,null,null,null,{"$f":"COUNTA(פרק_י[[#This Row],[עמודה2]:[עמודה5]])","v":0},null,null,null,null,null,null,{"$f":"COUNTA(פרק_יא[[#This Row],[עמודה2]:[עמודה5]])","v":0},null,null,null,null,null,null,{"$f":"COUNTA(פרק_יב[[#This Row],[עמודה2]:[עמודה5]])","v":0},null,null,null,null,null,null,{"$f":"COUNTA(פרק_יג[[#This Row],[עמודה2]:[עמודה5]])","v":0},null,null,null,null,null,null,{"$f":"COUNTA(פרק_יד[[#This Row],[עמודה2]:[עמודה5]])","v":0},null,null,null,null,null,null,{"$f":"COUNTA(פרק_טו[[#This Row],[עמודה2]:[עמודה5]])","v":0},null,null,null,null,null,null,{"$f":"COUNTA(פרק_טז[[#This Row],[עמודה2]:[עמודה5]])","v":0},null,null,null,null,null,null,{"$f":"COUNTA(פרק_יז[[#This Row],[עמודה2]:[עמודה5]])","v":0},null,null,null,null,null,null,{"$f":"COUNTA(פרק_יח[[#This Row],[עמודה2]:[עמודה5]])","v":0},null,null,null,null,null,null,{"$f":"COUNTA(פרק_יט[[#This Row],[עמודה2]:[עמודה5]])","v":0},null,null,null,null,null,null,{"$f":"COUNTA(פרק_כ[[#This Row],[עמודה2]:[עמודה5]])","v":0},null,null,null,null,null,null,{"$f":"COUNTA(פרק_כא[[#This Row],[עמודה2]:[עמודה5]])","v":0},null,null,null,null,null,null,{"$f":"COUNTA(פרק_כב[[#This Row],[עמודה2]:[עמודה5]])","v":0},null,null,null,null,null,null,{"$f":"COUNTA(פרק_כג[[#This Row],[עמודה2]:[עמודה5]])","v":0},null,null,null,null,null,null,{"$f":"COUNTA(פרק_כד[[#This Row],[עמודה2]:[עמודה5]])","v":0}]
[null,null,null,null,null,null,null,{"$f":"COUNTA(פרק_א[[#This Row],[עמודה2]:[עמודה5]])","v":0},null,null,null,null,null,null,{"$f":"COUNTA(פרק_ב[[#This Row],[עמודה2]:[עמודה5]])","v":0},null,null,null,null,null,null,{"$f":"COUNTA(פרק_ג[[#This Row],[עמודה2]:[עמודה5]])","v":0},null,null,null,null,null,null,{"$f":"COUNTA(פרק_ד[[#This Row],[עמודה2]:[עמודה5]])","v":0},null,null,null,null,null,null,{"$f":"COUNTA(פרק_ה[[#This Row],[עמודה2]:[עמודה5]])","v":0},null,null,null,null,null,null,{"$f":"COUNTA(פרק_ו[[#This Row],[עמודה2]:[עמודה5]])","v":0},null,null,null,null,null,null,{"$f":"COUNTA(פרק_ז[[#This Row],[עמודה2]:[עמודה5]])","v":0},null,null,null,null,null,null,{"$f":"COUNTA(פרק_ח[[#This Row],[עמודה2]:[עמודה5]])","v":0},null,null,null,null,null,null,{"$f":"COUNTA(פרק_ט[[#This Row],[עמודה2]:[עמודה5]])","v":0},null,null,null,null,null,null,{"$f":"COUNTA(פרק_י[[#This Row],[עמודה2]:[עמודה5]])","v":0},null,null,null,null,null,null,{"$f":"COUNTA(פרק_יא[[#This Row],[עמודה2]:[עמודה5]])","v":0},null,null,null,null,null,null,{"$f":"COUNTA(פרק_יב[[#This Row],[עמודה2]:[עמודה5]])","v":0},null,null,null,null,null,null,{"$f":"COUNTA(פרק_יג[[#This Row],[עמודה2]:[עמודה5]])","v":0},null,null,null,null,null,null,{"$f":"COUNTA(פרק_יד[[#This Row],[עמודה2]:[עמודה5]])","v":0},null,null,null,null,null,null,{"$f":"COUNTA(פרק_טו[[#This Row],[עמודה2]:[עמודה5]])","v":0},null,null,null,null,null,null,{"$f":"COUNTA(פרק_טז[[#This Row],[עמודה2]:[עמודה5]])","v":0},null,null,null,null,null,null,{"$f":"COUNTA(פרק_יז[[#This Row],[עמודה2]:[עמודה5]])","v":0},null,null,null,null,null,null,{"$f":"COUNTA(פרק_יח[[#This Row],[עמודה2]:[עמודה5]])","v":0},null,null,null,null,null,null,{"$f":"COUNTA(פרק_יט[[#This Row],[עמודה2]:[עמודה5]])","v":0},null,null,null,null,null,null,{"$f":"COUNTA(פרק_כ[[#This Row],[עמודה2]:[עמודה5]])","v":0},null,null,null,null,null,null,{"$f":"COUNTA(פרק_כא[[#This Row],[עמודה2]:[עמודה5]])","v":0},null,null,null,null,null,null,{"$f":"COUNTA(פרק_כב[[#This Row],[עמודה2]:[עמודה5]])","v":0},null,null,null,null,null,null,{"$f":"COUNTA(פרק_כג[[#This Row],[עמודה2]:[עמודה5]])","v":0},null,null,null,null,null,null,{"$f":"COUNTA(פרק_כד[[#This Row],[עמודה2]:[עמודה5]])","v":0}]
[null,null,null,null,null,null,null,{"$f":"COUNTA(פרק_א[[#This Row],[עמודה2]:[עמודה5]])","v":0},null,null,null,null,null,null,{"$f":"COUNTA(פרק_ב[[#This Row],[עמודה2]:[עמודה5]])","v":0},null,null,null,null,null,null,{"$f":"COUNTA(פרק_ג[[#This Row],[עמודה2]:[עמודה5]])","v":0},null,null,null,null,null,null,{"$f":"COUNTA(פרק_ד[[#This Row],[עמודה2]:[עמודה5]])","v":0},null,null,null,null,null,null,{"$f":"COUNTA(פרק_ה[[#This Row],[עמודה2]:[עמודה5]])","v":0},null,null,null,null,null,null,{"$f":"COUNTA(פרק_ו[[#This Row],[עמודה2]:[עמודה5]])","v":0},null,null,null,null,null,null,{"$f":"COUNTA(פרק_ז[[#This Row],[עמודה2]:[עמודה5]])","v":0},null,null,null,null,null,null,{"$f":"COUNTA(פרק_ח[[#This Row],[עמודה2]:[עמודה5]])","v":0},null,null,null,null,null,null,{"$f":"COUNTA(פרק_ט[[#This Row],[עמודה2]:[עמודה5]])","v":0},null,null,null,null,null,null,{"$f":"COUNTA(פרק_י[[#This Row],[עמודה2]:[עמודה5]])","v":0},null,null,null,null,null,null,{"$f":"COUNTA(פרק_יא[[#This Row],[עמודה2]:[עמודה5]])","v":0},null,null,null,null,null,null,{"$f":"COUNTA(פרק_יב[[#This Row],[עמודה2]:[עמודה5]])","v":0},null,null,null,null,null,null,{"$f":"COUNTA(פרק_יג[[#This Row],[עמודה2]:[עמודה5]])","v":0},null,null,null,null,null,null,{"$f":"COUNTA(פרק_יד[[#This Row],[עמודה2]:[עמודה5]])","v":0},null,null,null,null,null,null,{"$f":"COUNTA(פרק_טו[[#This Row],[עמודה2]:[עמודה5]])","v":0},null,null,null,null,null,null,{"$f":"COUNTA(פרק_טז[[#This Row],[עמודה2]:[עמודה5]])","v":0},null,null,null,null,null,null,{"$f":"COUNTA(פרק_יז[[#This Row],[עמודה2]:[עמודה5]])","v":0},null,null,null,null,null,null,{"$f":"COUNTA(פרק_יח[[#This Row],[עמודה2]:[עמודה5]])","v":0},null,null,null,null,null,null,{"$f":"COUNTA(פרק_יט[[#This Row],[עמודה2]:[עמודה5]])","v":0},null,null,null,null,null,null,{"$f":"COUNTA(פרק_כ[[#This Row],[עמודה2]:[עמודה5]])","v":0},null,null,null,null,null,null,{"$f":"COUNTA(פרק_כא[[#This Row],[עמודה2]:[עמודה5]])","v":0},null,null,null,null,null,null,{"$f":"COUNTA(פרק_כב[[#This Row],[עמודה2]:[עמודה5]])","v":0},null,null,null,null,null,null,{"$f":"COUNTA(פרק_כג[[#This Row],[עמודה2]:[עמודה5]])","v":0},null,null,null,null,null,null,{"$f":"COUNTA(פרק_כד[[#This Row],[עמודה2]:[עמודה5]])","v":0}]
[null,null,null,null,null,null,null,{"$f":"COUNTA(פרק_א[[#This Row],[עמודה2]:[עמודה5]])","v":0},null,null,null,null,null,null,{"$f":"COUNTA(פרק_ב[[#This Row],[עמודה2]:[עמודה5]])","v":0},null,null,null,null,null,null,{"$f":"COUNTA(פרק_ג[[#This Row],[עמודה2]:[עמודה5]])","v":0},null,null,null,null,null,null,{"$f":"COUNTA(פרק_ד[[#This Row],[עמודה2]:[עמודה5]])","v":0},null,null,null,null,null,null,{"$f":"COUNTA(פרק_ה[[#This Row],[עמודה2]:[עמודה5]])","v":0},null,null,null,null,null,null,{"$f":"COUNTA(פרק_ו[[#This Row],[עמודה2]:[עמודה5]])","v":0},null,null,null,null,null,null,{"$f":"COUNTA(פרק_ז[[#This Row],[עמודה2]:[עמודה5]])","v":0},null,null,null,null,null,null,{"$f":"COUNTA(פרק_ח[[#This Row],[עמודה2]:[עמודה5]])","v":0},null,null,null,null,null,null,{"$f":"COUNTA(פרק_ט[[#This Row],[עמודה2]:[עמודה5]])","v":0},null,null,null,null,null,null,{"$f":"COUNTA(פרק_י[[#This Row],[עמודה2]:[עמודה5]])","v":0},null,null,null,null,null,null,{"$f":"COUNTA(פרק_יא[[#This Row],[עמודה2]:[עמודה5]])","v":0},null,null,null,null,null,null,{"$f":"COUNTA(פרק_יב[[#This Row],[עמודה2]:[עמודה5]])","v":0},null,null,null,null,null,null,{"$f":"COUNTA(פרק_יג[[#This Row],[עמודה2]:[עמודה5]])","v":0},null,null,null,null,null,null,{"$f":"COUNTA(פרק_יד[[#This Row],[עמודה2]:[עמודה5]])","v":0},null,null,null,null,null,null,{"$f":"COUNTA(פרק_טו[[#This Row],[עמודה2]:[עמודה5]])","v":0},null,null,null,null,null,null,{"$f":"COUNTA(פרק_טז[[#This Row],[עמודה2]:[עמודה5]])","v":0},null,null,null,null,null,null,{"$f":"COUNTA(פרק_יז[[#This Row],[עמודה2]:[עמודה5]])","v":0},null,null,null,null,null,null,{"$f":"COUNTA(פרק_יח[[#This Row],[עמודה2]:[עמודה5]])","v":0},null,null,null,null,null,null,{"$f":"COUNTA(פרק_יט[[#This Row],[עמודה2]:[עמודה5]])","v":0},null,null,null,null,null,null,{"$f":"COUNTA(פרק_כ[[#This Row],[עמודה2]:[עמודה5]])","v":0},null,null,null,null,null,null,{"$f":"COUNTA(פרק_כא[[#This Row],[עמודה2]:[עמודה5]])","v":0},null,null,null,null,null,null,{"$f":"COUNTA(פרק_כב[[#This Row],[עמודה2]:[עמודה5]])","v":0},null,null,null,null,null,null,{"$f":"COUNTA(פרק_כג[[#This Row],[עמודה2]:[עמודה5]])","v":0},null,null,null,null,null,null,{"$f":"COUNTA(פרק_כד[[#This Row],[עמודה2]:[עמודה5]])","v":0}]
[null,null,null,null,null,null,null,{"$f":"COUNTA(פרק_א[[#This Row],[עמודה2]:[עמודה5]])","v":0},null,null,null,null,null,null,{"$f":"COUNTA(פרק_ב[[#This Row],[עמודה2]:[עמודה5]])","v":0},null,null,null,null,null,null,{"$f":"COUNTA(פרק_ג[[#This Row],[עמודה2]:[עמודה5]])","v":0},null,null,null,null,null,null,{"$f":"COUNTA(פרק_ד[[#This Row],[עמודה2]:[עמודה5]])","v":0},null,null,null,null,null,null,{"$f":"COUNTA(פרק_ה[[#This Row],[עמודה2]:[עמודה5]])","v":0},null,null,null,null,null,null,{"$f":"COUNTA(פרק_ו[[#This Row],[עמודה2]:[עמודה5]])","v":0},null,null,null,null,null,null,{"$f":"COUNTA(פרק_ז[[#This Row],[עמודה2]:[עמודה5]])","v":0},null,null,null,null,null,null,{"$f":"COUNTA(פרק_ח[[#This Row],[עמודה2]:[עמודה5]])","v":0},null,null,null,null,null,null,{"$f":"COUNTA(פרק_ט[[#This Row],[עמודה2]:[עמודה5]])","v":0},null,null,null,null,null,null,{"$f":"COUNTA(פרק_י[[#This Row],[עמודה2]:[עמודה5]])","v":0},null,null,null,null,null,null,{"$f":"COUNTA(פרק_יא[[#This Row],[עמודה2]:[עמודה5]])","v":0},null,null,null,null,null,null,{"$f":"COUNTA(פרק_יב[[#This Row],[עמודה2]:[עמודה5]])","v":0},null,null,null,null,null,null,{"$f":"COUNTA(פרק_יג[[#This Row],[עמודה2]:[עמודה5]])","v":0},null,null,null,null,null,null,{"$f":"COUNTA(פרק_יד[[#This Row],[עמודה2]:[עמודה5]])","v":0},null,null,null,null,null,null,{"$f":"COUNTA(פרק_טו[[#This Row],[עמודה2]:[עמודה5]])","v":0},null,null,null,null,null,null,{"$f":"COUNTA(פרק_טז[[#This Row],[עמודה2]:[עמודה5]])","v":0},null,null,null,null,null,null,{"$f":"COUNTA(פרק_יז[[#This Row],[עמודה2]:[עמודה5]])","v":0},null,null,null,null,null,null,{"$f":"COUNTA(פרק_יח[[#This Row],[עמודה2]:[עמודה5]])","v":0},null,null,null,null,null,null,{"$f":"COUNTA(פרק_יט[[#This Row],[עמודה2]:[עמודה5]])","v":0},null,null,null,null,null,null,{"$f":"COUNTA(פרק_כ[[#This Row],[עמודה2]:[עמודה5]])","v":0},null,null,null,null,null,null,{"$f":"COUNTA(פרק_כא[[#This Row],[עמודה2]:[עמודה5]])","v":0},null,null,null,null,null,null,{"$f":"COUNTA(פרק_כב[[#This Row],[עמודה2]:[עמודה5]])","v":0},null,null,null,null,null,null,{"$f":"COUNTA(פרק_כג[[#This Row],[עמודה2]:[עמודה5]])","v":0},null,null,null,null,null,null,{"$f":"COUNTA(פרק_כד[[#This Row],[עמודה2]:[עמודה5]])","v":0}]
[null,null,null,null,null,null,null,{"$f":"COUNTA(פרק_א[[#This Row],[עמודה2]:[עמודה5]])","v":0},null,null,null,null,null,null,{"$f":"COUNTA(פרק_ב[[#This Row],[עמודה2]:[עמודה5]])","v":0},null,null,null,null,null,null,{"$f":"COUNTA(פרק_ג[[#This Row],[עמודה2]:[עמודה5]])","v":0},null,null,null,null,null,null,{"$f":"COUNTA(פרק_ד[[#This Row],[עמודה2]:[עמודה5]])","v":0},null,null,null,null,null,null,{"$f":"COUNTA(פרק_ה[[#This Row],[עמודה2]:[עמודה5]])","v":0},null,null,null,null,null,null,{"$f":"COUNTA(פרק_ו[[#This Row],[עמודה2]:[עמודה5]])","v":0},null,null,null,null,null,null,{"$f":"COUNTA(פרק_ז[[#This Row],[עמודה2]:[עמודה5]])","v":0},null,null,null,null,null,null,{"$f":"COUNTA(פרק_ח[[#This Row],[עמודה2]:[עמודה5]])","v":0},null,null,null,null,null,null,{"$f":"COUNTA(פרק_ט[[#This Row],[עמודה2]:[עמודה5]])","v":0},null,null,null,null,null,null,{"$f":"COUNTA(פרק_י[[#This Row],[עמודה2]:[עמודה5]])","v":0},null,null,null,null,null,null,{"$f":"COUNTA(פרק_יא[[#This Row],[עמודה2]:[עמודה5]])","v":0},null,null,null,null,null,null,{"$f":"COUNTA(פרק_יב[[#This Row],[עמודה2]:[עמודה5]])","v":0},null,null,null,null,null,null,{"$f":"COUNTA(פרק_יג[[#This Row],[עמודה2]:[עמודה5]])","v":0},null,null,null,null,null,null,{"$f":"COUNTA(פרק_יד[[#This Row],[עמודה2]:[עמודה5]])","v":0},null,null,null,null,null,null,{"$f":"COUNTA(פרק_טו[[#This Row],[עמודה2]:[עמודה5]])","v":0},null,null,null,null,null,null,{"$f":"COUNTA(פרק_טז[[#This Row],[עמודה2]:[עמודה5]])","v":0},null,null,null,null,null,null,{"$f":"COUNTA(פרק_יז[[#This Row],[עמודה2]:[עמודה5]])","v":0},null,null,null,null,null,null,{"$f":"COUNTA(פרק_יח[[#This Row],[עמודה2]:[עמודה5]])","v":0},null,null,null,null,null,null,{"$f":"COUNTA(פרק_יט[[#This Row],[עמודה2]:[עמודה5]])","v":0},null,null,null,null,null,null,{"$f":"COUNTA(פרק_כ[[#This Row],[עמודה2]:[עמודה5]])","v":0},null,null,null,null,null,null,{"$f":"COUNTA(פרק_כא[[#This Row],[עמודה2]:[עמודה5]])","v":0},null,null,null,null,null,null,{"$f":"COUNTA(פרק_כב[[#This Row],[עמודה2]:[עמודה5]])","v":0},null,null,null,null,null,null,{"$f":"COUNTA(פרק_כג[[#This Row],[עמודה2]:[עמודה5]])","v":0},null,null,null,null,null,null,{"$f":"COUNTA(פרק_כד[[#This Row],[עמודה2]:[עמודה5]])","v":0}]
[null,null,null,null,null,null,null,{"$f":"COUNTA(פרק_א[[#This Row],[עמודה2]:[עמודה5]])","v":0},null,null,null,null,null,null,{"$f":"COUNTA(פרק_ב[[#This Row],[עמודה2]:[עמודה5]])","v":0},null,null,null,null,null,null,{"$f":"COUNTA(פרק_ג[[#This Row],[עמודה2]:[עמודה5]])","v":0},null,null,null,null,null,null,{"$f":"COUNTA(פרק_ד[[#This Row],[עמודה2]:[עמודה5]])","v":0},null,null,null,null,null,null,{"$f":"COUNTA(פרק_ה[[#This Row],[עמודה2]:[עמודה5]])","v":0},null,null,null,null,null,null,{"$f":"COUNTA(פרק_ו[[#This Row],[עמודה2]:[עמודה5]])","v":0},null,null,null,null,null,null,{"$f":"COUNTA(פרק_ז[[#This Row],[עמודה2]:[עמודה5]])","v":0},null,null,null,null,null,null,{"$f":"COUNTA(פרק_ח[[#This Row],[עמודה2]:[עמודה5]])","v":0},null,null,null,null,null,null,{"$f":"COUNTA(פרק_ט[[#This Row],[עמודה2]:[עמודה5]])","v":0},null,null,null,null,null,null,{"$f":"COUNTA(פרק_י[[#This Row],[עמודה2]:[עמודה5]])","v":0},null,null,null,null,null,null,{"$f":"COUNTA(פרק_יא[[#This Row],[עמודה2]:[עמודה5]])","v":0},null,null,null,null,null,null,{"$f":"COUNTA(פרק_יב[[#This Row],[עמודה2]:[עמודה5]])","v":0},null,null,null,null,null,null,{"$f":"COUNTA(פרק_יג[[#This Row],[עמודה2]:[עמודה5]])","v":0},null,null,null,null,null,null,{"$f":"COUNTA(פרק_יד[[#This Row],[עמודה2]:[עמודה5]])","v":0},null,null,null,null,null,null,{"$f":"COUNTA(פרק_טו[[#This Row],[עמודה2]:[עמודה5]])","v":0},null,null,null,null,null,null,{"$f":"COUNTA(פרק_טז[[#This Row],[עמודה2]:[עמודה5]])","v":0},null,null,null,null,null,null,{"$f":"COUNTA(פרק_יז[[#This Row],[עמודה2]:[עמודה5]])","v":0},null,null,null,null,null,null,{"$f":"COUNTA(פרק_יח[[#This Row],[עמודה2]:[עמודה5]])","v":0},null,null,null,null,null,null,{"$f":"COUNTA(פרק_יט[[#This Row],[עמודה2]:[עמודה5]])","v":0},null,null,null,null,null,null,{"$f":"COUNTA(פרק_כ[[#This Row],[עמודה2]:[עמודה5]])","v":0},null,null,null,null,null,null,{"$f":"COUNTA(פרק_כא[[#This Row],[עמודה2]:[עמודה5]])","v":0},null,null,null,null,null,null,{"$f":"COUNTA(פרק_כב[[#This Row],[עמודה2]:[עמודה5]])","v":0},null,null,null,null,null,null,{"$f":"COUNTA(פרק_כג[[#This Row],[עמודה2]:[עמודה5]])","v":0},null,null,null,null,null,null,{"$f":"COUNTA(פרק_כד[[#This Row],[עמודה2]:[עמודה5]])","v":0}]
[null,null,null,null,null,null,null,{"$f":"COUNTA(פרק_א[[#This Row],[עמודה2]:[עמודה5]])","v":0},null,null,null,null,null,null,{"$f":"COUNTA(פרק_ב[[#This Row],[עמודה2]:[עמודה5]])","v":0},null,null,null,null,null,null,{"$f":"COUNTA(פרק_ג[[#This Row],[עמודה2]:[עמודה5]])","v":0},null,null,null,null,null,null,{"$f":"COUNTA(פרק_ד[[#This Row],[עמודה2]:[עמודה5]])","v":0},null,null,null,null,null,null,{"$f":"COUNTA(פרק_ה[[#This Row],[עמודה2]:[עמודה5]])","v":0},null,null,null,null,null,null,{"$f":"COUNTA(פרק_ו[[#This Row],[עמודה2]:[עמודה5]])","v":0},null,null,null,null,null,null,{"$f":"COUNTA(פרק_ז[[#This Row],[עמודה2]:[עמודה5]])","v":0},null,null,null,null,null,null,{"$f":"COUNTA(פרק_ח[[#This Row],[עמודה2]:[עמודה5]])","v":0},null,null,null,null,null,null,{"$f":"COUNTA(פרק_ט[[#This Row],[עמודה2]:[עמודה5]])","v":0},null,null,null,null,null,null,{"$f":"COUNTA(פרק_י[[#This Row],[עמודה2]:[עמודה5]])","v":0},null,null,null,null,null,null,{"$f":"COUNTA(פרק_יא[[#This Row],[עמודה2]:[עמודה5]])","v":0},null,null,null,null,null,null,{"$f":"COUNTA(פרק_יב[[#This Row],[עמודה2]:[עמודה5]])","v":0},null,null,null,null,null,null,{"$f":"COUNTA(פרק_יג[[#This Row],[עמודה2]:[עמודה5]])","v":0},null,null,null,null,null,null,{"$f":"COUNTA(פרק_יד[[#This Row],[עמודה2]:[עמודה5]])","v":0},null,null,null,null,null,null,{"$f":"COUNTA(פרק_טו[[#This Row],[עמודה2]:[עמודה5]])","v":0},null,null,null,null,null,null,{"$f":"COUNTA(פרק_טז[[#This Row],[עמודה2]:[עמודה5]])","v":0},null,null,null,null,null,null,{"$f":"COUNTA(פרק_יז[[#This Row],[עמודה2]:[עמודה5]])","v":0},null,null,null,null,null,null,{"$f":"COUNTA(פרק_יח[[#This Row],[עמודה2]:[עמודה5]])","v":0},null,null,null,null,null,null,{"$f":"COUNTA(פרק_יט[[#This Row],[עמודה2]:[עמודה5]])","v":0},null,null,null,null,null,null,{"$f":"COUNTA(פרק_כ[[#This Row],[עמודה2]:[עמודה5]])","v":0},null,null,null,null,null,null,{"$f":"COUNTA(פרק_כא[[#This Row],[עמודה2]:[עמודה5]])","v":0},null,null,null,null,null,null,{"$f":"COUNTA(פרק_כב[[#This Row],[עמודה2]:[עמודה5]])","v":0},null,null,null,null,null,null,{"$f":"COUNTA(פרק_כג[[#This Row],[עמודה2]:[עמודה5]])","v":0},null,null,null,null,null,null,{"$f":"COUNTA(פרק_כד[[#This Row],[עמודה2]:[עמודה5]])","v":0}]
[null,null,null,null,null,null,null,{"$f":"COUNTA(פרק_א[[#This Row],[עמודה2]:[עמודה5]])","v":0},null,null,null,null,null,null,{"$f":"COUNTA(פרק_ב[[#This Row],[עמודה2]:[עמודה5]])","v":0},null,null,null,null,null,null,{"$f":"COUNTA(פרק_ג[[#This Row],[עמודה2]:[עמודה5]])","v":0},null,null,null,null,null,null,{"$f":"COUNTA(פרק_ד[[#This Row],[עמודה2]:[עמודה5]])","v":0},null,null,null,null,null,null,{"$f":"COUNTA(פרק_ה[[#This Row],[עמודה2]:[עמודה5]])","v":0},null,null,null,null,null,null,{"$f":"COUNTA(פרק_ו[[#This Row],[עמודה2]:[עמודה5]])","v":0},null,null,null,null,null,null,{"$f":"COUNTA(פרק_ז[[#This Row],[עמודה2]:[עמודה5]])","v":0},null,null,null,null,null,null,{"$f":"COUNTA(פרק_ח[[#This Row],[עמודה2]:[עמודה5]])","v":0},null,null,null,null,null,null,{"$f":"COUNTA(פרק_ט[[#This Row],[עמודה2]:[עמודה5]])","v":0},null,null,null,null,null,null,{"$f":"COUNTA(פרק_י[[#This Row],[עמודה2]:[עמודה5]])","v":0},null,null,null,null,null,null,{"$f":"COUNTA(פרק_יא[[#This Row],[עמודה2]:[עמודה5]])","v":0},null,null,null,null,null,null,{"$f":"COUNTA(פרק_יב[[#This Row],[עמודה2]:[עמודה5]])","v":0},null,null,null,null,null,null,{"$f":"COUNTA(פרק_יג[[#This Row],[עמודה2]:[עמודה5]])","v":0},null,null,null,null,null,null,{"$f":"COUNTA(פרק_יד[[#This Row],[עמודה2]:[עמודה5]])","v":0},null,null,null,null,null,null,{"$f":"COUNTA(פרק_טו[[#This Row],[עמודה2]:[עמודה5]])","v":0},null,null,null,null,null,null,{"$f":"COUNTA(פרק_טז[[#This Row],[עמודה2]:[עמודה5]])","v":0},null,null,null,null,null,null,{"$f":"COUNTA(פרק_יז[[#This Row],[עמודה2]:[עמודה5]])","v":0},null,null,null,null,null,null,{"$f":"COUNTA(פרק_יח[[#This Row],[עמודה2]:[עמודה5]])","v":0},null,null,null,null,null,null,{"$f":"COUNTA(פרק_יט[[#This Row],[עמודה2]:[עמודה5]])","v":0},null,null,null,null,null,null,{"$f":"COUNTA(פרק_כ[[#This Row],[עמודה2]:[עמודה5]])","v":0},null,null,null,null,null,null,{"$f":"COUNTA(פרק_כא[[#This Row],[עמודה2]:[עמודה5]])","v":0},null,null,null,null,null,null,{"$f":"COUNTA(פרק_כב[[#This Row],[עמודה2]:[עמודה5]])","v":0},null,null,null,null,null,null,{"$f":"COUNTA(פרק_כג[[#This Row],[עמודה2]:[עמודה5]])","v":0},null,null,null,null,null,null,{"$f":"COUNTA(פרק_כד[[#This Row],[עמודה2]:[עמודה5]])","v":0}]
[null,null,null,null,null,null,null,{"$f":"COUNTA(פרק_א[[#This Row],[עמודה2]:[עמודה5]])","v":0},null,null,null,null,null,null,{"$f":"COUNTA(פרק_ב[[#This Row],[עמודה2]:[עמודה5]])","v":0},null,null,null,null,null,null,{"$f":"COUNTA(פרק_ג[[#This Row],[עמודה2]:[עמודה5]])","v":0},null,null,null,null,null,null,{"$f":"COUNTA(פרק_ד[[#This Row],[עמודה2]:[עמודה5]])","v":0},null,null,null,null,null,null,{"$f":"COUNTA(פרק_ה[[#This Row],[עמודה2]:[עמודה5]])","v":0},null,null,null,null,null,null,{"$f":"COUNTA(פרק_ו[[#This Row],[עמודה2]:[עמודה5]])","v":0},null,null,null,null,null,null,{"$f":"COUNTA(פרק_ז[[#This Row],[עמודה2]:[עמודה5]])","v":0},null,null,null,null,null,null,{"$f":"COUNTA(פרק_ח[[#This Row],[עמודה2]:[עמודה5]])","v":0},null,null,null,null,null,null,{"$f":"COUNTA(פרק_ט[[#This Row],[עמודה2]:[עמודה5]])","v":0},null,null,null,null,null,null,{"$f":"COUNTA(פרק_י[[#This Row],[עמודה2]:[עמודה5]])","v":0},null,null,null,null,null,null,{"$f":"COUNTA(פרק_יא[[#This Row],[עמודה2]:[עמודה5]])","v":0},null,null,null,null,null,null,{"$f":"COUNTA(פרק_יב[[#This Row],[עמודה2]:[עמודה5]])","v":0},null,null,null,null,null,null,{"$f":"COUNTA(פרק_יג[[#This Row],[עמודה2]:[עמודה5]])","v":0},null,null,null,null,null,null,{"$f":"COUNTA(פרק_יד[[#This Row],[עמודה2]:[עמודה5]])","v":0},null,null,null,null,null,null,{"$f":"COUNTA(פרק_טו[[#This Row],[עמודה2]:[עמודה5]])","v":0},null,null,null,null,null,null,{"$f":"COUNTA(פרק_טז[[#This Row],[עמודה2]:[עמודה5]])","v":0},null,null,null,null,null,null,{"$f":"COUNTA(פרק_יז[[#This Row],[עמודה2]:[עמודה5]])","v":0},null,null,null,null,null,null,{"$f":"COUNTA(פרק_יח[[#This Row],[עמודה2]:[עמודה5]])","v":0},null,null,null,null,null,null,{"$f":"COUNTA(פרק_יט[[#This Row],[עמודה2]:[עמודה5]])","v":0},null,null,null,null,null,null,{"$f":"COUNTA(פרק_כ[[#This Row],[עמודה2]:[עמודה5]])","v":0},null,null,null,null,null,null,{"$f":"COUNTA(פרק_כא[[#This Row],[עמודה2]:[עמודה5]])","v":0},null,null,null,null,null,null,{"$f":"COUNTA(פרק_כב[[#This Row],[עמודה2]:[עמודה5]])","v":0},null,null,null,null,null,null,{"$f":"COUNTA(פרק_כג[[#This Row],[עמודה2]:[עמודה5]])","v":0},null,null,null,null,null,null,{"$f":"COUNTA(פרק_כד[[#This Row],[עמודה2]:[עמודה5]])","v":0}]
[null,null,null,null,null,null,null,{"$f":"COUNTA(פרק_א[[#This Row],[עמודה2]:[עמודה5]])","v":0},null,null,null,null,null,null,{"$f":"COUNTA(פרק_ב[[#This Row],[עמודה2]:[עמודה5]])","v":0},null,null,null,null,null,null,{"$f":"COUNTA(פרק_ג[[#This Row],[עמודה2]:[עמודה5]])","v":0},null,null,null,null,null,null,{"$f":"COUNTA(פרק_ד[[#This Row],[עמודה2]:[עמודה5]])","v":0},null,null,null,null,null,null,{"$f":"COUNTA(פרק_ה[[#This Row],[עמודה2]:[עמודה5]])","v":0},null,null,null,null,null,null,{"$f":"COUNTA(פרק_ו[[#This Row],[עמודה2]:[עמודה5]])","v":0},null,null,null,null,null,null,{"$f":"COUNTA(פרק_ז[[#This Row],[עמודה2]:[עמודה5]])","v":0},null,null,null,null,null,null,{"$f":"COUNTA(פרק_ח[[#This Row],[עמודה2]:[עמודה5]])","v":0},null,null,null,null,null,null,{"$f":"COUNTA(פרק_ט[[#This Row],[עמודה2]:[עמודה5]])","v":0},null,null,null,null,null,null,{"$f":"COUNTA(פרק_י[[#This Row],[עמודה2]:[עמודה5]])","v":0},null,null,null,null,null,null,{"$f":"COUNTA(פרק_יא[[#This Row],[עמודה2]:[עמודה5]])","v":0},null,null,null,null,null,null,{"$f":"COUNTA(פרק_יב[[#This Row],[עמודה2]:[עמודה5]])","v":0},null,null,null,null,null,null,{"$f":"COUNTA(פרק_יג[[#This Row],[עמודה2]:[עמודה5]])","v":0},null,null,null,null,null,null,{"$f":"COUNTA(פרק_יד[[#This Row],[עמודה2]:[עמודה5]])","v":0},null,null,null,null,null,null,{"$f":"COUNTA(פרק_טו[[#This Row],[עמודה2]:[עמודה5]])","v":0},null,null,null,null,null,null,{"$f":"COUNTA(פרק_טז[[#This Row],[עמודה2]:[עמודה5]])","v":0},null,null,null,null,null,null,{"$f":"COUNTA(פרק_יז[[#This Row],[עמודה2]:[עמודה5]])","v":0},null,null,null,null,null,null,{"$f":"COUNTA(פרק_יח[[#This Row],[עמודה2]:[עמודה5]])","v":0},null,null,null,null,null,null,{"$f":"COUNTA(פרק_יט[[#This Row],[עמודה2]:[עמודה5]])","v":0},null,null,null,null,null,null,{"$f":"COUNTA(פרק_כ[[#This Row],[עמודה2]:[עמודה5]])","v":0},null,null,null,null,null,null,{"$f":"COUNTA(פרק_כא[[#This Row],[עמודה2]:[עמודה5]])","v":0},null,null,null,null,null,null,{"$f":"COUNTA(פרק_כב[[#This Row],[עמודה2]:[עמודה5]])","v":0},null,null,null,null,null,null,{"$f":"COUNTA(פרק_כג[[#This Row],[עמודה2]:[עמודה5]])","v":0},null,null,null,null,null,null,{"$f":"COUNTA(פרק_כד[[#This Row],[עמודה2]:[עמודה5]])","v":0}]
[null,null,null,null,null,null,null,{"$f":"COUNTA(פרק_א[[#This Row],[עמודה2]:[עמודה5]])","v":0},null,null,null,null,null,null,{"$f":"COUNTA(פרק_ב[[#This Row],[עמודה2]:[עמודה5]])","v":0},null,null,null,null,null,null,{"$f":"COUNTA(פרק_ג[[#This Row],[עמודה2]:[עמודה5]])","v":0},null,null,null,null,null,null,{"$f":"COUNTA(פרק_ד[[#This Row],[עמודה2]:[עמודה5]])","v":0},null,null,null,null,null,null,{"$f":"COUNTA(פרק_ה[[#This Row],[עמודה2]:[עמודה5]])","v":0},null,null,null,null,null,null,{"$f":"COUNTA(פרק_ו[[#This Row],[עמודה2]:[עמודה5]])","v":0},null,null,null,null,null,null,{"$f":"COUNTA(פרק_ז[[#This Row],[עמודה2]:[עמודה5]])","v":0},null,null,null,null,null,null,{"$f":"COUNTA(פרק_ח[[#This Row],[עמודה2]:[עמודה5]])","v":0},null,null,null,null,null,null,{"$f":"COUNTA(פרק_ט[[#This Row],[עמודה2]:[עמודה5]])","v":0},null,null,null,null,null,null,{"$f":"COUNTA(פרק_י[[#This Row],[עמודה2]:[עמודה5]])","v":0},null,null,null,null,null,null,{"$f":"COUNTA(פרק_יא[[#This Row],[עמודה2]:[עמודה5]])","v":0},null,null,null,null,null,null,{"$f":"COUNTA(פרק_יב[[#This Row],[עמודה2]:[עמודה5]])","v":0},null,null,null,null,null,null,{"$f":"COUNTA(פרק_יג[[#This Row],[עמודה2]:[עמודה5]])","v":0},null,null,null,null,null,null,{"$f":"COUNTA(פרק_יד[[#This Row],[עמודה2]:[עמודה5]])","v":0},null,null,null,null,null,null,{"$f":"COUNTA(פרק_טו[[#This Row],[עמודה2]:[עמודה5]])","v":0},null,null,null,null,null,null,{"$f":"COUNTA(פרק_טז[[#This Row],[עמודה2]:[עמודה5]])","v":0},null,null,null,null,null,null,{"$f":"COUNTA(פרק_יז[[#This Row],[עמודה2]:[עמודה5]])","v":0},null,null,null,null,null,null,{"$f":"COUNTA(פרק_יח[[#This Row],[עמודה2]:[עמודה5]])","v":0},null,null,null,null,null,null,{"$f":"COUNTA(פרק_יט[[#This Row],[עמודה2]:[עמודה5]])","v":0},null,null,null,null,null,null,{"$f":"COUNTA(פרק_כ[[#This Row],[עמודה2]:[עמודה5]])","v":0},null,null,null,null,null,null,{"$f":"COUNTA(פרק_כא[[#This Row],[עמודה2]:[עמודה5]])","v":0},null,null,null,null,null,null,{"$f":"COUNTA(פרק_כב[[#This Row],[עמודה2]:[עמודה5]])","v":0},null,null,null,null,null,null,{"$f":"COUNTA(פרק_כג[[#This Row],[עמודה2]:[עמודה5]])","v":0},null,null,null,null,null,null,{"$f":"COUNTA(פרק_כד[[#This Row],[עמודה2]:[עמודה5]])","v":0}]
[null,null,null,null,null,null,null,{"$f":"COUNTA(פרק_א[[#This Row],[עמודה2]:[עמודה5]])","v":0},null,null,null,null,null,null,{"$f":"COUNTA(פרק_ב[[#This Row],[עמודה2]:[עמודה5]])","v":0},null,null,null,null,null,null,{"$f":"COUNTA(פרק_ג[[#This Row],[עמודה2]:[עמודה5]])","v":0},null,null,null,null,null,null,{"$f":"COUNTA(פרק_ד[[#This Row],[עמודה2]:[עמודה5]])","v":0},null,null,null,null,null,null,{"$f":"COUNTA(פרק_ה[[#This Row],[עמודה2]:[עמודה5]])","v":0},null,null,null,null,null,null,{"$f":"COUNTA(פרק_ו[[#This Row],[עמודה2]:[עמודה5]])","v":0},null,null,null,null,null,null,{"$f":"COUNTA(פרק_ז[[#This Row],[עמודה2]:[עמודה5]])","v":0},null,null,null,null,null,null,{"$f":"COUNTA(פרק_ח[[#This Row],[עמודה2]:[עמודה5]])","v":0},null,null,null,null,null,null,{"$f":"COUNTA(פרק_ט[[#This Row],[עמודה2]:[עמודה5]])","v":0},null,null,null,null,null,null,{"$f":"COUNTA(פרק_י[[#This Row],[עמודה2]:[עמודה5]])","v":0},null,null,null,null,null,null,{"$f":"COUNTA(פרק_יא[[#This Row],[עמודה2]:[עמודה5]])","v":0},null,null,null,null,null,null,{"$f":"COUNTA(פרק_יב[[#This Row],[עמודה2]:[עמודה5]])","v":0},null,null,null,null,null,null,{"$f":"COUNTA(פרק_יג[[#This Row],[עמודה2]:[עמודה5]])","v":0},null,null,null,null,null,null,{"$f":"COUNTA(פרק_יד[[#This Row],[עמודה2]:[עמודה5]])","v":0},null,null,null,null,null,null,{"$f":"COUNTA(פרק_טו[[#This Row],[עמודה2]:[עמודה5]])","v":0},null,null,null,null,null,null,{"$f":"COUNTA(פרק_טז[[#This Row],[עמודה2]:[עמודה5]])","v":0},null,null,null,null,null,null,{"$f":"COUNTA(פרק_יז[[#This Row],[עמודה2]:[עמודה5]])","v":0},null,null,null,null,null,null,{"$f":"COUNTA(פרק_יח[[#This Row],[עמודה2]:[עמודה5]])","v":0},null,null,null,null,null,null,{"$f":"COUNTA(פרק_יט[[#This Row],[עמודה2]:[עמודה5]])","v":0},null,null,null,null,null,null,{"$f":"COUNTA(פרק_כ[[#This Row],[עמודה2]:[עמודה5]])","v":0},null,null,null,null,null,null,{"$f":"COUNTA(פרק_כא[[#This Row],[עמודה2]:[עמודה5]])","v":0},null,null,null,null,null,null,{"$f":"COUNTA(פרק_כב[[#This Row],[עמודה2]:[עמודה5]])","v":0},null,null,null,null,null,null,{"$f":"COUNTA(פרק_כג[[#This Row],[עמודה2]:[עמודה5]])","v":0},null,null,null,null,null,null,{"$f":"COUNTA(פרק_כד[[#This Row],[עמודה2]:[עמודה5]])","v":0}]
[null,null,null,null,null,null,null,{"$f":"COUNTA(פרק_א[[#This Row],[עמודה2]:[עמודה5]])","v":0},null,null,null,null,null,null,{"$f":"COUNTA(פרק_ב[[#This Row],[עמודה2]:[עמודה5]])","v":0},null,null,null,null,null,null,{"$f":"COUNTA(פרק_ג[[#This Row],[עמודה2]:[עמודה5]])","v":0},null,null,null,null,null,null,{"$f":"COUNTA(פרק_ד[[#This Row],[עמודה2]:[עמודה5]])","v":0},null,null,null,null,null,null,{"$f":"COUNTA(פרק_ה[[#This Row],[עמודה2]:[עמודה5]])","v":0},null,null,null,null,null,null,{"$f":"COUNTA(פרק_ו[[#This Row],[עמודה2]:[עמודה5]])","v":0},null,null,null,null,null,null,{"$f":"COUNTA(פרק_ז[[#This Row],[עמודה2]:[עמודה5]])","v":0},null,null,null,null,null,null,{"$f":"COUNTA(פרק_ח[[#This Row],[עמודה2]:[עמודה5]])","v":0},null,null,null,null,null,null,{"$f":"COUNTA(פרק_ט[[#This Row],[עמודה2]:[עמודה5]])","v":0},null,null,null,null,null,null,{"$f":"COUNTA(פרק_י[[#This Row],[עמודה2]:[עמודה5]])","v":0},null,null,null,null,null,null,{"$f":"COUNTA(פרק_יא[[#This Row],[עמודה2]:[עמודה5]])","v":0},null,null,null,null,null,null,{"$f":"COUNTA(פרק_יב[[#This Row],[עמודה2]:[עמודה5]])","v":0},null,null,null,null,null,null,{"$f":"COUNTA(פרק_יג[[#This Row],[עמודה2]:[עמודה5]])","v":0},null,null,null,null,null,null,{"$f":"COUNTA(פרק_יד[[#This Row],[עמודה2]:[עמודה5]])","v":0},null,null,null,null,null,null,{"$f":"COUNTA(פרק_טו[[#This Row],[עמודה2]:[עמודה5]])","v":0},null,null,null,null,null,null,{"$f":"COUNTA(פרק_טז[[#This Row],[עמודה2]:[עמודה5]])","v":0},null,null,null,null,null,null,{"$f":"COUNTA(פרק_יז[[#This Row],[עמודה2]:[עמודה5]])","v":0},null,null,null,null,null,null,{"$f":"COUNTA(פרק_יח[[#This Row],[עמודה2]:[עמודה5]])","v":0},null,null,null,null,null,null,{"$f":"COUNTA(פרק_יט[[#This Row],[עמודה2]:[עמודה5]])","v":0},null,null,null,null,null,null,{"$f":"COUNTA(פרק_כ[[#This Row],[עמודה2]:[עמודה5]])","v":0},null,null,null,null,null,null,{"$f":"COUNTA(פרק_כא[[#This Row],[עמודה2]:[עמודה5]])","v":0},null,null,null,null,null,null,{"$f":"COUNTA(פרק_כב[[#This Row],[עמודה2]:[עמודה5]])","v":0},null,null,null,null,null,null,{"$f":"COUNTA(פרק_כג[[#This Row],[עמודה2]:[עמודה5]])","v":0},null,null,null,null,null,null,{"$f":"COUNTA(פרק_כד[[#This Row],[עמודה2]:[עמודה5]])","v":0}]
[null,null,null,null,null,null,null,{"$f":"COUNTA(פרק_א[[#This Row],[עמודה2]:[עמודה5]])","v":0},null,null,null,null,null,null,{"$f":"COUNTA(פרק_ב[[#This Row],[עמודה2]:[עמודה5]])","v":0},null,null,null,null,null,null,{"$f":"COUNTA(פרק_ג[[#This Row],[עמודה2]:[עמודה5]])","v":0},null,null,null,null,null,null,{"$f":"COUNTA(פרק_ד[[#This Row],[עמודה2]:[עמודה5]])","v":0},null,null,null,null,null,null,{"$f":"COUNTA(פרק_ה[[#This Row],[עמודה2]:[עמודה5]])","v":0},null,null,null,null,null,null,{"$f":"COUNTA(פרק_ו[[#This Row],[עמודה2]:[עמודה5]])","v":0},null,null,null,null,null,null,{"$f":"COUNTA(פרק_ז[[#This Row],[עמודה2]:[עמודה5]])","v":0},null,null,null,null,null,null,{"$f":"COUNTA(פרק_ח[[#This Row],[עמודה2]:[עמודה5]])","v":0},null,null,null,null,null,null,{"$f":"COUNTA(פרק_ט[[#This Row],[עמודה2]:[עמודה5]])","v":0},null,null,null,null,null,null,{"$f":"COUNTA(פרק_י[[#This Row],[עמודה2]:[עמודה5]])","v":0},null,null,null,null,null,null,{"$f":"COUNTA(פרק_יא[[#This Row],[עמודה2]:[עמודה5]])","v":0},null,null,null,null,null,null,{"$f":"COUNTA(פרק_יב[[#This Row],[עמודה2]:[עמודה5]])","v":0},null,null,null,null,null,null,{"$f":"COUNTA(פרק_יג[[#This Row],[עמודה2]:[עמודה5]])","v":0},null,null,null,null,null,null,{"$f":"COUNTA(פרק_יד[[#This Row],[עמודה2]:[עמודה5]])","v":0},null,null,null,null,null,null,{"$f":"COUNTA(פרק_טו[[#This Row],[עמודה2]:[עמודה5]])","v":0},null,null,null,null,null,null,{"$f":"COUNTA(פרק_טז[[#This Row],[עמודה2]:[עמודה5]])","v":0},null,null,null,null,null,null,{"$f":"COUNTA(פרק_יז[[#This Row],[עמודה2]:[עמודה5]])","v":0},null,null,null,null,null,null,{"$f":"COUNTA(פרק_יח[[#This Row],[עמודה2]:[עמודה5]])","v":0},null,null,null,null,null,null,{"$f":"COUNTA(פרק_יט[[#This Row],[עמודה2]:[עמודה5]])","v":0},null,null,null,null,null,null,{"$f":"COUNTA(פרק_כ[[#This Row],[עמודה2]:[עמודה5]])","v":0},null,null,null,null,null,null,{"$f":"COUNTA(פרק_כא[[#This Row],[עמודה2]:[עמודה5]])","v":0},null,null,null,null,null,null,{"$f":"COUNTA(פרק_כב[[#This Row],[עמודה2]:[עמודה5]])","v":0},null,null,null,null,null,null,{"$f":"COUNTA(פרק_כג[[#This Row],[עמודה2]:[עמודה5]])","v":0},null,null,null,null,null,null,{"$f":"COUNTA(פרק_כד[[#This Row],[עמודה2]:[עמודה5]])","v":0}]
[null,null,null,null,null,null,null,{"$f":"COUNTA(פרק_א[[#This Row],[עמודה2]:[עמודה5]])","v":0},null,null,null,null,null,null,{"$f":"COUNTA(פרק_ב[[#This Row],[עמודה2]:[עמודה5]])","v":0},null,null,null,null,null,null,{"$f":"COUNTA(פרק_ג[[#This Row],[עמודה2]:[עמודה5]])","v":0},null,null,null,null,null,null,{"$f":"COUNTA(פרק_ד[[#This Row],[עמודה2]:[עמודה5]])","v":0},null,null,null,null,null,null,{"$f":"COUNTA(פרק_ה[[#This Row],[עמודה2]:[עמודה5]])","v":0},null,null,null,null,null,null,{"$f":"COUNTA(פרק_ו[[#This Row],[עמודה2]:[עמודה5]])","v":0},null,null,null,null,null,null,{"$f":"COUNTA(פרק_ז[[#This Row],[עמודה2]:[עמודה5]])","v":0},null,null,null,null,null,null,{"$f":"COUNTA(פרק_ח[[#This Row],[עמודה2]:[עמודה5]])","v":0},null,null,null,null,null,null,{"$f":"COUNTA(פרק_ט[[#This Row],[עמודה2]:[עמודה5]])","v":0},null,null,null,null,null,null,{"$f":"COUNTA(פרק_י[[#This Row],[עמודה2]:[עמודה5]])","v":0},null,null,null,null,null,null,{"$f":"COUNTA(פרק_יא[[#This Row],[עמודה2]:[עמודה5]])","v":0},null,null,null,null,null,null,{"$f":"COUNTA(פרק_יב[[#This Row],[עמודה2]:[עמודה5]])","v":0},null,null,null,null,null,null,{"$f":"COUNTA(פרק_יג[[#This Row],[עמודה2]:[עמודה5]])","v":0},null,null,null,null,null,null,{"$f":"COUNTA(פרק_יד[[#This Row],[עמודה2]:[עמודה5]])","v":0},null,null,null,null,null,null,{"$f":"COUNTA(פרק_טו[[#This Row],[עמודה2]:[עמודה5]])","v":0},null,null,null,null,null,null,{"$f":"COUNTA(פרק_טז[[#This Row],[עמודה2]:[עמודה5]])","v":0},null,null,null,null,null,null,{"$f":"COUNTA(פרק_יז[[#This Row],[עמודה2]:[עמודה5]])","v":0},null,null,null,null,null,null,{"$f":"COUNTA(פרק_יח[[#This Row],[עמודה2]:[עמודה5]])","v":0},null,null,null,null,null,null,{"$f":"COUNTA(פרק_יט[[#This Row],[עמודה2]:[עמודה5]])","v":0},null,null,null,null,null,null,{"$f":"COUNTA(פרק_כ[[#This Row],[עמודה2]:[עמודה5]])","v":0},null,null,null,null,null,null,{"$f":"COUNTA(פרק_כא[[#This Row],[עמודה2]:[עמודה5]])","v":0},null,null,null,null,null,null,{"$f":"COUNTA(פרק_כב[[#This Row],[עמודה2]:[עמודה5]])","v":0},null,null,null,null,null,null,{"$f":"COUNTA(פרק_כג[[#This Row],[עמודה2]:[עמודה5]])","v":0},null,null,null,null,null,null,{"$f":"COUNTA(פרק_כד[[#This Row],[עמודה2]:[עמודה5]])","v":0}]
[null,null,null,null,null,null,null,{"$f":"COUNTA(פרק_א[[#This Row],[עמודה2]:[עמודה5]])","v":0},null,null,null,null,null,null,{"$f":"COUNTA(פרק_ב[[#This Row],[עמודה2]:[עמודה5]])","v":0},null,null,null,null,null,null,{"$f":"COUNTA(פרק_ג[[#This Row],[עמודה2]:[עמודה5]])","v":0},null,null,null,null,null,null,{"$f":"COUNTA(פרק_ד[[#This Row],[עמודה2]:[עמודה5]])","v":0},null,null,null,null,null,null,{"$f":"COUNTA(פרק_ה[[#This Row],[עמודה2]:[עמודה5]])","v":0},null,null,null,null,null,null,{"$f":"COUNTA(פרק_ו[[#This Row],[עמודה2]:[עמודה5]])","v":0},null,null,null,null,null,null,{"$f":"COUNTA(פרק_ז[[#This Row],[עמודה2]:[עמודה5]])","v":0},null,null,null,null,null,null,{"$f":"COUNTA(פרק_ח[[#This Row],[עמודה2]:[עמודה5]])","v":0},null,null,null,null,null,null,{"$f":"COUNTA(פרק_ט[[#This Row],[עמודה2]:[עמודה5]])","v":0},null,null,null,null,null,null,{"$f":"COUNTA(פרק_י[[#This Row],[עמודה2]:[עמודה5]])","v":0},null,null,null,null,null,null,{"$f":"COUNTA(פרק_יא[[#This Row],[עמודה2]:[עמודה5]])","v":0},null,null,null,null,null,null,{"$f":"COUNTA(פרק_יב[[#This Row],[עמודה2]:[עמודה5]])","v":0},null,null,null,null,null,null,{"$f":"COUNTA(פרק_יג[[#This Row],[עמודה2]:[עמודה5]])","v":0},null,null,null,null,null,null,{"$f":"COUNTA(פרק_יד[[#This Row],[עמודה2]:[עמודה5]])","v":0},null,null,null,null,null,null,{"$f":"COUNTA(פרק_טו[[#This Row],[עמודה2]:[עמודה5]])","v":0},null,null,null,null,null,null,{"$f":"COUNTA(פרק_טז[[#This Row],[עמודה2]:[עמודה5]])","v":0},null,null,null,null,null,null,{"$f":"COUNTA(פרק_יז[[#This Row],[עמודה2]:[עמודה5]])","v":0},null,null,null,null,null,null,{"$f":"COUNTA(פרק_יח[[#This Row],[עמודה2]:[עמודה5]])","v":0},null,null,null,null,null,null,{"$f":"COUNTA(פרק_יט[[#This Row],[עמודה2]:[עמודה5]])","v":0},null,null,null,null,null,null,{"$f":"COUNTA(פרק_כ[[#This Row],[עמודה2]:[עמודה5]])","v":0},null,null,null,null,null,null,{"$f":"COUNTA(פרק_כא[[#This Row],[עמודה2]:[עמודה5]])","v":0},null,null,null,null,null,null,{"$f":"COUNTA(פרק_כב[[#This Row],[עמודה2]:[עמודה5]])","v":0},null,null,null,null,null,null,{"$f":"COUNTA(פרק_כג[[#This Row],[עמודה2]:[עמודה5]])","v":0},null,null,null,null,null,null,{"$f":"COUNTA(פרק_כד[[#This Row],[עמודה2]:[עמודה5]])","v":0}]
[null,null,null,null,null,null,null,{"$f":"COUNTA(פרק_א[[#This Row],[עמודה2]:[עמודה5]])","v":0},null,null,null,null,null,null,{"$f":"COUNTA(פרק_ב[[#This Row],[עמודה2]:[עמודה5]])","v":0},null,null,null,null,null,null,{"$f":"COUNTA(פרק_ג[[#This Row],[עמודה2]:[עמודה5]])","v":0},null,null,null,null,null,null,{"$f":"COUNTA(פרק_ד[[#This Row],[עמודה2]:[עמודה5]])","v":0},null,null,null,null,null,null,{"$f":"COUNTA(פרק_ה[[#This Row],[עמודה2]:[עמודה5]])","v":0},null,null,null,null,null,null,{"$f":"COUNTA(פרק_ו[[#This Row],[עמודה2]:[עמודה5]])","v":0},null,null,null,null,null,null,{"$f":"COUNTA(פרק_ז[[#This Row],[עמודה2]:[עמודה5]])","v":0},null,null,null,null,null,null,{"$f":"COUNTA(פרק_ח[[#This Row],[עמודה2]:[עמודה5]])","v":0},null,null,null,null,null,null,{"$f":"COUNTA(פרק_ט[[#This Row],[עמודה2]:[עמודה5]])","v":0},null,null,null,null,null,null,{"$f":"COUNTA(פרק_י[[#This Row],[עמודה2]:[עמודה5]])","v":0},null,null,null,null,null,null,{"$f":"COUNTA(פרק_יא[[#This Row],[עמודה2]:[עמודה5]])","v":0},null,null,null,null,null,null,{"$f":"COUNTA(פרק_יב[[#This Row],[עמודה2]:[עמודה5]])","v":0},null,null,null,null,null,null,{"$f":"COUNTA(פרק_יג[[#This Row],[עמודה2]:[עמודה5]])","v":0},null,null,null,null,null,null,{"$f":"COUNTA(פרק_יד[[#This Row],[עמודה2]:[עמודה5]])","v":0},null,null,null,null,null,null,{"$f":"COUNTA(פרק_טו[[#This Row],[עמודה2]:[עמודה5]])","v":0},null,null,null,null,null,null,{"$f":"COUNTA(פרק_טז[[#This Row],[עמודה2]:[עמודה5]])","v":0},null,null,null,null,null,null,{"$f":"COUNTA(פרק_יז[[#This Row],[עמודה2]:[עמודה5]])","v":0},null,null,null,null,null,null,{"$f":"COUNTA(פרק_יח[[#This Row],[עמודה2]:[עמודה5]])","v":0},null,null,null,null,null,null,{"$f":"COUNTA(פרק_יט[[#This Row],[עמודה2]:[עמודה5]])","v":0},null,null,null,null,null,null,{"$f":"COUNTA(פרק_כ[[#This Row],[עמודה2]:[עמודה5]])","v":0},null,null,null,null,null,null,{"$f":"COUNTA(פרק_כא[[#This Row],[עמודה2]:[עמודה5]])","v":0},null,null,null,null,null,null,{"$f":"COUNTA(פרק_כב[[#This Row],[עמודה2]:[עמודה5]])","v":0},null,null,null,null,null,null,{"$f":"COUNTA(פרק_כג[[#This Row],[עמודה2]:[עמודה5]])","v":0},null,null,null,null,null,null,{"$f":"COUNTA(פרק_כד[[#This Row],[עמודה2]:[עמודה5]])","v":0}]
[null,null,null,null,null,null,null,{"$f":"COUNTA(פרק_א[[#This Row],[עמודה2]:[עמודה5]])","v":0},null,null,null,null,null,null,{"$f":"COUNTA(פרק_ב[[#This Row],[עמודה2]:[עמודה5]])","v":0},null,null,null,null,null,null,{"$f":"COUNTA(פרק_ג[[#This Row],[עמודה2]:[עמודה5]])","v":0},null,null,null,null,null,null,{"$f":"COUNTA(פרק_ד[[#This Row],[עמודה2]:[עמודה5]])","v":0},null,null,null,null,null,null,{"$f":"COUNTA(פרק_ה[[#This Row],[עמודה2]:[עמודה5]])","v":0},null,null,null,null,null,null,{"$f":"COUNTA(פרק_ו[[#This Row],[עמודה2]:[עמודה5]])","v":0},null,null,null,null,null,null,{"$f":"COUNTA(פרק_ז[[#This Row],[עמודה2]:[עמודה5]])","v":0},null,null,null,null,null,null,{"$f":"COUNTA(פרק_ח[[#This Row],[עמודה2]:[עמודה5]])","v":0},null,null,null,null,null,null,{"$f":"COUNTA(פרק_ט[[#This Row],[עמודה2]:[עמודה5]])","v":0},null,null,null,null,null,null,{"$f":"COUNTA(פרק_י[[#This Row],[עמודה2]:[עמודה5]])","v":0},null,null,null,null,null,null,{"$f":"COUNTA(פרק_יא[[#This Row],[עמודה2]:[עמודה5]])","v":0},null,null,null,null,null,null,{"$f":"COUNTA(פרק_יב[[#This Row],[עמודה2]:[עמודה5]])","v":0},null,null,null,null,null,null,{"$f":"COUNTA(פרק_יג[[#This Row],[עמודה2]:[עמודה5]])","v":0},null,null,null,null,null,null,{"$f":"COUNTA(פרק_יד[[#This Row],[עמודה2]:[עמודה5]])","v":0},null,null,null,null,null,null,{"$f":"COUNTA(פרק_טו[[#This Row],[עמודה2]:[עמודה5]])","v":0},null,null,null,null,null,null,{"$f":"COUNTA(פרק_טז[[#This Row],[עמודה2]:[עמודה5]])","v":0},null,null,null,null,null,null,{"$f":"COUNTA(פרק_יז[[#This Row],[עמודה2]:[עמודה5]])","v":0},null,null,null,null,null,null,{"$f":"COUNTA(פרק_יח[[#This Row],[עמודה2]:[עמודה5]])","v":0},null,null,null,null,null,null,{"$f":"COUNTA(פרק_יט[[#This Row],[עמודה2]:[עמודה5]])","v":0},null,null,null,null,null,null,{"$f":"COUNTA(פרק_כ[[#This Row],[עמודה2]:[עמודה5]])","v":0},null,null,null,null,null,null,{"$f":"COUNTA(פרק_כא[[#This Row],[עמודה2]:[עמודה5]])","v":0},null,null,null,null,null,null,{"$f":"COUNTA(פרק_כב[[#This Row],[עמודה2]:[עמודה5]])","v":0},null,null,null,null,null,null,{"$f":"COUNTA(פרק_כג[[#This Row],[עמודה2]:[עמודה5]])","v":0},null,null,null,null,null,null,{"$f":"COUNTA(פרק_כד[[#This Row],[עמודה2]:[עמודה5]])","v":0}]
[null,null,null,null,null,null,null,{"$f":"COUNTA(פרק_א[[#This Row],[עמודה2]:[עמודה5]])","v":0},null,null,null,null,null,null,{"$f":"COUNTA(פרק_ב[[#This Row],[עמודה2]:[עמודה5]])","v":0},null,null,null,null,null,null,{"$f":"COUNTA(פרק_ג[[#This Row],[עמודה2]:[עמודה5]])","v":0},null,null,null,null,null,null,{"$f":"COUNTA(פרק_ד[[#This Row],[עמודה2]:[עמודה5]])","v":0},null,null,null,null,null,null,{"$f":"COUNTA(פרק_ה[[#This Row],[עמודה2]:[עמודה5]])","v":0},null,null,null,null,null,null,{"$f":"COUNTA(פרק_ו[[#This Row],[עמודה2]:[עמודה5]])","v":0},null,null,null,null,null,null,{"$f":"COUNTA(פרק_ז[[#This Row],[עמודה2]:[עמודה5]])","v":0},null,null,null,null,null,null,{"$f":"COUNTA(פרק_ח[[#This Row],[עמודה2]:[עמודה5]])","v":0},null,null,null,null,null,null,{"$f":"COUNTA(פרק_ט[[#This Row],[עמודה2]:[עמודה5]])","v":0},null,null,null,null,null,null,{"$f":"COUNTA(פרק_י[[#This Row],[עמודה2]:[עמודה5]])","v":0},null,null,null,null,null,null,{"$f":"COUNTA(פרק_יא[[#This Row],[עמודה2]:[עמודה5]])","v":0},null,null,null,null,null,null,{"$f":"COUNTA(פרק_יב[[#This Row],[עמודה2]:[עמודה5]])","v":0},null,null,null,null,null,null,{"$f":"COUNTA(פרק_יג[[#This Row],[עמודה2]:[עמודה5]])","v":0},null,null,null,null,null,null,{"$f":"COUNTA(פרק_יד[[#This Row],[עמודה2]:[עמודה5]])","v":0},null,null,null,null,null,null,{"$f":"COUNTA(פרק_טו[[#This Row],[עמודה2]:[עמודה5]])","v":0},null,null,null,null,null,null,{"$f":"COUNTA(פרק_טז[[#This Row],[עמודה2]:[עמודה5]])","v":0},null,null,null,null,null,null,{"$f":"COUNTA(פרק_יז[[#This Row],[עמודה2]:[עמודה5]])","v":0},null,null,null,null,null,null,{"$f":"COUNTA(פרק_יח[[#This Row],[עמודה2]:[עמודה5]])","v":0},null,null,null,null,null,null,{"$f":"COUNTA(פרק_יט[[#This Row],[עמודה2]:[עמודה5]])","v":0},null,null,null,null,null,null,{"$f":"COUNTA(פרק_כ[[#This Row],[עמודה2]:[עמודה5]])","v":0},null,null,null,null,null,null,{"$f":"COUNTA(פרק_כא[[#This Row],[עמודה2]:[עמודה5]])","v":0},null,null,null,null,null,null,{"$f":"COUNTA(פרק_כב[[#This Row],[עמודה2]:[עמודה5]])","v":0},null,null,null,null,null,null,{"$f":"COUNTA(פרק_כג[[#This Row],[עמודה2]:[עמודה5]])","v":0},null,null,null,null,null,null,{"$f":"COUNTA(פרק_כד[[#This Row],[עמודה2]:[עמודה5]])","v":0}]
[null,null,null,null,null,null,null,{"$f":"COUNTA(פרק_א[[#This Row],[עמודה2]:[עמודה5]])","v":0},null,null,null,null,null,null,{"$f":"COUNTA(פרק_ב[[#This Row],[עמודה2]:[עמודה5]])","v":0},null,null,null,null,null,null,{"$f":"COUNTA(פרק_ג[[#This Row],[עמודה2]:[עמודה5]])","v":0},null,null,null,null,null,null,{"$f":"COUNTA(פרק_ד[[#This Row],[עמודה2]:[עמודה5]])","v":0},null,null,null,null,null,null,{"$f":"COUNTA(פרק_ה[[#This Row],[עמודה2]:[עמודה5]])","v":0},null,null,null,null,null,null,{"$f":"COUNTA(פרק_ו[[#This Row],[עמודה2]:[עמודה5]])","v":0},null,null,null,null,null,null,{"$f":"COUNTA(פרק_ז[[#This Row],[עמודה2]:[עמודה5]])","v":0},null,null,null,null,null,null,{"$f":"COUNTA(פרק_ח[[#This Row],[עמודה2]:[עמודה5]])","v":0},null,null,null,null,null,null,{"$f":"COUNTA(פרק_ט[[#This Row],[עמודה2]:[עמודה5]])","v":0},null,null,null,null,null,null,{"$f":"COUNTA(פרק_י[[#This Row],[עמודה2]:[עמודה5]])","v":0},null,null,null,null,null,null,{"$f":"COUNTA(פרק_יא[[#This Row],[עמודה2]:[עמודה5]])","v":0},null,null,null,null,null,null,{"$f":"COUNTA(פרק_יב[[#This Row],[עמודה2]:[עמודה5]])","v":0},null,null,null,null,null,null,{"$f":"COUNTA(פרק_יג[[#This Row],[עמודה2]:[עמודה5]])","v":0},null,null,null,null,null,null,{"$f":"COUNTA(פרק_יד[[#This Row],[עמודה2]:[עמודה5]])","v":0},null,null,null,null,null,null,{"$f":"COUNTA(פרק_טו[[#This Row],[עמודה2]:[עמודה5]])","v":0},null,null,null,null,null,null,{"$f":"COUNTA(פרק_טז[[#This Row],[עמודה2]:[עמודה5]])","v":0},null,null,null,null,null,null,{"$f":"COUNTA(פרק_יז[[#This Row],[עמודה2]:[עמודה5]])","v":0},null,null,null,null,null,null,{"$f":"COUNTA(פרק_יח[[#This Row],[עמודה2]:[עמודה5]])","v":0},null,null,null,null,null,null,{"$f":"COUNTA(פרק_יט[[#This Row],[עמודה2]:[עמודה5]])","v":0},null,null,null,null,null,null,{"$f":"COUNTA(פרק_כ[[#This Row],[עמודה2]:[עמודה5]])","v":0},null,null,null,null,null,null,{"$f":"COUNTA(פרק_כא[[#This Row],[עמודה2]:[עמודה5]])","v":0},null,null,null,null,null,null,{"$f":"COUNTA(פרק_כב[[#This Row],[עמודה2]:[עמודה5]])","v":0},null,null,null,null,null,null,{"$f":"COUNTA(פרק_כג[[#This Row],[עמודה2]:[עמודה5]])","v":0},null,null,null,null,null,null,{"$f":"COUNTA(פרק_כד[[#This Row],[עמודה2]:[עמודה5]])","v":0}]
[null,null,null,null,null,null,null,{"$f":"COUNTA(פרק_א[[#This Row],[עמודה2]:[עמודה5]])","v":0},null,null,null,null,null,null,{"$f":"COUNTA(פרק_ב[[#This Row],[עמודה2]:[עמודה5]])","v":0},null,null,null,null,null,null,{"$f":"COUNTA(פרק_ג[[#This Row],[עמודה2]:[עמודה5]])","v":0},null,null,null,null,null,null,{"$f":"COUNTA(פרק_ד[[#This Row],[עמודה2]:[עמודה5]])","v":0},null,null,null,null,null,null,{"$f":"COUNTA(פרק_ה[[#This Row],[עמודה2]:[עמודה5]])","v":0},null,null,null,null,null,null,{"$f":"COUNTA(פרק_ו[[#This Row],[עמודה2]:[עמודה5]])","v":0},null,null,null,null,null,null,{"$f":"COUNTA(פרק_ז[[#This Row],[עמודה2]:[עמודה5]])","v":0},null,null,null,null,null,null,{"$f":"COUNTA(פרק_ח[[#This Row],[עמודה2]:[עמודה5]])","v":0},null,null,null,null,null,null,{"$f":"COUNTA(פרק_ט[[#This Row],[עמודה2]:[עמודה5]])","v":0},null,null,null,null,null,null,{"$f":"COUNTA(פרק_י[[#This Row],[עמודה2]:[עמודה5]])","v":0},null,null,null,null,null,null,{"$f":"COUNTA(פרק_יא[[#This Row],[עמודה2]:[עמודה5]])","v":0},null,null,null,null,null,null,{"$f":"COUNTA(פרק_יב[[#This Row],[עמודה2]:[עמודה5]])","v":0},null,null,null,null,null,null,{"$f":"COUNTA(פרק_יג[[#This Row],[עמודה2]:[עמודה5]])","v":0},null,null,null,null,null,null,{"$f":"COUNTA(פרק_יד[[#This Row],[עמודה2]:[עמודה5]])","v":0},null,null,null,null,null,null,{"$f":"COUNTA(פרק_טו[[#This Row],[עמודה2]:[עמודה5]])","v":0},null,null,null,null,null,null,{"$f":"COUNTA(פרק_טז[[#This Row],[עמודה2]:[עמודה5]])","v":0},null,null,null,null,null,null,{"$f":"COUNTA(פרק_יז[[#This Row],[עמודה2]:[עמודה5]])","v":0},null,null,null,null,null,null,{"$f":"COUNTA(פרק_יח[[#This Row],[עמודה2]:[עמודה5]])","v":0},null,null,null,null,null,null,{"$f":"COUNTA(פרק_יט[[#This Row],[עמודה2]:[עמודה5]])","v":0},null,null,null,null,null,null,{"$f":"COUNTA(פרק_כ[[#This Row],[עמודה2]:[עמודה5]])","v":0},null,null,null,null,null,null,{"$f":"COUNTA(פרק_כא[[#This Row],[עמודה2]:[עמודה5]])","v":0},null,null,null,null,null,null,{"$f":"COUNTA(פרק_כב[[#This Row],[עמודה2]:[עמודה5]])","v":0},null,null,null,null,null,null,{"$f":"COUNTA(פרק_כג[[#This Row],[עמודה2]:[עמודה5]])","v":0},null,null,null,null,null,null,{"$f":"COUNTA(פרק_כד[[#This Row],[עמודה2]:[עמודה5]])","v":0}]
[null,null,null,null,null,null,null,{"$f":"COUNTA(פרק_א[[#This Row],[עמודה2]:[עמודה5]])","v":0},null,null,null,null,null,null,{"$f":"COUNTA(פרק_ב[[#This Row],[עמודה2]:[עמודה5]])","v":0},null,null,null,null,null,null,{"$f":"COUNTA(פרק_ג[[#This Row],[עמודה2]:[עמודה5]])","v":0},null,null,null,null,null,null,{"$f":"COUNTA(פרק_ד[[#This Row],[עמודה2]:[עמודה5]])","v":0},null,null,null,null,null,null,{"$f":"COUNTA(פרק_ה[[#This Row],[עמודה2]:[עמודה5]])","v":0},null,null,null,null,null,null,{"$f":"COUNTA(פרק_ו[[#This Row],[עמודה2]:[עמודה5]])","v":0},null,null,null,null,null,null,{"$f":"COUNTA(פרק_ז[[#This Row],[עמודה2]:[עמודה5]])","v":0},null,null,null,null,null,null,{"$f":"COUNTA(פרק_ח[[#This Row],[עמודה2]:[עמודה5]])","v":0},null,null,null,null,null,null,{"$f":"COUNTA(פרק_ט[[#This Row],[עמודה2]:[עמודה5]])","v":0},null,null,null,null,null,null,{"$f":"COUNTA(פרק_י[[#This Row],[עמודה2]:[עמודה5]])","v":0},null,null,null,null,null,null,{"$f":"COUNTA(פרק_יא[[#This Row],[עמודה2]:[עמודה5]])","v":0},null,null,null,null,null,null,{"$f":"COUNTA(פרק_יב[[#This Row],[עמודה2]:[עמודה5]])","v":0},null,null,null,null,null,null,{"$f":"COUNTA(פרק_יג[[#This Row],[עמודה2]:[עמודה5]])","v":0},null,null,null,null,null,null,{"$f":"COUNTA(פרק_יד[[#This Row],[עמודה2]:[עמודה5]])","v":0},null,null,null,null,null,null,{"$f":"COUNTA(פרק_טו[[#This Row],[עמודה2]:[עמודה5]])","v":0},null,null,null,null,null,null,{"$f":"COUNTA(פרק_טז[[#This Row],[עמודה2]:[עמודה5]])","v":0},null,null,null,null,null,null,{"$f":"COUNTA(פרק_יז[[#This Row],[עמודה2]:[עמודה5]])","v":0},null,null,null,null,null,null,{"$f":"COUNTA(פרק_יח[[#This Row],[עמודה2]:[עמודה5]])","v":0},null,null,null,null,null,null,{"$f":"COUNTA(פרק_יט[[#This Row],[עמודה2]:[עמודה5]])","v":0},null,null,null,null,null,null,{"$f":"COUNTA(פרק_כ[[#This Row],[עמודה2]:[עמודה5]])","v":0},null,null,null,null,null,null,{"$f":"COUNTA(פרק_כא[[#This Row],[עמודה2]:[עמודה5]])","v":0},null,null,null,null,null,null,{"$f":"COUNTA(פרק_כב[[#This Row],[עמודה2]:[עמודה5]])","v":0},null,null,null,null,null,null,{"$f":"COUNTA(פרק_כג[[#This Row],[עמודה2]:[עמודה5]])","v":0},null,null,null,null,null,null,{"$f":"COUNTA(פרק_כד[[#This Row],[עמודה2]:[עמודה5]])","v":0}]
[null,null,null,null,null,null,null,{"$f":"COUNTA(פרק_א[[#This Row],[עמודה2]:[עמודה5]])","v":0},null,null,null,null,null,null,{"$f":"COUNTA(פרק_ב[[#This Row],[עמודה2]:[עמודה5]])","v":0},null,null,null,null,null,null,{"$f":"COUNTA(פרק_ג[[#This Row],[עמודה2]:[עמודה5]])","v":0},null,null,null,null,null,null,{"$f":"COUNTA(פרק_ד[[#This Row],[עמודה2]:[עמודה5]])","v":0},null,null,null,null,null,null,{"$f":"COUNTA(פרק_ה[[#This Row],[עמודה2]:[עמודה5]])","v":0},null,null,null,null,null,null,{"$f":"COUNTA(פרק_ו[[#This Row],[עמודה2]:[עמודה5]])","v":0},null,null,null,null,null,null,{"$f":"COUNTA(פרק_ז[[#This Row],[עמודה2]:[עמודה5]])","v":0},null,null,null,null,null,null,{"$f":"COUNTA(פרק_ח[[#This Row],[עמודה2]:[עמודה5]])","v":0},null,null,null,null,null,null,{"$f":"COUNTA(פרק_ט[[#This Row],[עמודה2]:[עמודה5]])","v":0},null,null,null,null,null,null,{"$f":"COUNTA(פרק_י[[#This Row],[עמודה2]:[עמודה5]])","v":0},null,null,null,null,null,null,{"$f":"COUNTA(פרק_יא[[#This Row],[עמודה2]:[עמודה5]])","v":0},null,null,null,null,null,null,{"$f":"COUNTA(פרק_יב[[#This Row],[עמודה2]:[עמודה5]])","v":0},null,null,null,null,null,null,{"$f":"COUNTA(פרק_יג[[#This Row],[עמודה2]:[עמודה5]])","v":0},null,null,null,null,null,null,{"$f":"COUNTA(פרק_יד[[#This Row],[עמודה2]:[עמודה5]])","v":0},null,null,null,null,null,null,{"$f":"COUNTA(פרק_טו[[#This Row],[עמודה2]:[עמודה5]])","v":0},null,null,null,null,null,null,{"$f":"COUNTA(פרק_טז[[#This Row],[עמודה2]:[עמודה5]])","v":0},null,null,null,null,null,null,{"$f":"COUNTA(פרק_יז[[#This Row],[עמודה2]:[עמודה5]])","v":0},null,null,null,null,null,null,{"$f":"COUNTA(פרק_יח[[#This Row],[עמודה2]:[עמודה5]])","v":0},null,null,null,null,null,null,{"$f":"COUNTA(פרק_יט[[#This Row],[עמודה2]:[עמודה5]])","v":0},null,null,null,null,null,null,{"$f":"COUNTA(פרק_כ[[#This Row],[עמודה2]:[עמודה5]])","v":0},null,null,null,null,null,null,{"$f":"COUNTA(פרק_כא[[#This Row],[עמודה2]:[עמודה5]])","v":0},null,null,null,null,null,null,{"$f":"COUNTA(פרק_כב[[#This Row],[עמודה2]:[עמודה5]])","v":0},null,null,null,null,null,null,{"$f":"COUNTA(פרק_כג[[#This Row],[עמודה2]:[עמודה5]])","v":0},null,null,null,null,null,null,{"$f":"COUNTA(פרק_כד[[#This Row],[עמודה2]:[עמודה5]])","v":0}]
[null,null,null,null,null,null,null,{"$f":"COUNTA(פרק_א[[#This Row],[עמודה2]:[עמודה5]])","v":0},null,null,null,null,null,null,{"$f":"COUNTA(פרק_ב[[#This Row],[עמודה2]:[עמודה5]])","v":0},null,null,null,null,null,null,{"$f":"COUNTA(פרק_ג[[#This Row],[עמודה2]:[עמודה5]])","v":0},null,null,null,null,null,null,{"$f":"COUNTA(פרק_ד[[#This Row],[עמודה2]:[עמודה5]])","v":0},null,null,null,null,null,null,{"$f":"COUNTA(פרק_ה[[#This Row],[עמודה2]:[עמודה5]])","v":0},null,null,null,null,null,null,{"$f":"COUNTA(פרק_ו[[#This Row],[עמודה2]:[עמודה5]])","v":0},null,null,null,null,null,null,{"$f":"COUNTA(פרק_ז[[#This Row],[עמודה2]:[עמודה5]])","v":0},null,null,null,null,null,null,{"$f":"COUNTA(פרק_ח[[#This Row],[עמודה2]:[עמודה5]])","v":0},null,null,null,null,null,null,{"$f":"COUNTA(פרק_ט[[#This Row],[עמודה2]:[עמודה5]])","v":0},null,null,null,null,null,null,{"$f":"COUNTA(פרק_י[[#This Row],[עמודה2]:[עמודה5]])","v":0},null,null,null,null,null,null,{"$f":"COUNTA(פרק_יא[[#This Row],[עמודה2]:[עמודה5]])","v":0},null,null,null,null,null,null,{"$f":"COUNTA(פרק_יב[[#This Row],[עמודה2]:[עמודה5]])","v":0},null,null,null,null,null,null,{"$f":"COUNTA(פרק_יג[[#This Row],[עמודה2]:[עמודה5]])","v":0},null,null,null,null,null,null,{"$f":"COUNTA(פרק_יד[[#This Row],[עמודה2]:[עמודה5]])","v":0},null,null,null,null,null,null,{"$f":"COUNTA(פרק_טו[[#This Row],[עמודה2]:[עמודה5]])","v":0},null,null,null,null,null,null,{"$f":"COUNTA(פרק_טז[[#This Row],[עמודה2]:[עמודה5]])","v":0},null,null,null,null,null,null,{"$f":"COUNTA(פרק_יז[[#This Row],[עמודה2]:[עמודה5]])","v":0},null,null,null,null,null,null,{"$f":"COUNTA(פרק_יח[[#This Row],[עמודה2]:[עמודה5]])","v":0},null,null,null,null,null,null,{"$f":"COUNTA(פרק_יט[[#This Row],[עמודה2]:[עמודה5]])","v":0},null,null,null,null,null,null,{"$f":"COUNTA(פרק_כ[[#This Row],[עמודה2]:[עמודה5]])","v":0},null,null,null,null,null,null,{"$f":"COUNTA(פרק_כא[[#This Row],[עמודה2]:[עמודה5]])","v":0},null,null,null,null,null,null,{"$f":"COUNTA(פרק_כב[[#This Row],[עמודה2]:[עמודה5]])","v":0},null,null,null,null,null,null,{"$f":"COUNTA(פרק_כג[[#This Row],[עמודה2]:[עמודה5]])","v":0},null,null,null,null,null,null,{"$f":"COUNTA(פרק_כד[[#This Row],[עמודה2]:[עמודה5]])","v":0}]
[null,null,null,null,null,null,null,{"$f":"COUNTA(פרק_א[[#This Row],[עמודה2]:[עמודה5]])","v":0},null,null,null,null,null,null,{"$f":"COUNTA(פרק_ב[[#This Row],[עמודה2]:[עמודה5]])","v":0},null,null,null,null,null,null,{"$f":"COUNTA(פרק_ג[[#This Row],[עמודה2]:[עמודה5]])","v":0},null,null,null,null,null,null,{"$f":"COUNTA(פרק_ד[[#This Row],[עמודה2]:[עמודה5]])","v":0},null,null,null,null,null,null,{"$f":"COUNTA(פרק_ה[[#This Row],[עמודה2]:[עמודה5]])","v":0},null,null,null,null,null,null,{"$f":"COUNTA(פרק_ו[[#This Row],[עמודה2]:[עמודה5]])","v":0},null,null,null,null,null,null,{"$f":"COUNTA(פרק_ז[[#This Row],[עמודה2]:[עמודה5]])","v":0},null,null,null,null,null,null,{"$f":"COUNTA(פרק_ח[[#This Row],[עמודה2]:[עמודה5]])","v":0},null,null,null,null,null,null,{"$f":"COUNTA(פרק_ט[[#This Row],[עמודה2]:[עמודה5]])","v":0},null,null,null,null,null,null,{"$f":"COUNTA(פרק_י[[#This Row],[עמודה2]:[עמודה5]])","v":0},null,null,null,null,null,null,{"$f":"COUNTA(פרק_יא[[#This Row],[עמודה2]:[עמודה5]])","v":0},null,null,null,null,null,null,{"$f":"COUNTA(פרק_יב[[#This Row],[עמודה2]:[עמודה5]])","v":0},null,null,null,null,null,null,{"$f":"COUNTA(פרק_יג[[#This Row],[עמודה2]:[עמודה5]])","v":0},null,null,null,null,null,null,{"$f":"COUNTA(פרק_יד[[#This Row],[עמודה2]:[עמודה5]])","v":0},null,null,null,null,null,null,{"$f":"COUNTA(פרק_טו[[#This Row],[עמודה2]:[עמודה5]])","v":0},null,null,null,null,null,null,{"$f":"COUNTA(פרק_טז[[#This Row],[עמודה2]:[עמודה5]])","v":0},null,null,null,null,null,null,{"$f":"COUNTA(פרק_יז[[#This Row],[עמודה2]:[עמודה5]])","v":0},null,null,null,null,null,null,{"$f":"COUNTA(פרק_יח[[#This Row],[עמודה2]:[עמודה5]])","v":0},null,null,null,null,null,null,{"$f":"COUNTA(פרק_יט[[#This Row],[עמודה2]:[עמודה5]])","v":0},null,null,null,null,null,null,{"$f":"COUNTA(פרק_כ[[#This Row],[עמודה2]:[עמודה5]])","v":0},null,null,null,null,null,null,{"$f":"COUNTA(פרק_כא[[#This Row],[עמודה2]:[עמודה5]])","v":0},null,null,null,null,null,null,{"$f":"COUNTA(פרק_כב[[#This Row],[עמודה2]:[עמודה5]])","v":0},null,null,null,null,null,null,{"$f":"COUNTA(פרק_כג[[#This Row],[עמודה2]:[עמודה5]])","v":0},null,null,null,null,null,null,{"$f":"COUNTA(פרק_כד[[#This Row],[עמודה2]:[עמודה5]])","v":0}]
[null,null,null,null,null,null,null,{"$f":"COUNTA(פרק_א[[#This Row],[עמודה2]:[עמודה5]])","v":0},null,null,null,null,null,null,{"$f":"COUNTA(פרק_ב[[#This Row],[עמודה2]:[עמודה5]])","v":0},null,null,null,null,null,null,{"$f":"COUNTA(פרק_ג[[#This Row],[עמודה2]:[עמודה5]])","v":0},null,null,null,null,null,null,{"$f":"COUNTA(פרק_ד[[#This Row],[עמודה2]:[עמודה5]])","v":0},null,null,null,null,null,null,{"$f":"COUNTA(פרק_ה[[#This Row],[עמודה2]:[עמודה5]])","v":0},null,null,null,null,null,null,{"$f":"COUNTA(פרק_ו[[#This Row],[עמודה2]:[עמודה5]])","v":0},null,null,null,null,null,null,{"$f":"COUNTA(פרק_ז[[#This Row],[עמודה2]:[עמודה5]])","v":0},null,null,null,null,null,null,{"$f":"COUNTA(פרק_ח[[#This Row],[עמודה2]:[עמודה5]])","v":0},null,null,null,null,null,null,{"$f":"COUNTA(פרק_ט[[#This Row],[עמודה2]:[עמודה5]])","v":0},null,null,null,null,null,null,{"$f":"COUNTA(פרק_י[[#This Row],[עמודה2]:[עמודה5]])","v":0},null,null,null,null,null,null,{"$f":"COUNTA(פרק_יא[[#This Row],[עמודה2]:[עמודה5]])","v":0},null,null,null,null,null,null,{"$f":"COUNTA(פרק_יב[[#This Row],[עמודה2]:[עמודה5]])","v":0},null,null,null,null,null,null,{"$f":"COUNTA(פרק_יג[[#This Row],[עמודה2]:[עמודה5]])","v":0},null,null,null,null,null,null,{"$f":"COUNTA(פרק_יד[[#This Row],[עמודה2]:[עמודה5]])","v":0},null,null,null,null,null,null,{"$f":"COUNTA(פרק_טו[[#This Row],[עמודה2]:[עמודה5]])","v":0},null,null,null,null,null,null,{"$f":"COUNTA(פרק_טז[[#This Row],[עמודה2]:[עמודה5]])","v":0},null,null,null,null,null,null,{"$f":"COUNTA(פרק_יז[[#This Row],[עמודה2]:[עמודה5]])","v":0},null,null,null,null,null,null,{"$f":"COUNTA(פרק_יח[[#This Row],[עמודה2]:[עמודה5]])","v":0},null,null,null,null,null,null,{"$f":"COUNTA(פרק_יט[[#This Row],[עמודה2]:[עמודה5]])","v":0},null,null,null,null,null,null,{"$f":"COUNTA(פרק_כ[[#This Row],[עמודה2]:[עמודה5]])","v":0},null,null,null,null,null,null,{"$f":"COUNTA(פרק_כא[[#This Row],[עמודה2]:[עמודה5]])","v":0},null,null,null,null,null,null,{"$f":"COUNTA(פרק_כב[[#This Row],[עמודה2]:[עמודה5]])","v":0},null,null,null,null,null,null,{"$f":"COUNTA(פרק_כג[[#This Row],[עמודה2]:[עמודה5]])","v":0},null,null,null,null,null,null,{"$f":"COUNTA(פרק_כד[[#This Row],[עמודה2]:[עמודה5]])","v":0}]
[null,null,null,null,null,null,null,{"$f":"COUNTA(פרק_א[[#This Row],[עמודה2]:[עמודה5]])","v":0},null,null,null,null,null,null,{"$f":"COUNTA(פרק_ב[[#This Row],[עמודה2]:[עמודה5]])","v":0},null,null,null,null,null,null,{"$f":"COUNTA(פרק_ג[[#This Row],[עמודה2]:[עמודה5]])","v":0},null,null,null,null,null,null,{"$f":"COUNTA(פרק_ד[[#This Row],[עמודה2]:[עמודה5]])","v":0},null,null,null,null,null,null,{"$f":"COUNTA(פרק_ה[[#This Row],[עמודה2]:[עמודה5]])","v":0},null,null,null,null,null,null,{"$f":"COUNTA(פרק_ו[[#This Row],[עמודה2]:[עמודה5]])","v":0},null,null,null,null,null,null,{"$f":"COUNTA(פרק_ז[[#This Row],[עמודה2]:[עמודה5]])","v":0},null,null,null,null,null,null,{"$f":"COUNTA(פרק_ח[[#This Row],[עמודה2]:[עמודה5]])","v":0},null,null,null,null,null,null,{"$f":"COUNTA(פרק_ט[[#This Row],[עמודה2]:[עמודה5]])","v":0},null,null,null,null,null,null,{"$f":"COUNTA(פרק_י[[#This Row],[עמודה2]:[עמודה5]])","v":0},null,null,null,null,null,null,{"$f":"COUNTA(פרק_יא[[#This Row],[עמודה2]:[עמודה5]])","v":0},null,null,null,null,null,null,{"$f":"COUNTA(פרק_יב[[#This Row],[עמודה2]:[עמודה5]])","v":0},null,null,null,null,null,null,{"$f":"COUNTA(פרק_יג[[#This Row],[עמודה2]:[עמודה5]])","v":0},null,null,null,null,null,null,{"$f":"COUNTA(פרק_יד[[#This Row],[עמודה2]:[עמודה5]])","v":0},null,null,null,null,null,null,{"$f":"COUNTA(פרק_טו[[#This Row],[עמודה2]:[עמודה5]])","v":0},null,null,null,null,null,null,{"$f":"COUNTA(פרק_טז[[#This Row],[עמודה2]:[עמודה5]])","v":0},null,null,null,null,null,null,{"$f":"COUNTA(פרק_יז[[#This Row],[עמודה2]:[עמודה5]])","v":0},null,null,null,null,null,null,{"$f":"COUNTA(פרק_יח[[#This Row],[עמודה2]:[עמודה5]])","v":0},null,null,null,null,null,null,{"$f":"COUNTA(פרק_יט[[#This Row],[עמודה2]:[עמודה5]])","v":0},null,null,null,null,null,null,{"$f":"COUNTA(פרק_כ[[#This Row],[עמודה2]:[עמודה5]])","v":0},null,null,null,null,null,null,{"$f":"COUNTA(פרק_כא[[#This Row],[עמודה2]:[עמודה5]])","v":0},null,null,null,null,null,null,{"$f":"COUNTA(פרק_כב[[#This Row],[עמודה2]:[עמודה5]])","v":0},null,null,null,null,null,null,{"$f":"COUNTA(פרק_כג[[#This Row],[עמודה2]:[עמודה5]])","v":0},null,null,null,null,null,null,{"$f":"COUNTA(פרק_כד[[#This Row],[עמודה2]:[עמודה5]])","v":0}]
[null,null,null,null,null,null,null,{"$f":"COUNTA(פרק_א[[#This Row],[עמודה2]:[עמודה5]])","v":0},null,null,null,null,null,null,{"$f":"COUNTA(פרק_ב[[#This Row],[עמודה2]:[עמודה5]])","v":0},null,null,null,null,null,null,{"$f":"COUNTA(פרק_ג[[#This Row],[עמודה2]:[עמודה5]])","v":0},null,null,null,null,null,null,{"$f":"COUNTA(פרק_ד[[#This Row],[עמודה2]:[עמודה5]])","v":0},null,null,null,null,null,null,{"$f":"COUNTA(פרק_ה[[#This Row],[עמודה2]:[עמודה5]])","v":0},null,null,null,null,null,null,{"$f":"COUNTA(פרק_ו[[#This Row],[עמודה2]:[עמודה5]])","v":0},null,null,null,null,null,null,{"$f":"COUNTA(פרק_ז[[#This Row],[עמודה2]:[עמודה5]])","v":0},null,null,null,null,null,null,{"$f":"COUNTA(פרק_ח[[#This Row],[עמודה2]:[עמודה5]])","v":0},null,null,null,null,null,null,{"$f":"COUNTA(פרק_ט[[#This Row],[עמודה2]:[עמודה5]])","v":0},null,null,null,null,null,null,{"$f":"COUNTA(פרק_י[[#This Row],[עמודה2]:[עמודה5]])","v":0},null,null,null,null,null,null,{"$f":"COUNTA(פרק_יא[[#This Row],[עמודה2]:[עמודה5]])","v":0},null,null,null,null,null,null,{"$f":"COUNTA(פרק_יב[[#This Row],[עמודה2]:[עמודה5]])","v":0},null,null,null,null,null,null,{"$f":"COUNTA(פרק_יג[[#This Row],[עמודה2]:[עמודה5]])","v":0},null,null,null,null,null,null,{"$f":"COUNTA(פרק_יד[[#This Row],[עמודה2]:[עמודה5]])","v":0},null,null,null,null,null,null,{"$f":"COUNTA(פרק_טו[[#This Row],[עמודה2]:[עמודה5]])","v":0},null,null,null,null,null,null,{"$f":"COUNTA(פרק_טז[[#This Row],[עמודה2]:[עמודה5]])","v":0},null,null,null,null,null,null,{"$f":"COUNTA(פרק_יז[[#This Row],[עמודה2]:[עמודה5]])","v":0},null,null,null,null,null,null,{"$f":"COUNTA(פרק_יח[[#This Row],[עמודה2]:[עמודה5]])","v":0},null,null,null,null,null,null,{"$f":"COUNTA(פרק_יט[[#This Row],[עמודה2]:[עמודה5]])","v":0},null,null,null,null,null,null,{"$f":"COUNTA(פרק_כ[[#This Row],[עמודה2]:[עמודה5]])","v":0},null,null,null,null,null,null,{"$f":"COUNTA(פרק_כא[[#This Row],[עמודה2]:[עמודה5]])","v":0},null,null,null,null,null,null,{"$f":"COUNTA(פרק_כב[[#This Row],[עמודה2]:[עמודה5]])","v":0},null,null,null,null,null,null,{"$f":"COUNTA(פרק_כג[[#This Row],[עמודה2]:[עמודה5]])","v":0},null,null,null,null,null,null,{"$f":"COUNTA(פרק_כד[[#This Row],[עמודה2]:[עמודה5]])","v":0}]
[null,null,null,null,null,null,null,{"$f":"COUNTA(פרק_א[[#This Row],[עמודה2]:[עמודה5]])","v":0},null,null,null,null,null,null,{"$f":"COUNTA(פרק_ב[[#This Row],[עמודה2]:[עמודה5]])","v":0},null,null,null,null,null,null,{"$f":"COUNTA(פרק_ג[[#This Row],[עמודה2]:[עמודה5]])","v":0},null,null,null,null,null,null,{"$f":"COUNTA(פרק_ד[[#This Row],[עמודה2]:[עמודה5]])","v":0},null,null,null,null,null,null,{"$f":"COUNTA(פרק_ה[[#This Row],[עמודה2]:[עמודה5]])","v":0},null,null,null,null,null,null,{"$f":"COUNTA(פרק_ו[[#This Row],[עמודה2]:[עמודה5]])","v":0},null,null,null,null,null,null,{"$f":"COUNTA(פרק_ז[[#This Row],[עמודה2]:[עמודה5]])","v":0},null,null,null,null,null,null,{"$f":"COUNTA(פרק_ח[[#This Row],[עמודה2]:[עמודה5]])","v":0},null,null,null,null,null,null,{"$f":"COUNTA(פרק_ט[[#This Row],[עמודה2]:[עמודה5]])","v":0},null,null,null,null,null,null,{"$f":"COUNTA(פרק_י[[#This Row],[עמודה2]:[עמודה5]])","v":0},null,null,null,null,null,null,{"$f":"COUNTA(פרק_יא[[#This Row],[עמודה2]:[עמודה5]])","v":0},null,null,null,null,null,null,{"$f":"COUNTA(פרק_יב[[#This Row],[עמודה2]:[עמודה5]])","v":0},null,null,null,null,null,null,{"$f":"COUNTA(פרק_יג[[#This Row],[עמודה2]:[עמודה5]])","v":0},null,null,null,null,null,null,{"$f":"COUNTA(פרק_יד[[#This Row],[עמודה2]:[עמודה5]])","v":0},null,null,null,null,null,null,{"$f":"COUNTA(פרק_טו[[#This Row],[עמודה2]:[עמודה5]])","v":0},null,null,null,null,null,null,{"$f":"COUNTA(פרק_טז[[#This Row],[עמודה2]:[עמודה5]])","v":0},null,null,null,null,null,null,{"$f":"COUNTA(פרק_יז[[#This Row],[עמודה2]:[עמודה5]])","v":0},null,null,null,null,null,null,{"$f":"COUNTA(פרק_יח[[#This Row],[עמודה2]:[עמודה5]])","v":0},null,null,null,null,null,null,{"$f":"COUNTA(פרק_יט[[#This Row],[עמודה2]:[עמודה5]])","v":0},null,null,null,null,null,null,{"$f":"COUNTA(פרק_כ[[#This Row],[עמודה2]:[עמודה5]])","v":0},null,null,null,null,null,null,{"$f":"COUNTA(פרק_כא[[#This Row],[עמודה2]:[עמודה5]])","v":0},null,null,null,null,null,null,{"$f":"COUNTA(פרק_כב[[#This Row],[עמודה2]:[עמודה5]])","v":0},null,null,null,null,null,null,{"$f":"COUNTA(פרק_כג[[#This Row],[עמודה2]:[עמודה5]])","v":0},null,null,null,null,null,null,{"$f":"COUNTA(פרק_כד[[#This Row],[עמודה2]:[עמודה5]])","v":0}]
[null,null,null,null,null,null,null,{"$f":"COUNTA(פרק_א[[#This Row],[עמודה2]:[עמודה5]])","v":0},null,null,null,null,null,null,{"$f":"COUNTA(פרק_ב[[#This Row],[עמודה2]:[עמודה5]])","v":0},null,null,null,null,null,null,{"$f":"COUNTA(פרק_ג[[#This Row],[עמודה2]:[עמודה5]])","v":0},null,null,null,null,null,null,{"$f":"COUNTA(פרק_ד[[#This Row],[עמודה2]:[עמודה5]])","v":0},null,null,null,null,null,null,{"$f":"COUNTA(פרק_ה[[#This Row],[עמודה2]:[עמודה5]])","v":0},null,null,null,null,null,null,{"$f":"COUNTA(פרק_ו[[#This Row],[עמודה2]:[עמודה5]])","v":0},null,null,null,null,null,null,{"$f":"COUNTA(פרק_ז[[#This Row],[עמודה2]:[עמודה5]])","v":0},null,null,null,null,null,null,{"$f":"COUNTA(פרק_ח[[#This Row],[עמודה2]:[עמודה5]])","v":0},null,null,null,null,null,null,{"$f":"COUNTA(פרק_ט[[#This Row],[עמודה2]:[עמודה5]])","v":0},null,null,null,null,null,null,{"$f":"COUNTA(פרק_י[[#This Row],[עמודה2]:[עמודה5]])","v":0},null,null,null,null,null,null,{"$f":"COUNTA(פרק_יא[[#This Row],[עמודה2]:[עמודה5]])","v":0},null,null,null,null,null,null,{"$f":"COUNTA(פרק_יב[[#This Row],[עמודה2]:[עמודה5]])","v":0},null,null,null,null,null,null,{"$f":"COUNTA(פרק_יג[[#This Row],[עמודה2]:[עמודה5]])","v":0},null,null,null,null,null,null,{"$f":"COUNTA(פרק_יד[[#This Row],[עמודה2]:[עמודה5]])","v":0},null,null,null,null,null,null,{"$f":"COUNTA(פרק_טו[[#This Row],[עמודה2]:[עמודה5]])","v":0},null,null,null,null,null,null,{"$f":"COUNTA(פרק_טז[[#This Row],[עמודה2]:[עמודה5]])","v":0},null,null,null,null,null,null,{"$f":"COUNTA(פרק_יז[[#This Row],[עמודה2]:[עמודה5]])","v":0},null,null,null,null,null,null,{"$f":"COUNTA(פרק_יח[[#This Row],[עמודה2]:[עמודה5]])","v":0},null,null,null,null,null,null,{"$f":"COUNTA(פרק_יט[[#This Row],[עמודה2]:[עמודה5]])","v":0},null,null,null,null,null,null,{"$f":"COUNTA(פרק_כ[[#This Row],[עמודה2]:[עמודה5]])","v":0},null,null,null,null,null,null,{"$f":"COUNTA(פרק_כא[[#This Row],[עמודה2]:[עמודה5]])","v":0},null,null,null,null,null,null,{"$f":"COUNTA(פרק_כב[[#This Row],[עמודה2]:[עמודה5]])","v":0},null,null,null,null,null,null,{"$f":"COUNTA(פרק_כג[[#This Row],[עמודה2]:[עמודה5]])","v":0},null,null,null,null,null,null,{"$f":"COUNTA(פרק_כד[[#This Row],[עמודה2]:[עמודה5]])","v":0}]
[null,null,null,null,null,null,null,{"$f":"COUNTA(פרק_א[[#This Row],[עמודה2]:[עמודה5]])","v":0},null,null,null,null,null,null,{"$f":"COUNTA(פרק_ב[[#This Row],[עמודה2]:[עמודה5]])","v":0},null,null,null,null,null,null,{"$f":"COUNTA(פרק_ג[[#This Row],[עמודה2]:[עמודה5]])","v":0},null,null,null,null,null,null,{"$f":"COUNTA(פרק_ד[[#This Row],[עמודה2]:[עמודה5]])","v":0},null,null,null,null,null,null,{"$f":"COUNTA(פרק_ה[[#This Row],[עמודה2]:[עמודה5]])","v":0},null,null,null,null,null,null,{"$f":"COUNTA(פרק_ו[[#This Row],[עמודה2]:[עמודה5]])","v":0},null,null,null,null,null,null,{"$f":"COUNTA(פרק_ז[[#This Row],[עמודה2]:[עמודה5]])","v":0},null,null,null,null,null,null,{"$f":"COUNTA(פרק_ח[[#This Row],[עמודה2]:[עמודה5]])","v":0},null,null,null,null,null,null,{"$f":"COUNTA(פרק_ט[[#This Row],[עמודה2]:[עמודה5]])","v":0},null,null,null,null,null,null,{"$f":"COUNTA(פרק_י[[#This Row],[עמודה2]:[עמודה5]])","v":0},null,null,null,null,null,null,{"$f":"COUNTA(פרק_יא[[#This Row],[עמודה2]:[עמודה5]])","v":0},null,null,null,null,null,null,{"$f":"COUNTA(פרק_יב[[#This Row],[עמודה2]:[עמודה5]])","v":0},null,null,null,null,null,null,{"$f":"COUNTA(פרק_יג[[#This Row],[עמודה2]:[עמודה5]])","v":0},null,null,null,null,null,null,{"$f":"COUNTA(פרק_יד[[#This Row],[עמודה2]:[עמודה5]])","v":0},null,null,null,null,null,null,{"$f":"COUNTA(פרק_טו[[#This Row],[עמודה2]:[עמודה5]])","v":0},null,null,null,null,null,null,{"$f":"COUNTA(פרק_טז[[#This Row],[עמודה2]:[עמודה5]])","v":0},null,null,null,null,null,null,{"$f":"COUNTA(פרק_יז[[#This Row],[עמודה2]:[עמודה5]])","v":0},null,null,null,null,null,null,{"$f":"COUNTA(פרק_יח[[#This Row],[עמודה2]:[עמודה5]])","v":0},null,null,null,null,null,null,{"$f":"COUNTA(פרק_יט[[#This Row],[עמודה2]:[עמודה5]])","v":0},null,null,null,null,null,null,{"$f":"COUNTA(פרק_כ[[#This Row],[עמודה2]:[עמודה5]])","v":0},null,null,null,null,null,null,{"$f":"COUNTA(פרק_כא[[#This Row],[עמודה2]:[עמודה5]])","v":0},null,null,null,null,null,null,{"$f":"COUNTA(פרק_כב[[#This Row],[עמודה2]:[עמודה5]])","v":0},null,null,null,null,null,null,{"$f":"COUNTA(פרק_כג[[#This Row],[עמודה2]:[עמודה5]])","v":0},null,null,null,null,null,null,{"$f":"COUNTA(פרק_כד[[#This Row],[עמודה2]:[עמודה5]])","v":0}]
[null,null,null,null,null,null,null,{"$f":"COUNTA(פרק_א[[#This Row],[עמודה2]:[עמודה5]])","v":0},null,null,null,null,null,null,{"$f":"COUNTA(פרק_ב[[#This Row],[עמודה2]:[עמודה5]])","v":0},null,null,null,null,null,null,{"$f":"COUNTA(פרק_ג[[#This Row],[עמודה2]:[עמודה5]])","v":0},null,null,null,null,null,null,{"$f":"COUNTA(פרק_ד[[#This Row],[עמודה2]:[עמודה5]])","v":0},null,null,null,null,null,null,{"$f":"COUNTA(פרק_ה[[#This Row],[עמודה2]:[עמודה5]])","v":0},null,null,null,null,null,null,{"$f":"COUNTA(פרק_ו[[#This Row],[עמודה2]:[עמודה5]])","v":0},null,null,null,null,null,null,{"$f":"COUNTA(פרק_ז[[#This Row],[עמודה2]:[עמודה5]])","v":0},null,null,null,null,null,null,{"$f":"COUNTA(פרק_ח[[#This Row],[עמודה2]:[עמודה5]])","v":0},null,null,null,null,null,null,{"$f":"COUNTA(פרק_ט[[#This Row],[עמודה2]:[עמודה5]])","v":0},null,null,null,null,null,null,{"$f":"COUNTA(פרק_י[[#This Row],[עמודה2]:[עמודה5]])","v":0},null,null,null,null,null,null,{"$f":"COUNTA(פרק_יא[[#This Row],[עמודה2]:[עמודה5]])","v":0},null,null,null,null,null,null,{"$f":"COUNTA(פרק_יב[[#This Row],[עמודה2]:[עמודה5]])","v":0},null,null,null,null,null,null,{"$f":"COUNTA(פרק_יג[[#This Row],[עמודה2]:[עמודה5]])","v":0},null,null,null,null,null,null,{"$f":"COUNTA(פרק_יד[[#This Row],[עמודה2]:[עמודה5]])","v":0},null,null,null,null,null,null,{"$f":"COUNTA(פרק_טו[[#This Row],[עמודה2]:[עמודה5]])","v":0},null,null,null,null,null,null,{"$f":"COUNTA(פרק_טז[[#This Row],[עמודה2]:[עמודה5]])","v":0},null,null,null,null,null,null,{"$f":"COUNTA(פרק_יז[[#This Row],[עמודה2]:[עמודה5]])","v":0},null,null,null,null,null,null,{"$f":"COUNTA(פרק_יח[[#This Row],[עמודה2]:[עמודה5]])","v":0},null,null,null,null,null,null,{"$f":"COUNTA(פרק_יט[[#This Row],[עמודה2]:[עמודה5]])","v":0},null,null,null,null,null,null,{"$f":"COUNTA(פרק_כ[[#This Row],[עמודה2]:[עמודה5]])","v":0},null,null,null,null,null,null,{"$f":"COUNTA(פרק_כא[[#This Row],[עמודה2]:[עמודה5]])","v":0},null,null,null,null,null,null,{"$f":"COUNTA(פרק_כב[[#This Row],[עמודה2]:[עמודה5]])","v":0},null,null,null,null,null,null,{"$f":"COUNTA(פרק_כג[[#This Row],[עמודה2]:[עמודה5]])","v":0},null,null,null,null,null,null,{"$f":"COUNTA(פרק_כד[[#This Row],[עמודה2]:[עמודה5]])","v":0}]
[null,null,null,null,null,null,null,{"$f":"COUNTA(פרק_א[[#This Row],[עמודה2]:[עמודה5]])","v":0},null,null,null,null,null,null,{"$f":"COUNTA(פרק_ב[[#This Row],[עמודה2]:[עמודה5]])","v":0},null,null,null,null,null,null,{"$f":"COUNTA(פרק_ג[[#This Row],[עמודה2]:[עמודה5]])","v":0},null,null,null,null,null,null,{"$f":"COUNTA(פרק_ד[[#This Row],[עמודה2]:[עמודה5]])","v":0},null,null,null,null,null,null,{"$f":"COUNTA(פרק_ה[[#This Row],[עמודה2]:[עמודה5]])","v":0},null,null,null,null,null,null,{"$f":"COUNTA(פרק_ו[[#This Row],[עמודה2]:[עמודה5]])","v":0},null,null,null,null,null,null,{"$f":"COUNTA(פרק_ז[[#This Row],[עמודה2]:[עמודה5]])","v":0},null,null,null,null,null,null,{"$f":"COUNTA(פרק_ח[[#This Row],[עמודה2]:[עמודה5]])","v":0},null,null,null,null,null,null,{"$f":"COUNTA(פרק_ט[[#This Row],[עמודה2]:[עמודה5]])","v":0},null,null,null,null,null,null,{"$f":"COUNTA(פרק_י[[#This Row],[עמודה2]:[עמודה5]])","v":0},null,null,null,null,null,null,{"$f":"COUNTA(פרק_יא[[#This Row],[עמודה2]:[עמודה5]])","v":0},null,null,null,null,null,null,{"$f":"COUNTA(פרק_יב[[#This Row],[עמודה2]:[עמודה5]])","v":0},null,null,null,null,null,null,{"$f":"COUNTA(פרק_יג[[#This Row],[עמודה2]:[עמודה5]])","v":0},null,null,null,null,null,null,{"$f":"COUNTA(פרק_יד[[#This Row],[עמודה2]:[עמודה5]])","v":0},null,null,null,null,null,null,{"$f":"COUNTA(פרק_טו[[#This Row],[עמודה2]:[עמודה5]])","v":0},null,null,null,null,null,null,{"$f":"COUNTA(פרק_טז[[#This Row],[עמודה2]:[עמודה5]])","v":0},null,null,null,null,null,null,{"$f":"COUNTA(פרק_יז[[#This Row],[עמודה2]:[עמודה5]])","v":0},null,null,null,null,null,null,{"$f":"COUNTA(פרק_יח[[#This Row],[עמודה2]:[עמודה5]])","v":0},null,null,null,null,null,null,{"$f":"COUNTA(פרק_יט[[#This Row],[עמודה2]:[עמודה5]])","v":0},null,null,null,null,null,null,{"$f":"COUNTA(פרק_כ[[#This Row],[עמודה2]:[עמודה5]])","v":0},null,null,null,null,null,null,{"$f":"COUNTA(פרק_כא[[#This Row],[עמודה2]:[עמודה5]])","v":0},null,null,null,null,null,null,{"$f":"COUNTA(פרק_כב[[#This Row],[עמודה2]:[עמודה5]])","v":0},null,null,null,null,null,null,{"$f":"COUNTA(פרק_כג[[#This Row],[עמודה2]:[עמודה5]])","v":0},null,null,null,null,null,null,{"$f":"COUNTA(פרק_כד[[#This Row],[עמודה2]:[עמודה5]])","v":0}]
[null,null,null,null,null,null,null,{"$f":"COUNTA(פרק_א[[#This Row],[עמודה2]:[עמודה5]])","v":0},null,null,null,null,null,null,{"$f":"COUNTA(פרק_ב[[#This Row],[עמודה2]:[עמודה5]])","v":0},null,null,null,null,null,null,{"$f":"COUNTA(פרק_ג[[#This Row],[עמודה2]:[עמודה5]])","v":0},null,null,null,null,null,null,{"$f":"COUNTA(פרק_ד[[#This Row],[עמודה2]:[עמודה5]])","v":0},null,null,null,null,null,null,{"$f":"COUNTA(פרק_ה[[#This Row],[עמודה2]:[עמודה5]])","v":0},null,null,null,null,null,null,{"$f":"COUNTA(פרק_ו[[#This Row],[עמודה2]:[עמודה5]])","v":0},null,null,null,null,null,null,{"$f":"COUNTA(פרק_ז[[#This Row],[עמודה2]:[עמודה5]])","v":0},null,null,null,null,null,null,{"$f":"COUNTA(פרק_ח[[#This Row],[עמודה2]:[עמודה5]])","v":0},null,null,null,null,null,null,{"$f":"COUNTA(פרק_ט[[#This Row],[עמודה2]:[עמודה5]])","v":0},null,null,null,null,null,null,{"$f":"COUNTA(פרק_י[[#This Row],[עמודה2]:[עמודה5]])","v":0},null,null,null,null,null,null,{"$f":"COUNTA(פרק_יא[[#This Row],[עמודה2]:[עמודה5]])","v":0},null,null,null,null,null,null,{"$f":"COUNTA(פרק_יב[[#This Row],[עמודה2]:[עמודה5]])","v":0},null,null,null,null,null,null,{"$f":"COUNTA(פרק_יג[[#This Row],[עמודה2]:[עמודה5]])","v":0},null,null,null,null,null,null,{"$f":"COUNTA(פרק_יד[[#This Row],[עמודה2]:[עמודה5]])","v":0},null,null,null,null,null,null,{"$f":"COUNTA(פרק_טו[[#This Row],[עמודה2]:[עמודה5]])","v":0},null,null,null,null,null,null,{"$f":"COUNTA(פרק_טז[[#This Row],[עמודה2]:[עמודה5]])","v":0},null,null,null,null,null,null,{"$f":"COUNTA(פרק_יז[[#This Row],[עמודה2]:[עמודה5]])","v":0},null,null,null,null,null,null,{"$f":"COUNTA(פרק_יח[[#This Row],[עמודה2]:[עמודה5]])","v":0},null,null,null,null,null,null,{"$f":"COUNTA(פרק_יט[[#This Row],[עמודה2]:[עמודה5]])","v":0},null,null,null,null,null,null,{"$f":"COUNTA(פרק_כ[[#This Row],[עמודה2]:[עמודה5]])","v":0},null,null,null,null,null,null,{"$f":"COUNTA(פרק_כא[[#This Row],[עמודה2]:[עמודה5]])","v":0},null,null,null,null,null,null,{"$f":"COUNTA(פרק_כב[[#This Row],[עמודה2]:[עמודה5]])","v":0},null,null,null,null,null,null,{"$f":"COUNTA(פרק_כג[[#This Row],[עמודה2]:[עמודה5]])","v":0},null,null,null,null,null,null,{"$f":"COUNTA(פרק_כד[[#This Row],[עמודה2]:[עמודה5]])","v":0}]
[null,null,null,null,null,null,null,{"$f":"COUNTA(פרק_א[[#This Row],[עמודה2]:[עמודה5]])","v":0},null,null,null,null,null,null,{"$f":"COUNTA(פרק_ב[[#This Row],[עמודה2]:[עמודה5]])","v":0},null,null,null,null,null,null,{"$f":"COUNTA(פרק_ג[[#This Row],[עמודה2]:[עמודה5]])","v":0},null,null,null,null,null,null,{"$f":"COUNTA(פרק_ד[[#This Row],[עמודה2]:[עמודה5]])","v":0},null,null,null,null,null,null,{"$f":"COUNTA(פרק_ה[[#This Row],[עמודה2]:[עמודה5]])","v":0},null,null,null,null,null,null,{"$f":"COUNTA(פרק_ו[[#This Row],[עמודה2]:[עמודה5]])","v":0},null,null,null,null,null,null,{"$f":"COUNTA(פרק_ז[[#This Row],[עמודה2]:[עמודה5]])","v":0},null,null,null,null,null,null,{"$f":"COUNTA(פרק_ח[[#This Row],[עמודה2]:[עמודה5]])","v":0},null,null,null,null,null,null,{"$f":"COUNTA(פרק_ט[[#This Row],[עמודה2]:[עמודה5]])","v":0},null,null,null,null,null,null,{"$f":"COUNTA(פרק_י[[#This Row],[עמודה2]:[עמודה5]])","v":0},null,null,null,null,null,null,{"$f":"COUNTA(פרק_יא[[#This Row],[עמודה2]:[עמודה5]])","v":0},null,null,null,null,null,null,{"$f":"COUNTA(פרק_יב[[#This Row],[עמודה2]:[עמודה5]])","v":0},null,null,null,null,null,null,{"$f":"COUNTA(פרק_יג[[#This Row],[עמודה2]:[עמודה5]])","v":0},null,null,null,null,null,null,{"$f":"COUNTA(פרק_יד[[#This Row],[עמודה2]:[עמודה5]])","v":0},null,null,null,null,null,null,{"$f":"COUNTA(פרק_טו[[#This Row],[עמודה2]:[עמודה5]])","v":0},null,null,null,null,null,null,{"$f":"COUNTA(פרק_טז[[#This Row],[עמודה2]:[עמודה5]])","v":0},null,null,null,null,null,null,{"$f":"COUNTA(פרק_יז[[#This Row],[עמודה2]:[עמודה5]])","v":0},null,null,null,null,null,null,{"$f":"COUNTA(פרק_יח[[#This Row],[עמודה2]:[עמודה5]])","v":0},null,null,null,null,null,null,{"$f":"COUNTA(פרק_יט[[#This Row],[עמודה2]:[עמודה5]])","v":0},null,null,null,null,null,null,{"$f":"COUNTA(פרק_כ[[#This Row],[עמודה2]:[עמודה5]])","v":0},null,null,null,null,null,null,{"$f":"COUNTA(פרק_כא[[#This Row],[עמודה2]:[עמודה5]])","v":0},null,null,null,null,null,null,{"$f":"COUNTA(פרק_כב[[#This Row],[עמודה2]:[עמודה5]])","v":0},null,null,null,null,null,null,{"$f":"COUNTA(פרק_כג[[#This Row],[עמודה2]:[עמודה5]])","v":0},null,null,null,null,null,null,{"$f":"COUNTA(פרק_כד[[#This Row],[עמודה2]:[עמודה5]])","v":0}]
[null,null,null,null,null,null,null,{"$f":"COUNTA(פרק_א[[#This Row],[עמודה2]:[עמודה5]])","v":0},null,null,null,null,null,null,{"$f":"COUNTA(פרק_ב[[#This Row],[עמודה2]:[עמודה5]])","v":0},null,null,null,null,null,null,{"$f":"COUNTA(פרק_ג[[#This Row],[עמודה2]:[עמודה5]])","v":0},null,null,null,null,null,null,{"$f":"COUNTA(פרק_ד[[#This Row],[עמודה2]:[עמודה5]])","v":0},null,null,null,null,null,null,{"$f":"COUNTA(פרק_ה[[#This Row],[עמודה2]:[עמודה5]])","v":0},null,null,null,null,null,null,{"$f":"COUNTA(פרק_ו[[#This Row],[עמודה2]:[עמודה5]])","v":0},null,null,null,null,null,null,{"$f":"COUNTA(פרק_ז[[#This Row],[עמודה2]:[עמודה5]])","v":0},null,null,null,null,null,null,{"$f":"COUNTA(פרק_ח[[#This Row],[עמודה2]:[עמודה5]])","v":0},null,null,null,null,null,null,{"$f":"COUNTA(פרק_ט[[#This Row],[עמודה2]:[עמודה5]])","v":0},null,null,null,null,null,null,{"$f":"COUNTA(פרק_י[[#This Row],[עמודה2]:[עמודה5]])","v":0},null,null,null,null,null,null,{"$f":"COUNTA(פרק_יא[[#This Row],[עמודה2]:[עמודה5]])","v":0},null,null,null,null,null,null,{"$f":"COUNTA(פרק_יב[[#This Row],[עמודה2]:[עמודה5]])","v":0},null,null,null,null,null,null,{"$f":"COUNTA(פרק_יג[[#This Row],[עמודה2]:[עמודה5]])","v":0},null,null,null,null,null,null,{"$f":"COUNTA(פרק_יד[[#This Row],[עמודה2]:[עמודה5]])","v":0},null,null,null,null,null,null,{"$f":"COUNTA(פרק_טו[[#This Row],[עמודה2]:[עמודה5]])","v":0},null,null,null,null,null,null,{"$f":"COUNTA(פרק_טז[[#This Row],[עמודה2]:[עמודה5]])","v":0},null,null,null,null,null,null,{"$f":"COUNTA(פרק_יז[[#This Row],[עמודה2]:[עמודה5]])","v":0},null,null,null,null,null,null,{"$f":"COUNTA(פרק_יח[[#This Row],[עמודה2]:[עמודה5]])","v":0},null,null,null,null,null,null,{"$f":"COUNTA(פרק_יט[[#This Row],[עמודה2]:[עמודה5]])","v":0},null,null,null,null,null,null,{"$f":"COUNTA(פרק_כ[[#This Row],[עמודה2]:[עמודה5]])","v":0},null,null,null,null,null,null,{"$f":"COUNTA(פרק_כא[[#This Row],[עמודה2]:[עמודה5]])","v":0},null,null,null,null,null,null,{"$f":"COUNTA(פרק_כב[[#This Row],[עמודה2]:[עמודה5]])","v":0},null,null,null,null,null,null,{"$f":"COUNTA(פרק_כג[[#This Row],[עמודה2]:[עמודה5]])","v":0},null,null,null,null,null,null,{"$f":"COUNTA(פרק_כד[[#This Row],[עמודה2]:[עמודה5]])","v":0}]
[null,null,null,null,null,null,null,{"$f":"COUNTA(פרק_א[[#This Row],[עמודה2]:[עמודה5]])","v":0},null,null,null,null,null,null,{"$f":"COUNTA(פרק_ב[[#This Row],[עמודה2]:[עמודה5]])","v":0},null,null,null,null,null,null,{"$f":"COUNTA(פרק_ג[[#This Row],[עמודה2]:[עמודה5]])","v":0},null,null,null,null,null,null,{"$f":"COUNTA(פרק_ד[[#This Row],[עמודה2]:[עמודה5]])","v":0},null,null,null,null,null,null,{"$f":"COUNTA(פרק_ה[[#This Row],[עמודה2]:[עמודה5]])","v":0},null,null,null,null,null,null,{"$f":"COUNTA(פרק_ו[[#This Row],[עמודה2]:[עמודה5]])","v":0},null,null,null,null,null,null,{"$f":"COUNTA(פרק_ז[[#This Row],[עמודה2]:[עמודה5]])","v":0},null,null,null,null,null,null,{"$f":"COUNTA(פרק_ח[[#This Row],[עמודה2]:[עמודה5]])","v":0},null,null,null,null,null,null,{"$f":"COUNTA(פרק_ט[[#This Row],[עמודה2]:[עמודה5]])","v":0},null,null,null,null,null,null,{"$f":"COUNTA(פרק_י[[#This Row],[עמודה2]:[עמודה5]])","v":0},null,null,null,null,null,null,{"$f":"COUNTA(פרק_יא[[#This Row],[עמודה2]:[עמודה5]])","v":0},null,null,null,null,null,null,{"$f":"COUNTA(פרק_יב[[#This Row],[עמודה2]:[עמודה5]])","v":0},null,null,null,null,null,null,{"$f":"COUNTA(פרק_יג[[#This Row],[עמודה2]:[עמודה5]])","v":0},null,null,null,null,null,null,{"$f":"COUNTA(פרק_יד[[#This Row],[עמודה2]:[עמודה5]])","v":0},null,null,null,null,null,null,{"$f":"COUNTA(פרק_טו[[#This Row],[עמודה2]:[עמודה5]])","v":0},null,null,null,null,null,null,{"$f":"COUNTA(פרק_טז[[#This Row],[עמודה2]:[עמודה5]])","v":0},null,null,null,null,null,null,{"$f":"COUNTA(פרק_יז[[#This Row],[עמודה2]:[עמודה5]])","v":0},null,null,null,null,null,null,{"$f":"COUNTA(פרק_יח[[#This Row],[עמודה2]:[עמודה5]])","v":0},null,null,null,null,null,null,{"$f":"COUNTA(פרק_יט[[#This Row],[עמודה2]:[עמודה5]])","v":0},null,null,null,null,null,null,{"$f":"COUNTA(פרק_כ[[#This Row],[עמודה2]:[עמודה5]])","v":0},null,null,null,null,null,null,{"$f":"COUNTA(פרק_כא[[#This Row],[עמודה2]:[עמודה5]])","v":0},null,null,null,null,null,null,{"$f":"COUNTA(פרק_כב[[#This Row],[עמודה2]:[עמודה5]])","v":0},null,null,null,null,null,null,{"$f":"COUNTA(פרק_כג[[#This Row],[עמודה2]:[עמודה5]])","v":0},null,null,null,null,null,null,{"$f":"COUNTA(פרק_כד[[#This Row],[עמודה2]:[עמודה5]])","v":0}]
[null,null,null,null,null,null,null,{"$f":"COUNTA(פרק_א[[#This Row],[עמודה2]:[עמודה5]])","v":0},null,null,null,null,null,null,{"$f":"COUNTA(פרק_ב[[#This Row],[עמודה2]:[עמודה5]])","v":0},null,null,null,null,null,null,{"$f":"COUNTA(פרק_ג[[#This Row],[עמודה2]:[עמודה5]])","v":0},null,null,null,null,null,null,{"$f":"COUNTA(פרק_ד[[#This Row],[עמודה2]:[עמודה5]])","v":0},null,null,null,null,null,null,{"$f":"COUNTA(פרק_ה[[#This Row],[עמודה2]:[עמודה5]])","v":0},null,null,null,null,null,null,{"$f":"COUNTA(פרק_ו[[#This Row],[עמודה2]:[עמודה5]])","v":0},null,null,null,null,null,null,{"$f":"COUNTA(פרק_ז[[#This Row],[עמודה2]:[עמודה5]])","v":0},null,null,null,null,null,null,{"$f":"COUNTA(פרק_ח[[#This Row],[עמודה2]:[עמודה5]])","v":0},null,null,null,null,null,null,{"$f":"COUNTA(פרק_ט[[#This Row],[עמודה2]:[עמודה5]])","v":0},null,null,null,null,null,null,{"$f":"COUNTA(פרק_י[[#This Row],[עמודה2]:[עמודה5]])","v":0},null,null,null,null,null,null,{"$f":"COUNTA(פרק_יא[[#This Row],[עמודה2]:[עמודה5]])","v":0},null,null,null,null,null,null,{"$f":"COUNTA(פרק_יב[[#This Row],[עמודה2]:[עמודה5]])","v":0},null,null,null,null,null,null,{"$f":"COUNTA(פרק_יג[[#This Row],[עמודה2]:[עמודה5]])","v":0},null,null,null,null,null,null,{"$f":"COUNTA(פרק_יד[[#This Row],[עמודה2]:[עמודה5]])","v":0},null,null,null,null,null,null,{"$f":"COUNTA(פרק_טו[[#This Row],[עמודה2]:[עמודה5]])","v":0},null,null,null,null,null,null,{"$f":"COUNTA(פרק_טז[[#This Row],[עמודה2]:[עמודה5]])","v":0},null,null,null,null,null,null,{"$f":"COUNTA(פרק_יז[[#This Row],[עמודה2]:[עמודה5]])","v":0},null,null,null,null,null,null,{"$f":"COUNTA(פרק_יח[[#This Row],[עמודה2]:[עמודה5]])","v":0},null,null,null,null,null,null,{"$f":"COUNTA(פרק_יט[[#This Row],[עמודה2]:[עמודה5]])","v":0},null,null,null,null,null,null,{"$f":"COUNTA(פרק_כ[[#This Row],[עמודה2]:[עמודה5]])","v":0},null,null,null,null,null,null,{"$f":"COUNTA(פרק_כא[[#This Row],[עמודה2]:[עמודה5]])","v":0},null,null,null,null,null,null,{"$f":"COUNTA(פרק_כב[[#This Row],[עמודה2]:[עמודה5]])","v":0},null,null,null,null,null,null,{"$f":"COUNTA(פרק_כג[[#This Row],[עמודה2]:[עמודה5]])","v":0},null,null,null,null,null,null,{"$f":"COUNTA(פרק_כד[[#This Row],[עמודה2]:[עמודה5]])","v":0}]
[null,null,null,null,null,null,null,{"$f":"COUNTA(פרק_א[[#This Row],[עמודה2]:[עמודה5]])","v":0},null,null,null,null,null,null,{"$f":"COUNTA(פרק_ב[[#This Row],[עמודה2]:[עמודה5]])","v":0},null,null,null,null,null,null,{"$f":"COUNTA(פרק_ג[[#This Row],[עמודה2]:[עמודה5]])","v":0},null,null,null,null,null,null,{"$f":"COUNTA(פרק_ד[[#This Row],[עמודה2]:[עמודה5]])","v":0},null,null,null,null,null,null,{"$f":"COUNTA(פרק_ה[[#This Row],[עמודה2]:[עמודה5]])","v":0},null,null,null,null,null,null,{"$f":"COUNTA(פרק_ו[[#This Row],[עמודה2]:[עמודה5]])","v":0},null,null,null,null,null,null,{"$f":"COUNTA(פרק_ז[[#This Row],[עמודה2]:[עמודה5]])","v":0},null,null,null,null,null,null,{"$f":"COUNTA(פרק_ח[[#This Row],[עמודה2]:[עמודה5]])","v":0},null,null,null,null,null,null,{"$f":"COUNTA(פרק_ט[[#This Row],[עמודה2]:[עמודה5]])","v":0},null,null,null,null,null,null,{"$f":"COUNTA(פרק_י[[#This Row],[עמודה2]:[עמודה5]])","v":0},null,null,null,null,null,null,{"$f":"COUNTA(פרק_יא[[#This Row],[עמודה2]:[עמודה5]])","v":0},null,null,null,null,null,null,{"$f":"COUNTA(פרק_יב[[#This Row],[עמודה2]:[עמודה5]])","v":0},null,null,null,null,null,null,{"$f":"COUNTA(פרק_יג[[#This Row],[עמודה2]:[עמודה5]])","v":0},null,null,null,null,null,null,{"$f":"COUNTA(פרק_יד[[#This Row],[עמודה2]:[עמודה5]])","v":0},null,null,null,null,null,null,{"$f":"COUNTA(פרק_טו[[#This Row],[עמודה2]:[עמודה5]])","v":0},null,null,null,null,null,null,{"$f":"COUNTA(פרק_טז[[#This Row],[עמודה2]:[עמודה5]])","v":0},null,null,null,null,null,null,{"$f":"COUNTA(פרק_יז[[#This Row],[עמודה2]:[עמודה5]])","v":0},null,null,null,null,null,null,{"$f":"COUNTA(פרק_יח[[#This Row],[עמודה2]:[עמודה5]])","v":0},null,null,null,null,null,null,{"$f":"COUNTA(פרק_יט[[#This Row],[עמודה2]:[עמודה5]])","v":0},null,null,null,null,null,null,{"$f":"COUNTA(פרק_כ[[#This Row],[עמודה2]:[עמודה5]])","v":0},null,null,null,null,null,null,{"$f":"COUNTA(פרק_כא[[#This Row],[עמודה2]:[עמודה5]])","v":0},null,null,null,null,null,null,{"$f":"COUNTA(פרק_כב[[#This Row],[עמודה2]:[עמודה5]])","v":0},null,null,null,null,null,null,{"$f":"COUNTA(פרק_כג[[#This Row],[עמודה2]:[עמודה5]])","v":0},null,null,null,null,null,null,{"$f":"COUNTA(פרק_כד[[#This Row],[עמודה2]:[עמודה5]])","v":0}]
[null,null,null,null,null,null,null,{"$f":"COUNTA(פרק_א[[#This Row],[עמודה2]:[עמודה5]])","v":0},null,null,null,null,null,null,{"$f":"COUNTA(פרק_ב[[#This Row],[עמודה2]:[עמודה5]])","v":0},null,null,null,null,null,null,{"$f":"COUNTA(פרק_ג[[#This Row],[עמודה2]:[עמודה5]])","v":0},null,null,null,null,null,null,{"$f":"COUNTA(פרק_ד[[#This Row],[עמודה2]:[עמודה5]])","v":0},null,null,null,null,null,null,{"$f":"COUNTA(פרק_ה[[#This Row],[עמודה2]:[עמודה5]])","v":0},null,null,null,null,null,null,{"$f":"COUNTA(פרק_ו[[#This Row],[עמודה2]:[עמודה5]])","v":0},null,null,null,null,null,null,{"$f":"COUNTA(פרק_ז[[#This Row],[עמודה2]:[עמודה5]])","v":0},null,null,null,null,null,null,{"$f":"COUNTA(פרק_ח[[#This Row],[עמודה2]:[עמודה5]])","v":0},null,null,null,null,null,null,{"$f":"COUNTA(פרק_ט[[#This Row],[עמודה2]:[עמודה5]])","v":0},null,null,null,null,null,null,{"$f":"COUNTA(פרק_י[[#This Row],[עמודה2]:[עמודה5]])","v":0},null,null,null,null,null,null,{"$f":"COUNTA(פרק_יא[[#This Row],[עמודה2]:[עמודה5]])","v":0},null,null,null,null,null,null,{"$f":"COUNTA(פרק_יב[[#This Row],[עמודה2]:[עמודה5]])","v":0},null,null,null,null,null,null,{"$f":"COUNTA(פרק_יג[[#This Row],[עמודה2]:[עמודה5]])","v":0},null,null,null,null,null,null,{"$f":"COUNTA(פרק_יד[[#This Row],[עמודה2]:[עמודה5]])","v":0},null,null,null,null,null,null,{"$f":"COUNTA(פרק_טו[[#This Row],[עמודה2]:[עמודה5]])","v":0},null,null,null,null,null,null,{"$f":"COUNTA(פרק_טז[[#This Row],[עמודה2]:[עמודה5]])","v":0},null,null,null,null,null,null,{"$f":"COUNTA(פרק_יז[[#This Row],[עמודה2]:[עמודה5]])","v":0},null,null,null,null,null,null,{"$f":"COUNTA(פרק_יח[[#This Row],[עמודה2]:[עמודה5]])","v":0},null,null,null,null,null,null,{"$f":"COUNTA(פרק_יט[[#This Row],[עמודה2]:[עמודה5]])","v":0},null,null,null,null,null,null,{"$f":"COUNTA(פרק_כ[[#This Row],[עמודה2]:[עמודה5]])","v":0},null,null,null,null,null,null,{"$f":"COUNTA(פרק_כא[[#This Row],[עמודה2]:[עמודה5]])","v":0},null,null,null,null,null,null,{"$f":"COUNTA(פרק_כב[[#This Row],[עמודה2]:[עמודה5]])","v":0},null,null,null,null,null,null,{"$f":"COUNTA(פרק_כג[[#This Row],[עמודה2]:[עמודה5]])","v":0},null,null,null,null,null,null,{"$f":"COUNTA(פרק_כד[[#This Row],[עמודה2]:[עמודה5]])","v":0}]
[null,null,null,null,null,null,null,{"$f":"COUNTA(פרק_א[[#This Row],[עמודה2]:[עמודה5]])","v":0},null,null,null,null,null,null,{"$f":"COUNTA(פרק_ב[[#This Row],[עמודה2]:[עמודה5]])","v":0},null,null,null,null,null,null,{"$f":"COUNTA(פרק_ג[[#This Row],[עמודה2]:[עמודה5]])","v":0},null,null,null,null,null,null,{"$f":"COUNTA(פרק_ד[[#This Row],[עמודה2]:[עמודה5]])","v":0},null,null,null,null,null,null,{"$f":"COUNTA(פרק_ה[[#This Row],[עמודה2]:[עמודה5]])","v":0},null,null,null,null,null,null,{"$f":"COUNTA(פרק_ו[[#This Row],[עמודה2]:[עמודה5]])","v":0},null,null,null,null,null,null,{"$f":"COUNTA(פרק_ז[[#This Row],[עמודה2]:[עמודה5]])","v":0},null,null,null,null,null,null,{"$f":"COUNTA(פרק_ח[[#This Row],[עמודה2]:[עמודה5]])","v":0},null,null,null,null,null,null,{"$f":"COUNTA(פרק_ט[[#This Row],[עמודה2]:[עמודה5]])","v":0},null,null,null,null,null,null,{"$f":"COUNTA(פרק_י[[#This Row],[עמודה2]:[עמודה5]])","v":0},null,null,null,null,null,null,{"$f":"COUNTA(פרק_יא[[#This Row],[עמודה2]:[עמודה5]])","v":0},null,null,null,null,null,null,{"$f":"COUNTA(פרק_יב[[#This Row],[עמודה2]:[עמודה5]])","v":0},null,null,null,null,null,null,{"$f":"COUNTA(פרק_יג[[#This Row],[עמודה2]:[עמודה5]])","v":0},null,null,null,null,null,null,{"$f":"COUNTA(פרק_יד[[#This Row],[עמודה2]:[עמודה5]])","v":0},null,null,null,null,null,null,{"$f":"COUNTA(פרק_טו[[#This Row],[עמודה2]:[עמודה5]])","v":0},null,null,null,null,null,null,{"$f":"COUNTA(פרק_טז[[#This Row],[עמודה2]:[עמודה5]])","v":0},null,null,null,null,null,null,{"$f":"COUNTA(פרק_יז[[#This Row],[עמודה2]:[עמודה5]])","v":0},null,null,null,null,null,null,{"$f":"COUNTA(פרק_יח[[#This Row],[עמודה2]:[עמודה5]])","v":0},null,null,null,null,null,null,{"$f":"COUNTA(פרק_יט[[#This Row],[עמודה2]:[עמודה5]])","v":0},null,null,null,null,null,null,{"$f":"COUNTA(פרק_כ[[#This Row],[עמודה2]:[עמודה5]])","v":0},null,null,null,null,null,null,{"$f":"COUNTA(פרק_כא[[#This Row],[עמודה2]:[עמודה5]])","v":0},null,null,null,null,null,null,{"$f":"COUNTA(פרק_כב[[#This Row],[עמודה2]:[עמודה5]])","v":0},null,null,null,null,null,null,{"$f":"COUNTA(פרק_כג[[#This Row],[עמודה2]:[עמודה5]])","v":0},null,null,null,null,null,null,{"$f":"COUNTA(פרק_כד[[#This Row],[עמודה2]:[עמודה5]])","v":0}]
[null,null,null,null,null,null,null,{"$f":"COUNTA(פרק_א[[#This Row],[עמודה2]:[עמודה5]])","v":0},null,null,null,null,null,null,{"$f":"COUNTA(פרק_ב[[#This Row],[עמודה2]:[עמודה5]])","v":0},null,null,null,null,null,null,{"$f":"COUNTA(פרק_ג[[#This Row],[עמודה2]:[עמודה5]])","v":0},null,null,null,null,null,null,{"$f":"COUNTA(פרק_ד[[#This Row],[עמודה2]:[עמודה5]])","v":0},null,null,null,null,null,null,{"$f":"COUNTA(פרק_ה[[#This Row],[עמודה2]:[עמודה5]])","v":0},null,null,null,null,null,null,{"$f":"COUNTA(פרק_ו[[#This Row],[עמודה2]:[עמודה5]])","v":0},null,null,null,null,null,null,{"$f":"COUNTA(פרק_ז[[#This Row],[עמודה2]:[עמודה5]])","v":0},null,null,null,null,null,null,{"$f":"COUNTA(פרק_ח[[#This Row],[עמודה2]:[עמודה5]])","v":0},null,null,null,null,null,null,{"$f":"COUNTA(פרק_ט[[#This Row],[עמודה2]:[עמודה5]])","v":0},null,null,null,null,null,null,{"$f":"COUNTA(פרק_י[[#This Row],[עמודה2]:[עמודה5]])","v":0},null,null,null,null,null,null,{"$f":"COUNTA(פרק_יא[[#This Row],[עמודה2]:[עמודה5]])","v":0},null,null,null,null,null,null,{"$f":"COUNTA(פרק_יב[[#This Row],[עמודה2]:[עמודה5]])","v":0},null,null,null,null,null,null,{"$f":"COUNTA(פרק_יג[[#This Row],[עמודה2]:[עמודה5]])","v":0},null,null,null,null,null,null,{"$f":"COUNTA(פרק_יד[[#This Row],[עמודה2]:[עמודה5]])","v":0},null,null,null,null,null,null,{"$f":"COUNTA(פרק_טו[[#This Row],[עמודה2]:[עמודה5]])","v":0},null,null,null,null,null,null,{"$f":"COUNTA(פרק_טז[[#This Row],[עמודה2]:[עמודה5]])","v":0},null,null,null,null,null,null,{"$f":"COUNTA(פרק_יז[[#This Row],[עמודה2]:[עמודה5]])","v":0},null,null,null,null,null,null,{"$f":"COUNTA(פרק_יח[[#This Row],[עמודה2]:[עמודה5]])","v":0},null,null,null,null,null,null,{"$f":"COUNTA(פרק_יט[[#This Row],[עמודה2]:[עמודה5]])","v":0},null,null,null,null,null,null,{"$f":"COUNTA(פרק_כ[[#This Row],[עמודה2]:[עמודה5]])","v":0},null,null,null,null,null,null,{"$f":"COUNTA(פרק_כא[[#This Row],[עמודה2]:[עמודה5]])","v":0},null,null,null,null,null,null,{"$f":"COUNTA(פרק_כב[[#This Row],[עמודה2]:[עמודה5]])","v":0},null,null,null,null,null,null,{"$f":"COUNTA(פרק_כג[[#This Row],[עמודה2]:[עמודה5]])","v":0},null,null,null,null,null,null,{"$f":"COUNTA(פרק_כד[[#This Row],[עמודה2]:[עמודה5]])","v":0}]
[null,null,null,null,null,null,null,{"$f":"COUNTA(פרק_א[[#This Row],[עמודה2]:[עמודה5]])","v":0},null,null,null,null,null,null,{"$f":"COUNTA(פרק_ב[[#This Row],[עמודה2]:[עמודה5]])","v":0},null,null,null,null,null,null,{"$f":"COUNTA(פרק_ג[[#This Row],[עמודה2]:[עמודה5]])","v":0},null,null,null,null,null,null,{"$f":"COUNTA(פרק_ד[[#This Row],[עמודה2]:[עמודה5]])","v":0},null,null,null,null,null,null,{"$f":"COUNTA(פרק_ה[[#This Row],[עמודה2]:[עמודה5]])","v":0},null,null,null,null,null,null,{"$f":"COUNTA(פרק_ו[[#This Row],[עמודה2]:[עמודה5]])","v":0},null,null,null,null,null,null,{"$f":"COUNTA(פרק_ז[[#This Row],[עמודה2]:[עמודה5]])","v":0},null,null,null,null,null,null,{"$f":"COUNTA(פרק_ח[[#This Row],[עמודה2]:[עמודה5]])","v":0},null,null,null,null,null,null,{"$f":"COUNTA(פרק_ט[[#This Row],[עמודה2]:[עמודה5]])","v":0},null,null,null,null,null,null,{"$f":"COUNTA(פרק_י[[#This Row],[עמודה2]:[עמודה5]])","v":0},null,null,null,null,null,null,{"$f":"COUNTA(פרק_יא[[#This Row],[עמודה2]:[עמודה5]])","v":0},null,null,null,null,null,null,{"$f":"COUNTA(פרק_יב[[#This Row],[עמודה2]:[עמודה5]])","v":0},null,null,null,null,null,null,{"$f":"COUNTA(פרק_יג[[#This Row],[עמודה2]:[עמודה5]])","v":0},null,null,null,null,null,null,{"$f":"COUNTA(פרק_יד[[#This Row],[עמודה2]:[עמודה5]])","v":0},null,null,null,null,null,null,{"$f":"COUNTA(פרק_טו[[#This Row],[עמודה2]:[עמודה5]])","v":0},null,null,null,null,null,null,{"$f":"COUNTA(פרק_טז[[#This Row],[עמודה2]:[עמודה5]])","v":0},null,null,null,null,null,null,{"$f":"COUNTA(פרק_יז[[#This Row],[עמודה2]:[עמודה5]])","v":0},null,null,null,null,null,null,{"$f":"COUNTA(פרק_יח[[#This Row],[עמודה2]:[עמודה5]])","v":0},null,null,null,null,null,null,{"$f":"COUNTA(פרק_יט[[#This Row],[עמודה2]:[עמודה5]])","v":0},null,null,null,null,null,null,{"$f":"COUNTA(פרק_כ[[#This Row],[עמודה2]:[עמודה5]])","v":0},null,null,null,null,null,null,{"$f":"COUNTA(פרק_כא[[#This Row],[עמודה2]:[עמודה5]])","v":0},null,null,null,null,null,null,{"$f":"COUNTA(פרק_כב[[#This Row],[עמודה2]:[עמודה5]])","v":0},null,null,null,null,null,null,{"$f":"COUNTA(פרק_כג[[#This Row],[עמודה2]:[עמודה5]])","v":0},null,null,null,null,null,null,{"$f":"COUNTA(פרק_כד[[#This Row],[עמודה2]:[עמודה5]])","v":0}]
[null,null,null,null,null,null,null,{"$f":"COUNTA(פרק_א[[#This Row],[עמודה2]:[עמודה5]])","v":0},null,null,null,null,null,null,{"$f":"COUNTA(פרק_ב[[#This Row],[עמודה2]:[עמודה5]])","v":0},null,null,null,null,null,null,{"$f":"COUNTA(פרק_ג[[#This Row],[עמודה2]:[עמודה5]])","v":0},null,null,null,null,null,null,{"$f":"COUNTA(פרק_ד[[#This Row],[עמודה2]:[עמודה5]])","v":0},null,null,null,null,null,null,{"$f":"COUNTA(פרק_ה[[#This Row],[עמודה2]:[עמודה5]])","v":0},null,null,null,null,null,null,{"$f":"COUNTA(פרק_ו[[#This Row],[עמודה2]:[עמודה5]])","v":0},null,null,null,null,null,null,{"$f":"COUNTA(פרק_ז[[#This Row],[עמודה2]:[עמודה5]])","v":0},null,null,null,null,null,null,{"$f":"COUNTA(פרק_ח[[#This Row],[עמודה2]:[עמודה5]])","v":0},null,null,null,null,null,null,{"$f":"COUNTA(פרק_ט[[#This Row],[עמודה2]:[עמודה5]])","v":0},null,null,null,null,null,null,{"$f":"COUNTA(פרק_י[[#This Row],[עמודה2]:[עמודה5]])","v":0},null,null,null,null,null,null,{"$f":"COUNTA(פרק_יא[[#This Row],[עמודה2]:[עמודה5]])","v":0},null,null,null,null,null,null,{"$f":"COUNTA(פרק_יב[[#This Row],[עמודה2]:[עמודה5]])","v":0},null,null,null,null,null,null,{"$f":"COUNTA(פרק_יג[[#This Row],[עמודה2]:[עמודה5]])","v":0},null,null,null,null,null,null,{"$f":"COUNTA(פרק_יד[[#This Row],[עמודה2]:[עמודה5]])","v":0},null,null,null,null,null,null,{"$f":"COUNTA(פרק_טו[[#This Row],[עמודה2]:[עמודה5]])","v":0},null,null,null,null,null,null,{"$f":"COUNTA(פרק_טז[[#This Row],[עמודה2]:[עמודה5]])","v":0},null,null,null,null,null,null,{"$f":"COUNTA(פרק_יז[[#This Row],[עמודה2]:[עמודה5]])","v":0},null,null,null,null,null,null,{"$f":"COUNTA(פרק_יח[[#This Row],[עמודה2]:[עמודה5]])","v":0},null,null,null,null,null,null,{"$f":"COUNTA(פרק_יט[[#This Row],[עמודה2]:[עמודה5]])","v":0},null,null,null,null,null,null,{"$f":"COUNTA(פרק_כ[[#This Row],[עמודה2]:[עמודה5]])","v":0},null,null,null,null,null,null,{"$f":"COUNTA(פרק_כא[[#This Row],[עמודה2]:[עמודה5]])","v":0},null,null,null,null,null,null,{"$f":"COUNTA(פרק_כב[[#This Row],[עמודה2]:[עמודה5]])","v":0},null,null,null,null,null,null,{"$f":"COUNTA(פרק_כג[[#This Row],[עמודה2]:[עמודה5]])","v":0},null,null,null,null,null,null,{"$f":"COUNTA(פרק_כד[[#This Row],[עמודה2]:[עמודה5]])","v":0}]
[null,null,null,null,null,null,null,{"$f":"COUNTA(פרק_א[[#This Row],[עמודה2]:[עמודה5]])","v":0},null,null,null,null,null,null,{"$f":"COUNTA(פרק_ב[[#This Row],[עמודה2]:[עמודה5]])","v":0},null,null,null,null,null,null,{"$f":"COUNTA(פרק_ג[[#This Row],[עמודה2]:[עמודה5]])","v":0},null,null,null,null,null,null,{"$f":"COUNTA(פרק_ד[[#This Row],[עמודה2]:[עמודה5]])","v":0},null,null,null,null,null,null,{"$f":"COUNTA(פרק_ה[[#This Row],[עמודה2]:[עמודה5]])","v":0},null,null,null,null,null,null,{"$f":"COUNTA(פרק_ו[[#This Row],[עמודה2]:[עמודה5]])","v":0},null,null,null,null,null,null,{"$f":"COUNTA(פרק_ז[[#This Row],[עמודה2]:[עמודה5]])","v":0},null,null,null,null,null,null,{"$f":"COUNTA(פרק_ח[[#This Row],[עמודה2]:[עמודה5]])","v":0},null,null,null,null,null,null,{"$f":"COUNTA(פרק_ט[[#This Row],[עמודה2]:[עמודה5]])","v":0},null,null,null,null,null,null,{"$f":"COUNTA(פרק_י[[#This Row],[עמודה2]:[עמודה5]])","v":0},null,null,null,null,null,null,{"$f":"COUNTA(פרק_יא[[#This Row],[עמודה2]:[עמודה5]])","v":0},null,null,null,null,null,null,{"$f":"COUNTA(פרק_יב[[#This Row],[עמודה2]:[עמודה5]])","v":0},null,null,null,null,null,null,{"$f":"COUNTA(פרק_יג[[#This Row],[עמודה2]:[עמודה5]])","v":0},null,null,null,null,null,null,{"$f":"COUNTA(פרק_יד[[#This Row],[עמודה2]:[עמודה5]])","v":0},null,null,null,null,null,null,{"$f":"COUNTA(פרק_טו[[#This Row],[עמודה2]:[עמודה5]])","v":0},null,null,null,null,null,null,{"$f":"COUNTA(פרק_טז[[#This Row],[עמודה2]:[עמודה5]])","v":0},null,null,null,null,null,null,{"$f":"COUNTA(פרק_יז[[#This Row],[עמודה2]:[עמודה5]])","v":0},null,null,null,null,null,null,{"$f":"COUNTA(פרק_יח[[#This Row],[עמודה2]:[עמודה5]])","v":0},null,null,null,null,null,null,{"$f":"COUNTA(פרק_יט[[#This Row],[עמודה2]:[עמודה5]])","v":0},null,null,null,null,null,null,{"$f":"COUNTA(פרק_כ[[#This Row],[עמודה2]:[עמודה5]])","v":0},null,null,null,null,null,null,{"$f":"COUNTA(פרק_כא[[#This Row],[עמודה2]:[עמודה5]])","v":0},null,null,null,null,null,null,{"$f":"COUNTA(פרק_כב[[#This Row],[עמודה2]:[עמודה5]])","v":0},null,null,null,null,null,null,{"$f":"COUNTA(פרק_כג[[#This Row],[עמודה2]:[עמודה5]])","v":0},null,null,null,null,null,null,{"$f":"COUNTA(פרק_כד[[#This Row],[עמודה2]:[עמודה5]])","v":0}]
[null,null,null,null,null,null,null,{"$f":"COUNTA(פרק_א[[#This Row],[עמודה2]:[עמודה5]])","v":0},null,null,null,null,null,null,{"$f":"COUNTA(פרק_ב[[#This Row],[עמודה2]:[עמודה5]])","v":0},null,null,null,null,null,null,{"$f":"COUNTA(פרק_ג[[#This Row],[עמודה2]:[עמודה5]])","v":0},null,null,null,null,null,null,{"$f":"COUNTA(פרק_ד[[#This Row],[עמודה2]:[עמודה5]])","v":0},null,null,null,null,null,null,{"$f":"COUNTA(פרק_ה[[#This Row],[עמודה2]:[עמודה5]])","v":0},null,null,null,null,null,null,{"$f":"COUNTA(פרק_ו[[#This Row],[עמודה2]:[עמודה5]])","v":0},null,null,null,null,null,null,{"$f":"COUNTA(פרק_ז[[#This Row],[עמודה2]:[עמודה5]])","v":0},null,null,null,null,null,null,{"$f":"COUNTA(פרק_ח[[#This Row],[עמודה2]:[עמודה5]])","v":0},null,null,null,null,null,null,{"$f":"COUNTA(פרק_ט[[#This Row],[עמודה2]:[עמודה5]])","v":0},null,null,null,null,null,null,{"$f":"COUNTA(פרק_י[[#This Row],[עמודה2]:[עמודה5]])","v":0},null,null,null,null,null,null,{"$f":"COUNTA(פרק_יא[[#This Row],[עמודה2]:[עמודה5]])","v":0},null,null,null,null,null,null,{"$f":"COUNTA(פרק_יב[[#This Row],[עמודה2]:[עמודה5]])","v":0},null,null,null,null,null,null,{"$f":"COUNTA(פרק_יג[[#This Row],[עמודה2]:[עמודה5]])","v":0},null,null,null,null,null,null,{"$f":"COUNTA(פרק_יד[[#This Row],[עמודה2]:[עמודה5]])","v":0},null,null,null,null,null,null,{"$f":"COUNTA(פרק_טו[[#This Row],[עמודה2]:[עמודה5]])","v":0},null,null,null,null,null,null,{"$f":"COUNTA(פרק_טז[[#This Row],[עמודה2]:[עמודה5]])","v":0},null,null,null,null,null,null,{"$f":"COUNTA(פרק_יז[[#This Row],[עמודה2]:[עמודה5]])","v":0},null,null,null,null,null,null,{"$f":"COUNTA(פרק_יח[[#This Row],[עמודה2]:[עמודה5]])","v":0},null,null,null,null,null,null,{"$f":"COUNTA(פרק_יט[[#This Row],[עמודה2]:[עמודה5]])","v":0},null,null,null,null,null,null,{"$f":"COUNTA(פרק_כ[[#This Row],[עמודה2]:[עמודה5]])","v":0},null,null,null,null,null,null,{"$f":"COUNTA(פרק_כא[[#This Row],[עמודה2]:[עמודה5]])","v":0},null,null,null,null,null,null,{"$f":"COUNTA(פרק_כב[[#This Row],[עמודה2]:[עמודה5]])","v":0},null,null,null,null,null,null,{"$f":"COUNTA(פרק_כג[[#This Row],[עמודה2]:[עמודה5]])","v":0},null,null,null,null,null,null,{"$f":"COUNTA(פרק_כד[[#This Row],[עמודה2]:[עמודה5]])","v":0}]
[null,null,null,null,null,null,null,{"$f":"COUNTA(פרק_א[[#This Row],[עמודה2]:[עמודה5]])","v":0},null,null,null,null,null,null,{"$f":"COUNTA(פרק_ב[[#This Row],[עמודה2]:[עמודה5]])","v":0},null,null,null,null,null,null,{"$f":"COUNTA(פרק_ג[[#This Row],[עמודה2]:[עמודה5]])","v":0},null,null,null,null,null,null,{"$f":"COUNTA(פרק_ד[[#This Row],[עמודה2]:[עמודה5]])","v":0},null,null,null,null,null,null,{"$f":"COUNTA(פרק_ה[[#This Row],[עמודה2]:[עמודה5]])","v":0},null,null,null,null,null,null,{"$f":"COUNTA(פרק_ו[[#This Row],[עמודה2]:[עמודה5]])","v":0},null,null,null,null,null,null,{"$f":"COUNTA(פרק_ז[[#This Row],[עמודה2]:[עמודה5]])","v":0},null,null,null,null,null,null,{"$f":"COUNTA(פרק_ח[[#This Row],[עמודה2]:[עמודה5]])","v":0},null,null,null,null,null,null,{"$f":"COUNTA(פרק_ט[[#This Row],[עמודה2]:[עמודה5]])","v":0},null,null,null,null,null,null,{"$f":"COUNTA(פרק_י[[#This Row],[עמודה2]:[עמודה5]])","v":0},null,null,null,null,null,null,{"$f":"COUNTA(פרק_יא[[#This Row],[עמודה2]:[עמודה5]])","v":0},null,null,null,null,null,null,{"$f":"COUNTA(פרק_יב[[#This Row],[עמודה2]:[עמודה5]])","v":0},null,null,null,null,null,null,{"$f":"COUNTA(פרק_יג[[#This Row],[עמודה2]:[עמודה5]])","v":0},null,null,null,null,null,null,{"$f":"COUNTA(פרק_יד[[#This Row],[עמודה2]:[עמודה5]])","v":0},null,null,null,null,null,null,{"$f":"COUNTA(פרק_טו[[#This Row],[עמודה2]:[עמודה5]])","v":0},null,null,null,null,null,null,{"$f":"COUNTA(פרק_טז[[#This Row],[עמודה2]:[עמודה5]])","v":0},null,null,null,null,null,null,{"$f":"COUNTA(פרק_יז[[#This Row],[עמודה2]:[עמודה5]])","v":0},null,null,null,null,null,null,{"$f":"COUNTA(פרק_יח[[#This Row],[עמודה2]:[עמודה5]])","v":0},null,null,null,null,null,null,{"$f":"COUNTA(פרק_יט[[#This Row],[עמודה2]:[עמודה5]])","v":0},null,null,null,null,null,null,{"$f":"COUNTA(פרק_כ[[#This Row],[עמודה2]:[עמודה5]])","v":0},null,null,null,null,null,null,{"$f":"COUNTA(פרק_כא[[#This Row],[עמודה2]:[עמודה5]])","v":0},null,null,null,null,null,null,{"$f":"COUNTA(פרק_כב[[#This Row],[עמודה2]:[עמודה5]])","v":0},null,null,null,null,null,null,{"$f":"COUNTA(פרק_כג[[#This Row],[עמודה2]:[עמודה5]])","v":0},null,null,null,null,null,null,{"$f":"COUNTA(פרק_כד[[#This Row],[עמודה2]:[עמודה5]])","v":0}]
[null,null,null,null,null,null,null,{"$f":"COUNTA(פרק_א[[#This Row],[עמודה2]:[עמודה5]])","v":0},null,null,null,null,null,null,{"$f":"COUNTA(פרק_ב[[#This Row],[עמודה2]:[עמודה5]])","v":0},null,null,null,null,null,null,{"$f":"COUNTA(פרק_ג[[#This Row],[עמודה2]:[עמודה5]])","v":0},null,null,null,null,null,null,{"$f":"COUNTA(פרק_ד[[#This Row],[עמודה2]:[עמודה5]])","v":0},null,null,null,null,null,null,{"$f":"COUNTA(פרק_ה[[#This Row],[עמודה2]:[עמודה5]])","v":0},null,null,null,null,null,null,{"$f":"COUNTA(פרק_ו[[#This Row],[עמודה2]:[עמודה5]])","v":0},null,null,null,null,null,null,{"$f":"COUNTA(פרק_ז[[#This Row],[עמודה2]:[עמודה5]])","v":0},null,null,null,null,null,null,{"$f":"COUNTA(פרק_ח[[#This Row],[עמודה2]:[עמודה5]])","v":0},null,null,null,null,null,null,{"$f":"COUNTA(פרק_ט[[#This Row],[עמודה2]:[עמודה5]])","v":0},null,null,null,null,null,null,{"$f":"COUNTA(פרק_י[[#This Row],[עמודה2]:[עמודה5]])","v":0},null,null,null,null,null,null,{"$f":"COUNTA(פרק_יא[[#This Row],[עמודה2]:[עמודה5]])","v":0},null,null,null,null,null,null,{"$f":"COUNTA(פרק_יב[[#This Row],[עמודה2]:[עמודה5]])","v":0},null,null,null,null,null,null,{"$f":"COUNTA(פרק_יג[[#This Row],[עמודה2]:[עמודה5]])","v":0},null,null,null,null,null,null,{"$f":"COUNTA(פרק_יד[[#This Row],[עמודה2]:[עמודה5]])","v":0},null,null,null,null,null,null,{"$f":"COUNTA(פרק_טו[[#This Row],[עמודה2]:[עמודה5]])","v":0},null,null,null,null,null,null,{"$f":"COUNTA(פרק_טז[[#This Row],[עמודה2]:[עמודה5]])","v":0},null,null,null,null,null,null,{"$f":"COUNTA(פרק_יז[[#This Row],[עמודה2]:[עמודה5]])","v":0},null,null,null,null,null,null,{"$f":"COUNTA(פרק_יח[[#This Row],[עמודה2]:[עמודה5]])","v":0},null,null,null,null,null,null,{"$f":"COUNTA(פרק_יט[[#This Row],[עמודה2]:[עמודה5]])","v":0},null,null,null,null,null,null,{"$f":"COUNTA(פרק_כ[[#This Row],[עמודה2]:[עמודה5]])","v":0},null,null,null,null,null,null,{"$f":"COUNTA(פרק_כא[[#This Row],[עמודה2]:[עמודה5]])","v":0},null,null,null,null,null,null,{"$f":"COUNTA(פרק_כב[[#This Row],[עמודה2]:[עמודה5]])","v":0},null,null,null,null,null,null,{"$f":"COUNTA(פרק_כג[[#This Row],[עמודה2]:[עמודה5]])","v":0},null,null,null,null,null,null,{"$f":"COUNTA(פרק_כד[[#This Row],[עמודה2]:[עמודה5]])","v":0}]
[null,null,null,null,null,null,null,{"$f":"COUNTA(פרק_א[[#This Row],[עמודה2]:[עמודה5]])","v":0},null,null,null,null,null,null,{"$f":"COUNTA(פרק_ב[[#This Row],[עמודה2]:[עמודה5]])","v":0},null,null,null,null,null,null,{"$f":"COUNTA(פרק_ג[[#This Row],[עמודה2]:[עמודה5]])","v":0},null,null,null,null,null,null,{"$f":"COUNTA(פרק_ד[[#This Row],[עמודה2]:[עמודה5]])","v":0},null,null,null,null,null,null,{"$f":"COUNTA(פרק_ה[[#This Row],[עמודה2]:[עמודה5]])","v":0},null,null,null,null,null,null,{"$f":"COUNTA(פרק_ו[[#This Row],[עמודה2]:[עמודה5]])","v":0},null,null,null,null,null,null,{"$f":"COUNTA(פרק_ז[[#This Row],[עמודה2]:[עמודה5]])","v":0},null,null,null,null,null,null,{"$f":"COUNTA(פרק_ח[[#This Row],[עמודה2]:[עמודה5]])","v":0},null,null,null,null,null,null,{"$f":"COUNTA(פרק_ט[[#This Row],[עמודה2]:[עמודה5]])","v":0},null,null,null,null,null,null,{"$f":"COUNTA(פרק_י[[#This Row],[עמודה2]:[עמודה5]])","v":0},null,null,null,null,null,null,{"$f":"COUNTA(פרק_יא[[#This Row],[עמודה2]:[עמודה5]])","v":0},null,null,null,null,null,null,{"$f":"COUNTA(פרק_יב[[#This Row],[עמודה2]:[עמודה5]])","v":0},null,null,null,null,null,null,{"$f":"COUNTA(פרק_יג[[#This Row],[עמודה2]:[עמודה5]])","v":0},null,null,null,null,null,null,{"$f":"COUNTA(פרק_יד[[#This Row],[עמודה2]:[עמודה5]])","v":0},null,null,null,null,null,null,{"$f":"COUNTA(פרק_טו[[#This Row],[עמודה2]:[עמודה5]])","v":0},null,null,null,null,null,null,{"$f":"COUNTA(פרק_טז[[#This Row],[עמודה2]:[עמודה5]])","v":0},null,null,null,null,null,null,{"$f":"COUNTA(פרק_יז[[#This Row],[עמודה2]:[עמודה5]])","v":0},null,null,null,null,null,null,{"$f":"COUNTA(פרק_יח[[#This Row],[עמודה2]:[עמודה5]])","v":0},null,null,null,null,null,null,{"$f":"COUNTA(פרק_יט[[#This Row],[עמודה2]:[עמודה5]])","v":0},null,null,null,null,null,null,{"$f":"COUNTA(פרק_כ[[#This Row],[עמודה2]:[עמודה5]])","v":0},null,null,null,null,null,null,{"$f":"COUNTA(פרק_כא[[#This Row],[עמודה2]:[עמודה5]])","v":0},null,null,null,null,null,null,{"$f":"COUNTA(פרק_כב[[#This Row],[עמודה2]:[עמודה5]])","v":0},null,null,null,null,null,null,{"$f":"COUNTA(פרק_כג[[#This Row],[עמודה2]:[עמודה5]])","v":0},null,null,null,null,null,null,{"$f":"COUNTA(פרק_כד[[#This Row],[עמודה2]:[עמודה5]])","v":0}]
[null,null,null,null,null,null,null,{"$f":"COUNTA(פרק_א[[#This Row],[עמודה2]:[עמודה5]])","v":0},null,null,null,null,null,null,{"$f":"COUNTA(פרק_ב[[#This Row],[עמודה2]:[עמודה5]])","v":0},null,null,null,null,null,null,{"$f":"COUNTA(פרק_ג[[#This Row],[עמודה2]:[עמודה5]])","v":0},null,null,null,null,null,null,{"$f":"COUNTA(פרק_ד[[#This Row],[עמודה2]:[עמודה5]])","v":0},null,null,null,null,null,null,{"$f":"COUNTA(פרק_ה[[#This Row],[עמודה2]:[עמודה5]])","v":0},null,null,null,null,null,null,{"$f":"COUNTA(פרק_ו[[#This Row],[עמודה2]:[עמודה5]])","v":0},null,null,null,null,null,null,{"$f":"COUNTA(פרק_ז[[#This Row],[עמודה2]:[עמודה5]])","v":0},null,null,null,null,null,null,{"$f":"COUNTA(פרק_ח[[#This Row],[עמודה2]:[עמודה5]])","v":0},null,null,null,null,null,null,{"$f":"COUNTA(פרק_ט[[#This Row],[עמודה2]:[עמודה5]])","v":0},null,null,null,null,null,null,{"$f":"COUNTA(פרק_י[[#This Row],[עמודה2]:[עמודה5]])","v":0},null,null,null,null,null,null,{"$f":"COUNTA(פרק_יא[[#This Row],[עמודה2]:[עמודה5]])","v":0},null,null,null,null,null,null,{"$f":"COUNTA(פרק_יב[[#This Row],[עמודה2]:[עמודה5]])","v":0},null,null,null,null,null,null,{"$f":"COUNTA(פרק_יג[[#This Row],[עמודה2]:[עמודה5]])","v":0},null,null,null,null,null,null,{"$f":"COUNTA(פרק_יד[[#This Row],[עמודה2]:[עמודה5]])","v":0},null,null,null,null,null,null,{"$f":"COUNTA(פרק_טו[[#This Row],[עמודה2]:[עמודה5]])","v":0},null,null,null,null,null,null,{"$f":"COUNTA(פרק_טז[[#This Row],[עמודה2]:[עמודה5]])","v":0},null,null,null,null,null,null,{"$f":"COUNTA(פרק_יז[[#This Row],[עמודה2]:[עמודה5]])","v":0},null,null,null,null,null,null,{"$f":"COUNTA(פרק_יח[[#This Row],[עמודה2]:[עמודה5]])","v":0},null,null,null,null,null,null,{"$f":"COUNTA(פרק_יט[[#This Row],[עמודה2]:[עמודה5]])","v":0},null,null,null,null,null,null,{"$f":"COUNTA(פרק_כ[[#This Row],[עמודה2]:[עמודה5]])","v":0},null,null,null,null,null,null,{"$f":"COUNTA(פרק_כא[[#This Row],[עמודה2]:[עמודה5]])","v":0},null,null,null,null,null,null,{"$f":"COUNTA(פרק_כב[[#This Row],[עמודה2]:[עמודה5]])","v":0},null,null,null,null,null,null,{"$f":"COUNTA(פרק_כג[[#This Row],[עמודה2]:[עמודה5]])","v":0},null,null,null,null,null,null,{"$f":"COUNTA(פרק_כד[[#This Row],[עמודה2]:[עמודה5]])","v":0}]
[null,null,null,null,null,null,null,{"$f":"COUNTA(פרק_א[[#This Row],[עמודה2]:[עמודה5]])","v":0},null,null,null,null,null,null,{"$f":"COUNTA(פרק_ב[[#This Row],[עמודה2]:[עמודה5]])","v":0},null,null,null,null,null,null,{"$f":"COUNTA(פרק_ג[[#This Row],[עמודה2]:[עמודה5]])","v":0},null,null,null,null,null,null,{"$f":"COUNTA(פרק_ד[[#This Row],[עמודה2]:[עמודה5]])","v":0},null,null,null,null,null,null,{"$f":"COUNTA(פרק_ה[[#This Row],[עמודה2]:[עמודה5]])","v":0},null,null,null,null,null,null,{"$f":"COUNTA(פרק_ו[[#This Row],[עמודה2]:[עמודה5]])","v":0},null,null,null,null,null,null,{"$f":"COUNTA(פרק_ז[[#This Row],[עמודה2]:[עמודה5]])","v":0},null,null,null,null,null,null,{"$f":"COUNTA(פרק_ח[[#This Row],[עמודה2]:[עמודה5]])","v":0},null,null,null,null,null,null,{"$f":"COUNTA(פרק_ט[[#This Row],[עמודה2]:[עמודה5]])","v":0},null,null,null,null,null,null,{"$f":"COUNTA(פרק_י[[#This Row],[עמודה2]:[עמודה5]])","v":0},null,null,null,null,null,null,{"$f":"COUNTA(פרק_יא[[#This Row],[עמודה2]:[עמודה5]])","v":0},null,null,null,null,null,null,{"$f":"COUNTA(פרק_יב[[#This Row],[עמודה2]:[עמודה5]])","v":0},null,null,null,null,null,null,{"$f":"COUNTA(פרק_יג[[#This Row],[עמודה2]:[עמודה5]])","v":0},null,null,null,null,null,null,{"$f":"COUNTA(פרק_יד[[#This Row],[עמודה2]:[עמודה5]])","v":0},null,null,null,null,null,null,{"$f":"COUNTA(פרק_טו[[#This Row],[עמודה2]:[עמודה5]])","v":0},null,null,null,null,null,null,{"$f":"COUNTA(פרק_טז[[#This Row],[עמודה2]:[עמודה5]])","v":0},null,null,null,null,null,null,{"$f":"COUNTA(פרק_יז[[#This Row],[עמודה2]:[עמודה5]])","v":0},null,null,null,null,null,null,{"$f":"COUNTA(פרק_יח[[#This Row],[עמודה2]:[עמודה5]])","v":0},null,null,null,null,null,null,{"$f":"COUNTA(פרק_יט[[#This Row],[עמודה2]:[עמודה5]])","v":0},null,null,null,null,null,null,{"$f":"COUNTA(פרק_כ[[#This Row],[עמודה2]:[עמודה5]])","v":0},null,null,null,null,null,null,{"$f":"COUNTA(פרק_כא[[#This Row],[עמודה2]:[עמודה5]])","v":0},null,null,null,null,null,null,{"$f":"COUNTA(פרק_כב[[#This Row],[עמודה2]:[עמודה5]])","v":0},null,null,null,null,null,null,{"$f":"COUNTA(פרק_כג[[#This Row],[עמודה2]:[עמודה5]])","v":0},null,null,null,null,null,null,{"$f":"COUNTA(פרק_כד[[#This Row],[עמודה2]:[עמודה5]])","v":0}]
[null,null,null,null,null,null,null,{"$f":"COUNTA(פרק_א[[#This Row],[עמודה2]:[עמודה5]])","v":0},null,null,null,null,null,null,{"$f":"COUNTA(פרק_ב[[#This Row],[עמודה2]:[עמודה5]])","v":0},null,null,null,null,null,null,{"$f":"COUNTA(פרק_ג[[#This Row],[עמודה2]:[עמודה5]])","v":0},null,null,null,null,null,null,{"$f":"COUNTA(פרק_ד[[#This Row],[עמודה2]:[עמודה5]])","v":0},null,null,null,null,null,null,{"$f":"COUNTA(פרק_ה[[#This Row],[עמודה2]:[עמודה5]])","v":0},null,null,null,null,null,null,{"$f":"COUNTA(פרק_ו[[#This Row],[עמודה2]:[עמודה5]])","v":0},null,null,null,null,null,null,{"$f":"COUNTA(פרק_ז[[#This Row],[עמודה2]:[עמודה5]])","v":0},null,null,null,null,null,null,{"$f":"COUNTA(פרק_ח[[#This Row],[עמודה2]:[עמודה5]])","v":0},null,null,null,null,null,null,{"$f":"COUNTA(פרק_ט[[#This Row],[עמודה2]:[עמודה5]])","v":0},null,null,null,null,null,null,{"$f":"COUNTA(פרק_י[[#This Row],[עמודה2]:[עמודה5]])","v":0},null,null,null,null,null,null,{"$f":"COUNTA(פרק_יא[[#This Row],[עמודה2]:[עמודה5]])","v":0},null,null,null,null,null,null,{"$f":"COUNTA(פרק_יב[[#This Row],[עמודה2]:[עמודה5]])","v":0},null,null,null,null,null,null,{"$f":"COUNTA(פרק_יג[[#This Row],[עמודה2]:[עמודה5]])","v":0},null,null,null,null,null,null,{"$f":"COUNTA(פרק_יד[[#This Row],[עמודה2]:[עמודה5]])","v":0},null,null,null,null,null,null,{"$f":"COUNTA(פרק_טו[[#This Row],[עמודה2]:[עמודה5]])","v":0},null,null,null,null,null,null,{"$f":"COUNTA(פרק_טז[[#This Row],[עמודה2]:[עמודה5]])","v":0},null,null,null,null,null,null,{"$f":"COUNTA(פרק_יז[[#This Row],[עמודה2]:[עמודה5]])","v":0},null,null,null,null,null,null,{"$f":"COUNTA(פרק_יח[[#This Row],[עמודה2]:[עמודה5]])","v":0},null,null,null,null,null,null,{"$f":"COUNTA(פרק_יט[[#This Row],[עמודה2]:[עמודה5]])","v":0},null,null,null,null,null,null,{"$f":"COUNTA(פרק_כ[[#This Row],[עמודה2]:[עמודה5]])","v":0},null,null,null,null,null,null,{"$f":"COUNTA(פרק_כא[[#This Row],[עמודה2]:[עמודה5]])","v":0},null,null,null,null,null,null,{"$f":"COUNTA(פרק_כב[[#This Row],[עמודה2]:[עמודה5]])","v":0},null,null,null,null,null,null,{"$f":"COUNTA(פרק_כג[[#This Row],[עמודה2]:[עמודה5]])","v":0},null,null,null,null,null,null,{"$f":"COUNTA(פרק_כד[[#This Row],[עמודה2]:[עמודה5]])","v":0}]
[null,null,null,null,null,null,null,{"$f":"COUNTA(פרק_א[[#This Row],[עמודה2]:[עמודה5]])","v":0},null,null,null,null,null,null,{"$f":"COUNTA(פרק_ב[[#This Row],[עמודה2]:[עמודה5]])","v":0},null,null,null,null,null,null,{"$f":"COUNTA(פרק_ג[[#This Row],[עמודה2]:[עמודה5]])","v":0},null,null,null,null,null,null,{"$f":"COUNTA(פרק_ד[[#This Row],[עמודה2]:[עמודה5]])","v":0},null,null,null,null,null,null,{"$f":"COUNTA(פרק_ה[[#This Row],[עמודה2]:[עמודה5]])","v":0},null,null,null,null,null,null,{"$f":"COUNTA(פרק_ו[[#This Row],[עמודה2]:[עמודה5]])","v":0},null,null,null,null,null,null,{"$f":"COUNTA(פרק_ז[[#This Row],[עמודה2]:[עמודה5]])","v":0},null,null,null,null,null,null,{"$f":"COUNTA(פרק_ח[[#This Row],[עמודה2]:[עמודה5]])","v":0},null,null,null,null,null,null,{"$f":"COUNTA(פרק_ט[[#This Row],[עמודה2]:[עמודה5]])","v":0},null,null,null,null,null,null,{"$f":"COUNTA(פרק_י[[#This Row],[עמודה2]:[עמודה5]])","v":0},null,null,null,null,null,null,{"$f":"COUNTA(פרק_יא[[#This Row],[עמודה2]:[עמודה5]])","v":0},null,null,null,null,null,null,{"$f":"COUNTA(פרק_יב[[#This Row],[עמודה2]:[עמודה5]])","v":0},null,null,null,null,null,null,{"$f":"COUNTA(פרק_יג[[#This Row],[עמודה2]:[עמודה5]])","v":0},null,null,null,null,null,null,{"$f":"COUNTA(פרק_יד[[#This Row],[עמודה2]:[עמודה5]])","v":0},null,null,null,null,null,null,{"$f":"COUNTA(פרק_טו[[#This Row],[עמודה2]:[עמודה5]])","v":0},null,null,null,null,null,null,{"$f":"COUNTA(פרק_טז[[#This Row],[עמודה2]:[עמודה5]])","v":0},null,null,null,null,null,null,{"$f":"COUNTA(פרק_יז[[#This Row],[עמודה2]:[עמודה5]])","v":0},null,null,null,null,null,null,{"$f":"COUNTA(פרק_יח[[#This Row],[עמודה2]:[עמודה5]])","v":0},null,null,null,null,null,null,{"$f":"COUNTA(פרק_יט[[#This Row],[עמודה2]:[עמודה5]])","v":0},null,null,null,null,null,null,{"$f":"COUNTA(פרק_כ[[#This Row],[עמודה2]:[עמודה5]])","v":0},null,null,null,null,null,null,{"$f":"COUNTA(פרק_כא[[#This Row],[עמודה2]:[עמודה5]])","v":0},null,null,null,null,null,null,{"$f":"COUNTA(פרק_כב[[#This Row],[עמודה2]:[עמודה5]])","v":0},null,null,null,null,null,null,{"$f":"COUNTA(פרק_כג[[#This Row],[עמודה2]:[עמודה5]])","v":0},null,null,null,null,null,null,{"$f":"COUNTA(פרק_כד[[#This Row],[עמודה2]:[עמודה5]])","v":0}]
[null,null,null,null,null,null,null,{"$f":"COUNTA(פרק_א[[#This Row],[עמודה2]:[עמודה5]])","v":0},null,null,null,null,null,null,{"$f":"COUNTA(פרק_ב[[#This Row],[עמודה2]:[עמודה5]])","v":0},null,null,null,null,null,null,{"$f":"COUNTA(פרק_ג[[#This Row],[עמודה2]:[עמודה5]])","v":0},null,null,null,null,null,null,{"$f":"COUNTA(פרק_ד[[#This Row],[עמודה2]:[עמודה5]])","v":0},null,null,null,null,null,null,{"$f":"COUNTA(פרק_ה[[#This Row],[עמודה2]:[עמודה5]])","v":0},null,null,null,null,null,null,{"$f":"COUNTA(פרק_ו[[#This Row],[עמודה2]:[עמודה5]])","v":0},null,null,null,null,null,null,{"$f":"COUNTA(פרק_ז[[#This Row],[עמודה2]:[עמודה5]])","v":0},null,null,null,null,null,null,{"$f":"COUNTA(פרק_ח[[#This Row],[עמודה2]:[עמודה5]])","v":0},null,null,null,null,null,null,{"$f":"COUNTA(פרק_ט[[#This Row],[עמודה2]:[עמודה5]])","v":0},null,null,null,null,null,null,{"$f":"COUNTA(פרק_י[[#This Row],[עמודה2]:[עמודה5]])","v":0},null,null,null,null,null,null,{"$f":"COUNTA(פרק_יא[[#This Row],[עמודה2]:[עמודה5]])","v":0},null,null,null,null,null,null,{"$f":"COUNTA(פרק_יב[[#This Row],[עמודה2]:[עמודה5]])","v":0},null,null,null,null,null,null,{"$f":"COUNTA(פרק_יג[[#This Row],[עמודה2]:[עמודה5]])","v":0},null,null,null,null,null,null,{"$f":"COUNTA(פרק_יד[[#This Row],[עמודה2]:[עמודה5]])","v":0},null,null,null,null,null,null,{"$f":"COUNTA(פרק_טו[[#This Row],[עמודה2]:[עמודה5]])","v":0},null,null,null,null,null,null,{"$f":"COUNTA(פרק_טז[[#This Row],[עמודה2]:[עמודה5]])","v":0},null,null,null,null,null,null,{"$f":"COUNTA(פרק_יז[[#This Row],[עמודה2]:[עמודה5]])","v":0},null,null,null,null,null,null,{"$f":"COUNTA(פרק_יח[[#This Row],[עמודה2]:[עמודה5]])","v":0},null,null,null,null,null,null,{"$f":"COUNTA(פרק_יט[[#This Row],[עמודה2]:[עמודה5]])","v":0},null,null,null,null,null,null,{"$f":"COUNTA(פרק_כ[[#This Row],[עמודה2]:[עמודה5]])","v":0},null,null,null,null,null,null,{"$f":"COUNTA(פרק_כא[[#This Row],[עמודה2]:[עמודה5]])","v":0},null,null,null,null,null,null,{"$f":"COUNTA(פרק_כב[[#This Row],[עמודה2]:[עמודה5]])","v":0},null,null,null,null,null,null,{"$f":"COUNTA(פרק_כג[[#This Row],[עמודה2]:[עמודה5]])","v":0},null,null,null,null,null,null,{"$f":"COUNTA(פרק_כד[[#This Row],[עמודה2]:[עמודה5]])","v":0}]
[null,null,null,null,null,null,null,{"$f":"COUNTA(פרק_א[[#This Row],[עמודה2]:[עמודה5]])","v":0},null,null,null,null,null,null,{"$f":"COUNTA(פרק_ב[[#This Row],[עמודה2]:[עמודה5]])","v":0},null,null,null,null,null,null,{"$f":"COUNTA(פרק_ג[[#This Row],[עמודה2]:[עמודה5]])","v":0},null,null,null,null,null,null,{"$f":"COUNTA(פרק_ד[[#This Row],[עמודה2]:[עמודה5]])","v":0},null,null,null,null,null,null,{"$f":"COUNTA(פרק_ה[[#This Row],[עמודה2]:[עמודה5]])","v":0},null,null,null,null,null,null,{"$f":"COUNTA(פרק_ו[[#This Row],[עמודה2]:[עמודה5]])","v":0},null,null,null,null,null,null,{"$f":"COUNTA(פרק_ז[[#This Row],[עמודה2]:[עמודה5]])","v":0},null,null,null,null,null,null,{"$f":"COUNTA(פרק_ח[[#This Row],[עמודה2]:[עמודה5]])","v":0},null,null,null,null,null,null,{"$f":"COUNTA(פרק_ט[[#This Row],[עמודה2]:[עמודה5]])","v":0},null,null,null,null,null,null,{"$f":"COUNTA(פרק_י[[#This Row],[עמודה2]:[עמודה5]])","v":0},null,null,null,null,null,null,{"$f":"COUNTA(פרק_יא[[#This Row],[עמודה2]:[עמודה5]])","v":0},null,null,null,null,null,null,{"$f":"COUNTA(פרק_יב[[#This Row],[עמודה2]:[עמודה5]])","v":0},null,null,null,null,null,null,{"$f":"COUNTA(פרק_יג[[#This Row],[עמודה2]:[עמודה5]])","v":0},null,null,null,null,null,null,{"$f":"COUNTA(פרק_יד[[#This Row],[עמודה2]:[עמודה5]])","v":0},null,null,null,null,null,null,{"$f":"COUNTA(פרק_טו[[#This Row],[עמודה2]:[עמודה5]])","v":0},null,null,null,null,null,null,{"$f":"COUNTA(פרק_טז[[#This Row],[עמודה2]:[עמודה5]])","v":0},null,null,null,null,null,null,{"$f":"COUNTA(פרק_יז[[#This Row],[עמודה2]:[עמודה5]])","v":0},null,null,null,null,null,null,{"$f":"COUNTA(פרק_יח[[#This Row],[עמודה2]:[עמודה5]])","v":0},null,null,null,null,null,null,{"$f":"COUNTA(פרק_יט[[#This Row],[עמודה2]:[עמודה5]])","v":0},null,null,null,null,null,null,{"$f":"COUNTA(פרק_כ[[#This Row],[עמודה2]:[עמודה5]])","v":0},null,null,null,null,null,null,{"$f":"COUNTA(פרק_כא[[#This Row],[עמודה2]:[עמודה5]])","v":0},null,null,null,null,null,null,{"$f":"COUNTA(פרק_כב[[#This Row],[עמודה2]:[עמודה5]])","v":0},null,null,null,null,null,null,{"$f":"COUNTA(פרק_כג[[#This Row],[עמודה2]:[עמודה5]])","v":0},null,null,null,null,null,null,{"$f":"COUNTA(פרק_כד[[#This Row],[עמודה2]:[עמודה5]])","v":0}]
[null,null,null,null,null,null,null,{"$f":"COUNTA(פרק_א[[#This Row],[עמודה2]:[עמודה5]])","v":0},null,null,null,null,null,null,{"$f":"COUNTA(פרק_ב[[#This Row],[עמודה2]:[עמודה5]])","v":0},null,null,null,null,null,null,{"$f":"COUNTA(פרק_ג[[#This Row],[עמודה2]:[עמודה5]])","v":0},null,null,null,null,null,null,{"$f":"COUNTA(פרק_ד[[#This Row],[עמודה2]:[עמודה5]])","v":0},null,null,null,null,null,null,{"$f":"COUNTA(פרק_ה[[#This Row],[עמודה2]:[עמודה5]])","v":0},null,null,null,null,null,null,{"$f":"COUNTA(פרק_ו[[#This Row],[עמודה2]:[עמודה5]])","v":0},null,null,null,null,null,null,{"$f":"COUNTA(פרק_ז[[#This Row],[עמודה2]:[עמודה5]])","v":0},null,null,null,null,null,null,{"$f":"COUNTA(פרק_ח[[#This Row],[עמודה2]:[עמודה5]])","v":0},null,null,null,null,null,null,{"$f":"COUNTA(פרק_ט[[#This Row],[עמודה2]:[עמודה5]])","v":0},null,null,null,null,null,null,{"$f":"COUNTA(פרק_י[[#This Row],[עמודה2]:[עמודה5]])","v":0},null,null,null,null,null,null,{"$f":"COUNTA(פרק_יא[[#This Row],[עמודה2]:[עמודה5]])","v":0},null,null,null,null,null,null,{"$f":"COUNTA(פרק_יב[[#This Row],[עמודה2]:[עמודה5]])","v":0},null,null,null,null,null,null,{"$f":"COUNTA(פרק_יג[[#This Row],[עמודה2]:[עמודה5]])","v":0},null,null,null,null,null,null,{"$f":"COUNTA(פרק_יד[[#This Row],[עמודה2]:[עמודה5]])","v":0},null,null,null,null,null,null,{"$f":"COUNTA(פרק_טו[[#This Row],[עמודה2]:[עמודה5]])","v":0},null,null,null,null,null,null,{"$f":"COUNTA(פרק_טז[[#This Row],[עמודה2]:[עמודה5]])","v":0},null,null,null,null,null,null,{"$f":"COUNTA(פרק_יז[[#This Row],[עמודה2]:[עמודה5]])","v":0},null,null,null,null,null,null,{"$f":"COUNTA(פרק_יח[[#This Row],[עמודה2]:[עמודה5]])","v":0},null,null,null,null,null,null,{"$f":"COUNTA(פרק_יט[[#This Row],[עמודה2]:[עמודה5]])","v":0},null,null,null,null,null,null,{"$f":"COUNTA(פרק_כ[[#This Row],[עמודה2]:[עמודה5]])","v":0},null,null,null,null,null,null,{"$f":"COUNTA(פרק_כא[[#This Row],[עמודה2]:[עמודה5]])","v":0},null,null,null,null,null,null,{"$f":"COUNTA(פרק_כב[[#This Row],[עמודה2]:[עמודה5]])","v":0},null,null,null,null,null,null,{"$f":"COUNTA(פרק_כג[[#This Row],[עמודה2]:[עמודה5]])","v":0},null,null,null,null,null,null,{"$f":"COUNTA(פרק_כד[[#This Row],[עמודה2]:[עמודה5]])","v":0}]
[null,null,null,null,null,null,null,{"$f":"COUNTA(פרק_א[[#This Row],[עמודה2]:[עמודה5]])","v":0},null,null,null,null,null,null,{"$f":"COUNTA(פרק_ב[[#This Row],[עמודה2]:[עמודה5]])","v":0},null,null,null,null,null,null,{"$f":"COUNTA(פרק_ג[[#This Row],[עמודה2]:[עמודה5]])","v":0},null,null,null,null,null,null,{"$f":"COUNTA(פרק_ד[[#This Row],[עמודה2]:[עמודה5]])","v":0},null,null,null,null,null,null,{"$f":"COUNTA(פרק_ה[[#This Row],[עמודה2]:[עמודה5]])","v":0},null,null,null,null,null,null,{"$f":"COUNTA(פרק_ו[[#This Row],[עמודה2]:[עמודה5]])","v":0},null,null,null,null,null,null,{"$f":"COUNTA(פרק_ז[[#This Row],[עמודה2]:[עמודה5]])","v":0},null,null,null,null,null,null,{"$f":"COUNTA(פרק_ח[[#This Row],[עמודה2]:[עמודה5]])","v":0},null,null,null,null,null,null,{"$f":"COUNTA(פרק_ט[[#This Row],[עמודה2]:[עמודה5]])","v":0},null,null,null,null,null,null,{"$f":"COUNTA(פרק_י[[#This Row],[עמודה2]:[עמודה5]])","v":0},null,null,null,null,null,null,{"$f":"COUNTA(פרק_יא[[#This Row],[עמודה2]:[עמודה5]])","v":0},null,null,null,null,null,null,{"$f":"COUNTA(פרק_יב[[#This Row],[עמודה2]:[עמודה5]])","v":0},null,null,null,null,null,null,{"$f":"COUNTA(פרק_יג[[#This Row],[עמודה2]:[עמודה5]])","v":0},null,null,null,null,null,null,{"$f":"COUNTA(פרק_יד[[#This Row],[עמודה2]:[עמודה5]])","v":0},null,null,null,null,null,null,{"$f":"COUNTA(פרק_טו[[#This Row],[עמודה2]:[עמודה5]])","v":0},null,null,null,null,null,null,{"$f":"COUNTA(פרק_טז[[#This Row],[עמודה2]:[עמודה5]])","v":0},null,null,null,null,null,null,{"$f":"COUNTA(פרק_יז[[#This Row],[עמודה2]:[עמודה5]])","v":0},null,null,null,null,null,null,{"$f":"COUNTA(פרק_יח[[#This Row],[עמודה2]:[עמודה5]])","v":0},null,null,null,null,null,null,{"$f":"COUNTA(פרק_יט[[#This Row],[עמודה2]:[עמודה5]])","v":0},null,null,null,null,null,null,{"$f":"COUNTA(פרק_כ[[#This Row],[עמודה2]:[עמודה5]])","v":0},null,null,null,null,null,null,{"$f":"COUNTA(פרק_כא[[#This Row],[עמודה2]:[עמודה5]])","v":0},null,null,null,null,null,null,{"$f":"COUNTA(פרק_כב[[#This Row],[עמודה2]:[עמודה5]])","v":0},null,null,null,null,null,null,{"$f":"COUNTA(פרק_כג[[#This Row],[עמודה2]:[עמודה5]])","v":0},null,null,null,null,null,null,{"$f":"COUNTA(פרק_כד[[#This Row],[עמודה2]:[עמודה5]])","v":0}]
[null,null,null,null,null,null,null,{"$f":"COUNTA(פרק_א[[#This Row],[עמודה2]:[עמודה5]])","v":0},null,null,null,null,null,null,{"$f":"COUNTA(פרק_ב[[#This Row],[עמודה2]:[עמודה5]])","v":0},null,null,null,null,null,null,{"$f":"COUNTA(פרק_ג[[#This Row],[עמודה2]:[עמודה5]])","v":0},null,null,null,null,null,null,{"$f":"COUNTA(פרק_ד[[#This Row],[עמודה2]:[עמודה5]])","v":0},null,null,null,null,null,null,{"$f":"COUNTA(פרק_ה[[#This Row],[עמודה2]:[עמודה5]])","v":0},null,null,null,null,null,null,{"$f":"COUNTA(פרק_ו[[#This Row],[עמודה2]:[עמודה5]])","v":0},null,null,null,null,null,null,{"$f":"COUNTA(פרק_ז[[#This Row],[עמודה2]:[עמודה5]])","v":0},null,null,null,null,null,null,{"$f":"COUNTA(פרק_ח[[#This Row],[עמודה2]:[עמודה5]])","v":0},null,null,null,null,null,null,{"$f":"COUNTA(פרק_ט[[#This Row],[עמודה2]:[עמודה5]])","v":0},null,null,null,null,null,null,{"$f":"COUNTA(פרק_י[[#This Row],[עמודה2]:[עמודה5]])","v":0},null,null,null,null,null,null,{"$f":"COUNTA(פרק_יא[[#This Row],[עמודה2]:[עמודה5]])","v":0},null,null,null,null,null,null,{"$f":"COUNTA(פרק_יב[[#This Row],[עמודה2]:[עמודה5]])","v":0},null,null,null,null,null,null,{"$f":"COUNTA(פרק_יג[[#This Row],[עמודה2]:[עמודה5]])","v":0},null,null,null,null,null,null,{"$f":"COUNTA(פרק_יד[[#This Row],[עמודה2]:[עמודה5]])","v":0},null,null,null,null,null,null,{"$f":"COUNTA(פרק_טו[[#This Row],[עמודה2]:[עמודה5]])","v":0},null,null,null,null,null,null,{"$f":"COUNTA(פרק_טז[[#This Row],[עמודה2]:[עמודה5]])","v":0},null,null,null,null,null,null,{"$f":"COUNTA(פרק_יז[[#This Row],[עמודה2]:[עמודה5]])","v":0},null,null,null,null,null,null,{"$f":"COUNTA(פרק_יח[[#This Row],[עמודה2]:[עמודה5]])","v":0},null,null,null,null,null,null,{"$f":"COUNTA(פרק_יט[[#This Row],[עמודה2]:[עמודה5]])","v":0},null,null,null,null,null,null,{"$f":"COUNTA(פרק_כ[[#This Row],[עמודה2]:[עמודה5]])","v":0},null,null,null,null,null,null,{"$f":"COUNTA(פרק_כא[[#This Row],[עמודה2]:[עמודה5]])","v":0},null,null,null,null,null,null,{"$f":"COUNTA(פרק_כב[[#This Row],[עמודה2]:[עמודה5]])","v":0},null,null,null,null,null,null,{"$f":"COUNTA(פרק_כג[[#This Row],[עמודה2]:[עמודה5]])","v":0},null,null,null,null,null,null,{"$f":"COUNTA(פרק_כד[[#This Row],[עמודה2]:[עמודה5]])","v":0}]
[null,null,null,null,null,null,null,{"$f":"COUNTA(פרק_א[[#This Row],[עמודה2]:[עמודה5]])","v":0},null,null,null,null,null,null,{"$f":"COUNTA(פרק_ב[[#This Row],[עמודה2]:[עמודה5]])","v":0},null,null,null,null,null,null,{"$f":"COUNTA(פרק_ג[[#This Row],[עמודה2]:[עמודה5]])","v":0},null,null,null,null,null,null,{"$f":"COUNTA(פרק_ד[[#This Row],[עמודה2]:[עמודה5]])","v":0},null,null,null,null,null,null,{"$f":"COUNTA(פרק_ה[[#This Row],[עמודה2]:[עמודה5]])","v":0},null,null,null,null,null,null,{"$f":"COUNTA(פרק_ו[[#This Row],[עמודה2]:[עמודה5]])","v":0},null,null,null,null,null,null,{"$f":"COUNTA(פרק_ז[[#This Row],[עמודה2]:[עמודה5]])","v":0},null,null,null,null,null,null,{"$f":"COUNTA(פרק_ח[[#This Row],[עמודה2]:[עמודה5]])","v":0},null,null,null,null,null,null,{"$f":"COUNTA(פרק_ט[[#This Row],[עמודה2]:[עמודה5]])","v":0},null,null,null,null,null,null,{"$f":"COUNTA(פרק_י[[#This Row],[עמודה2]:[עמודה5]])","v":0},null,null,null,null,null,null,{"$f":"COUNTA(פרק_יא[[#This Row],[עמודה2]:[עמודה5]])","v":0},null,null,null,null,null,null,{"$f":"COUNTA(פרק_יב[[#This Row],[עמודה2]:[עמודה5]])","v":0},null,null,null,null,null,null,{"$f":"COUNTA(פרק_יג[[#This Row],[עמודה2]:[עמודה5]])","v":0},null,null,null,null,null,null,{"$f":"COUNTA(פרק_יד[[#This Row],[עמודה2]:[עמודה5]])","v":0},null,null,null,null,null,null,{"$f":"COUNTA(פרק_טו[[#This Row],[עמודה2]:[עמודה5]])","v":0},null,null,null,null,null,null,{"$f":"COUNTA(פרק_טז[[#This Row],[עמודה2]:[עמודה5]])","v":0},null,null,null,null,null,null,{"$f":"COUNTA(פרק_יז[[#This Row],[עמודה2]:[עמודה5]])","v":0},null,null,null,null,null,null,{"$f":"COUNTA(פרק_יח[[#This Row],[עמודה2]:[עמודה5]])","v":0},null,null,null,null,null,null,{"$f":"COUNTA(פרק_יט[[#This Row],[עמודה2]:[עמודה5]])","v":0},null,null,null,null,null,null,{"$f":"COUNTA(פרק_כ[[#This Row],[עמודה2]:[עמודה5]])","v":0},null,null,null,null,null,null,{"$f":"COUNTA(פרק_כא[[#This Row],[עמודה2]:[עמודה5]])","v":0},null,null,null,null,null,null,{"$f":"COUNTA(פרק_כב[[#This Row],[עמודה2]:[עמודה5]])","v":0},null,null,null,null,null,null,{"$f":"COUNTA(פרק_כג[[#This Row],[עמודה2]:[עמודה5]])","v":0},null,null,null,null,null,null,{"$f":"COUNTA(פרק_כד[[#This Row],[עמודה2]:[עמודה5]])","v":0}]
[null,null,null,null,null,null,null,{"$f":"COUNTA(פרק_א[[#This Row],[עמודה2]:[עמודה5]])","v":0},null,null,null,null,null,null,{"$f":"COUNTA(פרק_ב[[#This Row],[עמודה2]:[עמודה5]])","v":0},null,null,null,null,null,null,{"$f":"COUNTA(פרק_ג[[#This Row],[עמודה2]:[עמודה5]])","v":0},null,null,null,null,null,null,{"$f":"COUNTA(פרק_ד[[#This Row],[עמודה2]:[עמודה5]])","v":0},null,null,null,null,null,null,{"$f":"COUNTA(פרק_ה[[#This Row],[עמודה2]:[עמודה5]])","v":0},null,null,null,null,null,null,{"$f":"COUNTA(פרק_ו[[#This Row],[עמודה2]:[עמודה5]])","v":0},null,null,null,null,null,null,{"$f":"COUNTA(פרק_ז[[#This Row],[עמודה2]:[עמודה5]])","v":0},null,null,null,null,null,null,{"$f":"COUNTA(פרק_ח[[#This Row],[עמודה2]:[עמודה5]])","v":0},null,null,null,null,null,null,{"$f":"COUNTA(פרק_ט[[#This Row],[עמודה2]:[עמודה5]])","v":0},null,null,null,null,null,null,{"$f":"COUNTA(פרק_י[[#This Row],[עמודה2]:[עמודה5]])","v":0},null,null,null,null,null,null,{"$f":"COUNTA(פרק_יא[[#This Row],[עמודה2]:[עמודה5]])","v":0},null,null,null,null,null,null,{"$f":"COUNTA(פרק_יב[[#This Row],[עמודה2]:[עמודה5]])","v":0},null,null,null,null,null,null,{"$f":"COUNTA(פרק_יג[[#This Row],[עמודה2]:[עמודה5]])","v":0},null,null,null,null,null,null,{"$f":"COUNTA(פרק_יד[[#This Row],[עמודה2]:[עמודה5]])","v":0},null,null,null,null,null,null,{"$f":"COUNTA(פרק_טו[[#This Row],[עמודה2]:[עמודה5]])","v":0},null,null,null,null,null,null,{"$f":"COUNTA(פרק_טז[[#This Row],[עמודה2]:[עמודה5]])","v":0},null,null,null,null,null,null,{"$f":"COUNTA(פרק_יז[[#This Row],[עמודה2]:[עמודה5]])","v":0},null,null,null,null,null,null,{"$f":"COUNTA(פרק_יח[[#This Row],[עמודה2]:[עמודה5]])","v":0},null,null,null,null,null,null,{"$f":"COUNTA(פרק_יט[[#This Row],[עמודה2]:[עמודה5]])","v":0},null,null,null,null,null,null,{"$f":"COUNTA(פרק_כ[[#This Row],[עמודה2]:[עמודה5]])","v":0},null,null,null,null,null,null,{"$f":"COUNTA(פרק_כא[[#This Row],[עמודה2]:[עמודה5]])","v":0},null,null,null,null,null,null,{"$f":"COUNTA(פרק_כב[[#This Row],[עמודה2]:[עמודה5]])","v":0},null,null,null,null,null,null,{"$f":"COUNTA(פרק_כג[[#This Row],[עמודה2]:[עמודה5]])","v":0},null,null,null,null,null,null,{"$f":"COUNTA(פרק_כד[[#This Row],[עמודה2]:[עמודה5]])","v":0}]
[null,null,null,null,null,null,null,{"$f":"COUNTA(פרק_א[[#This Row],[עמודה2]:[עמודה5]])","v":0},null,null,null,null,null,null,{"$f":"COUNTA(פרק_ב[[#This Row],[עמודה2]:[עמודה5]])","v":0},null,null,null,null,null,null,{"$f":"COUNTA(פרק_ג[[#This Row],[עמודה2]:[עמודה5]])","v":0},null,null,null,null,null,null,{"$f":"COUNTA(פרק_ד[[#This Row],[עמודה2]:[עמודה5]])","v":0},null,null,null,null,null,null,{"$f":"COUNTA(פרק_ה[[#This Row],[עמודה2]:[עמודה5]])","v":0},null,null,null,null,null,null,{"$f":"COUNTA(פרק_ו[[#This Row],[עמודה2]:[עמודה5]])","v":0},null,null,null,null,null,null,{"$f":"COUNTA(פרק_ז[[#This Row],[עמודה2]:[עמודה5]])","v":0},null,null,null,null,null,null,{"$f":"COUNTA(פרק_ח[[#This Row],[עמודה2]:[עמודה5]])","v":0},null,null,null,null,null,null,{"$f":"COUNTA(פרק_ט[[#This Row],[עמודה2]:[עמודה5]])","v":0},null,null,null,null,null,null,{"$f":"COUNTA(פרק_י[[#This Row],[עמודה2]:[עמודה5]])","v":0},null,null,null,null,null,null,{"$f":"COUNTA(פרק_יא[[#This Row],[עמודה2]:[עמודה5]])","v":0},null,null,null,null,null,null,{"$f":"COUNTA(פרק_יב[[#This Row],[עמודה2]:[עמודה5]])","v":0},null,null,null,null,null,null,{"$f":"COUNTA(פרק_יג[[#This Row],[עמודה2]:[עמודה5]])","v":0},null,null,null,null,null,null,{"$f":"COUNTA(פרק_יד[[#This Row],[עמודה2]:[עמודה5]])","v":0},null,null,null,null,null,null,{"$f":"COUNTA(פרק_טו[[#This Row],[עמודה2]:[עמודה5]])","v":0},null,null,null,null,null,null,{"$f":"COUNTA(פרק_טז[[#This Row],[עמודה2]:[עמודה5]])","v":0},null,null,null,null,null,null,{"$f":"COUNTA(פרק_יז[[#This Row],[עמודה2]:[עמודה5]])","v":0},null,null,null,null,null,null,{"$f":"COUNTA(פרק_יח[[#This Row],[עמודה2]:[עמודה5]])","v":0},null,null,null,null,null,null,{"$f":"COUNTA(פרק_יט[[#This Row],[עמודה2]:[עמודה5]])","v":0},null,null,null,null,null,null,{"$f":"COUNTA(פרק_כ[[#This Row],[עמודה2]:[עמודה5]])","v":0},null,null,null,null,null,null,{"$f":"COUNTA(פרק_כא[[#This Row],[עמודה2]:[עמודה5]])","v":0},null,null,null,null,null,null,{"$f":"COUNTA(פרק_כב[[#This Row],[עמודה2]:[עמודה5]])","v":0},null,null,null,null,null,null,{"$f":"COUNTA(פרק_כג[[#This Row],[עמודה2]:[עמודה5]])","v":0},null,null,null,null,null,null,{"$f":"COUNTA(פרק_כד[[#This Row],[עמודה2]:[עמודה5]])","v":0}]
[null,null,null,null,null,null,null,{"$f":"COUNTA(פרק_א[[#This Row],[עמודה2]:[עמודה5]])","v":0},null,null,null,null,null,null,{"$f":"COUNTA(פרק_ב[[#This Row],[עמודה2]:[עמודה5]])","v":0},null,null,null,null,null,null,{"$f":"COUNTA(פרק_ג[[#This Row],[עמודה2]:[עמודה5]])","v":0},null,null,null,null,null,null,{"$f":"COUNTA(פרק_ד[[#This Row],[עמודה2]:[עמודה5]])","v":0},null,null,null,null,null,null,{"$f":"COUNTA(פרק_ה[[#This Row],[עמודה2]:[עמודה5]])","v":0},null,null,null,null,null,null,{"$f":"COUNTA(פרק_ו[[#This Row],[עמודה2]:[עמודה5]])","v":0},null,null,null,null,null,null,{"$f":"COUNTA(פרק_ז[[#This Row],[עמודה2]:[עמודה5]])","v":0},null,null,null,null,null,null,{"$f":"COUNTA(פרק_ח[[#This Row],[עמודה2]:[עמודה5]])","v":0},null,null,null,null,null,null,{"$f":"COUNTA(פרק_ט[[#This Row],[עמודה2]:[עמודה5]])","v":0},null,null,null,null,null,null,{"$f":"COUNTA(פרק_י[[#This Row],[עמודה2]:[עמודה5]])","v":0},null,null,null,null,null,null,{"$f":"COUNTA(פרק_יא[[#This Row],[עמודה2]:[עמודה5]])","v":0},null,null,null,null,null,null,{"$f":"COUNTA(פרק_יב[[#This Row],[עמודה2]:[עמודה5]])","v":0},null,null,null,null,null,null,{"$f":"COUNTA(פרק_יג[[#This Row],[עמודה2]:[עמודה5]])","v":0},null,null,null,null,null,null,{"$f":"COUNTA(פרק_יד[[#This Row],[עמודה2]:[עמודה5]])","v":0},null,null,null,null,null,null,{"$f":"COUNTA(פרק_טו[[#This Row],[עמודה2]:[עמודה5]])","v":0},null,null,null,null,null,null,{"$f":"COUNTA(פרק_טז[[#This Row],[עמודה2]:[עמודה5]])","v":0},null,null,null,null,null,null,{"$f":"COUNTA(פרק_יז[[#This Row],[עמודה2]:[עמודה5]])","v":0},null,null,null,null,null,null,{"$f":"COUNTA(פרק_יח[[#This Row],[עמודה2]:[עמודה5]])","v":0},null,null,null,null,null,null,{"$f":"COUNTA(פרק_יט[[#This Row],[עמודה2]:[עמודה5]])","v":0},null,null,null,null,null,null,{"$f":"COUNTA(פרק_כ[[#This Row],[עמודה2]:[עמודה5]])","v":0},null,null,null,null,null,null,{"$f":"COUNTA(פרק_כא[[#This Row],[עמודה2]:[עמודה5]])","v":0},null,null,null,null,null,null,{"$f":"COUNTA(פרק_כב[[#This Row],[עמודה2]:[עמודה5]])","v":0},null,null,null,null,null,null,{"$f":"COUNTA(פרק_כג[[#This Row],[עמודה2]:[עמודה5]])","v":0},null,null,null,null,null,null,{"$f":"COUNTA(פרק_כד[[#This Row],[עמודה2]:[עמודה5]])","v":0}]
[null,null,null,null,null,null,null,{"$f":"COUNTA(פרק_א[[#This Row],[עמודה2]:[עמודה5]])","v":0},null,null,null,null,null,null,{"$f":"COUNTA(פרק_ב[[#This Row],[עמודה2]:[עמודה5]])","v":0},null,null,null,null,null,null,{"$f":"COUNTA(פרק_ג[[#This Row],[עמודה2]:[עמודה5]])","v":0},null,null,null,null,null,null,{"$f":"COUNTA(פרק_ד[[#This Row],[עמודה2]:[עמודה5]])","v":0},null,null,null,null,null,null,{"$f":"COUNTA(פרק_ה[[#This Row],[עמודה2]:[עמודה5]])","v":0},null,null,null,null,null,null,{"$f":"COUNTA(פרק_ו[[#This Row],[עמודה2]:[עמודה5]])","v":0},null,null,null,null,null,null,{"$f":"COUNTA(פרק_ז[[#This Row],[עמודה2]:[עמודה5]])","v":0},null,null,null,null,null,null,{"$f":"COUNTA(פרק_ח[[#This Row],[עמודה2]:[עמודה5]])","v":0},null,null,null,null,null,null,{"$f":"COUNTA(פרק_ט[[#This Row],[עמודה2]:[עמודה5]])","v":0},null,null,null,null,null,null,{"$f":"COUNTA(פרק_י[[#This Row],[עמודה2]:[עמודה5]])","v":0},null,null,null,null,null,null,{"$f":"COUNTA(פרק_יא[[#This Row],[עמודה2]:[עמודה5]])","v":0},null,null,null,null,null,null,{"$f":"COUNTA(פרק_יב[[#This Row],[עמודה2]:[עמודה5]])","v":0},null,null,null,null,null,null,{"$f":"COUNTA(פרק_יג[[#This Row],[עמודה2]:[עמודה5]])","v":0},null,null,null,null,null,null,{"$f":"COUNTA(פרק_יד[[#This Row],[עמודה2]:[עמודה5]])","v":0},null,null,null,null,null,null,{"$f":"COUNTA(פרק_טו[[#This Row],[עמודה2]:[עמודה5]])","v":0},null,null,null,null,null,null,{"$f":"COUNTA(פרק_טז[[#This Row],[עמודה2]:[עמודה5]])","v":0},null,null,null,null,null,null,{"$f":"COUNTA(פרק_יז[[#This Row],[עמודה2]:[עמודה5]])","v":0},null,null,null,null,null,null,{"$f":"COUNTA(פרק_יח[[#This Row],[עמודה2]:[עמודה5]])","v":0},null,null,null,null,null,null,{"$f":"COUNTA(פרק_יט[[#This Row],[עמודה2]:[עמודה5]])","v":0},null,null,null,null,null,null,{"$f":"COUNTA(פרק_כ[[#This Row],[עמודה2]:[עמודה5]])","v":0},null,null,null,null,null,null,{"$f":"COUNTA(פרק_כא[[#This Row],[עמודה2]:[עמודה5]])","v":0},null,null,null,null,null,null,{"$f":"COUNTA(פרק_כב[[#This Row],[עמודה2]:[עמודה5]])","v":0},null,null,null,null,null,null,{"$f":"COUNTA(פרק_כג[[#This Row],[עמודה2]:[עמודה5]])","v":0},null,null,null,null,null,null,{"$f":"COUNTA(פרק_כד[[#This Row],[עמודה2]:[עמודה5]])","v":0}]
[null,null,null,null,null,null,null,{"$f":"COUNTA(פרק_א[[#This Row],[עמודה2]:[עמודה5]])","v":0},null,null,null,null,null,null,{"$f":"COUNTA(פרק_ב[[#This Row],[עמודה2]:[עמודה5]])","v":0},null,null,null,null,null,null,{"$f":"COUNTA(פרק_ג[[#This Row],[עמודה2]:[עמודה5]])","v":0},null,null,null,null,null,null,{"$f":"COUNTA(פרק_ד[[#This Row],[עמודה2]:[עמודה5]])","v":0},null,null,null,null,null,null,{"$f":"COUNTA(פרק_ה[[#This Row],[עמודה2]:[עמודה5]])","v":0},null,null,null,null,null,null,{"$f":"COUNTA(פרק_ו[[#This Row],[עמודה2]:[עמודה5]])","v":0},null,null,null,null,null,null,{"$f":"COUNTA(פרק_ז[[#This Row],[עמודה2]:[עמודה5]])","v":0},null,null,null,null,null,null,{"$f":"COUNTA(פרק_ח[[#This Row],[עמודה2]:[עמודה5]])","v":0},null,null,null,null,null,null,{"$f":"COUNTA(פרק_ט[[#This Row],[עמודה2]:[עמודה5]])","v":0},null,null,null,null,null,null,{"$f":"COUNTA(פרק_י[[#This Row],[עמודה2]:[עמודה5]])","v":0},null,null,null,null,null,null,{"$f":"COUNTA(פרק_יא[[#This Row],[עמודה2]:[עמודה5]])","v":0},null,null,null,null,null,null,{"$f":"COUNTA(פרק_יב[[#This Row],[עמודה2]:[עמודה5]])","v":0},null,null,null,null,null,null,{"$f":"COUNTA(פרק_יג[[#This Row],[עמודה2]:[עמודה5]])","v":0},null,null,null,null,null,null,{"$f":"COUNTA(פרק_יד[[#This Row],[עמודה2]:[עמודה5]])","v":0},null,null,null,null,null,null,{"$f":"COUNTA(פרק_טו[[#This Row],[עמודה2]:[עמודה5]])","v":0},null,null,null,null,null,null,{"$f":"COUNTA(פרק_טז[[#This Row],[עמודה2]:[עמודה5]])","v":0},null,null,null,null,null,null,{"$f":"COUNTA(פרק_יז[[#This Row],[עמודה2]:[עמודה5]])","v":0},null,null,null,null,null,null,{"$f":"COUNTA(פרק_יח[[#This Row],[עמודה2]:[עמודה5]])","v":0},null,null,null,null,null,null,{"$f":"COUNTA(פרק_יט[[#This Row],[עמודה2]:[עמודה5]])","v":0},null,null,null,null,null,null,{"$f":"COUNTA(פרק_כ[[#This Row],[עמודה2]:[עמודה5]])","v":0},null,null,null,null,null,null,{"$f":"COUNTA(פרק_כא[[#This Row],[עמודה2]:[עמודה5]])","v":0},null,null,null,null,null,null,{"$f":"COUNTA(פרק_כב[[#This Row],[עמודה2]:[עמודה5]])","v":0},null,null,null,null,null,null,{"$f":"COUNTA(פרק_כג[[#This Row],[עמודה2]:[עמודה5]])","v":0},null,null,null,null,null,null,{"$f":"COUNTA(פרק_כד[[#This Row],[עמודה2]:[עמודה5]])","v":0}]
[null,null,null,null,null,null,null,{"$f":"COUNTA(פרק_א[[#This Row],[עמודה2]:[עמודה5]])","v":0},null,null,null,null,null,null,{"$f":"COUNTA(פרק_ב[[#This Row],[עמודה2]:[עמודה5]])","v":0},null,null,null,null,null,null,{"$f":"COUNTA(פרק_ג[[#This Row],[עמודה2]:[עמודה5]])","v":0},null,null,null,null,null,null,{"$f":"COUNTA(פרק_ד[[#This Row],[עמודה2]:[עמודה5]])","v":0},null,null,null,null,null,null,{"$f":"COUNTA(פרק_ה[[#This Row],[עמודה2]:[עמודה5]])","v":0},null,null,null,null,null,null,{"$f":"COUNTA(פרק_ו[[#This Row],[עמודה2]:[עמודה5]])","v":0},null,null,null,null,null,null,{"$f":"COUNTA(פרק_ז[[#This Row],[עמודה2]:[עמודה5]])","v":0},null,null,null,null,null,null,{"$f":"COUNTA(פרק_ח[[#This Row],[עמודה2]:[עמודה5]])","v":0},null,null,null,null,null,null,{"$f":"COUNTA(פרק_ט[[#This Row],[עמודה2]:[עמודה5]])","v":0},null,null,null,null,null,null,{"$f":"COUNTA(פרק_י[[#This Row],[עמודה2]:[עמודה5]])","v":0},null,null,null,null,null,null,{"$f":"COUNTA(פרק_יא[[#This Row],[עמודה2]:[עמודה5]])","v":0},null,null,null,null,null,null,{"$f":"COUNTA(פרק_יב[[#This Row],[עמודה2]:[עמודה5]])","v":0},null,null,null,null,null,null,{"$f":"COUNTA(פרק_יג[[#This Row],[עמודה2]:[עמודה5]])","v":0},null,null,null,null,null,null,{"$f":"COUNTA(פרק_יד[[#This Row],[עמודה2]:[עמודה5]])","v":0},null,null,null,null,null,null,{"$f":"COUNTA(פרק_טו[[#This Row],[עמודה2]:[עמודה5]])","v":0},null,null,null,null,null,null,{"$f":"COUNTA(פרק_טז[[#This Row],[עמודה2]:[עמודה5]])","v":0},null,null,null,null,null,null,{"$f":"COUNTA(פרק_יז[[#This Row],[עמודה2]:[עמודה5]])","v":0},null,null,null,null,null,null,{"$f":"COUNTA(פרק_יח[[#This Row],[עמודה2]:[עמודה5]])","v":0},null,null,null,null,null,null,{"$f":"COUNTA(פרק_יט[[#This Row],[עמודה2]:[עמודה5]])","v":0},null,null,null,null,null,null,{"$f":"COUNTA(פרק_כ[[#This Row],[עמודה2]:[עמודה5]])","v":0},null,null,null,null,null,null,{"$f":"COUNTA(פרק_כא[[#This Row],[עמודה2]:[עמודה5]])","v":0},null,null,null,null,null,null,{"$f":"COUNTA(פרק_כב[[#This Row],[עמודה2]:[עמודה5]])","v":0},null,null,null,null,null,null,{"$f":"COUNTA(פרק_כג[[#This Row],[עמודה2]:[עמודה5]])","v":0},null,null,null,null,null,null,{"$f":"COUNTA(פרק_כד[[#This Row],[עמודה2]:[עמודה5]])","v":0}]
[null,null,null,null,null,null,null,{"$f":"COUNTA(פרק_א[[#This Row],[עמודה2]:[עמודה5]])","v":0},null,null,null,null,null,null,{"$f":"COUNTA(פרק_ב[[#This Row],[עמודה2]:[עמודה5]])","v":0},null,null,null,null,null,null,{"$f":"COUNTA(פרק_ג[[#This Row],[עמודה2]:[עמודה5]])","v":0},null,null,null,null,null,null,{"$f":"COUNTA(פרק_ד[[#This Row],[עמודה2]:[עמודה5]])","v":0},null,null,null,null,null,null,{"$f":"COUNTA(פרק_ה[[#This Row],[עמודה2]:[עמודה5]])","v":0},null,null,null,null,null,null,{"$f":"COUNTA(פרק_ו[[#This Row],[עמודה2]:[עמודה5]])","v":0},null,null,null,null,null,null,{"$f":"COUNTA(פרק_ז[[#This Row],[עמודה2]:[עמודה5]])","v":0},null,null,null,null,null,null,{"$f":"COUNTA(פרק_ח[[#This Row],[עמודה2]:[עמודה5]])","v":0},null,null,null,null,null,null,{"$f":"COUNTA(פרק_ט[[#This Row],[עמודה2]:[עמודה5]])","v":0},null,null,null,null,null,null,{"$f":"COUNTA(פרק_י[[#This Row],[עמודה2]:[עמודה5]])","v":0},null,null,null,null,null,null,{"$f":"COUNTA(פרק_יא[[#This Row],[עמודה2]:[עמודה5]])","v":0},null,null,null,null,null,null,{"$f":"COUNTA(פרק_יב[[#This Row],[עמודה2]:[עמודה5]])","v":0},null,null,null,null,null,null,{"$f":"COUNTA(פרק_יג[[#This Row],[עמודה2]:[עמודה5]])","v":0},null,null,null,null,null,null,{"$f":"COUNTA(פרק_יד[[#This Row],[עמודה2]:[עמודה5]])","v":0},null,null,null,null,null,null,{"$f":"COUNTA(פרק_טו[[#This Row],[עמודה2]:[עמודה5]])","v":0},null,null,null,null,null,null,{"$f":"COUNTA(פרק_טז[[#This Row],[עמודה2]:[עמודה5]])","v":0},null,null,null,null,null,null,{"$f":"COUNTA(פרק_יז[[#This Row],[עמודה2]:[עמודה5]])","v":0},null,null,null,null,null,null,{"$f":"COUNTA(פרק_יח[[#This Row],[עמודה2]:[עמודה5]])","v":0},null,null,null,null,null,null,{"$f":"COUNTA(פרק_יט[[#This Row],[עמודה2]:[עמודה5]])","v":0},null,null,null,null,null,null,{"$f":"COUNTA(פרק_כ[[#This Row],[עמודה2]:[עמודה5]])","v":0},null,null,null,null,null,null,{"$f":"COUNTA(פרק_כא[[#This Row],[עמודה2]:[עמודה5]])","v":0},null,null,null,null,null,null,{"$f":"COUNTA(פרק_כב[[#This Row],[עמודה2]:[עמודה5]])","v":0},null,null,null,null,null,null,{"$f":"COUNTA(פרק_כג[[#This Row],[עמודה2]:[עמודה5]])","v":0},null,null,null,null,null,null,{"$f":"COUNTA(פרק_כד[[#This Row],[עמודה2]:[עמודה5]])","v":0}]
[]
[]
[null,null,"שורת סיכום",null,null,null,null,null,null,"שורת סיכום",null,null,null,null,null,null,"שורת סיכום",null,null,null,null,null,null,"שורת סיכום",null,null,null,null,null,null,"שורת סיכום",null,null,null,null,null,null,"שורת סיכום",null,null,null,null,null,null,"שורת סיכום",null,null,null,null,null,null,"שורת סיכום",null,null,null,null,null,null,"שורת סיכום",null,null,null,null,null,null,"שורת סיכום",null,null,null,null,null,null,"שורת סיכום",null,null,null,null,null,null,"שורת סיכום",null,null,null,null,null,null,"שורת סיכום",null,null,null,null,null,null,"שורת סיכום",null,null,null,null,null,null,"שורת סיכום",null,null,null,null,null,null,"שורת סיכום",null,null,null,null,null,null,"שורת סיכום",null,null,null,null,null,null,"שורת סיכום",null,null,null,null,null,null,"שורת סיכום",null,null,null,null,null,null,"שורת סיכום",null,null,null,null,null,null,"שורת סיכום",null,null,null,null,null,null,"שורת סיכום",null,null,null,null,null,null,"שורת סיכום",null,null,null,null,null,null,"שורת סיכום"]
[null,null,{"$f":"SUBTOTAL(103,פרק_א[עמודה1])","v":38},{"$f":"SUBTOTAL(103,פרק_א[עמודה2])","v":16},{"$f":"SUBTOTAL(103,פרק_א[עמודה3])","v":8},{"$f":"SUBTOTAL(103,פרק_א[עמודה4])","v":3},{"$f":"SUBTOTAL(103,פרק_א[עמודה5])","v":0},{"$f":"SUBTOTAL(109,פרק_א[עמודה6])","v":27},null,{"$f":"SUBTOTAL(103,פרק_ב[עמודה1])","v":0},{"$f":"SUBTOTAL(103,פרק_ב[עמודה2])","v":0},{"$f":"SUBTOTAL(103,פרק_ב[עמודה3])","v":0},{"$f":"SUBTOTAL(103,פרק_ב[עמודה4])","v":0},{"$f":"SUBTOTAL(103,פרק_ב[עמודה5])","v":0},{"$f":"SUBTOTAL(109,פרק_ב[עמודה6])","v":0},null,{"$f":"SUBTOTAL(103,פרק_ג[עמודה1])","v":0},{"$f":"SUBTOTAL(103,פרק_ג[עמודה2])","v":0},{"$f":"SUBTOTAL(103,פרק_ג[עמודה3])","v":0},{"$f":"SUBTOTAL(103,פרק_ג[עמודה4])","v":0},{"$f":"SUBTOTAL(103,פרק_ג[עמודה5])","v":0},{"$f":"SUBTOTAL(109,פרק_ג[עמודה6])","v":0},null,{"$f":"SUBTOTAL(103,פרק_ד[עמודה1])","v":0},{"$f":"SUBTOTAL(103,פרק_ד[עמודה2])","v":0},{"$f":"SUBTOTAL(103,פרק_ד[עמודה3])","v":0},{"$f":"SUBTOTAL(103,פרק_ד[עמודה4])","v":0},{"$f":"SUBTOTAL(103,פרק_ד[עמודה5])","v":0},{"$f":"SUBTOTAL(109,פרק_ד[עמודה6])","v":0},null,{"$f":"SUBTOTAL(103,פרק_ה[עמודה1])","v":0},{"$f":"SUBTOTAL(103,פרק_ה[עמודה2])","v":0},{"$f":"SUBTOTAL(103,פרק_ה[עמודה3])","v":0},{"$f":"SUBTOTAL(103,פרק_ה[עמודה4])","v":0},{"$f":"SUBTOTAL(103,פרק_ה[עמודה5])","v":0},{"$f":"SUBTOTAL(109,פרק_ה[עמודה6])","v":0},null,{"$f":"SUBTOTAL(103,פרק_ו[עמודה1])","v":0},{"$f":"SUBTOTAL(103,פרק_ו[עמודה2])","v":0},{"$f":"SUBTOTAL(103,פרק_ו[עמודה3])","v":0},{"$f":"SUBTOTAL(103,פרק_ו[עמודה4])","v":0},{"$f":"SUBTOTAL(103,פרק_ו[עמודה5])","v":0},{"$f":"SUBTOTAL(109,פרק_ו[עמודה6])","v":0},null,{"$f":"SUBTOTAL(103,פרק_ז[עמודה1])","v":0},{"$f":"SUBTOTAL(103,פרק_ז[עמודה2])","v":0},{"$f":"SUBTOTAL(103,פרק_ז[עמודה3])","v":0},{"$f":"SUBTOTAL(103,פרק_ז[עמודה4])","v":0},{"$f":"SUBTOTAL(103,פרק_ז[עמודה5])","v":0},{"$f":"SUBTOTAL(109,פרק_ז[עמודה6])","v":0},null,{"$f":"SUBTOTAL(103,פרק_ח[עמודה1])","v":0},{"$f":"SUBTOTAL(103,פרק_ח[עמודה2])","v":0},{"$f":"SUBTOTAL(103,פרק_ח[עמודה3])","v":0},{"$f":"SUBTOTAL(103,פרק_ח[עמודה4])","v":0},{"$f":"SUBTOTAL(103,פרק_ח[עמודה5])","v":0},{"$f":"SUBTOTAL(109,פרק_ח[עמודה6])","v":0},null,{"$f":"SUBTOTAL(103,פרק_ט[עמודה1])","v":0},{"$f":"SUBTOTAL(103,פרק_ט[עמודה2])","v":0},{"$f":"SUBTOTAL(103,פרק_ט[עמודה3])","v":0},{"$f":"SUBTOTAL(103,פרק_ט[עמודה4])","v":0},{"$f":"SUBTOTAL(103,פרק_ט[עמודה5])","v":0},{"$f":"SUBTOTAL(109,פרק_ט[עמודה6])","v":0},null,{"$f":"SUBTOTAL(103,פרק_י[עמודה1])","v":0},{"$f":"SUBTOTAL(103,פרק_י[עמודה2])","v":0},{"$f":"SUBTOTAL(103,פרק_י[עמודה3])","v":0},{"$f":"SUBTOTAL(103,פרק_י[עמודה4])","v":0},{"$f":"SUBTOTAL(103,פרק_י[עמודה5])","v":0},{"$f":"SUBTOTAL(109,פרק_י[עמודה6])","v":0},null,{"$f":"SUBTOTAL(103,פרק_יא[עמודה1])","v":0},{"$f":"SUBTOTAL(103,פרק_יא[עמודה2])","v":0},{"$f":"SUBTOTAL(103,פרק_יא[עמודה3])","v":0},{"$f":"SUBTOTAL(103,פרק_יא[עמודה4])","v":0},{"$f":"SUBTOTAL(103,פרק_יא[עמודה5])","v":0},{"$f":"SUBTOTAL(109,פרק_יא[עמודה6])","v":0},null,{"$f":"SUBTOTAL(103,פרק_יב[עמודה1])","v":0},{"$f":"SUBTOTAL(103,פרק_יב[עמודה2])","v":0},{"$f":"SUBTOTAL(103,פרק_יב[עמודה3])","v":0},{"$f":"SUBTOTAL(103,פרק_יב[עמודה4])","v":0},{"$f":"SUBTOTAL(103,פרק_יב[עמודה5])","v":0},{"$f":"SUBTOTAL(109,פרק_יב[עמודה6])","v":0},null,{"$f":"SUBTOTAL(103,פרק_יג[עמודה1])","v":0},{"$f":"SUBTOTAL(103,פרק_יג[עמודה2])","v":0},{"$f":"SUBTOTAL(103,פרק_יג[עמודה3])","v":0},{"$f":"SUBTOTAL(103,פרק_יג[עמודה4])","v":0},{"$f":"SUBTOTAL(103,פרק_יג[עמודה5])","v":0},{"$f":"SUBTOTAL(109,פרק_יג[עמודה6])","v":0},null,{"$f":"SUBTOTAL(103,פרק_יד[עמודה1])","v":0},{"$f":"SUBTOTAL(103,פרק_יד[עמודה2])","v":0},{"$f":"SUBTOTAL(103,פרק_יד[עמודה3])","v":0},{"$f":"SUBTOTAL(103,פרק_יד[עמודה4])","v":0},{"$f":"SUBTOTAL(103,פרק_יד[עמודה5])","v":0},{"$f":"SUBTOTAL(109,פרק_יד[עמודה6])","v":0},null,{"$f":"SUBTOTAL(103,פרק_טו[עמודה1])","v":0},{"$f":"SUBTOTAL(103,פרק_טו[עמודה2])","v":0},{"$f":"SUBTOTAL(103,פרק_טו[עמודה3])","v":0},{"$f":"SUBTOTAL(103,פרק_טו[עמודה4])","v":0},{"$f":"SUBTOTAL(103,פרק_טו[עמודה5])","v":0},{"$f":"SUBTOTAL(109,פרק_טו[עמודה6])","v":0},null,{"$f":"SUBTOTAL(103,פרק_טז[עמודה1])","v":0},{"$f":"SUBTOTAL(103,פרק_טז[עמודה2])","v":0},{"$f":"SUBTOTAL(103,פרק_טז[עמודה3])","v":0},{"$f":"SUBTOTAL(103,פרק_טז[עמודה4])","v":0},{"$f":"SUBTOTAL(103,פרק_טז[עמודה5])","v":0},{"$f":"SUBTOTAL(109,פרק_טז[עמודה6])","v":0},null,{"$f":"SUBTOTAL(103,פרק_יז[עמודה1])","v":0},{"$f":"SUBTOTAL(103,פרק_יז[עמודה2])","v":0},{"$f":"SUBTOTAL(103,פרק_יז[עמודה3])","v":0},{"$f":"SUBTOTAL(103,פרק_יז[עמודה4])","v":0},{"$f":"SUBTOTAL(103,פרק_יז[עמודה5])","v":0},{"$f":"SUBTOTAL(109,פרק_יז[עמודה6])","v":0},null,{"$f":"SUBTOTAL(103,פרק_יח[עמודה1])","v":0},{"$f":"SUBTOTAL(103,פרק_יח[עמודה2])","v":0},{"$f":"SUBTOTAL(103,פרק_יח[עמודה3])","v":0},{"$f":"SUBTOTAL(103,פרק_יח[עמודה4])","v":0},{"$f":"SUBTOTAL(103,פרק_יח[עמודה5])","v":0},{"$f":"SUBTOTAL(109,פרק_יח[עמודה6])","v":0},null,{"$f":"SUBTOTAL(103,פרק_יט[עמודה1])","v":0},{"$f":"SUBTOTAL(103,פרק_יט[עמודה2])","v":0},{"$f":"SUBTOTAL(103,פרק_יט[עמודה3])","v":0},{"$f":"SUBTOTAL(103,פרק_יט[עמודה4])","v":0},{"$f":"SUBTOTAL(103,פרק_יט[עמודה5])","v":0},{"$f":"SUBTOTAL(109,פרק_יט[עמודה6])","v":0},null,{"$f":"SUBTOTAL(103,פרק_כ[עמודה1])","v":0},{"$f":"SUBTOTAL(103,פרק_כ[עמודה2])","v":0},{"$f":"SUBTOTAL(103,פרק_כ[עמודה3])","v":0},{"$f":"SUBTOTAL(103,פרק_כ[עמודה4])","v":0},{"$f":"SUBTOTAL(103,פרק_כ[עמודה5])","v":0},{"$f":"SUBTOTAL(109,פרק_כ[עמודה6])","v":0},null,{"$f":"SUBTOTAL(103,פרק_כא[עמודה1])","v":0},{"$f":"SUBTOTAL(103,פרק_כא[עמודה2])","v":0},{"$f":"SUBTOTAL(103,פרק_כא[עמודה3])","v":0},{"$f":"SUBTOTAL(103,פרק_כא[עמודה4])","v":0},{"$f":"SUBTOTAL(103,פרק_כא[עמודה5])","v":0},{"$f":"SUBTOTAL(109,פרק_כא[עמודה6])","v":0},null,{"$f":"SUBTOTAL(103,פרק_כב[עמודה1])","v":0},{"$f":"SUBTOTAL(103,פרק_כב[עמודה2])","v":0},{"$f":"SUBTOTAL(103,פרק_כב[עמודה3])","v":0},{"$f":"SUBTOTAL(103,פרק_כב[עמודה4])","v":0},{"$f":"SUBTOTAL(103,פרק_כב[עמודה5])","v":0},{"$f":"SUBTOTAL(109,פרק_כב[עמודה6])","v":0},null,{"$f":"SUBTOTAL(103,פרק_כג[עמודה1])","v":0},{"$f":"SUBTOTAL(103,פרק_כג[עמודה2])","v":0},{"$f":"SUBTOTAL(103,פרק_כג[עמודה3])","v":0},{"$f":"SUBTOTAL(103,פרק_כג[עמודה4])","v":0},{"$f":"SUBTOTAL(103,פרק_כג[עמודה5])","v":0},{"$f":"SUBTOTAL(109,פרק_כג[עמודה6])","v":0},null,{"$f":"SUBTOTAL(103,פרק_כד[עמודה1])","v":0},{"$f":"SUBTOTAL(103,פרק_כד[עמודה2])","v":0},{"$f":"SUBTOTAL(103,פרק_כד[עמודה3])","v":0},{"$f":"SUBTOTAL(103,פרק_כד[עמודה4])","v":0},{"$f":"SUBTOTAL(103,פרק_כד[עמודה5])","v":0},{"$f":"SUBTOTAL(109,פרק_כד[עמודה6])","v":0}]
[]
[]
[]
[null,null,{"$f":"\"למדת סך הכל בפרק \" &C6&\": \"& H124/2&\" דפים.\"","v":"למדת סך הכל בפרק : 13.5 דפים."},null,null,null,null,null,null,{"$f":"\"למדת סך הכל בפרק \" &J6&\": \"& O124/2&\" דפים.\"","v":"למדת סך הכל בפרק : 0 דפים."},null,null,null,null,null,null,{"$f":"\"למדת סך הכל בפרק \" &Q6&\": \"& V124/2&\" דפים.\"","v":"למדת סך הכל בפרק : 0 דפים."},null,null,null,null,null,null,{"$f":"\"למדת סך הכל בפרק \" &X6&\": \"& AC124/2&\" דפים.\"","v":"למדת סך הכל בפרק : 0 דפים."},null,null,null,null,null,null,{"$f":"\"למדת סך הכל בפרק \" &AE6&\": \"& AJ124/2&\" דפים.\"","v":"למדת סך הכל בפרק : 0 דפים."},null,null,null,null,null,null,{"$f":"\"למדת סך הכל בפרק \" &AL6&\": \"& AQ124/2&\" דפים.\"","v":"למדת סך הכל בפרק : 0 דפים."},null,null,null,null,null,null,{"$f":"\"למדת סך הכל בפרק \" &AS6&\": \"& AX124/2&\" דפים.\"","v":"למדת סך הכל בפרק : 0 דפים."},null,null,null,null,null,null,{"$f":"\"למדת סך הכל בפרק \" &AZ6&\": \"& BE124/2&\" דפים.\"","v":"למדת סך הכל בפרק : 0 דפים."},null,null,null,null,null,null,{"$f":"\"למדת סך הכל בפרק \" &BG6&\": \"& BL124/2&\" דפים.\"","v":"למדת סך הכל בפרק : 0 דפים."},null,null,null,null,null,null,{"$f":"\"למדת סך הכל בפרק \" &BN6&\": \"& BS124/2&\" דפים.\"","v":"למדת סך הכל בפרק : 0 דפים."},null,null,null,null,null,null,{"$f":"\"למדת סך הכל בפרק \" &BU6&\": \"& BZ124/2&\" דפים.\"","v":"למדת סך הכל בפרק : 0 דפים."},null,null,null,null,null,null,{"$f":"\"למדת סך הכל בפרק \" &CB6&\": \"& CG124/2&\" דפים.\"","v":"למדת סך הכל בפרק : 0 דפים."},null,null,null,null,null,null,{"$f":"\"למדת סך הכל בפרק \" &CI6&\": \"& CN124/2&\" דפים.\"","v":"למדת סך הכל בפרק : 0 דפים."},null,null,null,null,null,null,{"$f":"\"למדת סך הכל בפרק \" &CP6&\": \"& CU124/2&\" דפים.\"","v":"למדת סך הכל בפרק : 0 דפים."},null,null,null,null,null,null,{"$f":"\"למדת סך הכל בפרק \" &CW6&\": \"& DB124/2&\" דפים.\"","v":"למדת סך הכל בפרק : 0 דפים."},null,null,null,null,null,null,{"$f":"\"למדת סך הכל בפרק \" &DD6&\": \"& DI124/2&\" דפים.\"","v":"למדת סך הכל בפרק : 0 דפים."},null,null,null,null,null,null,{"$f":"\"למדת סך הכל בפרק \" &DK6&\": \"& DP124/2&\" דפים.\"","v":"למדת סך הכל בפרק : 0 דפים."},null,null,null,null,null,null,{"$f":"\"למדת סך הכל בפרק \" &DR6&\": \"& DW124/2&\" דפים.\"","v":"למדת סך הכל בפרק : 0 דפים."},null,null,null,null,null,null,{"$f":"\"למדת סך הכל בפרק \" &DY6&\": \"& ED124/2&\" דפים.\"","v":"למדת סך הכל בפרק : 0 דפים."},null,null,null,null,null,null,{"$f":"\"למדת סך הכל בפרק \" &EF6&\": \"& EK124/2&\" דפים.\"","v":"למדת סך הכל בפרק : 0 דפים."},null,null,null,null,null,null,{"$f":"\"למדת סך הכל בפרק \" &EM6&\": \"& ER124/2&\" דפים.\"","v":"למדת סך הכל בפרק : 0 דפים."},null,null,null,null,null,null,{"$f":"\"למדת סך הכל בפרק \" &ET6&\": \"& EY124/2&\" דפים.\"","v":"למדת סך הכל בפרק : 0 דפים."},null,null,null,null,null,null,{"$f":"\"למדת סך הכל בפרק \" &FA6&\": \"& FF124/2&\" דפים.\"","v":"למדת סך הכל בפרק : 0 דפים."},null,null,null,null,null,null,{"$f":"\"למדת סך הכל בפרק \" &FH6&\": \"& FM124/2&\" דפים.\"","v":"למדת סך הכל בפרק : 0 דפים."}]